{"text_format":"3","workbook":"xlsx","n_sheets":25,"sheets":["Sheet1","Input Menu","Maintenance","Main Menu","Sec. Acc1, NAT2, CR1, CSR1","Sec. acc2, NAT1, CR1, CSR1","Sec. acc opt2 and NAT opt2","blank","3Elem. ER, CR1, CSR2, NAT1","2Elem. ER, CR1, CSR1, NAT2","1Elem. ER, CR1, CSR1, NAT1","9Elem. PR, CR1, CSR1, NAT1","10Elem. PR, CR1, CSR1, NAT2","4Elem. ER, CR1, CSR2, NAT2","5Elem. ER, CR2, CSR1, NAT1","6Elem. ER, CR2, CSR1, NAT2","7Elem. ER, CR2, CSR2, NAT1","8Elem. ER, CR2, CSR2, NAT2","11Elem. PR, CR1, CSR2, NAT1","12Elem. PR, CR1, CSR2, NAT2","13Elem. PR, CR2, CSR1, NAT1","14Elem. PR, CR2, CSR1, NAT2","15Elem. PR, CR2, CSR2, NAT1","16Elem. PR, CR2, CSR2, NAT2","Document Analysis, Obs. Discuss"],"not_rendered":{"charts":19,"images":6,"macros":1,"defined_names":113,"comments":4},"read":"whole","date_system":"1900"}

{"sheet":"Sheet1","index":0,"n_rows":30,"n_cols":4,"rows_kept":30,"merged":[[0,0,0,4],[1,0,1,4],[2,0,2,4],[10,1,10,4],[11,1,11,4],[12,1,12,4],[13,1,13,4],[14,1,14,4],[15,1,15,4],[16,1,16,4],[17,1,17,4],[18,3,18,4],[19,3,19,4],[20,3,20,4],[21,3,21,4],[22,3,22,4],[23,3,23,4],[24,3,24,4],[25,3,25,4],[26,3,26,4],[27,3,27,4],[28,3,28,4],[29,3,29,4]]}
["Department of Education"]
["Region X"]
[{"$f":"'Input Menu'!A3:H3","v":""}]
{"$rows_empty":7}
["Brief History of the School"]
["School ID",{"$f":"IF(A3=\"\",\"\",'Input Menu'!K6)","v":""}]
["Name of School",{"$f":"'Input Menu'!B7:C7","v":""}]
["District",{"$f":"'Input Menu'!B8:C8","v":""}]
["School Address"]
["Name of the School Head"]
["Position of the School Head"]
["Contact No."]
["Teaching Staff","Male","Female","Total"]
["Number of Master Teacher III",null,null,{"$f":"IF(OR(B20=\"\",C20=\"\"),\"\",SUM(B20:C20))","v":""}]
["Number of Master Teacher II",null,null,{"$f":"IF(OR(B21=\"\",C21=\"\"),\"\",SUM(B21:C21))","v":""}]
["Number of Master Teacher I",null,null,""]
["Head Teacher III",null,null,""]
["Head Teacher II",null,null,""]
["Head Teacher I",null,null,""]
["Teacher III",null,null,""]
["Teacher II",null,null,""]
["Teacher I",null,null,""]
["Others, pls. specify below",null,null,""]
[null,{"$f":"IF(B20=\"\",\"\",IF(B21=\"\",\"\",IF(B22=\"\",\"\",IF(B23=\"\",\"\",IF(B24=\"\",\"\",IF(B25=\"\",\"\",IF(B26=\"\",\"\",IF(B27=\"\",\"\",IF(B28=\"\",\"\",IF(B29=\"\",\"\",SUM(B20:B29)))))))))))","v":""},{"$f":"IF(C20=\"\",\"\",IF(C21=\"\",\"\",IF(C22=\"\",\"\",IF(C23=\"\",\"\",IF(C24=\"\",\"\",IF(C25=\"\",\"\",IF(C26=\"\",\"\",IF(C27=\"\",\"\",IF(C28=\"\",\"\",IF(C29=\"\",\"\",SUM(C20:C29)))))))))))","v":""},{"$f":"IF(OR(B30=\"\",C30=\"\"),\"\",SUM(B30:C30))","v":""}]

{"sheet":"Input Menu","index":1,"n_rows":54,"n_cols":11,"rows_kept":54,"merged":[[0,0,0,7],[1,0,1,7],[2,0,2,7],[4,0,4,7],[5,1,5,2],[6,1,6,2],[7,1,7,2],[8,1,8,2],[9,0,9,2],[10,0,10,6],[11,4,11,7],[12,0,17,0],[12,1,13,2],[12,4,12,7],[19,0,36,0],[19,1,19,2],[25,1,25,2],[37,0,42,0],[37,1,38,2],[46,0,46,2],[48,0,48,2],[49,1,49,2],[50,1,50,2],[51,1,51,2],[52,1,52,2],[53,1,53,2]]}
["Department of Education",{"$nulls":7},"Division of Bukidnon"]
["Region X",{"$nulls":7},"Division of Cagayan de Oro City"]
[{"$f":"IF(B6=\"\",\"\",VLOOKUP(B6,Maintenance!A:D,4,))","v":""},{"$nulls":7},"Division of Camiguin City"]
[{"$nulls":8},"Division of El Salvador City"]
["School-Based Management (S B M)    V a l I d a t I o n",{"$nulls":7},"Division of Gingoog City"]
["School ID.:",{"$nulls":7},"Division of Iligan City",null,{"$f":"B6","v":0}]
["School:",{"$f":"IF(B6=\"\",\"\",VLOOKUP(B6,Maintenance!A:B,2,))","v":""},{"$nulls":6},"Division of Lanao del Norte"]
["District:",{"$f":"IF(B6=\"\",\"\",VLOOKUP(B6,Maintenance!A:C,3,))","v":""},{"$nulls":8},{"$f":"B8","v":""}]
["School Year Validated:"]
["Step 1: Determine Performance Improvement (60%)",{"$nulls":7},"Division of Malaybalay City"]
["Direction: Select the school year under Performance Indicator's Column and enter the baseline data.",{"$nulls":7},"Division of Misamis Occidental"]
["Thematic Area","Year","Performance Indicators",null,"Baseline Data",{"$nulls":3},"Division of Misamis Oriental"]
["Access (45%)","Gross Enrolment             (RAW DATA)",null,null,"Community Mapping",{"$nulls":3},"Division of Oroqueta City"]
[{"$nulls":4}," No. of school-aged children (5-11 years old) in the community not enrolled\n","No. of school-aged children within the community (5-11 years old) enrolled in other schools","No. of school-aged children enrolled  (5-11 years old) within  the community","Total no. of school-aged children in the community aged (5-11 years old)","Division of Ozamis City"]
[null,"SY 2009-2010",990,null,null,"SY 2008-2009"]
[{"$nulls":7},{"$f":"IF(B16=\"\",\"\",G16+F16+E16)","v":""},"Division of Tangub City"]
[null,{"$f":"IF(B16=\"\",\"\",B16+1)","v":""},{"$nulls":5},{"$f":"IF(B17=\"\",\"\",G17+F17+E17)","v":""},"Division of Valencia City"]
[null,{"$f":"IF(B17=\"\",\"\",B17+1)","v":""},{"$nulls":5},""]
[null,"% of Inc./Average",{"$f":"'1Elem. ER, CR1, CSR1, NAT1'!C17","v":{"$error":"#VALUE!"}},null,null,2013]
["Efficiency (25%)","Dropout (Raw Data)",null,null,"No. of Drop-outs (Current Year)",null,"Enrolment (Previous Year)"]
[null,"SY 2008-2009",{"v":0.02,"d":"2.00%"}]
[null,{"$f":"IF(B17=\"\",\"\",B16)","v":""},{"$nulls":4},{"$f":"IF(B16=\"\",\"\",C16)","v":""}]
[null,{"$f":"B17","v":""},{"$nulls":4},{"$f":"IF(B17=\"\",\"\",C17)","v":""}]
[null,{"$f":"B18","v":""},{"$nulls":4},{"$f":"IF(B18=\"\",\"\",C18)","v":""}]
[null,"Ave. % of Decrease"]
[null,"Repetition (Raw Data)",null,null,"No. of Repeaters (Current Year)","No. of Retained (Current Year)","Enrolment (Previous Year)"]
[null,"SY 2008-2009",65]
[null,{"$f":"B22","v":""},{"$nulls":4},{"$f":"G22","v":""}]
[null,{"$f":"B23","v":""},{"$nulls":4},{"$f":"G23","v":""}]
[null,{"$f":"B24","v":""},{"$nulls":4},{"$f":"G24","v":""}]
[null,"Ave. % of Increase",{"$nulls":3},2025]
[null,"Cohort Survival Rate (CSR):","Cohort Survival (%)",null,null,2026]
[null,"SY 2008-2009",58,null,null,2027]
[null,{"$f":"B28","v":""},{"v":95,"d":"95.00"},null,null,2028]
[null,{"$f":"B29","v":""},{"v":96,"d":"96.00"},null,null,2029]
[null,{"$f":"B30","v":""},83.72,null,null,2030]
[null,"Ave. % of Increase",{"$nulls":3},2031]
["Quality (30%)","NAT MPS (%)",null,"NAT MPS","Promotion Rate"]
[{"$nulls":3},50,"No. of Promotees (Current Year)",null,"Enrolment (Previous Year)"]
[null,{"$f":"B34","v":""},null,20,{"$f":"IF(B16=\"\",\"\",C16-E22-F28)","v":""},null,{"$f":"G28","v":""}]
[null,{"$f":"B35","v":""},null,68,{"$f":"IF(B17=\"\",\"\",C17-E23-F29)","v":""},null,{"$f":"G29","v":""}]
[null,{"$f":"B36","v":""},null,28,{"$f":"IF(B18=\"\",\"\",C18-E24-F30)","v":""},null,{"$f":"G30","v":""}]
[null,"Ave. % of Increase",null,{"$f":"AVERAGE(D40:D42)","v":{"v":38.666666666666664,"d":"39"}}]
[]
["Maintenance Menu"]
[]
["SBM Validation Form and DOD Assessment"]
["Blank  SBM Valdation Form"]
["Enter the names of Validators"]
["Chairman:"]
["Member1:"]
["Member2:"]
["Member3:"]
["Member4:"]

{"sheet":"Maintenance","index":2,"n_rows":2120,"n_cols":6,"rows_kept":2120}
["School ID","School","District","Division","School Year","Calendar Year"]
[126618,"Abyawan ES","Manolo Fortich I","Division of Bukidnon","2008-2009",2008]
[126676,"Adtuyon Elementary School","Pangantucan","Division of Bukidnon","2009-2010",2009]
[199516,"Agaton Elementary School","Kalilangan","Division of Bukidnon","2010-2011",2010]
[126619,"Alae CES","Manolo Fortich II","Division of Bukidnon","2011-2012",2011]
[126596,"Alangilan ES","Malitbog","Division of Bukidnon","2012-2013",2012]
[126496,"Alanib ES","Lantapan","Division of Bukidnon","2013-2014",2013]
[126648,"Ali-al Elementary School","Maramag III","Division of Bukidnon","2014-2015",2014]
[126307,"Aludas Elementary school","Damulog","Division of Bukidnon","2015-2016",2015]
[126649,"Anahawon Elem.School","Maramag I","Division of Bukidnon","2016-2017",2016]
[126308,"Anggaan ES","Damulog","Division of Bukidnon","2017-2018",2017]
[126281,"Anlugan ES","Cabanglasan","Division of Bukidnon","2018-2019",2018]
[126705,"Apyao ES","Quezon I","Division of Bukidnon","2019-2020",2019]
[126412,"AQUINO ELEMENTARY SCHOOL","Kalilangan","Division of Bukidnon","2020-2021",2020]
[126620,"Awol ES","Manolo Fortich II","Division of Bukidnon","2021-2022",2021]
[126497,"Babahagon ES","Lantapan","Division of Bukidnon","2022-2023",2022]
[199542,"Bacayan Primary School","Kitaotao II","Division of Bukidnon","2023-2024",2023]
[126392,"Bacbacon ES","Kadingilan","Division of Bukidnon","2024-2025",2024]
[126498,"Baclayon ES","Lantapan","Division of Bukidnon","2025-2026",2025]
[126677,"BACUSANON ELEMENTARY SCHOOL","Pangantucan","Division of Bukidnon","2026-2027",2026]
[126621,"Bagalangit Elementary School","Manolo Fortich I","Division of Bukidnon","2027-2028",2027]
[126724,"Bagong Lipunan ES","Quezon II","Division of Bukidnon","2028-2029",2028]
[199539,"Bagong Silang Elementary School","Malitbog","Division of Bukidnon","2029-2030",2029]
[126432,"Bagong Silang ES","Kibawe","Division of Bukidnon",null,2030]
[126459,"Bagong Silang ES","Kitaotao II","Division of Bukidnon",null,2031]
[126393,"Bagongbayan ES","Kadingilan","Division of Bukidnon",null,2032]
[126394,"Bagor ES","Kadingilan","Division of Bukidnon",null,2033]
[126597,"Bagyangon ES","Malitbog","Division of Bukidnon",null,2034]
[199512,"Bahucanon E/S","Kadingilan","Division of Bukidnon",null,2035]
[126460,"Balangigay ES","Kitaotao I","Division of Bukidnon",null,2036]
[126794,"Balaon Elementary School","Talakag I","Division of Bukidnon",null,2037]
[126395,"Balaoro ES","Kadingilan","Division of Bukidnon",null,2038]
[126499,"Balila ES","Lantapan","Division of Bukidnon",null,2039]
[126263,"Balintad ES","Baungon","Division of Bukidnon",null,2040]
[126433,"Balintawak ES","Kibawe","Division of Bukidnon",null,2041]
[126678,"BALMAR ELEMENTARY SCHOOL","Pangantucan","Division of Bukidnon",null,2042]
[126461,"Balocbocan ES","Kitaotao I","Division of Bukidnon"]
[126679,"Balogo ES","Pangantucan South District","Division of Bukidnon"]
[199524,"Balud ES","Damulog","Division of Bukidnon"]
[126680,"Bangahan ES","Pangantucan South District","Division of Bukidnon"]
[126413,"Bangbang Elementary School","Kalilangan","Division of Bukidnon"]
[126650,"Bangkal ELEMENTARY SCHOOL","Maramag III","Division of Bukidnon"]
[126651,"Bantayan ES","Maramag III","Division of Bukidnon"]
[126500,"Bantuanon ES","Lantapan","Division of Bukidnon"]
[126681,"BARANDIAS ELEMENTARY SCHOOL","Pangantucan","Division of Bukidnon"]
[126325,"Barongcot Elementary School","Dangcagan","Division of Bukidnon"]
[126414,"Barorawon Elementary School","Kalilangan","Division of Bukidnon"]
[126396,"Baroy ES","Kadingilan","Division of Bukidnon"]
[126501,"Basac ES","Lantapan","Division of Bukidnon"]
[199537,"Basag PS","Damulog","Division of Bukidnon"]
[126795,"Basak Elementary School","Talakag I","Division of Bukidnon"]
[199503,"Basak Elementary School","Kitaotao II","Division of Bukidnon"]
[126652,"Base Camp Elementary school","Maramag I","Division of Bukidnon"]
[126796,"Baylanan PS","Talakag I","Division of Bukidnon"]
[126744,"Bayting ES","San Fernando I","Division of Bukidnon"]
[126462,"Bershiba ES","Kitaotao I","Division of Bukidnon"]
[126339,"Bismartz ES (Inator)","Don Carlos II","Division of Bukidnon"]
[126463,"Bobong ES","Kitaotao I","Division of Bukidnon"]
[126340,"Bocboc Central ES","Don Carlos II","Division of Bukidnon"]
[126464,"Bolo ES","Kitaotao II","Division of Bukidnon"]
[126747,"Bonacao ES","San Fernando II","Division of Bukidnon"]
[126369,"Bontongon Elementary School","Impasug-Ong I","Division of Bukidnon"]
[126264,"Buenavista ES","Baungon","Division of Bukidnon"]
[126745,"Bugca ES","San Fernando II","Division of Bukidnon"]
[126502,"Bugcaon ES","Lantapan","Division of Bukidnon"]
[126326,"Bugwak Elementary School","Dangcagan","Division of Bukidnon"]
[126434,"Bukang Liwayway Elementary School","Kibawe","Division of Bukidnon"]
[126746,"Bulalang ES","San Fernando II","Division of Bukidnon"]
[126370,"Bulonay ES","Impasug-Ong I","Division of Bukidnon"]
[199530,"Buluan PS","Damulog","Division of Bukidnon"]
[126371,"Bundaan Elementary School","Impasug-Ong I","Division of Bukidnon"]
[126706,"Busco ES","Quezon I","Division of Bukidnon"]
[126707,"Butong ES","Quezon I","Division of Bukidnon"]
[126341,"Buyot ES","Don Carlos I","Division of Bukidnon"]
[126342,"Cabadiangan ES","Don Carlos II","Division of Bukidnon"]
[126465,"Cabalantian ES","Kitaotao II","Division of Bukidnon"]
[126305,"Cabanglasan ES","Cabanglasan","Division of Bukidnon"]
[126748,"Cabuling ES","San Fernando II","Division of Bukidnon"]
[126283,"Cabulohan ES","Cabanglasan","Division of Bukidnon"]
[126797,"Cacaon Elementary School","Talakag I","Division of Bukidnon"]
[126435,"CAGAWASAN ELEMENTARY SCHOOL","Kibawe","Division of Bukidnon"]
[126343,"Calao-Calao ES","Don Carlos II","Division of Bukidnon"]
[126466,"Calapaton Elementary School","Kitaotao I","Division of Bukidnon"]
[126622,"Camp 1 ES","Manolo Fortich II","Division of Bukidnon"]
[126514,"Camp 14 ES","Libona","Division of Bukidnon"]
[126515,"Camp 9 ES","Libona","Division of Bukidnon"]
[126653,"Camp I ES","Maramag I","Division of Bukidnon"]
[126284,"Canangaan ES","Cabanglasan","Division of Bukidnon"]
[126749,"Candelaria ES","San Fernando I","Division of Bukidnon"]
[126415,"Canituan ES","Kalilangan","Division of Bukidnon"]
[126516,"Capehan Elementary School","Libona","Division of Bukidnon"]
[126285,"Capinonan ES","Cabanglasan","Division of Bukidnon"]
[126372,"Capitan Bayong ES","Impasug-Ong I","Division of Bukidnon"]
[126503,"Capt. Juan ES","Lantapan","Division of Bukidnon"]
[126777,"CAWAYAN ELEMENTARY SCHOOL","Impasug-Ong I","Division of Bukidnon"]
[126504,"Cawayan ES","Lantapan","Division of Bukidnon"]
[126725,"Cawayan ES","Quezon II","Division of Bukidnon"]
[126750,"Cayaga ES","San Fernando II","Division of Bukidnon"]
[126726,"Cebole ES","Quezon II","Division of Bukidnon"]
[126654,"Colambugon Elementary School","Maramag III","Division of Bukidnon"]
[126798,"Colawingon ES","Talakag I","Division of Bukidnon"]
[126751,"Colon ES","San Fernando I","Division of Bukidnon"]
[126598,"ComoComo Elementary School","Malitbog","Division of Bukidnon"]
[126682,"Concepcion ES","Pangantucan","Division of Bukidnon"]
[126799,"Cosina Elementary School","Talakag I","Division of Bukidnon"]
[126517,"Crossing ES","Libona","Division of Bukidnon"]
[126286,"Crossing Mandaing","Cabanglasan","Division of Bukidnon"]
[500676,"DAGUMBAAN ELEMENTARY SCHOOL","Talakag I","Division of Bukidnon"]
[126655,"Dagumbaan ES","Maramag III","Division of Bukidnon"]
[126800,"Dagundalahon ES","Talakag I","Division of Bukidnon"]
[126624,"Dahilayan ES","Manolo Fortich II","Division of Bukidnon"]
[126287,"Dalacutan ES","Cabanglasan","Division of Bukidnon"]
[126518,"Dalag-Ayan ES","Libona","Division of Bukidnon"]
[126625,"Dalirig ES","Manolo Fortich I","Division of Bukidnon"]
[126626,"Damilag ES","Manolo Fortich II","Division of Bukidnon"]
[126309,"Damulog CES","Damulog","Division of Bukidnon"]
[126265,"Danatag ES","Baungon","Division of Bukidnon"]
[126327,"Dangcagan CES","Dangcagan","Division of Bukidnon"]
[126656,"Danggawan Elementary School","Maramag III","Division of Bukidnon"]
[199526,"Dao ES","San Fernando II","Division of Bukidnon"]
[126627,"Dicklum ES","Manolo Fortich I","Division of Bukidnon"]
[126467,"Digongan Elementary School","Kitaotao I","Division of Bukidnon"]
[500677,"Dilapa Elem School","Quezon II","Division of Bukidnon"]
[126657,"DOLOGON CENTRAL ELEMENTARY SCHOOL","Maramag II","Division of Bukidnon"]
[126328,"Dolorosa ES","Dangcagan","Division of Bukidnon"]
[126802,"Dominorog ES","Talakag II","Division of Bukidnon"]
[199541,"Don Antonio O. Floirendo Sr. Primary School","Quezon I","Division of Bukidnon"]
[126344,"Don Carlos CES","Don Carlos I","Division of Bukidnon"]
[126345,"Don Carlos Norte ES","Don Carlos I","Division of Bukidnon"]
[126519,"Dona Pilar ES","Libona","Division of Bukidnon"]
[126373,"Dumalaguing Elementary School","Impasug-Ong I","Division of Bukidnon"]
[126708,"Dumalama ES","Quezon I","Division of Bukidnon"]
[126752,"Durian ES","San Fernando II","Division of Bukidnon"]
[126346,"Embayao ES","Don Carlos I","Division of Bukidnon"]
[126658,"Famador ES","Maramag II","Division of Bukidnon"]
[126417,"Forchacu II ES","Kalilangan","Division of Bukidnon"]
[126418,"Forchacu III ES","Kalilangan","Division of Bukidnon"]
[126419,"Forchacu IV ES","Kalilangan","Division of Bukidnon"]
[126659,"Francisco Villa ES","Maramag I","Division of Bukidnon"]
[126288,"Freedom Elementary School","Cabanglasan","Division of Bukidnon"]
[199517,"Gamot Elem. School","Quezon II","Division of Bukidnon"]
[126520,"Gango Elementary School","Libona","Division of Bukidnon"]
[126628,"Gauron ES","Manolo Fortich I","Division of Bukidnon"]
[126374,"GUIHEAN ELEMENTARY SCHOOL","Impasug-Ong I","Division of Bukidnon"]
[126640,"Guilang-Guilang ES","Manolo Fortich I","Division of Bukidnon"]
[199501,"Gumada Primary School","Kitaotao II","Division of Bukidnon"]
[199505,"Gupaco ES","Kitaotao II","Division of Bukidnon"]
[126468,"Gutalid ES","Kitaotao II","Division of Bukidnon"]
[126436,"Gutapol ES","Kibawe","Division of Bukidnon"]
[126375,"Hagpa ES","Impasug-Ong II","Division of Bukidnon"]
[126753,"Halapitan CES","San Fernando I","Division of Bukidnon"]
[126397,"Husayan Elem. School","Kadingilan","Division of Bukidnon"]
[500678,"Iba Central Elementary School","Cabanglasan","Division of Bukidnon"]
[500890,"Iba Integrated School","Cabanglasan","Division of Bukidnon"]
[126754,"Iglugsad ES","San Fernando II","Division of Bukidnon"]
[126755,"Ilian ES","San Fernando I","Division of Bukidnon"]
[126376,"ILIGNAN ELEMENTARY SCHOOL","Impasug-Ong I","Division of Bukidnon"]
[126420,"Imbariz ES","Kalilangan","Division of Bukidnon"]
[126266,"Imbatug CES","Baungon","Division of Bukidnon"]
[126290,"Imbatug ES","Cabanglasan","Division of Bukidnon"]
[126599,"Impahanong ES","Malitbog","Division of Bukidnon"]
[126629,"Impakibel ES","Manolo Fortich I","Division of Bukidnon"]
[126377,"Impalutao Integrated School","Impasug-Ong I","Division of Bukidnon"]
[500246,"Impalutao Integrated School","Impasug-Ong I","Division of Bukidnon"]
[126378,"Impasug-Ong CES","Impasug-Ong I","Division of Bukidnon"]
[126803,"Indulang ES","Talakag II","Division of Bukidnon"]
[199543,"Inlabo Primary School","Damulog","Division of Bukidnon"]
[126779,"Intavas Elementary School","Impasug-Ong I","Division of Bukidnon"]
[126683,"JARQUE ES","Pangantucan","Division of Bukidnon"]
[126291,"Jasaan Elementary School","Cabanglasan","Division of Bukidnon"]
[126379,"Kaanibungan ES","Impasug-Ong II","Division of Bukidnon"]
[126505,"Kaatuan ES","Lantapan","Division of Bukidnon"]
[126398,"Kabadiangan ES","Kadingilan","Division of Bukidnon"]
[126469,"Kabalansihan ES","Kitaotao II","Division of Bukidnon"]
[126399,"Kadingilan CES","Kadingilan","Division of Bukidnon"]
[126470,"Kahusayan ES","Kitaotao II","Division of Bukidnon"]
[126380,"Kalabugao CES","Impasug-Ong II","Division of Bukidnon"]
[126756,"Kalagangan Central School","San Fernando II","Division of Bukidnon"]
[126381,"Kalampigan ES","Impasug-Ong II","Division of Bukidnon"]
[126267,"Kalanganan Elementary School","Baungon","Division of Bukidnon"]
[126421,"Kalilangan CES","Kalilangan","Division of Bukidnon"]
[126268,"KALILANGAN ELEMENTARY SCHOOL","Baungon","Division of Bukidnon"]
[126600,"Kalingking ES","Malitbog","Division of Bukidnon"]
[126382,"Kalipayan Elementary School","Impasug-Ong I","Division of Bukidnon"]
[126347,"Kalubihon ES","Don Carlos II","Division of Bukidnon"]
[126630,"Kalugmanan ES","Manolo Fortich I","Division of Bukidnon"]
[126471,"Kalumihan ES","Kitaotao I","Division of Bukidnon"]
[126329,"Kapalaran Elementary school","Dangcagan","Division of Bukidnon"]
[126348,"Kasigkot ES","Don Carlos I","Division of Bukidnon"]
[126805,"Kaulayanan ES","Talakag II","Division of Bukidnon"]
[126757,"Kauswagan Elementary School","San Fernando I","Division of Bukidnon"]
[126472,"Kauyonan ES","Kitaotao I","Division of Bukidnon"]
[126758,"Kawayan ES","San Fernando I","Division of Bukidnon"]
[126349,"Kawilihan ES","Don Carlos II","Division of Bukidnon"]
[126400,"Kawilihan ES","Kadingilan","Division of Bukidnon"]
[126601,"Kiabo Elementary School","Malitbog","Division of Bukidnon"]
[126330,"Kianggat ES","Dangcagan","Division of Bukidnon"]
[126350,"Kiara ES","Don Carlos II","Division of Bukidnon"]
[126709,"Kibacania Elementary School","Quezon I","Division of Bukidnon"]
[126401,"Kibalagon ES","Kadingilan","Division of Bukidnon"]
[126506,"Kibanggay ES","Lantapan","Division of Bukidnon"]
[126422,"Kibaning ES","Kalilangan","Division of Bukidnon"]
[126423,"Kibaritan ES","Kalilangan","Division of Bukidnon"]
[126351,"Kibatang Elementary School","Don Carlos I","Division of Bukidnon"]
[126438,"Kibawe CS","Kibawe","Division of Bukidnon"]
[500679,"Kibenton IS","Impasug-Ong I","Division of Bukidnon"]
[126402,"Kibogtok ES","Kadingilan","Division of Bukidnon"]
[126759,"Kibongkog ES","San Fernando II","Division of Bukidnon"]
[126507,"KIBUDA ELEMENTARY SCHOOL","Lantapan","Division of Bukidnon"]
[126728,"KIBURIAO ELEMENTARY SCHOOL","Quezon II","Division of Bukidnon"]
[126383,"Kibuwa ES","Impasug-Ong I","Division of Bukidnon"]
[199529,"Kidama ES","Damulog","Division of Bukidnon"]
[126684,"Kidanggin ES","Pangantucan","Division of Bukidnon"]
[199520,"Kidansalan Elementary School","Kalilangan","Division of Bukidnon"]
[126660,"Kiharong ES","Maramag II","Division of Bukidnon"]
[126439,"Kikipot ES","Kibawe","Division of Bukidnon"]
[126602,"Kilabing ES","Malitbog","Division of Bukidnon"]
[126781,"Kilabong ES","Sumilao","Division of Bukidnon"]
[199544,"Kilaolao Primary School","Damulog","Division of Bukidnon"]
[126521,"Kiliog ES","Libona","Division of Bukidnon"]
[126424,"Kimagting Elementary School","Kalilangan","Division of Bukidnon"]
[126685,"Kimanait ES","Pangantucan South District","Division of Bukidnon"]
[126473,"Kimolong ES","Kitaotao I","Division of Bukidnon"]
[126311,"Kinapat ES","Damulog","Division of Bukidnon"]
[126425,"Kinura Elementary School","Kalilangan","Division of Bukidnon"]
[126522,"Kiongkog ES","Libona","Division of Bukidnon"]
[126440,"Kiorao ES","Kibawe","Division of Bukidnon"]
[126686,"KIPADUCAN ES","Pangantucan South District","Division of Bukidnon"]
[126710,"Kipaypayon ES","Quezon I","Division of Bukidnon"]
[126474,"Kipilas ES","Kitaotao II","Division of Bukidnon"]
[126729,"Kipolot ES","Quezon II","Division of Bukidnon"]
[126312,"Kiraon ES","Damulog","Division of Bukidnon"]
[126661,"Kisanday ES","Maramag II","Division of Bukidnon"]
[126441,"Kisawa ES","Kibawe","Division of Bukidnon"]
[126782,"Kisolon Central","Sumilao","Division of Bukidnon"]
[126442,"Kisurang ES","Kibawe","Division of Bukidnon"]
[126631,"Kitam-Is ES","Manolo Fortich II","Division of Bukidnon"]
[126475,"Kitaotao CES","Kitaotao I","Division of Bukidnon"]
[199536,"Kitas Elementary School","Damulog","Division of Bukidnon"]
[126313,"Kitingting ES","Damulog","Division of Bukidnon"]
[126476,"Kitubo ES","Kitaotao II","Division of Bukidnon"]
[126384,"Kiudto ES","Impasug-Ong II","Division of Bukidnon"]
[126477,"Kiulom Elementary School","Kitaotao I","Division of Bukidnon"]
[126385,"Kubayan ES","Impasug-Ong I","Division of Bukidnon"]
[126778,"Kulasi Elementary School","Sumilao","Division of Bukidnon"]
[126292,"Kumaliwat ES","Cabanglasan","Division of Bukidnon"]
[126662,"Kuya ES","Maramag III","Division of Bukidnon"]
[126783,"La Fortuna ES","Impasug-Ong I","Division of Bukidnon"]
[126663,"La Roxas ES","Maramag III","Division of Bukidnon"]
[126443,"Labuagon Elementary School","Kibawe","Division of Bukidnon"]
[126269,"Lacolac ES","Baungon","Division of Bukidnon"]
[126314,"Lagandang ES","Damulog","Division of Bukidnon"]
[126730,"Lagislis ES","Quezon II","Division of Bukidnon"]
[126293,"Lambagan Elementary School","Cabanglasan","Division of Bukidnon"]
[126426,"Lampanusan ES","Kalilangan","Division of Bukidnon"]
[199528,"Langahan PS","Damulog","Division of Bukidnon"]
[126270,"Langaon ES","Baungon","Division of Bukidnon"]
[126687,"Langcataon Central Elementary School","Pangantucan South District","Division of Bukidnon"]
[126508,"Lantapan CES","Lantapan","Division of Bukidnon"]
[126688,"Lantay Elementary School","Pangantucan","Division of Bukidnon"]
[126806,"Lantud ES","Talakag I","Division of Bukidnon"]
[126807,"Lapok ES","Talakag II","Division of Bukidnon"]
[126603,"Larapan ES","Malitbog","Division of Bukidnon"]
[126784,"Laruk ES","Sumilao","Division of Bukidnon"]
[126523,"Laturan ES","Libona","Division of Bukidnon"]
[126711,"Libertad ES","Quezon I","Division of Bukidnon"]
[126524,"Libona CS","Libona","Division of Bukidnon"]
[126271,"Liboran ES","Baungon","Division of Bukidnon"]
[126785,"Licoan E/S","Sumilao","Division of Bukidnon"]
[126808,"Liguron PS","Talakag I","Division of Bukidnon"]
[126731,"Linabo ES","Quezon II","Division of Bukidnon"]
[126632,"Lindaban Elementary School","Manolo Fortich I","Division of Bukidnon"]
[126272,"Lingating ES","Baungon","Division of Bukidnon"]
[126633,"Lingion ES","Manolo Fortich I","Division of Bukidnon"]
[126809,"Lingion ES","Talakag I","Division of Bukidnon"]
[126732,"Lipa Elementary School","Quezon II","Division of Bukidnon"]
[126810,"Lirongan ES","Talakag II","Division of Bukidnon"]
[126760,"Little Baguio ES","San Fernando I","Division of Bukidnon"]
[199532,"Logdeck ES","Malitbog","Division of Bukidnon"]
[126478,"Lorega ES","Kitaotao II","Division of Bukidnon"]
[126331,"Lourdes Elementary School","Dangcagan","Division of Bukidnon"]
[126811,"Lourdes Village ES","Talakag II","Division of Bukidnon"]
[126294,"Luan-Luan Elementary School","Cabanglasan","Division of Bukidnon"]
[126812,"Lugsayan ES","Talakag I","Division of Bukidnon"]
[126712,"Lumintao ES","Quezon I","Division of Bukidnon"]
[126634,"Lunucan ES","Manolo Fortich II","Division of Bukidnon"]
[126786,"Lupiagan Elementary School","Sumilao","Division of Bukidnon"]
[126525,"Maambong ES","Libona","Division of Bukidnon"]
[126273,"Mabuhay ES","Baungon","Division of Bukidnon"]
[126404,"Mabuhay ES","Kadingilan","Division of Bukidnon"]
[126604,"Mabuhay ES","Malitbog","Division of Bukidnon"]
[126761,"Mabuhay ES","San Fernando I","Division of Bukidnon"]
[126274,"Mabunga Elementary School","Baungon","Division of Bukidnon"]
[126332,"Mac Arthur ES","Dangcagan","Division of Bukidnon"]
[126762,"Macabongbong ES","San Fernando I","Division of Bukidnon"]
[126427,"Macaopao ES","Kalilangan","Division of Bukidnon"]
[126315,"Macapari Elementary School","Damulog","Division of Bukidnon"]
[126689,"MADAYA ELEMENTARY SCHOOL","Pangantucan","Division of Bukidnon"]
[126386,"Magawa Elementary School","Impasug-Ong I","Division of Bukidnon"]
[126763,"Magkalungay ES","San Fernando I","Division of Bukidnon"]
[126444,"Magsaysay ES","Kibawe","Division of Bukidnon"]
[126664,"Magsaysay ES","Maramag III","Division of Bukidnon"]
[126665,"Mahawan ES","Maramag III","Division of Bukidnon"]
[126713,"Mahayag Elementary School","Quezon I","Division of Bukidnon"]
[126764,"Mahayag ES","San Fernando II","Division of Bukidnon"]
[126352,"Mahayahay ES","Don Carlos II","Division of Bukidnon"]
[126316,"Maican ES","Damulog","Division of Bukidnon"]
[126813,"Maigtang ES","Talakag I","Division of Bukidnon"]
[126295,"Mainaga ES","Cabanglasan","Division of Bukidnon"]
[126765,"Malambago ES","San Fernando I","Division of Bukidnon"]
[126733,"Malaomao ES","Quezon II","Division of Bukidnon"]
[126766,"Malayanan ES","San Fernando I","Division of Bukidnon"]
[126428,"Malinao Elementary School","Kalilangan","Division of Bukidnon"]
[126405,"Malinao ES","Kadingilan","Division of Bukidnon"]
[126690,"Malipayon ES","Pangantucan South District","Division of Bukidnon"]
[126605,"Malitbog CES","Malitbog","Division of Bukidnon"]
[126606,"Maluko ES","Malitbog","Division of Bukidnon"]
[126635,"Maluko ES","Manolo Fortich I","Division of Bukidnon"]
[126636,"Mambatangan ES","Manolo Fortich II","Division of Bukidnon"]
[126637,"Mampayag Elementary School","Manolo Fortich II","Division of Bukidnon"]
[126296,"Mandaing ES","Cabanglasan","Division of Bukidnon"]
[126297,"Manggaod ES","Cabanglasan","Division of Bukidnon"]
[126353,"Manlamonay ES","Don Carlos I","Division of Bukidnon"]
[126638,"Manolo Fortich Central Elementary School","Manolo Fortich I","Division of Bukidnon"]
[199538,"MANTABOO ELEMENTARY SCHOOL","Libona","Division of Bukidnon"]
[126639,"Mantibugao ES","Manolo Fortich II","Division of Bukidnon"]
[126429,"Manubiray ES","Kalilangan","Division of Bukidnon"]
[126714,"Manuto ES","Quezon I","Division of Bukidnon"]
[126666,"Maramag Central Elementary School","Maramag I","Division of Bukidnon"]
[199521,"Maramag South Elementary School","Maramag I","Division of Bukidnon"]
[126445,"Marapange ES","Kibawe","Division of Bukidnon"]
[126354,"Maraymaray ES","Don Carlos I","Division of Bukidnon"]
[126446,"Mascarinas ES","Kibawe","Division of Bukidnon"]
[126814,"Masimag ES","Talakag II","Division of Bukidnon"]
[126406,"Matampay ES","Kadingilan","Division of Bukidnon"]
[126767,"Matupe ES","San Fernando II","Division of Bukidnon"]
[126430,"Maulawe ES","Kalilangan","Division of Bukidnon"]
[126298,"Mauswagon E/S","Cabanglasan","Division of Bukidnon"]
[126355,"Mauswagon ES","Don Carlos II","Division of Bukidnon"]
[126815,"Megbadiang ES","Talakag II","Division of Bukidnon"]
[126691,"Mendiz Elementary School","Pangantucan","Division of Bukidnon"]
[126734,"Menongan ES","Quezon II","Division of Bukidnon"]
[126715,"Merangeran ES","Quezon I","Division of Bukidnon"]
[126479,"Metebagao ES","Kitaotao I","Division of Bukidnon"]
[126333,"Miaray Elementary School","Dangcagan","Division of Bukidnon"]
[126299,"Miaray ES","Cabanglasan","Division of Bukidnon"]
[126816,"Miarayon ES","Talakag II","Division of Bukidnon"]
[126735,"Mibantang ES","Quezon II","Division of Bukidnon"]
[126317,"Migcawayan ES","Damulog","Division of Bukidnon"]
[126334,"Migcuya ES","Dangcagan","Division of Bukidnon"]
[126817,"Migpait ES","Talakag II","Division of Bukidnon"]
[199523,"Mikasili ES","Damulog","Division of Bukidnon"]
[126716,"Miluya ES","Quezon I","Division of Bukidnon"]
[126607,"Mindagat ES","Malitbog","Division of Bukidnon"]
[126387,"Minlanaw ES","Impasug-Ong II","Division of Bukidnon"]
[126356,"Minsalagan ES","Don Carlos I","Division of Bukidnon"]
[126717,"Minsalirac ES","Quezon I","Division of Bukidnon"]
[126736,"Minsamongan ES","Quezon II","Division of Bukidnon"]
[126641,"Minsuro ES","Manolo Fortich II","Division of Bukidnon"]
[199527,"Mintapud Elementary School","Impasug-Ong II","Division of Bukidnon"]
[126667,"Musuan ES","Maramag II","Division of Bukidnon"]
[126692,"Nabaliwa Elementary School","Pangantucan","Division of Bukidnon"]
[126768,"Nakabuklad ES","San Fernando I","Division of Bukidnon"]
[126769,"Nala ES","San Fernando I","Division of Bukidnon"]
[126770,"Namnam ES","San Fernando II","Division of Bukidnon"]
[126526,"Nangka ES","Libona","Division of Bukidnon"]
[126388,"Nasandigan ES","Impasug-Ong II","Division of Bukidnon"]
[126447,"Natulongan ES","Kibawe","Division of Bukidnon"]
[126318,"New Compostela ES","Damulog","Division of Bukidnon"]
[126694,"NEW EDEN ELEMENTARY SCHOOL","Pangantucan","Division of Bukidnon"]
[126693,"New Iloilo ES","Pangantucan South District","Division of Bukidnon"]
[126389,"New Imbatug ES","Impasug-Ong II","Division of Bukidnon"]
[126448,"New Kidapawan ES","Kibawe","Division of Bukidnon"]
[199525,"New Nebo ES","Talakag II","Division of Bukidnon"]
[126357,"New Nongnongan ES","Don Carlos II","Division of Bukidnon"]
[126668,"New Tubigon ES","Maramag II","Division of Bukidnon"]
[126335,"New Visayas ES","Dangcagan","Division of Bukidnon"]
[126358,"New Visayas ES","Don Carlos II","Division of Bukidnon"]
[126275,"NICDAO ELEMENTARY SCHOOL","Baungon","Division of Bukidnon"]
[126480,"North Dalurong ES","Kitaotao II","Division of Bukidnon"]
[126787,"OCASION ELEMENTARY SCHOOL","Sumilao","Division of Bukidnon"]
[126282,"Old Cabanglasan ES","Cabanglasan","Division of Bukidnon"]
[126319,"Old Damulog ES","Damulog","Division of Bukidnon"]
[126509,"Old Kibanggay ES","Lantapan","Division of Bukidnon"]
[126449,"Old Kibawe ES","Kibawe","Division of Bukidnon"]
[126359,"Old Nongnongan ES","Don Carlos I","Division of Bukidnon"]
[126300,"Omalao ES","Cabanglasan","Division of Bukidnon"]
[126320,"Omonay ES","Damulog","Division of Bukidnon"]
[126336,"Osmena Elementary School","Dangcagan","Division of Bukidnon"]
[126737,"Pag-asa ES","Quezon II","Division of Bukidnon"]
[126481,"Pagan Elementary School","Kitaotao II","Division of Bukidnon"]
[199531,"Pagompong Elementary School","Damulog","Division of Bukidnon"]
[126718,"Paitan ES","Quezon I","Division of Bukidnon"]
[126527,"Palabucan ES","Libona","Division of Bukidnon"]
[126738,"Palacapao ES","Quezon II","Division of Bukidnon"]
[126771,"Palacpacan Elementary School","San Fernando II","Division of Bukidnon"]
[199508,"Pamotolon ES","Kalilangan","Division of Bukidnon"]
[126669,"Panadtalan ES","Maramag II","Division of Bukidnon"]
[126670,"Panalsalan ES","Maramag II","Division of Bukidnon"]
[126482,"Panganan ES","Kitaotao I","Division of Bukidnon"]
[126695,"PANGANTUCAN CENTRAL ELEMENTAYR SCHOOL","Pangantucan","Division of Bukidnon"]
[126301,"Paradise ES","Cabanglasan","Division of Bukidnon"]
[199509,"Pasayanon ES","Kalilangan","Division of Bukidnon"]
[126608,"Patac PS","Malitbog","Division of Bukidnon"]
[126276,"Patpat Elementary School","Baungon","Division of Bukidnon"]
[126609,"Patpat ES","Malitbog","Division of Bukidnon"]
[126407,"Pay-as E/S","Kadingilan","Division of Bukidnon"]
[126696,"Payad ES","Pangantucan South District","Division of Bukidnon"]
[126671,"Pig-Awakan ES","Maramag III","Division of Bukidnon"]
[126697,"Pigtauranan Elementary School","Pangantucan","Division of Bukidnon"]
[126360,"Pinamaloy ES","Don Carlos I","Division of Bukidnon"]
[126408,"Pinamangguan ES","Kadingilan","Division of Bukidnon"]
[126450,"Pinamula ES","Kibawe","Division of Bukidnon"]
[126483,"Pinanubuan ES","Kitaotao II","Division of Bukidnon"]
[126739,"Pinilayan ES","Quezon II","Division of Bukidnon"]
[126642,"Plantation ES","Manolo Fortich II","Division of Bukidnon"]
[126321,"Pocopoco ES","Damulog","Division of Bukidnon"]
[126528,"Pongol ES","Libona","Division of Bukidnon"]
[126698,"Portulin Elementary School","Pangantucan","Division of Bukidnon"]
[126361,"Pualas Elementary School","Don Carlos I","Division of Bukidnon"]
[126277,"Pualas ES","Baungon","Division of Bukidnon"]
[126431,"PUBLIC ELEMENTARY SCHOOL","Kalilangan","Division of Bukidnon"]
[199533,"Pud-ong ES","Kalilangan","Division of Bukidnon"]
[126740,"Puntian ES","Quezon II","Division of Bukidnon"]
[126788,"Puntian ES","Sumilao","Division of Bukidnon"]
[126699,"Quarry Elementary School","Pangantucan","Division of Bukidnon"]
[126719,"Quezon CES","Quezon I","Division of Bukidnon"]
[126451,"Romagook ES","Kibawe","Division of Bukidnon"]
[199534,"Sabangan ES","Manolo Fortich I","Division of Bukidnon"]
[126772,"Sacramento Valley ES","San Fernando I","Division of Bukidnon"]
[126818,"Sagaran ES","Talakag I","Division of Bukidnon"]
[126484,"Sagasaan ES","Kitaotao II","Division of Bukidnon"]
[126337,"Sagbayan Elementary School","Dangcagan","Division of Bukidnon"]
[126485,"Sagundanon ES","Kitaotao II","Division of Bukidnon"]
[199504,"Salalayan Elementary School","Kitaotao II","Division of Bukidnon"]
[126741,"Salawagan CES","Quezon II","Division of Bukidnon"]
[126720,"Salaysay ES","Quezon I","Division of Bukidnon"]
[126278,"Salimbalan ES","Baungon","Division of Bukidnon"]
[126819,"Salucot ES","Talakag II","Division of Bukidnon"]
[126409,"Salvacion ES","Kadingilan","Division of Bukidnon"]
[126529,"Salvacion ES","Libona","Division of Bukidnon"]
[126322,"Sampagar ES","Damulog","Division of Bukidnon"]
[126452,"Sampaguita ES","Kibawe","Division of Bukidnon"]
[126610,"Sampiano ES","Malitbog","Division of Bukidnon"]
[126403,"San Andres E/S (KIDALOG)","Kadingilan","Division of Bukidnon"]
[126362,"San Antonio East ES","Don Carlos I","Division of Bukidnon"]
[126820,"San Antonio Elementary School","Talakag I","Division of Bukidnon"]
[126363,"San Antonio West ES","Don Carlos II","Division of Bukidnon"]
[126672,"San Carlos ES","Maramag III","Division of Bukidnon"]
[126364,"San Francisco ES","Don Carlos II","Division of Bukidnon"]
[126700,"San Guinto Elementary School","Pangantucan","Division of Bukidnon"]
[126701,"San Isidro Elementary School","Pangantucan","Division of Bukidnon"]
[126323,"San Isidro ES","Damulog","Division of Bukidnon"]
[126486,"San Isidro ES","Kitaotao I","Division of Bukidnon"]
[126530,"San Isidro ES","Libona","Division of Bukidnon"]
[126821,"San Isidro ES","Talakag I","Division of Bukidnon"]
[126531,"San Jose ES","Libona","Division of Bukidnon"]
[126773,"San Jose ES","San Fernando II","Division of Bukidnon"]
[500680,"San Jose Integrated School","Quezon I","Division of Bukidnon"]
[126789,"San Juan ES","Impasug-Ong I","Division of Bukidnon"]
[126487,"San Lorenzo ES","Kitaotao I","Division of Bukidnon"]
[126611,"San Luis ES","Malitbog","Division of Bukidnon"]
[199540,"San Mateo Primary School","Talakag II","Division of Bukidnon"]
[126612,"San Migara ES","Malitbog","Division of Bukidnon"]
[126673,"San Miguel CES","Maramag III","Division of Bukidnon"]
[126279,"San Miguel ELEMENTARY SCHOOL","Baungon","Division of Bukidnon"]
[126822,"San Miguel Elementary School","Talakag II","Division of Bukidnon"]
[126643,"San Miguel ES","Manolo Fortich I","Division of Bukidnon"]
[126702,"San Miguel ES","Pangantucan","Division of Bukidnon"]
[126365,"San Nicolas ES","Don Carlos I","Division of Bukidnon"]
[126823,"San Rafael ES","Talakag II","Division of Bukidnon"]
[126366,"San Roque ES","Don Carlos I","Division of Bukidnon"]
[126674,"San Roque ES","Maramag II","Division of Bukidnon"]
[126790,"San Roque ES","Sumilao","Division of Bukidnon"]
[126302,"San Vicente Elementary School","Cabanglasan","Division of Bukidnon"]
[126338,"San Vicente Elementary School","Dangcagan","Division of Bukidnon"]
[126703,"San Vicente Elementary School","Pangantucan","Division of Bukidnon"]
[126280,"San Vicente ES","Baungon","Division of Bukidnon"]
[126791,"San Vicente ES","Sumilao","Division of Bukidnon"]
[126824,"Sanggaya ES","Talakag II","Division of Bukidnon"]
[126453,"Sanipon Elementary School","Kibawe","Division of Bukidnon"]
[126644,"Sankanan ES","Manolo Fortich I","Division of Bukidnon"]
[126645,"Santiago Elementary School","Manolo Fortich I","Division of Bukidnon"]
[199522,"Sarawagon ES","Damulog","Division of Bukidnon"]
[126390,"Sayawan ES","Impasug-Ong I","Division of Bukidnon"]
[126488,"Sianib ES","Kitaotao II","Division of Bukidnon"]
[126410,"Sibonga ELementary School","Kadingilan","Division of Bukidnon"]
[126532,"Sil-Ipon ES","Libona","Division of Bukidnon"]
[126454,"SILAHIS ELEMENTARY SCHOOL","Kibawe","Division of Bukidnon"]
[126613,"Siloo ES","Malitbog","Division of Bukidnon"]
[126367,"Sinangguyan ES","Don Carlos I","Division of Bukidnon"]
[126704,"Sinasaan ES","Pangantucan","Division of Bukidnon"]
[199506,"Sinayawan ES","Kitaotao II","Division of Bukidnon"]
[126489,"Sinaysayan ES","Kitaotao II","Division of Bukidnon"]
[126490,"Sinuda CES","Kitaotao II","Division of Bukidnon"]
[199535,"Sita Elementay School","Kitaotao II","Division of Bukidnon"]
[126510,"Sobsob ES","Lantapan","Division of Bukidnon"]
[126511,"Songco ES","Lantapan","Division of Bukidnon"]
[500681,"South Dalurong Integrated School","Kitaotao II","Division of Bukidnon"]
[126455,"Spring ES","Kibawe","Division of Bukidnon"]
[126742,"Sta Cruz ES","Quezon II","Division of Bukidnon"]
[126774,"Sta Cruz ES","San Fernando I","Division of Bukidnon"]
[126533,"Sta Fe Elementary School","Libona","Division of Bukidnon"]
[126743,"Sta Felomina Elem. School","Quezon II","Division of Bukidnon"]
[126614,"Sta Ines ES","Malitbog","Division of Bukidnon"]
[126825,"Sto Nino ES","Talakag I","Division of Bukidnon"]
[126722,"Sto. Domingo ES","Quezon I","Division of Bukidnon"]
[126368,"Sto. Nino ES","Don Carlos II","Division of Bukidnon"]
[126646,"Sto. Nino ES","Manolo Fortich I","Division of Bukidnon"]
[126492,"Sto. Rosario ES","Kitaotao I","Division of Bukidnon"]
[126775,"Sulog ES","San Fernando I","Division of Bukidnon"]
[126615,"Sumalsag ES","Malitbog","Division of Bukidnon"]
[126792,"Sumilao Elementary School","Sumilao","Division of Bukidnon"]
[126303,"Tagbacan ES","Cabanglasan","Division of Bukidnon"]
[126304,"Tagiptip ES","Cabanglasan","Division of Bukidnon"]
[126616,"Tagmaray ES","Malitbog","Division of Bukidnon"]
[126456,"Talahiron Elementary School","Kibawe","Division of Bukidnon"]
[126826,"Talakag CES","Talakag I","Division of Bukidnon"]
[126493,"Tandong ES","Kitaotao I","Division of Bukidnon"]
[126324,"Tangkulan ES","Damulog","Division of Bukidnon"]
[126827,"Tankulan ES","Talakag II","Division of Bukidnon"]
[199545,"Taponan Primary School","Damulog","Division of Bukidnon"]
[126494,"Tawas Elementary school","Kitaotao II","Division of Bukidnon"]
[126647,"Ticala ES","Manolo Fortich I","Division of Bukidnon"]
[126828,"Tiga-ason ES","Talakag II","Division of Bukidnon"]
[199507,"Tigbao ES","Libona","Division of Bukidnon"]
[126776,"Tigua ES","San Fernando I","Division of Bukidnon"]
[126829,"Tikalaan Cental Elementary School","Talakag II","Division of Bukidnon"]
[126830,"Tinaytayan ES","Talakag II","Division of Bukidnon"]
[126675,"Tubigon ES","Maramag II","Division of Bukidnon"]
[126411,"Tuburan Elem. School","Kadingilan","Division of Bukidnon"]
[126457,"Tumaras ES","Kibawe","Division of Bukidnon"]
[126391,"ULAYANON ES","Impasug-Ong II","Division of Bukidnon"]
[126617,"Umagling ES","Malitbog","Division of Bukidnon"]
[126512,"Valbueco ES","Lantapan","Division of Bukidnon"]
[126306,"Valsons ES","Cabanglasan","Division of Bukidnon"]
[126513,"Victory Elementary School","Lantapan","Division of Bukidnon"]
[126793,"Vista Villa Elementary School","Sumilao","Division of Bukidnon"]
[126458,"West Kibawe ES","Kibawe","Division of Bukidnon"]
[500682,"White Kulaman Integrated School","Kitaotao II","Division of Bukidnon"]
[126723,"Zubiri Village ES","Quezon I","Division of Bukidnon"]
[127947,"Agusan Elementary School","Cagayan de Oro City East II District","Division of Cagayan de Oro City"]
[127996,"Baikingon ES","Cagayan de Oro City West II District","Division of Cagayan de Oro City"]
[127969,"Balongkot Elementary School","Cagayan de Oro City Southwest District II","Division of Cagayan de Oro City"]
[127970,"Baluarte Elementary School","Cagayan de Oro City Southwest District I","Division of Cagayan de Oro City"]
[127948,"Balubal Elementary School","Cagayan de Oro City East II District","Division of Cagayan de Oro City"]
[127990,"Balulang Elementary School","Cagayan de Oro City West I District","Division of Cagayan de Oro City"]
[127971,"Batinay Elementary School","Cagayan de Oro City Southwest District I","Division of Cagayan de Oro City"]
[127959,"Bayabas Elementary School","Cagayan de Oro City North II District","Division of Cagayan de Oro City"]
[127972,"Bayanga Elementary School","Cagayan de Oro City Southwest District II","Division of Cagayan de Oro City"]
[127973,"Besigan Elementary School","Cagayan de Oro City Southwest District II","Division of Cagayan de Oro City"]
[127960,"Bonbon Elementary School","Cagayan de Oro City North II District","Division of Cagayan de Oro City"]
[127961,"Bongbongon Elementary School","Cagayan de Oro City North II District","Division of Cagayan de Oro City"]
[127949,"Bugo Central School","Cagayan de Oro City East II District","Division of Cagayan de Oro City"]
[127997,"Bulao Elementary School","Cagayan de Oro City West II District","Division of Cagayan de Oro City"]
[127998,"Bulua Central School","Cagayan de Oro City West II District","Division of Cagayan de Oro City"]
[202003,"Cadayonan Elementary School","Cagayan de Oro City Southwest District II","Division of Cagayan de Oro City"]
[127964,"Camaman-an Elementary School","Cagayan de Oro City South District","Division of Cagayan de Oro City"]
[128000,"Camp Evangelista Elementary School","Cagayan de Oro City West II District","Division of Cagayan de Oro City"]
[128001,"Canito-an Elementary School","Cagayan de Oro City West II District","Division of Cagayan de Oro City"]
[127940,"CITY CENTRAL SCHOOL","Cagayan de Oro City Central I District","Division of Cagayan de Oro City"]
[127962,"Consolacion Elementary School","Cagayan de Oro City North I District","Division of Cagayan de Oro City"]
[127955,"Corrales Elementary School","Cagayan de Oro City Central I District","Division of Cagayan de Oro City"]
[127941,"Cugman Elementary School","Cagayan de Oro City East I District","Division of Cagayan de Oro City"]
[127974,"Dansolihon Elementary School","Cagayan de Oro City Southwest District II","Division of Cagayan de Oro City"]
[202001,"Dunggoan Elementary School","Cagayan de Oro City Southwest District II","Division of Cagayan de Oro City"]
[127942,"East City Central School","Cagayan de Oro City East I District","Division of Cagayan de Oro City"]
[127991,"Fr. William F. Masterson, SJ., Elementary School","Cagayan de Oro City West I District","Division of Cagayan de Oro City"]
[127943,"FS Catanico Elementary School","Cagayan de Oro City East I District","Division of Cagayan de Oro City"]
[128002,"G. L. Reyes-Anhawon Elementary School","Cagayan de Oro City West II District","Division of Cagayan de Oro City"]
[127944,"Gusa Elementary School","Cagayan de Oro City East I District","Division of Cagayan de Oro City"]
[127975,"Iba Elementary School","Cagayan de Oro City Southwest District II","Division of Cagayan de Oro City"]
[127965,"Indahag Elementary School","Cagayan de Oro City South District","Division of Cagayan de Oro City"]
[128003,"Iponan Elementary School","Cagayan de Oro City West II District","Division of Cagayan de Oro City"]
[127945,"Kamakawan Elementary School","Cagayan de Oro City East I District","Division of Cagayan de Oro City"]
[127963,"Kauswagan Central School","Cagayan de Oro City North II District","Division of Cagayan de Oro City"]
[127976,"Kiam-is Elementary School","Cagayan de Oro City Southwest District I","Division of Cagayan de Oro City"]
[127950,"Linangohan Elementary School","Cagayan de Oro City East II District","Division of Cagayan de Oro City"]
[127977,"Lumbia Central School","Cagayan de Oro City Southwest District I","Division of Cagayan de Oro City"]
[127956,"Macabalan Elementary School","Cagayan de Oro City North I District","Division of Cagayan de Oro City"]
[127992,"Macanhan Elementary School","Cagayan de Oro City West I District","Division of Cagayan de Oro City"]
[127966,"Macasandig Elementary School","Cagayan de Oro City South District","Division of Cagayan de Oro City"]
[127978,"Magayad Elementary School","Cagayan de Oro City Southwest District II","Division of Cagayan de Oro City"]
[127946,"Malasag Elementary School","Cagayan de Oro City East I District","Division of Cagayan de Oro City"]
[127979,"Mambuaya Elementary School","Cagayan de Oro City Southwest District II","Division of Cagayan de Oro City"]
[127980,"Man-ai Elementary School","Cagayan de Oro City Southwest District II","Division of Cagayan de Oro City"]
[202002,"Mangalay Elementary School","Cagayan de Oro City Southwest District II","Division of Cagayan de Oro City"]
[127981,"Midkiwan Elementary School","Cagayan de Oro City Southwest District II","Division of Cagayan de Oro City"]
[127957,"North City Central School","Cagayan de Oro City North I District","Division of Cagayan de Oro City"]
[127982,"Pagalungan Elementary School","Cagayan de Oro City Southwest District I","Division of Cagayan de Oro City"]
[128004,"Pagatpat Elementary School","Cagayan de Oro City West II District","Division of Cagayan de Oro City"]
[127951,"Palalan Elementary School","Cagayan de Oro City East II District","Division of Cagayan de Oro City"]
[128005,"Pamalihi Elementary School","Cagayan de Oro City West II District","Division of Cagayan de Oro City"]
[127999,"Pedro \"Oloy\" N. Roa, Sr. Elementary School","Cagayan de Oro City West II District","Division of Cagayan de Oro City"]
[127983,"Pigsag-an Elementary School","Cagayan de Oro City Southwest District I","Division of Cagayan de Oro City"]
[127952,"Puerto Elementary School","Cagayan de Oro City East II District","Division of Cagayan de Oro City"]
[127993,"Sacred Heart Vill. Elementary School","Cagayan de Oro City West I District","Division of Cagayan de Oro City"]
[128006,"San Simon Elementary School","Cagayan de Oro City West II District","Division of Cagayan de Oro City"]
[127967,"South City Central School","Cagayan de Oro City South District","Division of Cagayan de Oro City"]
[127958,"St. John Elementary School","Cagayan de Oro City North I District","Division of Cagayan de Oro City"]
[127953,"Suntingon Elementary School","Cagayan de Oro City East II District","Division of Cagayan de Oro City"]
[127954,"Tablon Elementary School","Cagayan de Oro City East II District","Division of Cagayan de Oro City"]
[127984,"Taglimao Elementary School","Cagayan de Oro City Southwest District I","Division of Cagayan de Oro City"]
[127985,"Tagpangi Elementary School","Cagayan de Oro City Southwest District I","Division of Cagayan de Oro City"]
[127968,"Taguanao Elementary School","Cagayan de Oro City South District","Division of Cagayan de Oro City"]
[127986,"Tignapoloan Elementary School","Cagayan de Oro City Southwest District II","Division of Cagayan de Oro City"]
[127988,"Tuburan Elementary School","Cagayan de Oro City Southwest District I","Division of Cagayan de Oro City"]
[127989,"Tumpagon Elementary School","Cagayan de Oro City Southwest District I","Division of Cagayan de Oro City"]
[127994,"Upper Carmen Elementary School","Cagayan de Oro City West I District","Division of Cagayan de Oro City"]
[127987,"Upper Tignapolo-an Elementary School","Cagayan de Oro City Southwest District II","Division of Cagayan de Oro City"]
[127995,"West City Central School","Cagayan de Oro City West I District","Division of Cagayan de Oro City"]
[126905,"Agoho Elementary School","Mambajao","Division of Camiguin"]
[500683,"Alangilan Integrated School","Sagay-Guinsiliban","Division of Camiguin"]
[126882,"Alga ES","Catarman","Division of Camiguin"]
[126906,"Anito ES","Mambajao","Division of Camiguin"]
[126925,"Bacnit ES","Sagay-Guinsiliban","Division of Camiguin"]
[500962,"Bacnit Integrated School","Sagay-Guinsiliban","Division of Camiguin"]
[126907,"Balbagon Elementary School","Mambajao","Division of Camiguin"]
[126926,"BALITE ELEMENTARY SCHOOL","Sagay-Guinsiliban","Division of Camiguin"]
[126908,"Baylao Elementary School","Mambajao","Division of Camiguin"]
[126909,"Benhaan ES","Mambajao","Division of Camiguin"]
[126894,"Benoni ES","Mahinog","Division of Camiguin"]
[200003,"Binaliwan PS","Mahinog","Division of Camiguin"]
[126910,"Binunsaran Elementary School","Mambajao","Division of Camiguin"]
[126883,"Bonbon Elementary School","Catarman","Division of Camiguin"]
[126911,"Bug-ong ES","Mambajao","Division of Camiguin"]
[500684,"Bugang Integrated School","Sagay-Guinsiliban","Division of Camiguin"]
[126884,"Bura Elementary School","Catarman","Division of Camiguin"]
[126928,"Butay ES","Sagay-Guinsiliban","Division of Camiguin"]
[126929,"Cabuan ES","Sagay-Guinsiliban","Division of Camiguin"]
[126930,"Cantaan Elementary School","Sagay-Guinsiliban","Division of Camiguin"]
[126885,"Catarman CS","Catarman","Division of Camiguin"]
[126886,"Catibac ES","Catarman","Division of Camiguin"]
[126895,"Catohugan ES","Mahinog","Division of Camiguin"]
[126887,"Compol ES","Catarman","Division of Camiguin"]
[126931,"Guinsiliban CS","Sagay-Guinsiliban","Division of Camiguin"]
[126896,"Hubangon Elementary School","Mahinog","Division of Camiguin"]
[500685,"Kuguita ES","Mambajao","Division of Camiguin"]
[126888,"Lawigan ES","Catarman","Division of Camiguin"]
[126932,"Liong ES","Sagay-Guinsiliban","Division of Camiguin"]
[126933,"Maac Elementary School","Sagay-Guinsiliban","Division of Camiguin"]
[126913,"Magting ES","Mambajao","Division of Camiguin"]
[126897,"Mahinog Central School","Mahinog","Division of Camiguin"]
[126889,"Mainit ES","Catarman","Division of Camiguin"]
[126914,"Mambajao CS","Mambajao","Division of Camiguin"]
[126890,"Manduao ES","Catarman","Division of Camiguin"]
[126934,"Manuyog ES","Sagay-Guinsiliban","Division of Camiguin"]
[126899,"Mapa ES","Mahinog","Division of Camiguin"]
[126915,"Maubog Elementary School","Mambajao","Division of Camiguin"]
[126916,"Naasag ES","Mambajao","Division of Camiguin"]
[126900,"Owakan Elementary School","Mahinog","Division of Camiguin"]
[126917,"Pandan ES","Mambajao","Division of Camiguin"]
[126891,"Panghiawan Elementary School","Catarman","Division of Camiguin"]
[126901,"Pontod Elementary School","Mahinog","Division of Camiguin"]
[126918,"Quiboro ES","Mambajao","Division of Camiguin"]
[126935,"Sagay Central School","Sagay-Guinsiliban","Division of Camiguin"]
[126902,"San Isidro ES","Mahinog","Division of Camiguin"]
[126919,"Sorosoro ES","Mambajao","Division of Camiguin"]
[500686,"Sto. Nino ES","Catarman","Division of Camiguin"]
[126936,"Subocan ES","Sagay-Guinsiliban","Division of Camiguin"]
[126903,"Tacangon ES","Mahinog","Division of Camiguin"]
[126920,"Tagdo ES","Mambajao","Division of Camiguin"]
[126893,"Tangaro ES","Catarman","Division of Camiguin"]
[126904,"Tubod PS","Mahinog","Division of Camiguin"]
[126921,"Tupsan ES","Mambajao","Division of Camiguin"]
[126922,"Volcan ES","Mambajao","Division of Camiguin"]
[126923,"Yumbing ES","Mambajao","Division of Camiguin"]
[127667,"Amoros ES","District II","Division of El Salvador City"]
[127668,"Bolisong ES","District I","Division of El Salvador City"]
[127670,"Cogon ES","District I","Division of El Salvador City"]
[127671,"El Salvador City CS","District I","Division of El Salvador City"]
[127672,"Himaya ES","District II","Division of El Salvador City"]
[127673,"Hinigdaan ES","District I","Division of El Salvador City"]
[127674,"Kalabaylabay ES","District I","Division of El Salvador City"]
[127675,"Kibonbon ES","District I","Division of El Salvador City"]
[127676,"Molugan Central School","District II","Division of El Salvador City"]
[127677,"Pedro Sa. Baculio ES (Bolobolo)","District II","Division of El Salvador City"]
[127678,"Sambulawan Elementary School","District II","Division of El Salvador City"]
[127669,"San Francisco de Asis ES (Calongonan ES)","District I","Division of El Salvador City"]
[127679,"Sinaloc Elementary School","District I","Division of El Salvador City"]
[127680,"Taytay ES","District II","Division of El Salvador City"]
[127681,"Ulaliman ES","District II","Division of El Salvador City"]
[128059,"Agay-ayan Elementary School","Gingoog City West-3 District","Division of Gingoog City"]
[128060,"Alagatan Elementary School","Gingoog City South-2 District","Division of Gingoog City"]
[128048,"Alfonso Ang Militante ES","Gingoog City South-2 District","Division of Gingoog City"]
[128007,"Anakan Central School","Gingoog City East-2 District","Division of Gingoog City"]
[128008,"Bagubad Elementary School","Gingoog City East-2 District","Division of Gingoog City"]
[128009,"Bal-ason Central School","Gingoog City East-1 District","Division of Gingoog City"]
[202504,"Baliguihan Primary School","Gingoog City North-3 District","Division of Gingoog City"]
[128062,"Bantaawan Elementary School","Gingoog City West-3 District","Division of Gingoog City"]
[500801,"Bantaawan Integrated School - Elem","Gingoog City West-3 District","Division of Gingoog City"]
[128052,"Barangay 18-A Elementary School","Gingoog City South-1 District","Division of Gingoog City"]
[128063,"Baybay Elementary School","Gingoog City West-2 District","Division of Gingoog City"]
[128064,"Binakalan Elementary School","Gingoog City South-2 District","Division of Gingoog City"]
[128049,"Civoleg Elementary School","Gingoog City South-1 District","Division of Gingoog City"]
[128010,"Daan Lungsod Elementary School","Gingoog City East-1 District","Division of Gingoog City"]
[128023,"Dinawehan Elementary School","Gingoog City North-2 District","Division of Gingoog City"]
[128050,"DON RESTITUTO BAOL CENTRAL","Gingoog City South-1 District","Division of Gingoog City"]
[128065,"Dona J. Pelaez Reyes CS","Gingoog City West-1 District","Division of Gingoog City"]
[128024,"Dreamland Elementary School","Gingoog City North-2 District","Division of Gingoog City"]
[128025,"Dukdokaan Elementary School","Gingoog City North-3 District","Division of Gingoog City"]
[500800,"Dukdokaan Integrated School - Elem","Gingoog City North-3 District","Division of Gingoog City"]
[128026,"DULAG ELEMENTARY SCHOOL","Gingoog City North-1 District","Division of Gingoog City"]
[128016,"Elpidio Galarion Ampatin PS (Mangilit PS)","Gingoog City East-1 District","Division of Gingoog City"]
[128051,"Esik Campilan Elementary School","Gingoog City South-1 District","Division of Gingoog City"]
[128027,"EUREKA ELEMENTARY SCHOOL","Gingoog City North-3 District","Division of Gingoog City"]
[128028,"Eustaquio Teneza Elementary School","Gingoog City South-2 District","Division of Gingoog City"]
[128061,"Fructuso Rife Elementay School","Gingoog City West-2 District","Division of Gingoog City"]
[128011,"Hindangon Elementary School","Gingoog City East-1 District","Division of Gingoog City"]
[128029,"IMPALUHOD ELEMENTARY SCHOOL","Gingoog City North-3 District","Division of Gingoog City"]
[128066,"Kalagonoy Elementary School","Gingoog City West-1 District","Division of Gingoog City"]
[128030,"Kalipay Central School","Gingoog City North-3 District","Division of Gingoog City"]
[128031,"Kamanikan Elementary School","Gingoog City North-2 District","Division of Gingoog City"]
[128032,"Kianlagan Elementary School","Gingoog City North-2 District","Division of Gingoog City"]
[128067,"Kibuging Elementary School","Gingoog City West-3 District","Division of Gingoog City"]
[128033,"Kidahon Elementary School","Gingoog City North-1 District","Division of Gingoog City"]
[128068,"Kipuntos Elementary School","Gingoog City West-1 District","Division of Gingoog City"]
[128012,"Lawaan Elementary School","Gingoog City East-1 District","Division of Gingoog City"]
[128013,"Lawit Elementary school","Gingoog City East-1 District","Division of Gingoog City"]
[128014,"Libon Elementary School","Gingoog City East-1 District","Division of Gingoog City"]
[128069,"Lunao Central School","Gingoog City West-2 District","Division of Gingoog City"]
[128053,"Lunotan Elementary School","Gingoog City South-1 District","Division of Gingoog City"]
[128054,"Magallanes Primary School","Gingoog City South-2 District","Division of Gingoog City"]
[128034,"Malibud Central School","Gingoog City North-2 District","Division of Gingoog City"]
[128035,"Malinao Elementary School","Gingoog City North-1 District","Division of Gingoog City"]
[128015,"Mamaran Elementary School","Gingoog City West-3 District","Division of Gingoog City"]
[128055,"Manuel Lugod Central School","Gingoog City South-2 District","Division of Gingoog City"]
[128037,"Maribucao Elementary School","Gingoog City East-2 District","Division of Gingoog City"]
[128017,"Mimbalagon Elementary School","Gingoog City East-2 District","Division of Gingoog City"]
[128018,"Mimbunga Elementary School","Gingoog City East-2 District","Division of Gingoog City"]
[128071,"Mimbuntong Elementary School","Gingoog City West-2 District","Division of Gingoog City"]
[128072,"Mindulean Elementary School","Gingoog City West-2 District","Division of Gingoog City"]
[202503,"Minpakiki Elementary School","Gingoog City North-3 District","Division of Gingoog City"]
[128019,"Minsapinit Elementary School","Gingoog City East-2 District","Division of Gingoog City"]
[128073,"Murallon Elementary School","Gingoog City West-2 District","Division of Gingoog City"]
[500741,"Murallon Integrated School - Elem","Gingoog City West-2 District","Division of Gingoog City"]
[128038,"Odiongan Central School","Gingoog City North-1 District","Division of Gingoog City"]
[128039,"Pandacdacan Elementary School","Gingoog City North-1 District","Division of Gingoog City"]
[128040,"Pangasihan Elementary School","Gingoog City North-1 District","Division of Gingoog City"]
[128074,"Pedro Maligmat ES","Gingoog City West-2 District","Division of Gingoog City"]
[500811,"Pedro Maligmat Integrated School - Elem","Gingoog City West-2 District","Division of Gingoog City"]
[128075,"Pigsalohan ES","Gingoog City West-3 District","Division of Gingoog City"]
[500799,"Pigsalohan IS - Elem","Gingoog City West-3 District","Division of Gingoog City"]
[128020,"Punong Elementary School","Gingoog City East-2 District","Division of Gingoog City"]
[128056,"Ramon Arevalo Elementary School","Gingoog City South-1 District","Division of Gingoog City"]
[128057,"Ricoro Elementary School","Gingoog City South-1 District","Division of Gingoog City"]
[128058,"Roy Vizcara Elementary School","Gingoog City South-1 District","Division of Gingoog City"]
[128041,"San Jose Elementary School","Gingoog City North-2 District","Division of Gingoog City"]
[128076,"San Juan Central School","Gingoog City West-1 District","Division of Gingoog City"]
[128042,"Sangalan Elementary School","Gingoog City North-3 District","Division of Gingoog City"]
[202502,"Silangan Primary School","Gingoog City North-2 District","Division of Gingoog City"]
[128043,"Sioan Elementary School","Gingoog City North-1 District","Division of Gingoog City"]
[500802,"Sioan Integrated School - Elem","Gingoog City North-1 District","Division of Gingoog City"]
[128021,"Sta. Rita Elementary School","Gingoog City East-1 District","Division of Gingoog City"]
[128077,"Sulpicio Lugod Elementary School","Gingoog City West-1 District","Division of Gingoog City"]
[128044,"Tagdaging Elementary School","Gingoog City North-1 District","Division of Gingoog City"]
[128036,"Tagpako Elementary School","Gingoog City North-2 District","Division of Gingoog City"]
[128045,"Talisay Elementary School","Gingoog City North-1 District","Division of Gingoog City"]
[128046,"Talon Elementary School","Gingoog City North-2 District","Division of Gingoog City"]
[128022,"Tinabalan Elementary School","Gingoog City East-2 District","Division of Gingoog City"]
[128078,"Tinulongan Elementary School","Gingoog City West-2 District","Division of Gingoog City"]
[128047,"Topside Elementary School","Gingoog City North-2 District","Division of Gingoog City"]
[128083,"Abuno ES","Iligan City East II District","Division of Iligan City"]
[128092,"Acmac ES","Iligan City Northeast I - A District","Division of Iligan City"]
[128089,"Amado Pitogo MES","Iligan City East II District","Division of Iligan City"]
[128117,"Ampucao ES","Iligan City Northeast II - B District","Division of Iligan City"]
[128152,"Angelico Medina MS","Iligan City South II District","Division of Iligan City"]
[203002,"BACUITANA ES","Iligan City Northeast II - A District","Division of Iligan City"]
[128079,"Bagong Silang ES","Iligan City East I District","Division of Iligan City"]
[128118,"Benito S. Ong MES","Iligan City Northeast II - B District","Division of Iligan City"]
[128153,"Bernardo E. Ramos Memorial School","Iligan City South II District","Division of Iligan City"]
[203003,"Binasan ES","Iligan City Northeast II - B District","Division of Iligan City"]
[128106,"Bulalang Elementary School","Iligan City Northeast II - A District","Division of Iligan City"]
[128137,"Cabili Village ES","Iligan City North I District","Division of Iligan City"]
[128119,"Caribao Elementary School","Iligan City Northeast II - B District","Division of Iligan City"]
[128108,"Catalino Sumile MES","Iligan City Northeast II - A District","Division of Iligan City"]
[128098,"Dalamas ES","Iligan City Northeast I - B District","Division of Iligan City"]
[128113,"DALIPUGA CENTRAL SCHOOL","Iligan City Northeast II - A District","Division of Iligan City"]
[500698,"Del Carmen Integrated School","Iligan City North II District","Division of Iligan City"]
[128130,"Digkilaan Central School","Iligan City Northeast II - B District","Division of Iligan City"]
[128157,"Ditucalan ES","Iligan City West District","Division of Iligan City"]
[128148,"Dona Josefa F. Celdran MS","Iligan City South I - B District","Division of Iligan City"]
[128140,"Doña Juana A. Lluch MCS","Iligan City North II District","Division of Iligan City"]
[128107,"Dona Matrona Actub Yanez MES (Bunawan ES)","Iligan City Northeast II - A District","Division of Iligan City"]
[128084,"Dorotheo Lloren MES","Iligan City East II District","Division of Iligan City"]
[128099,"Dulag ES","Iligan City Northeast I - B District","Division of Iligan City"]
[128093,"Echavez ES","Iligan City Northeast I - A District","Division of Iligan City"]
[128154,"Estenzo Comendador MES (Upper Tominobo ES)","Iligan City South II District","Division of Iligan City"]
[128158,"Francesca Paradela-Legaspi (Taytay ES)","Iligan City West District","Division of Iligan City"]
[500696,"Francisco Laya Memorial Integrated School","Iligan City East II District","Division of Iligan City"]
[128100,"Hinaplanon Elementary School","Iligan City Northeast I - B District","Division of Iligan City"]
[128091,"Iligan City Central School","Iligan City Central District","Division of Iligan City"]
[128138,"Iligan City North Central School","Iligan City North I District","Division of Iligan City"]
[128145,"Iligan City South I-A Central School","Iligan City South I - A District","Division of Iligan City"]
[128090,"Iligan City SPED Center","Iligan City Central District","Division of Iligan City"]
[128109,"Kabacsanan ES","Iligan City Northeast II - A District","Division of Iligan City"]
[128121,"Kabangahan I ES","Iligan City Northeast II - B District","Division of Iligan City"]
[128122,"Kabangahan II ES","Iligan City Northeast II - B District","Division of Iligan City"]
[128123,"Kalamalamahan ES","Iligan City Northeast II - B District","Division of Iligan City"]
[128101,"Kalilangan Elementary School","Iligan City Northeast I - B District","Division of Iligan City"]
[128110,"Kalubihon ES","Iligan City Northeast II - A District","Division of Iligan City"]
[128124,"Kapisahan ES","Iligan City Northeast II - B District","Division of Iligan City"]
[128125,"Katipunan ES","Iligan City Northeast II - B District","Division of Iligan City"]
[103752,"KIANIBONG ELEMENTARY SCHOOL","Iligan City East I District","Division of Iligan City"]
[128094,"Kiwalan Elementary School","Iligan City Northeast I - A District","Division of Iligan City"]
[128102,"Lanipao ES","Iligan City Northeast I - B District","Division of Iligan City"]
[128126,"Laranjo Elementary School","Iligan City Northeast II - B District","Division of Iligan City"]
[103736,"LIBANDAYAN ELEMENTARY SCHOOL","Iligan City East I District","Division of Iligan City"]
[203001,"Limunsudan Bayug Falls ES","Iligan City Northeast II - B District","Division of Iligan City"]
[128111,"Linanot Elementary School","Iligan City Northeast II - A District","Division of Iligan City"]
[128128,"Lower Mainit Elementary School","Iligan City Northeast II - B District","Division of Iligan City"]
[128082,"Luinab Elementary School","Iligan City East I District","Division of Iligan City"]
[128141,"Lumbatin Elementary School","Iligan City North II District","Division of Iligan City"]
[128129,"Mainit ES","Iligan City Northeast II - B District","Division of Iligan City"]
[128103,"Mandulog ES","Iligan City Northeast I - B District","Division of Iligan City"]
[128159,"Maria Cristina Falls ES","Iligan City West District","Division of Iligan City"]
[128086,"Miguel Obach MES","Iligan City Central District","Division of Iligan City"]
[128160,"Mimbalot ES","Iligan City West District","Division of Iligan City"]
[128155,"Napocor ES","Iligan City South II District","Division of Iligan City"]
[128131,"Panoroganan ES","Iligan City Northeast II - B District","Division of Iligan City"]
[128112,"Pedro T. Megreno MS","Iligan City Northeast II - A District","Division of Iligan City"]
[128114,"Primitivo Quimpo MES","Iligan City Northeast II - A District","Division of Iligan City"]
[128132,"Pudog ES","Iligan City Northeast II - B District","Division of Iligan City"]
[128142,"Pugaan Elementary School","Iligan City North II District","Division of Iligan City"]
[128133,"Rebucon Elementary School","Iligan City Northeast II - B District","Division of Iligan City"]
[128135,"Rufino Mangilisan MES (Tablon ES)","Iligan City Northeast II - B District","Division of Iligan City"]
[103744,"SALINGSING ELEMENTARY SCHOOL","Iligan City East I District","Division of Iligan City"]
[128115,"San Antonio ES","Iligan City Northeast II - A District","Division of Iligan City"]
[128134,"Sardab Elementary School","Iligan City Northeast II - B District","Division of Iligan City"]
[128087,"Servillano G. Reuyan Memorial Elementary School","Iligan City East II District","Division of Iligan City"]
[128096,"Severo Sara MES","Iligan City Northeast I - A District","Division of Iligan City"]
[128161,"Sgt. Miguel Canoy MCS","Iligan City West District","Division of Iligan City"]
[128095,"Sta. Filomena Central School","Iligan City Northeast I - A District","Division of Iligan City"]
[128156,"SUAREZ CENTRAL SCHOOL","Iligan City South II District","Division of Iligan City"]
[500697,"Sultan Mamarinta Panandigan Integrated School","Iligan City Northeast I - B District","Division of Iligan City"]
[128116,"Tabunan ES","Iligan City Northeast II - A District","Division of Iligan City"]
[128143,"Taluntunan ES","Iligan City North II District","Division of Iligan City"]
[128149,"Tambacan ES","Iligan City South I - B District","Division of Iligan City"]
[128081,"Tambo Central School","Iligan City East I District","Division of Iligan City"]
[128146,"Tipanoy ES","Iligan City South I - A District","Division of Iligan City"]
[128150,"Tomas Cabili Central School","Iligan City South I - B District","Division of Iligan City"]
[128105,"Tubaran Central School","Iligan City Northeast I - B District","Division of Iligan City"]
[128147,"Tubod ES","Iligan City South I - A District","Division of Iligan City"]
[128088,"Ubaldo D. Laya Memorial Central Sch.","Iligan City East II District","Division of Iligan City"]
[128136,"Venancio Siarza MES (Dodiongan ES)","Iligan City Northeast II - B District","Division of Iligan City"]
[128151,"Victor G. Guevara MS","Iligan City South I - B District","Division of Iligan City"]
[128144,"Villaverde ES","Iligan City North II District","Division of Iligan City"]
[127082,"Abaga Central ES","Lala South","Division of Lanao del Norte"]
[126949,"Abaga ES","Baloi East","Division of Lanao del Norte"]
[127104,"Abucay -Cancamo ES (Olango ES)","Magsaysay","Division of Lanao del Norte"]
[126937,"Alegria ES","Bacolod","Division of Lanao del Norte"]
[127145,"Aloon PS","Pantao-Ragat","Division of Lanao del Norte"]
[200504,"Anacorita Tongco-Rubillar ES","Kapatagan East","Division of Lanao del Norte"]
[127065,"Antonio Lim Sr. ES","Lala North","Division of Lanao del Norte"]
[127110,"Atanacia Logronio ES (Segapod ES)","Maigo","Division of Lanao del Norte"]
[126938,"Babalaya ES","Bacolod","Division of Lanao del Norte"]
[126939,"Bacolod CES","Bacolod","Division of Lanao del Norte"]
[126950,"Bago Ingud PS","Baloi East","Division of Lanao del Norte"]
[127001,"BAGONG BADIAN ELEMENTARY SCHOOL","Kapatagan West","Division of Lanao del Norte"]
[126975,"Bagong Dawis ES","Baroy","Division of Lanao del Norte"]
[200519,"Balabacon PS","Munai","Division of Lanao del Norte"]
[127111,"Balagatasa ES","Maigo","Division of Lanao del Norte"]
[127002,"Balili Central Elementary School","Kapatagan West","Division of Lanao del Norte"]
[200521,"Balintad PS","Munai","Division of Lanao del Norte"]
[126961,"Baloi Central ES","Baloi West","Division of Lanao del Norte"]
[126962,"Balut ES","Baloi West","Division of Lanao del Norte"]
[127146,"Banday ES","Pantao-Ragat","Division of Lanao del Norte"]
[127014,"Bangaan Elementary School","Sultan Naga Dimaporo","Division of Lanao del Norte"]
[127125,"Bangco ES","Matungao","Division of Lanao del Norte"]
[126963,"Bangko ES","Baloi West","Division of Lanao del Norte"]
[127190,"Baning Elem. School","Sapad - Nunungan","Division of Lanao del Norte"]
[127051,"Banisilon Central Elementary School","Tangkal","Division of Lanao del Norte"]
[127003,"Bansarvil ES","Kapatagan West","Division of Lanao del Norte"]
[127015,"Bansarvil II Elementary School","Sultan Naga Dimaporo","Division of Lanao del Norte"]
[127038,"Baraason Elementary School","Kauswagan","Division of Lanao del Norte"]
[127220,"Barakanas ES","Tubod East","Division of Lanao del Norte"]
[127174,"Barandia PS","Salvador","Division of Lanao del Norte"]
[200507,"Baris PS","Tubod East","Division of Lanao del Norte"]
[126976,"Baroy CS","Baroy","Division of Lanao del Norte"]
[126964,"Basagad PS","Baloi West","Division of Lanao del Norte"]
[127126,"Batal ES","Matungao","Division of Lanao del Norte"]
[127127,"Batangan ES","Matungao","Division of Lanao del Norte"]
[200512,"Baybay Kulasihan PS","Maigo","Division of Lanao del Norte"]
[126988,"Bel-is Elementary School","Kapatagan East","Division of Lanao del Norte"]
[200533,"Beruar Primary School","Tangkal","Division of Lanao del Norte"]
[200522,"Big Banisilon ES","Tangkal","Division of Lanao del Norte"]
[126940,"Binuni ES","Bacolod","Division of Lanao del Norte"]
[127147,"Bobonga Radapan PS","Pantao-Ragat","Division of Lanao del Norte"]
[127093,"Bosque Elementary School","Linamon","Division of Lanao del Norte"]
[127159,"Bowi PS","Pantar","Division of Lanao del Norte"]
[127221,"Bualan ES","Tubod East","Division of Lanao del Norte"]
[126965,"Bubong Paco PS","Baloi West","Division of Lanao del Norte"]
[127160,"Bubong Primary School","Pantar","Division of Lanao del Norte"]
[200508,"Bubong Radapan P S","Matungao","Division of Lanao del Norte"]
[126951,"Bubong-Olango PS","Baloi East","Division of Lanao del Norte"]
[127175,"Bulacon PS","Salvador","Division of Lanao del Norte"]
[126966,"Bulao PS","Baloi West","Division of Lanao del Norte"]
[127235,"Bulod ES","Tubod West","Division of Lanao del Norte"]
[127176,"Buntong ES","Salvador","Division of Lanao del Norte"]
[126989,"Butadon ES","Kapatagan East","Division of Lanao del Norte"]
[127148,"Cabasagan ES","Pantao-Ragat","Division of Lanao del Norte"]
[127161,"Cabasaran ES","Pantar","Division of Lanao del Norte"]
[127211,"CABASARAN PS","Tagoloan","Division of Lanao del Norte"]
[200541,"Cabongbongan IPS","Sultan Naga Dimaporo","Division of Lanao del Norte"]
[126952,"Cadayonan ES","Baloi East","Division of Lanao del Norte"]
[127128,"Cadayonan ES","Matungao","Division of Lanao del Norte"]
[200518,"Cadayonan PS","Munai","Division of Lanao del Norte"]
[200520,"Cadulawan PS","Munai","Division of Lanao del Norte"]
[127017,"Calibao ES","Sultan Naga Dimaporo","Division of Lanao del Norte"]
[200540,"Calipapa PS","Sultan Naga Dimaporo","Division of Lanao del Norte"]
[127018,"Calube ES","Sultan Naga Dimaporo","Division of Lanao del Norte"]
[127067,"Camalan PS","Lala North","Division of Lanao del Norte"]
[127177,"Camp 3 ES","Salvador","Division of Lanao del Norte"]
[127178,"Camp Allere ES","Salvador","Division of Lanao del Norte"]
[127112,"Camp I Elementary School","Maigo","Division of Lanao del Norte"]
[127019,"Campo Islam ES","Sultan Naga Dimaporo","Division of Lanao del Norte"]
[127223,"Candis ES","Tubod East","Division of Lanao del Norte"]
[127192,"Carcum Prim. School","Sapad - Nunungan","Division of Lanao del Norte"]
[127052,"Caromatan ES","Kolambugan","Division of Lanao del Norte"]
[500249,"Carusa Integrated School","Kapatagan West","Division of Lanao del Norte"]
[126990,"Cathedral Falls ES","Kapatagan East","Division of Lanao del Norte"]
[127039,"Cayontor PS","Kauswagan","Division of Lanao del Norte"]
[127113,"Claro M. Recto ES","Maigo","Division of Lanao del Norte"]
[127005,"CONCEPCION ELEMENTARY SCHOOL","Kapatagan West","Division of Lanao del Norte"]
[127129,"Cormatan PS","Poonapiagapo","Division of Lanao del Norte"]
[127149,"Culuban Prim. School","Pantao-Ragat","Division of Lanao del Norte"]
[127179,"Curva Miagao Elementary School","Salvador","Division of Lanao del Norte"]
[126991,"Curvada ES","Kapatagan East","Division of Lanao del Norte"]
[127020,"Dableston ES","Sultan Naga Dimaporo","Division of Lanao del Norte"]
[126967,"Dadoan ES","Baloi West","Division of Lanao del Norte"]
[126977,"Dalama CES","Baroy","Division of Lanao del Norte"]
[500687,"Dalama Integrated School","Tubod East","Division of Lanao del Norte"]
[127180,"Daligdigan PS","Salvador","Division of Lanao del Norte"]
[127021,"Dangolaan ES","Sultan Naga Dimaporo","Division of Lanao del Norte"]
[200542,"Dansalan Annex PS","Sapad - Nunungan","Division of Lanao del Norte"]
[127193,"Dansalan PS","Sapad - Nunungan","Division of Lanao del Norte"]
[127130,"Daramba PS","Poonapiagapo","Division of Lanao del Norte"]
[200536,"Darimbang Primary School","Tagoloan","Division of Lanao del Norte"]
[127068,"Daru Bucana ES","Lala North","Division of Lanao del Norte"]
[127100,"Datu Bebit Dalug ES (Baguiguicon ES)","Magsaysay","Division of Lanao del Norte"]
[126953,"Datu Pascan PS","Baloi East","Division of Lanao del Norte"]
[126954,"Datu Timbul Ali ES","Baloi East","Division of Lanao del Norte"]
[200510,"Demarao PS","Bacolod","Division of Lanao del Norte"]
[127131,"Denaig ES","Poonapiagapo","Division of Lanao del Norte"]
[127083,"Deogracias Urbano Tenazas Memo. School","Lala South","Division of Lanao del Norte"]
[127162,"Dibarosan PS","Pantar","Division of Lanao del Norte"]
[127150,"Dimayon Elementary School","Pantao-Ragat","Division of Lanao del Norte"]
[127212,"DIMAYON PS","Tagoloan","Division of Lanao del Norte"]
[200525,"Dimayon PS","Sapad - Nunungan","Division of Lanao del Norte"]
[126992,"Don Juan Diaz MES","Kapatagan East","Division of Lanao del Norte"]
[127069,"Donggo-an ES","Lala North","Division of Lanao del Norte"]
[127006,"Dongo-an ES","Kapatagan West","Division of Lanao del Norte"]
[127101,"Durianon Primary School","Magsaysay","Division of Lanao del Norte"]
[127084,"El Salvador ES","Lala South","Division of Lanao del Norte"]
[127053,"Esmeraldo Roque MES(Muntay)","Kolambugan","Division of Lanao del Norte"]
[126941,"Esperanza ES","Bacolod","Division of Lanao del Norte"]
[127064,"Esteban M. Enodio MES (Andil ES)","Lala North","Division of Lanao del Norte"]
[127070,"F. Bolante MES","Lala North","Division of Lanao del Norte"]
[127071,"F. M. Posadas ES","Lala North","Division of Lanao del Norte"]
[127085,"F. Ylaya Mem ES","Lala South","Division of Lanao del Norte"]
[126978,"Fausto Alvia MES","Baroy","Division of Lanao del Norte"]
[127102,"Felipe Lumantas MES","Magsaysay","Division of Lanao del Norte"]
[127236,"Felisa V Bond MES","Tubod West","Division of Lanao del Norte"]
[126942,"Felisa Santos Elementary School","Bacolod","Division of Lanao del Norte"]
[127029,"Felix Suson Dablo Elementary School","Sultan Naga Dimaporo","Division of Lanao del Norte"]
[127213,"Gadongan PS","Tagoloan","Division of Lanao del Norte"]
[127063,"Guillermo A. Gimeno ES (Titunod ES)","Kolambugan","Division of Lanao del Norte"]
[127225,"Guillermo Abugan MES","Tubod East","Division of Lanao del Norte"]
[127094,"Guillermo P. Canoy Memorial School","Linamon","Division of Lanao del Norte"]
[127072,"Gumagamot ES","Lala North","Division of Lanao del Norte"]
[127022,"Ilian ES","Sultan Naga Dimaporo","Division of Lanao del Norte"]
[127194,"Inudaran ES","Sapad - Nunungan","Division of Lanao del Norte"]
[127042,"Jose Balazo Memorial Elementary School","Kauswagan","Division of Lanao del Norte"]
[127222,"Juan Ardon-Camp 5 ES","Tubod East","Division of Lanao del Norte"]
[126943,"Kahayag ES","Bacolod","Division of Lanao del Norte"]
[127007,"KAHAYAGAN ES","Kapatagan West","Division of Lanao del Norte"]
[127237,"Kakai-Renabor ES","Tubod West","Division of Lanao del Norte"]
[127163,"Kalanganan Elementary School","Pantar","Division of Lanao del Norte"]
[127226,"Kalilangan ES","Tubod East","Division of Lanao del Norte"]
[127164,"Kalilangan PS","Pantar","Division of Lanao del Norte"]
[500247,"Kalinaw-Kalilintad Integrated Peace School","Kapatagan East","Division of Lanao del Norte"]
[127195,"KALUDAN PS","Sapad - Nunungan","Division of Lanao del Norte"]
[126993,"Kapatagan East CS","Kapatagan East","Division of Lanao del Norte"]
[127196,"Katipunan ES","Sapad - Nunungan","Division of Lanao del Norte"]
[127197,"Katubuan PS","Sapad - Nunungan","Division of Lanao del Norte"]
[127043,"Kauswagan CES","Kauswagan","Division of Lanao del Norte"]
[127044,"Kawit Occidental ES","Kauswagan","Division of Lanao del Norte"]
[500453,"Kawit Oriental ES","Kauswagan","Division of Lanao del Norte"]
[127214,"Kiasar ES","Tagoloan","Division of Lanao del Norte"]
[126994,"Kidalos ES","Kapatagan East","Division of Lanao del Norte"]
[127023,"KIRAPAN ELEMENTARY SCHOOL","Sultan Naga Dimaporo","Division of Lanao del Norte"]
[127054,"Kolambugan CS","Kolambugan","Division of Lanao del Norte"]
[127024,"KOREO INTERMEDIATE SCHOOL","Sultan Naga Dimaporo","Division of Lanao del Norte"]
[127114,"Kulasihan Elementary School","Maigo","Division of Lanao del Norte"]
[127055,"Kulasihan ES","Kolambugan","Division of Lanao del Norte"]
[126955,"Kurmatan PS","Baloi East","Division of Lanao del Norte"]
[127008,"La Libertad ES","Kapatagan West","Division of Lanao del Norte"]
[200513,"Labuay PS","Maigo","Division of Lanao del Norte"]
[500689,"Lala Proper ES","Lala North","Division of Lanao del Norte"]
[127074,"Lanipao Central School","Lala North","Division of Lanao del Norte"]
[200514,"Lantawan PS","Sultan Naga Dimaporo","Division of Lanao del Norte"]
[126944,"Liangan East Elementary School","Bacolod","Division of Lanao del Norte"]
[127115,"Liangan West ES","Maigo","Division of Lanao del Norte"]
[127046,"Libertad ES","Kauswagan","Division of Lanao del Norte"]
[127056,"Libertad ES","Kolambugan","Division of Lanao del Norte"]
[127227,"Licapao Elementary School","Tubod East","Division of Lanao del Norte"]
[126979,"Limwag PS","Baroy","Division of Lanao del Norte"]
[127095,"Linamon Central School","Linamon","Division of Lanao del Norte"]
[126980,"Lindongan Elementary School","Baroy","Division of Lanao del Norte"]
[127116,"Lininding ES","Munai","Division of Lanao del Norte"]
[127215,"Lininding ES","Tagoloan","Division of Lanao del Norte"]
[127151,"Lomidong ES","Pantao-Ragat","Division of Lanao del Norte"]
[127165,"Lower Kalanganan PS","Pantar","Division of Lanao del Norte"]
[127132,"Lumbac Ingud PS","Poonapiagapo","Division of Lanao del Norte"]
[127183,"Mabatao ELEMENTARY SCHOOL","Salvador","Division of Lanao del Norte"]
[127199,"Mabugnao ES","Sapad - Nunungan","Division of Lanao del Norte"]
[127025,"Mabuhay ES","Sultan Naga Dimaporo","Division of Lanao del Norte"]
[127184,"Madaya ES","Salvador","Division of Lanao del Norte"]
[127075,"Magpatao ES","Lala North","Division of Lanao del Norte"]
[127103,"Magsaysay CS","Magsaysay","Division of Lanao del Norte"]
[127026,"Maguindanao ES","Sultan Naga Dimaporo","Division of Lanao del Norte"]
[200528,"Mahayahay ES","Sultan Naga Dimaporo","Division of Lanao del Norte"]
[126995,"Mahayahay Elem. School","Kapatagan East","Division of Lanao del Norte"]
[127117,"Maigo CES","Maigo","Division of Lanao del Norte"]
[127201,"MALA SALUG ELEMENTARY SCHOOL","Sapad - Nunungan","Division of Lanao del Norte"]
[200543,"Malimbato Primary School","Tagoloan","Division of Lanao del Norte"]
[126996,"Malinas Elementary School","Kapatagan East","Division of Lanao del Norte"]
[127228,"Malingao Central School","Tubod East","Division of Lanao del Norte"]
[126981,"Maliwanag ES","Baroy","Division of Lanao del Norte"]
[127152,"Maliwanag ES","Pantao-Ragat","Division of Lanao del Norte"]
[200535,"Maliwanag Primary School","Maigo","Division of Lanao del Norte"]
[126968,"Maliwanag PS","Baloi West","Division of Lanao del Norte"]
[127185,"Mamaanon ES","Salvador","Division of Lanao del Norte"]
[126969,"MAMAANUN PS","Baloi West","Division of Lanao del Norte"]
[127027,"Mamagum Elementary School","Sultan Naga Dimaporo","Division of Lanao del Norte"]
[127134,"Mamarinta Elem. School","Poonapiagapo","Division of Lanao del Norte"]
[200524,"Manan Asi Lawan Elementary School","Bacolod","Division of Lanao del Norte"]
[126982,"Manan-ao ES","Baroy","Division of Lanao del Norte"]
[127057,"Manga ES","Kolambugan","Division of Lanao del Norte"]
[127202,"MAPUROG ELEMENTARY SCHOOL","Sapad - Nunungan","Division of Lanao del Norte"]
[127086,"Maranding CES","Lala South","Division of Lanao del Norte"]
[126997,"Maranding Elementary School","Kapatagan East","Division of Lanao del Norte"]
[127010,"Margos Elementary School","Kapatagan West","Division of Lanao del Norte"]
[126956,"Maria Cristina CS","Baloi East","Division of Lanao del Norte"]
[127203,"Masibay ES","Sapad - Nunungan","Division of Lanao del Norte"]
[127066,"Matampay Bucana ES","Lala North","Division of Lanao del Norte"]
[127135,"Matampay ES","Matungao","Division of Lanao del Norte"]
[127076,"Matampay Ilaya ES","Lala North","Division of Lanao del Norte"]
[126970,"Matampay PS","Baloi West","Division of Lanao del Norte"]
[127153,"Matampay PS","Pantao-Ragat","Division of Lanao del Norte"]
[200538,"Matampay PS","Munai","Division of Lanao del Norte"]
[127118,"Mentring Elem. School","Maigo","Division of Lanao del Norte"]
[127204,"Miguel E. Esmade Memorial Elementary School","Sapad - Nunungan","Division of Lanao del Norte"]
[127028,"Miguela Pogoy MES (Pikinit PS)","Sultan Naga Dimaporo","Division of Lanao del Norte"]
[200531,"Mina IPS","Sultan Naga Dimaporo","Division of Lanao del Norte"]
[126945,"Minaulon Elementary School","Bacolod","Division of Lanao del Norte"]
[126971,"Momungan ES","Baloi West","Division of Lanao del Norte"]
[127119,"Munai CS","Munai","Division of Lanao del Norte"]
[126958,"Nangka Elementary School","Baloi East","Division of Lanao del Norte"]
[127096,"Napo ES","Linamon","Division of Lanao del Norte"]
[127137,"Nunang PS","Poonapiagapo","Division of Lanao del Norte"]
[127205,"Nunungan CES","Sapad - Nunungan","Division of Lanao del Norte"]
[127138,"Nunungun PS","Poonapiagapo","Division of Lanao del Norte"]
[126972,"Olango ES","Baloi West","Division of Lanao del Norte"]
[126973,"Pacalundo ES","Baloi West","Division of Lanao del Norte"]
[127186,"Padianan ES","Salvador","Division of Lanao del Norte"]
[500248,"Pagayawan IS","Bacolod","Division of Lanao del Norte"]
[127047,"PAITON PS","Kauswagan","Division of Lanao del Norte"]
[127229,"Palao Elementary School","Tubod East","Division of Lanao del Norte"]
[127077,"Panadtaran ES","Lala North","Division of Lanao del Norte"]
[127120,"Panggao ES","Munai","Division of Lanao del Norte"]
[127139,"Pangi PS","Matungao","Division of Lanao del Norte"]
[127206,"Panoloon ES","Sapad - Nunungan","Division of Lanao del Norte"]
[127154,"Pansor PS","Pantao-Ragat","Division of Lanao del Norte"]
[200505,"Pansur PS","Salvador","Division of Lanao del Norte"]
[127155,"Pantao Marug PS","Pantao-Ragat","Division of Lanao del Norte"]
[127156,"Pantao Ragat Central School","Pantao-Ragat","Division of Lanao del Norte"]
[127059,"Pantaon Elem. School","Kolambugan","Division of Lanao del Norte"]
[127140,"Pantaon PS","Poonapiagapo","Division of Lanao del Norte"]
[127166,"Pantar CES","Pantar","Division of Lanao del Norte"]
[200526,"Pantar PS","Sapad - Nunungan","Division of Lanao del Norte"]
[127167,"Pantar West PS","Pantar","Division of Lanao del Norte"]
[127141,"Pasayanon Elementary School","Matungao","Division of Lanao del Norte"]
[126974,"Patpangkat PS","Baloi West","Division of Lanao del Norte"]
[127238,"Patudan Elementary School","Tubod West","Division of Lanao del Norte"]
[127216,"Payawan ES","Tagoloan","Division of Lanao del Norte"]
[127030,"Payong Elem. School","Sultan Naga Dimaporo","Division of Lanao del Norte"]
[127087,"Pedro B. Liwanag MES","Lala South","Division of Lanao del Norte"]
[127231,"Pedro Buca MES (Pualas ES)","Tubod East","Division of Lanao del Norte"]
[200523,"Pelingkingan PS","Tangkal","Division of Lanao del Norte"]
[127121,"Pendolonan ES","Munai","Division of Lanao del Norte"]
[127088,"Pendulonan ES","Lala South","Division of Lanao del Norte"]
[127142,"Pendulonan ES","Matungao","Division of Lanao del Norte"]
[126983,"Pendulonan PS","Baroy","Division of Lanao del Norte"]
[127168,"Pendulonan PS","Pantar","Division of Lanao del Norte"]
[126959,"Pendulunan ES","Baloi East","Division of Lanao del Norte"]
[127239,"Pigcarangan ES","Tubod West","Division of Lanao del Norte"]
[127031,"Pikalawag ES","Sultan Naga Dimaporo","Division of Lanao del Norte"]
[127207,"Pili PS","Sapad - Nunungan","Division of Lanao del Norte"]
[127230,"Pinpin ES","Tubod East","Division of Lanao del Norte"]
[127089,"Pinuyak ES","Lala South","Division of Lanao del Norte"]
[127032,"PIRAKA ES","Sultan Naga Dimaporo","Division of Lanao del Norte"]
[127143,"Poonapiagapo CES","Poonapiagapo","Division of Lanao del Norte"]
[126984,"Princesa Elementary School","Baroy","Division of Lanao del Norte"]
[127157,"Pualas PS","Pantao-Ragat","Division of Lanao del Norte"]
[127170,"Punod ES","Pantar","Division of Lanao del Norte"]
[127097,"Purakan Elementary School","Linamon","Division of Lanao del Norte"]
[127033,"Ramain ES","Sultan Naga Dimaporo","Division of Lanao del Norte"]
[127122,"Ramain ES","Munai","Division of Lanao del Norte"]
[126985,"Raw-an Point ES","Baroy","Division of Lanao del Norte"]
[200546,"Raymundo P. Bariñan PS","Kapatagan West","Division of Lanao del Norte"]
[127060,"Riverside ES","Kolambugan","Division of Lanao del Norte"]
[127098,"Robocon ES","Linamon","Division of Lanao del Norte"]
[126947,"Rufino Santos Sr MES","Bacolod","Division of Lanao del Norte"]
[500430,"Rufo Dela Cruz Integrated School","Tubod West","Division of Lanao del Norte"]
[126948,"Rupagan ES","Bacolod","Division of Lanao del Norte"]
[127090,"Saavedra ES","Lala South","Division of Lanao del Norte"]
[126987,"Salong ES","Baroy","Division of Lanao del Norte"]
[127187,"Salvador CES","Salvador","Division of Lanao del Norte"]
[127099,"Samburon Elementary School","Linamon","Division of Lanao del Norte"]
[127241,"San Antonio ES","Tubod West","Division of Lanao del Norte"]
[127011,"SAN ISIDRO ELEMENTARY SCHOOL","Kapatagan West","Division of Lanao del Norte"]
[127078,"San Isidro ES","Lala North","Division of Lanao del Norte"]
[200511,"San Juan PS","Baroy","Division of Lanao del Norte"]
[127091,"San Manuel ES","Lala South","Division of Lanao del Norte"]
[200532,"San Roque ES","Kolambugan","Division of Lanao del Norte"]
[126998,"San Vicente ES","Kapatagan East","Division of Lanao del Norte"]
[127209,"Sapad CES","Sapad - Nunungan","Division of Lanao del Norte"]
[127210,"SAPAD ELEMENTARY SCHOOL","Sapad - Nunungan","Division of Lanao del Norte"]
[127079,"Sario Roda PS (Sta. Cruz Upper)","Lala North","Division of Lanao del Norte"]
[127242,"Sergio Mata ES (Tubaran ES)","Tubod West","Division of Lanao del Norte"]
[127106,"Shiek Omar ES (Lumbac ES)","Magsaysay","Division of Lanao del Norte"]
[127171,"Sigayan Adil PS","Pantar","Division of Lanao del Norte"]
[127035,"Sigayan ES","Sultan Naga Dimaporo","Division of Lanao del Norte"]
[126960,"Sigayan PS","Baloi East","Division of Lanao del Norte"]
[127092,"Simpak ES","Lala South","Division of Lanao del Norte"]
[127009,"Sixto Maghanoy Sr. Central School","Kapatagan West","Division of Lanao del Norte"]
[127061,"Somiorang PS","Tangkal","Division of Lanao del Norte"]
[127144,"Somiorang PS","Matungao","Division of Lanao del Norte"]
[127123,"Sta. Cruz ES","Maigo","Division of Lanao del Norte"]
[127080,"Sta. Cruz Lower ES","Lala North","Division of Lanao del Norte"]
[126999,"Sto Tomas ES","Kapatagan East","Division of Lanao del Norte"]
[127232,"Sto. Nino PS","Tubod East","Division of Lanao del Norte"]
[127233,"Sucadan ES","Tubod East","Division of Lanao del Norte"]
[127062,"Sucodan ES","Kolambugan","Division of Lanao del Norte"]
[127188,"Sudlon ES","Salvador","Division of Lanao del Norte"]
[200530,"SUGOD ELEMENTARY SCHOOL","Sultan Naga Dimaporo","Division of Lanao del Norte"]
[500690,"Sultan Ali Dimaporo Memorial IS","Sultan Naga Dimaporo","Division of Lanao del Norte"]
[127040,"Sultan Dimasangcay Mananggolo IS (Delabayan ES)","Kauswagan","Division of Lanao del Norte"]
[200515,"Sultan Domaub PS","Poonapiagapo","Division of Lanao del Norte"]
[127136,"Sultan Macalpang Permites CS (Matungao CES)","Matungao","Division of Lanao del Norte"]
[127058,"Sultan Membisa Langcay ES (Mukas ES)","Kolambugan","Division of Lanao del Norte"]
[500691,"Sultan Naga Dimaporo CES","Sultan Naga Dimaporo","Division of Lanao del Norte"]
[127217,"Sultan Palao Ali ES","Tagoloan","Division of Lanao del Norte"]
[127000,"Suso ES","Kapatagan East","Division of Lanao del Norte"]
[127048,"Tacub ES","Kauswagan","Division of Lanao del Norte"]
[127218,"Tagoloan ES","Tagoloan","Division of Lanao del Norte"]
[500688,"Taguitic Integrated School","Kapatagan West","Division of Lanao del Norte"]
[127036,"Tagulo ES","Sultan Naga Dimaporo","Division of Lanao del Norte"]
[200516,"Talambo Elementary School","Magsaysay","Division of Lanao del Norte"]
[500431,"Tambacon Integrated School","Magsaysay","Division of Lanao del Norte"]
[127124,"Tambo Elementary School","Munai","Division of Lanao del Norte"]
[127172,"Tambo-Cadayonan ES","Pantar","Division of Lanao del Norte"]
[200544,"Tamparan PS","Munai","Division of Lanao del Norte"]
[200534,"Tangkal Proper IPS","Tangkal","Division of Lanao del Norte"]
[127037,"TANTAON PRIMARY SCHOOL","Sultan Naga Dimaporo","Division of Lanao del Norte"]
[200545,"Taporog PS","Munai","Division of Lanao del Norte"]
[200527,"Taraka Prim. School","Sapad - Nunungan","Division of Lanao del Norte"]
[127173,"Tawanan PS","Pantar","Division of Lanao del Norte"]
[127234,"Teofilo Morales Sr. MES","Tubod East","Division of Lanao del Norte"]
[127049,"Tingintingin PS","Kauswagan","Division of Lanao del Norte"]
[127013,"Tipolo ES","Kapatagan West","Division of Lanao del Norte"]
[127158,"Tongcopan PS","Pantao-Ragat","Division of Lanao del Norte"]
[200539,"TOPOCON INTERMEDIATE SCHOOL","Sultan Naga Dimaporo","Division of Lanao del Norte"]
[127243,"Tubod Central ES","Tubod West","Division of Lanao del Norte"]
[127050,"Tugar ES","Kauswagan","Division of Lanao del Norte"]
[127219,"Tumple ES","Tagoloan","Division of Lanao del Norte"]
[127081,"Tunaan Elem. School","Lala North","Division of Lanao del Norte"]
[200529,"Upper Tugar PS","Kauswagan","Division of Lanao del Norte"]
[126557,"Aglayan Central School","Malaybalay City District VI","Division of Malaybalay City"]
[126574,"Airport Village ES","Malaybalay City District V","Division of Malaybalay City"]
[126575,"Baganao ES","Malaybalay City District II","Division of Malaybalay City"]
[126534,"Bagong Silang ES","Malaybalay City District IX","Division of Malaybalay City"]
[126535,"Balangbang ES","Malaybalay City District VI","Division of Malaybalay City"]
[126558,"Bangcud CES","Malaybalay City District VII","Division of Malaybalay City"]
[199510,"Barangay 9 ES","Malaybalay City District IV","Division of Malaybalay City"]
[126576,"BCT ES","Malaybalay City District IV","Division of Malaybalay City"]
[126559,"Bendolan ES","Malaybalay City District VI","Division of Malaybalay City"]
[126560,"Binalbagan ES","Malaybalay City District VII","Division of Malaybalay City"]
[600130,"Bukidnon State University","Malaybalay City District I","Division of Malaybalay City"]
[500409,"Busdi IS","Malaybalay City District X","Division of Malaybalay City"]
[126561,"Cabangahan ES","Malaybalay City District VI","Division of Malaybalay City"]
[126537,"Caburacanan ES","Malaybalay City District X","Division of Malaybalay City"]
[126562,"Calawag ES","Malaybalay City District VII","Division of Malaybalay City"]
[500245,"Can-ayan IS","Malaybalay City District II","Division of Malaybalay City"]
[126578,"Candiisan ES","Malaybalay City District II","Division of Malaybalay City"]
[126579,"Casisang CS","Malaybalay City District V","Division of Malaybalay City"]
[126580,"Dalwangan ES","Malaybalay City District I","Division of Malaybalay City"]
[103610,"Damitan Elementary School","Malaybalay City District I","Division of Malaybalay City"]
[126563,"Dapulan ES","Malaybalay City District VII","Division of Malaybalay City"]
[126539,"Dumayas ES","Malaybalay City District IX","Division of Malaybalay City"]
[126581,"Imbayao ES","Malaybalay City District III","Division of Malaybalay City"]
[103677,"Incalbog ES","Malaybalay City District II","Division of Malaybalay City"]
[126540,"Indalasa ES","Malaybalay City District X","Division of Malaybalay City"]
[126582,"Kalasungay Central School","Malaybalay City District I","Division of Malaybalay City"]
[126583,"Kapitan Angel ES","Malaybalay City District I","Division of Malaybalay City"]
[126584,"Kibalabag ES","Malaybalay City District II","Division of Malaybalay City"]
[199518,"Kibalabag ES","Malaybalay City District X","Division of Malaybalay City"]
[126585,"Kilap-agan ES","Malaybalay City District II","Division of Malaybalay City"]
[126541,"Kulaman ES","Malaybalay City District X","Division of Malaybalay City"]
[126564,"Laguitas ES","Malaybalay City District VI","Division of Malaybalay City"]
[126542,"Lalawan ES","Malaybalay City District VIII","Division of Malaybalay City"]
[126543,"Langasihan ES","Malaybalay City District IX","Division of Malaybalay City"]
[126544,"Linabo CS","Malaybalay City District VIII","Division of Malaybalay City"]
[126545,"Lunokan ES","Malaybalay City District IX","Division of Malaybalay City"]
[126565,"Mabuhay ES","Malaybalay City District V","Division of Malaybalay City"]
[126566,"Macote Elementary School","Malaybalay City District VII","Division of Malaybalay City"]
[126567,"Magsaysay Elementary School","Malaybalay City District VI","Division of Malaybalay City"]
[126568,"Malapgap ES","Malaybalay City District VIII","Division of Malaybalay City"]
[126586,"Malaybalay City Central School","Malaybalay City District IV","Division of Malaybalay City"]
[126546,"Maligaya ES","Malaybalay City District IX","Division of Malaybalay City"]
[126547,"Managok CS","Malaybalay City District IX","Division of Malaybalay City"]
[126587,"Manalog ES","Malaybalay City District II","Division of Malaybalay City"]
[126569,"Mapayag ES","Malaybalay City District VI","Division of Malaybalay City"]
[126548,"Mapulo Elementary School","Malaybalay City District X","Division of Malaybalay City"]
[126549,"Matangpatang ES","Malaybalay City District IX","Division of Malaybalay City"]
[126550,"Miglamin ES","Malaybalay City District IX","Division of Malaybalay City"]
[126588,"Natid-asan ES","Malaybalay City District V","Division of Malaybalay City"]
[126589,"New Ilocos ES","Malaybalay City District I","Division of Malaybalay City"]
[126570,"Padernal ES","Malaybalay City District VII","Division of Malaybalay City"]
[199511,"Paiwaig ES","Malaybalay City District VIII","Division of Malaybalay City"]
[126551,"Panamucan ES","Malaybalay City District V","Division of Malaybalay City"]
[126590,"Patpat ES","Malaybalay City District I","Division of Malaybalay City"]
[103629,"Pighalugan ES","Malaybalay City District X","Division of Malaybalay City"]
[103647,"Pigpamulahan ES","Malaybalay City District X","Division of Malaybalay City"]
[126591,"San Jose ES","Malaybalay City District V","Division of Malaybalay City"]
[126571,"San Martin ES","Malaybalay City District VIII","Division of Malaybalay City"]
[126572,"San Roque ES","Malaybalay City District VIII","Division of Malaybalay City"]
[126552,"Sawaga ES","Malaybalay City District VIII","Division of Malaybalay City"]
[126553,"Silae ES","Malaybalay City District X","Division of Malaybalay City"]
[126573,"Simaya ES","Malaybalay City District VII","Division of Malaybalay City"]
[126554,"St. Peter ES","Malaybalay City District X","Division of Malaybalay City"]
[126592,"Sta. Ana Elementary School","Malaybalay City District III","Division of Malaybalay City"]
[126593,"Sumpong Central School","Malaybalay City District II","Division of Malaybalay City"]
[126594,"Tag-ilanao ES","Malaybalay City District II","Division of Malaybalay City"]
[126595,"Tintinaan ES","Malaybalay City District II","Division of Malaybalay City"]
[259006,"Tuburan Elementary School","Malaybalay City District X","Division of Malaybalay City"]
[126556,"Zamboanguita CS","Malaybalay City District X","Division of Malaybalay City"]
[127386,"Adorable Elementary School","Jimenez","Division of Misamis Occidental"]
[127272,"Agapito Yap MES","Baliangao","Division of Misamis Occidental"]
[127406,"Alberto Dulalas Sr. Memorial Primary","Lopez Jaena","Division of Misamis Occidental"]
[127407,"Alegria ES","Lopez Jaena","Division of Misamis Occidental"]
[127244,"Aloran Central School","Aloran","Division of Misamis Occidental"]
[127347,"Antero Uy Roa ES","Clarin South","Division of Misamis Occidental"]
[127489,"Aquino Integrated School","Plaridel North","Division of Misamis Occidental"]
[127375,"Bag-ong Clarin ES","Don Victoriano","Division of Misamis Occidental"]
[127476,"Baga PS","Panaon","Division of Misamis Occidental"]
[127286,"Bagong Anonang Diut ES","Bonifacio West","Division of Misamis Occidental"]
[127408,"Bagong Silang PS","Lopez Jaena","Division of Misamis Occidental"]
[127490,"Balanlinao ES","Plaridel North","Division of Misamis Occidental"]
[127273,"Baliangao CS","Baliangao","Division of Misamis Occidental"]
[127557,"Balon ES","Tudela","Division of Misamis Occidental"]
[127360,"Balongkot ES","Concepcion","Division of Misamis Occidental"]
[127477,"Bangko ES","Panaon","Division of Misamis Occidental"]
[201001,"Banisilon PS","Aloran","Division of Misamis Occidental"]
[127558,"Barra ES","Tudela","Division of Misamis Occidental"]
[127559,"Basirang ES","Tudela","Division of Misamis Occidental"]
[127491,"Bato ES","Plaridel North","Division of Misamis Occidental"]
[127509,"Bautista ES","Sapang Dalaga","Division of Misamis Occidental"]
[127288,"Baybay ES","Bonifacio East","Division of Misamis Occidental"]
[127333,"Bernad Elementary School","Clarin North","Division of Misamis Occidental"]
[127409,"Biasong ES","Lopez Jaena","Division of Misamis Occidental"]
[127511,"Bitibut IS","Sapang Dalaga","Division of Misamis Occidental"]
[127334,"Bitoon Elementary School","Clarin North","Division of Misamis Occidental"]
[127289,"Bolinsong ES","Bonifacio West","Division of Misamis Occidental"]
[127560,"Bongabong ES","Tudela","Division of Misamis Occidental"]
[127290,"Bonifacio CS","Bonifacio East","Division of Misamis Occidental"]
[127316,"Bonifacio ES","Calamba","Division of Misamis Occidental"]
[127410,"Bonifacio PS","Lopez Jaena","Division of Misamis Occidental"]
[127512,"Boundary Primary School","Sapang Dalaga","Division of Misamis Occidental"]
[127492,"Buena Voluntad ES","Plaridel South","Division of Misamis Occidental"]
[127291,"Buenavista ES","Bonifacio East","Division of Misamis Occidental"]
[127561,"Buenavista ES","Bonifacio East","Division of Misamis Occidental"]
[127317,"Bunawan ES","Calamba","Division of Misamis Occidental"]
[127411,"BURGOS ELEMENTARY SCHOOL","Lopez Jaena","Division of Misamis Occidental"]
[127245,"Burgos ES","Aloran","Division of Misamis Occidental"]
[127387,"Butuay ES","Jimenez","Division of Misamis Occidental"]
[127348,"Cabunga-An PS","Clarin South","Division of Misamis Occidental"]
[127538,"Cagay-Anon ES","Sinacaban","Division of Misamis Occidental"]
[201006,"Cahayag PS","Tudela","Division of Misamis Occidental"]
[127318,"Calamba CS","Calamba","Division of Misamis Occidental"]
[127319,"Calaran ES","Calamba","Division of Misamis Occidental"]
[127292,"Calolot ES","Bonifacio West","Division of Misamis Occidental"]
[127246,"Calube ES","Aloran","Division of Misamis Occidental"]
[127335,"Caluton Elementary School","Clarin North","Division of Misamis Occidental"]
[127513,"Caluya ES","Sapang Dalaga","Division of Misamis Occidental"]
[127539,"Camanse ES","Sinacaban","Division of Misamis Occidental"]
[127478,"Camanucan Elementary School","Panaon","Division of Misamis Occidental"]
[127562,"Camating ES","Tudela","Division of Misamis Occidental"]
[127336,"Canibungan Daku ES","Clarin North","Division of Misamis Occidental"]
[127563,"Canibungan Proper ES","Tudela","Division of Misamis Occidental"]
[127337,"Canibungan Putol Elementary School","Clarin North","Division of Misamis Occidental"]
[127338,"Canicapan Elementary School","Clarin North","Division of Misamis Occidental"]
[127514,"Capundag ES","Sapang Dalaga","Division of Misamis Occidental"]
[127247,"Caputol Elementary School","Aloran","Division of Misamis Occidental"]
[127540,"Caraghanan PS","Sinacaban","Division of Misamis Occidental"]
[127389,"Carmen Annex PS","Jimenez","Division of Misamis Occidental"]
[127388,"Carmen Integrated School","Jimenez","Division of Misamis Occidental"]
[127493,"Cartagena ES","Plaridel South","Division of Misamis Occidental"]
[127564,"Casilak San Agustin Elem. School","Tudela","Division of Misamis Occidental"]
[127515,"Casul Elementary School","Sapang Dalaga","Division of Misamis Occidental"]
[127248,"Casusan ES","Aloran","Division of Misamis Occidental"]
[127494,"Cebulin Elementary School","Plaridel South","Division of Misamis Occidental"]
[127412,"Cesar N. Abuton ES","Lopez Jaena","Division of Misamis Occidental"]
[127349,"Clarin CS","Clarin South","Division of Misamis Occidental"]
[127495,"Clarin ES","Plaridel North","Division of Misamis Occidental"]
[127565,"Colambutan Bajo ES","Tudela","Division of Misamis Occidental"]
[127566,"Colambutan Settlement ES","Tudela","Division of Misamis Occidental"]
[127541,"Colupan Alto ES","Sinacaban","Division of Misamis Occidental"]
[127542,"Colupan Bajo ES","Sinacaban","Division of Misamis Occidental"]
[127249,"Conat ES","Aloran","Division of Misamis Occidental"]
[127361,"Concepcion CS","Concepcion","Division of Misamis Occidental"]
[127250,"Culpan ES","Aloran","Division of Misamis Occidental"]
[127413,"Dalacon PS","Lopez Jaena","Division of Misamis Occidental"]
[127341,"Dalingap ES (Francisco Adaza ES)","Clarin North","Division of Misamis Occidental"]
[127516,"Dalumpinas ES","Sapang Dalaga","Division of Misamis Occidental"]
[127414,"Dampalan ES","Lopez Jaena","Division of Misamis Occidental"]
[201002,"Danao ES","Plaridel North","Division of Misamis Occidental"]
[127320,"Dapacan Alto ES","Calamba","Division of Misamis Occidental"]
[127321,"Dapacan Bajo ES","Calamba","Division of Misamis Occidental"]
[127517,"Dasa Elementary School","Sapang Dalaga","Division of Misamis Occidental"]
[127479,"De La Paz Primary School","Panaon","Division of Misamis Occidental"]
[127362,"Debaloy ES","Concepcion","Division of Misamis Occidental"]
[127496,"Deboloc ES","Plaridel South","Division of Misamis Occidental"]
[127274,"Del Pilar ES","Baliangao","Division of Misamis Occidental"]
[127339,"Dela Paz Elementary School","Clarin North","Division of Misamis Occidental"]
[127390,"Dicoloc Elementary","Jimenez","Division of Misamis Occidental"]
[127293,"Dimalco ES","Bonifacio East","Division of Misamis Occidental"]
[127543,"Dinas Elementary School","Sinacaban","Division of Misamis Occidental"]
[127518,"Dioyo Elementary School","Sapang Dalaga","Division of Misamis Occidental"]
[127519,"Disoy ES","Sapang Dalaga","Division of Misamis Occidental"]
[127340,"Dolores ES","Clarin North","Division of Misamis Occidental"]
[127415,"Don Andres Soriano PS","Lopez Jaena","Division of Misamis Occidental"]
[127376,"Don Victoriano CS","Don Victoriano","Division of Misamis Occidental"]
[127567,"Duanguican ES","Tudela","Division of Misamis Occidental"]
[127294,"Dullan ES","Bonifacio West","Division of Misamis Occidental"]
[201009,"Dullan PS","Aloran","Division of Misamis Occidental"]
[127295,"Durias Elementary School","Bonifacio West","Division of Misamis Occidental"]
[127520,"El Paraiso Primary School","Sapang Dalaga","Division of Misamis Occidental"]
[127416,"Estante PS","Lopez Jaena","Division of Misamis Occidental"]
[127544,"Estrella ES","Sinacaban","Division of Misamis Occidental"]
[127251,"F. Tayone ES","Aloran","Division of Misamis Occidental"]
[127480,"F.T. Paylaga MPS","Panaon","Division of Misamis Occidental"]
[127521,"Feliciano Baguio PS","Sapang Dalaga","Division of Misamis Occidental"]
[127555,"Fulgencio Baloria-Sinonoc ES","Sinacaban","Division of Misamis Occidental"]
[127568,"Gala ES","Tudela","Division of Misamis Occidental"]
[127377,"Gandawan ES","Don Victoriano","Division of Misamis Occidental"]
[201017,"Gata Diot PS","Clarin South","Division of Misamis Occidental"]
[127350,"Gata Elementary School","Clarin South","Division of Misamis Occidental"]
[127391,"Gata ES","Jimenez","Division of Misamis Occidental"]
[127363,"Guiban ES","Concepcion","Division of Misamis Occidental"]
[127392,"Guintomoyan ES","Jimenez","Division of Misamis Occidental"]
[127569,"Gumbil ES","Tudela","Division of Misamis Occidental"]
[127417,"Hasaan Elementary School","Lopez Jaena","Division of Misamis Occidental"]
[127287,"Ignacio Tan Memorial Integrated School","Bonifacio East","Division of Misamis Occidental"]
[201011,"Ilisan ES","Plaridel South","Division of Misamis Occidental"]
[127393,"Jimenez Central School","Jimenez","Division of Misamis Occidental"]
[127296,"Kabulihan ES","Bonifacio East","Division of Misamis Occidental"]
[127297,"Kanao-Kanao ES","Bonifacio West","Division of Misamis Occidental"]
[127418,"Katipa ES","Lopez Jaena","Division of Misamis Occidental"]
[127497,"Katipunan ES","Plaridel South","Division of Misamis Occidental"]
[127545,"Katipunan ES","Sinacaban","Division of Misamis Occidental"]
[127351,"Kinangay Norte PS","Clarin South","Division of Misamis Occidental"]
[127352,"Kinangay Sur ES","Clarin South","Division of Misamis Occidental"]
[201014,"Labo PS","Aloran","Division of Misamis Occidental"]
[127378,"Lake Duminagat Elementary","Don Victoriano","Division of Misamis Occidental"]
[127379,"Lampasan Integrated School","Don Victoriano","Division of Misamis Occidental"]
[127275,"Landing ES","Baliangao","Division of Misamis Occidental"]
[127322,"Langub Elementary School","Calamba","Division of Misamis Occidental"]
[127353,"Lapasan ES","Clarin South","Division of Misamis Occidental"]
[201015,"Lawaan PS","Aloran","Division of Misamis Occidental"]
[127298,"Lazaro Delos Santos MS","Bonifacio East","Division of Misamis Occidental"]
[127546,"Libertad Alto ES","Sinacaban","Division of Misamis Occidental"]
[127548,"Libertad Bajo ES","Sinacaban","Division of Misamis Occidental"]
[127547,"Libertad Bajo PS","Sinacaban","Division of Misamis Occidental"]
[127323,"Libertad Elementary School","Calamba","Division of Misamis Occidental"]
[127522,"Libertad Elementary School","Sapang Dalaga","Division of Misamis Occidental"]
[127380,"Liboron Elementary School","Don Victoriano","Division of Misamis Occidental"]
[127299,"Liloan CS","Bonifacio West","Division of Misamis Occidental"]
[127276,"Lipacon ES","Baliangao","Division of Misamis Occidental"]
[127252,"Lobogon ES","Aloran","Division of Misamis Occidental"]
[127570,"Locsoon ES","Tudela","Division of Misamis Occidental"]
[127523,"Locus ES","Sapang Dalaga","Division of Misamis Occidental"]
[127301,"Lodiong ES","Bonifacio West","Division of Misamis Occidental"]
[127498,"Looc CS","Plaridel South","Division of Misamis Occidental"]
[127524,"Looc ES","Sapang Dalaga","Division of Misamis Occidental"]
[127419,"Lopez Jaena CS","Lopez Jaena","Division of Misamis Occidental"]
[127302,"Lower Montol ES","Bonifacio East","Division of Misamis Occidental"]
[127304,"Lower Usogan ES","Bonifacio West","Division of Misamis Occidental"]
[127305,"Lumapas Elementary School","Bonifacio West","Division of Misamis Occidental"]
[127253,"Lumbayao Elementary School","Aloran","Division of Misamis Occidental"]
[127277,"Lumipac ES","Baliangao","Division of Misamis Occidental"]
[127342,"Lupagan Elementary School","Clarin North","Division of Misamis Occidental"]
[127279,"Lusot Elementary School","Baliangao","Division of Misamis Occidental"]
[127420,"Luzaran ES","Lopez Jaena","Division of Misamis Occidental"]
[201010,"Mabas PS","Lopez Jaena","Division of Misamis Occidental"]
[127394,"Macabayao ES","Jimenez","Division of Misamis Occidental"]
[127422,"Macalibre Alto ES","Lopez Jaena","Division of Misamis Occidental"]
[127423,"Macalibre Bajo PS","Lopez Jaena","Division of Misamis Occidental"]
[127254,"Macubon PS","Aloran","Division of Misamis Occidental"]
[127280,"Magcamiguing ES","Baliangao","Division of Misamis Occidental"]
[127424,"Mahayahay PS","Lopez Jaena","Division of Misamis Occidental"]
[127571,"Maikay ES","Tudela","Division of Misamis Occidental"]
[127255,"Makawa ES","Aloran","Division of Misamis Occidental"]
[127395,"Malibacsan ELementary School","Jimenez","Division of Misamis Occidental"]
[127354,"Malibangcao ES","Clarin South","Division of Misamis Occidental"]
[127364,"Malvar ES","Concepcion","Division of Misamis Occidental"]
[127324,"Mamalad ES","Calamba","Division of Misamis Occidental"]
[127499,"Mamanga ES","Plaridel South","Division of Misamis Occidental"]
[127525,"Manalac ES","Sapang Dalaga","Division of Misamis Occidental"]
[127256,"Manamong Elementary School","Aloran","Division of Misamis Occidental"]
[127500,"Mangidkid Elementary School","Plaridel North","Division of Misamis Occidental"]
[127425,"Manguehan ES","Lopez Jaena","Division of Misamis Occidental"]
[127526,"Manla Elementary School","Sapang Dalaga","Division of Misamis Occidental"]
[127426,"Mansabay Alto ES","Lopez Jaena","Division of Misamis Occidental"]
[127427,"Mansabay Bajo ES","Lopez Jaena","Division of Misamis Occidental"]
[127365,"Mantukoy PS","Concepcion","Division of Misamis Occidental"]
[127481,"Map-An PS","Panaon","Division of Misamis Occidental"]
[127381,"Maramara ES","Don Victoriano","Division of Misamis Occidental"]
[127572,"Maribojoc ES","Tudela","Division of Misamis Occidental"]
[127366,"Marugang Elementary School","Concepcion","Division of Misamis Occidental"]
[201005,"Masabud Elementary School","Clarin North","Division of Misamis Occidental"]
[127527,"Masubong Primary School","Sapang Dalaga","Division of Misamis Occidental"]
[127396,"Matugas Alto ES","Jimenez","Division of Misamis Occidental"]
[127397,"Matugas Bajo ES","Jimenez","Division of Misamis Occidental"]
[127257,"Maular ES","Aloran","Division of Misamis Occidental"]
[127325,"Mauswagon ES","Calamba","Division of Misamis Occidental"]
[127528,"Medallo ES","Sapang Dalaga","Division of Misamis Occidental"]
[127398,"Mialem ES","Jimenez","Division of Misamis Occidental"]
[127343,"Mialen Central School","Clarin North","Division of Misamis Occidental"]
[127306,"Migpangi ES","Bonifacio East","Division of Misamis Occidental"]
[127307,"Migsale ES","Bonifacio East","Division of Misamis Occidental"]
[127367,"Migubay PS","Concepcion","Division of Misamis Occidental"]
[127258,"Mitazan IS","Aloran","Division of Misamis Occidental"]
[127573,"Mitugas ES","Tudela","Division of Misamis Occidental"]
[127259,"Mohon ES","Aloran","Division of Misamis Occidental"]
[127482,"Mohon ES","Panaon","Division of Misamis Occidental"]
[127428,"Molatuhan ES","Lopez Jaena","Division of Misamis Occidental"]
[127260,"Monterico ES","Aloran","Division of Misamis Occidental"]
[127261,"Nabuna Elementary School","Aloran","Division of Misamis Occidental"]
[127281,"Naburos ES","Baliangao","Division of Misamis Occidental"]
[201013,"Nailon PS","Tudela","Division of Misamis Occidental"]
[201012,"Namut Elementary School","Tudela","Division of Misamis Occidental"]
[127382,"Napangan ES","Don Victoriano","Division of Misamis Occidental"]
[127529,"Napilan Elementary School","Sapang Dalaga","Division of Misamis Occidental"]
[127501,"New Cartagena Elementary School","Plaridel South","Division of Misamis Occidental"]
[127368,"New Casul ES","Concepcion","Division of Misamis Occidental"]
[127383,"Nueva Vista ES","Don Victoriano","Division of Misamis Occidental"]
[127575,"Ozamiz Elementary School","Tudela","Division of Misamis Occidental"]
[127262,"Ozamiz ES","Aloran","Division of Misamis Occidental"]
[127355,"Ozamiz ES","Clarin South","Division of Misamis Occidental"]
[201016,"Palayan PS","Aloran","Division of Misamis Occidental"]
[127399,"Palilan ES","Jimenez","Division of Misamis Occidental"]
[201008,"Pan-ay Diot ES","Tudela","Division of Misamis Occidental"]
[127344,"Pan-ay ES","Clarin North","Division of Misamis Occidental"]
[127502,"Panalsalan ES","Plaridel South","Division of Misamis Occidental"]
[127483,"Panaon CES","Panaon","Division of Misamis Occidental"]
[127300,"Paterno Gallego MS (Linconan ES)","Bonifacio West","Division of Misamis Occidental"]
[127263,"Pelong ES","Aloran","Division of Misamis Occidental"]
[127345,"Penacio Elementary School","Clarin North","Division of Misamis Occidental"]
[127429,"Peniel ES","Lopez Jaena","Division of Misamis Occidental"]
[127326,"Pestanas ES","Calamba","Division of Misamis Occidental"]
[127384,"Petianan ES","Don Victoriano","Division of Misamis Occidental"]
[127308,"Pisaan ES","Bonifacio East","Division of Misamis Occidental"]
[127503,"Plaridel CS","Plaridel North","Division of Misamis Occidental"]
[127369,"Pogan ES","Concepcion","Division of Misamis Occidental"]
[127309,"Proceso Alburo MES","Bonifacio East","Division of Misamis Occidental"]
[127530,"Proceso Saldiva ES(Sepac ES)","Sapang Dalaga","Division of Misamis Occidental"]
[127484,"Punta Elementary School","Panaon","Division of Misamis Occidental"]
[127282,"Punta Miray ES","Baliangao","Division of Misamis Occidental"]
[127283,"Punta Sulong ES","Baliangao","Division of Misamis Occidental"]
[127430,"Puntod ES","Lopez Jaena","Division of Misamis Occidental"]
[127284,"Quezon ES","Baliangao","Division of Misamis Occidental"]
[127310,"Quezon ES","Bonifacio East","Division of Misamis Occidental"]
[127311,"Remedios Elementary School","Bonifacio East","Division of Misamis Occidental"]
[127504,"Rillas ES","Plaridel South","Division of Misamis Occidental"]
[127431,"Rizal ES","Lopez Jaena","Division of Misamis Occidental"]
[127264,"Roxas ES","Aloran","Division of Misamis Occidental"]
[127531,"Salimpono Elemntary School","Sapang Dalaga","Division of Misamis Occidental"]
[127485,"Salimpono ES","Panaon","Division of Misamis Occidental"]
[127327,"Salvador ES","Calamba","Division of Misamis Occidental"]
[127532,"Salvador ES","Sapang Dalaga","Division of Misamis Occidental"]
[127370,"San Francisco ES","Concepcion","Division of Misamis Occidental"]
[127549,"San Isidro Alto ES","Sinacaban","Division of Misamis Occidental"]
[127550,"San Isidro Bajo Primary School","Sinacaban","Division of Misamis Occidental"]
[127328,"San Isidro Elementary School","Calamba","Division of Misamis Occidental"]
[127486,"San Juan ES","Panaon","Division of Misamis Occidental"]
[127551,"San Lorenzo Ruiz ES","Sinacaban","Division of Misamis Occidental"]
[127576,"San Nicolas ES","Tudela","Division of Misamis Occidental"]
[127265,"San Pedro ES","Aloran","Division of Misamis Occidental"]
[127356,"San Roque ES","Clarin South","Division of Misamis Occidental"]
[127487,"San Roque ES","Panaon","Division of Misamis Occidental"]
[201004,"San Vicente Annex ES","Sinacaban","Division of Misamis Occidental"]
[127552,"San Vicente ES","Sinacaban","Division of Misamis Occidental"]
[127510,"Sapang Ama IS","Sapang Dalaga","Division of Misamis Occidental"]
[127533,"Sapang Dalaga Central Elementary School","Sapang Dalaga","Division of Misamis Occidental"]
[127577,"Sebac ES","Tudela","Division of Misamis Occidental"]
[127357,"Sebasi ES","Clarin South","Division of Misamis Occidental"]
[127346,"Segatic Norte Elementary School","Clarin North","Division of Misamis Occidental"]
[127358,"Segatic Sur ES","Clarin South","Division of Misamis Occidental"]
[127553,"Senor ES","Sinacaban","Division of Misamis Occidental"]
[127400,"Seti Elementary School","Jimenez","Division of Misamis Occidental"]
[127401,"Sibaroc ES","Jimenez","Division of Misamis Occidental"]
[127432,"Sibugon IS","Lopez Jaena","Division of Misamis Occidental"]
[127433,"Sibula Elementary School","Lopez Jaena","Division of Misamis Occidental"]
[201018,"Sibuyon Elementary School","Bonifacio West","Division of Misamis Occidental"]
[127578,"Silongon Elementary School","Tudela","Division of Misamis Occidental"]
[127329,"Siloy ES","Calamba","Division of Misamis Occidental"]
[127534,"Sinaad Elementary School","Sapang Dalaga","Division of Misamis Occidental"]
[127554,"Sinacaban CS","Sinacaban","Division of Misamis Occidental"]
[127402,"Sinara Alto ES","Jimenez","Division of Misamis Occidental"]
[127403,"Sinara Bajo Elementary School","Jimenez","Division of Misamis Occidental"]
[127330,"Singalat PS","Calamba","Division of Misamis Occidental"]
[127285,"Sinian ES","Baliangao","Division of Misamis Occidental"]
[127579,"Sinuza ES","Tudela","Division of Misamis Occidental"]
[201019,"Sitio Piduan Annex ES","Don Victoriano","Division of Misamis Occidental"]
[127535,"Sixto Velez PS","Sapang Dalaga","Division of Misamis Occidental"]
[127371,"Soso-on Elementary School","Concepcion","Division of Misamis Occidental"]
[127331,"Southwestern Pob. ES","Calamba","Division of Misamis Occidental"]
[127505,"Sta Cruz ES","Plaridel North","Division of Misamis Occidental"]
[127266,"Sta. Ana ES","Aloran","Division of Misamis Occidental"]
[127332,"Sulipat ES","Calamba","Division of Misamis Occidental"]
[127488,"Sumasap ES","Panaon","Division of Misamis Occidental"]
[127405,"Tabo-o ES - Tabo-o PS (Annex)","Jimenez","Division of Misamis Occidental"]
[127404,"Tabo-o Integrated School","Jimenez","Division of Misamis Occidental"]
[127267,"Taguanao Integrated School","Aloran","Division of Misamis Occidental"]
[127312,"Tangab Elementary School","Bonifacio West","Division of Misamis Occidental"]
[127303,"Tiaman ES","Bonifacio West","Division of Misamis Occidental"]
[127580,"Tigdok ES","Tudela","Division of Misamis Occidental"]
[127278,"Timoteo SU ES (Lupagan ES)","Baliangao","Division of Misamis Occidental"]
[127359,"Tinaclaan ES","Clarin South","Division of Misamis Occidental"]
[127556,"Tipan Elementary School","Sinacaban","Division of Misamis Occidental"]
[127506,"Tipolo ES","Plaridel North","Division of Misamis Occidental"]
[127581,"Tonggo Elementary School","Tudela","Division of Misamis Occidental"]
[127268,"Toril ES","Aloran","Division of Misamis Occidental"]
[127269,"Tuburan ES","Aloran","Division of Misamis Occidental"]
[127582,"Tudela Central School","Tudela","Division of Misamis Occidental"]
[127270,"Tugaya ES","Aloran","Division of Misamis Occidental"]
[127385,"Tuno ES","Don Victoriano","Division of Misamis Occidental"]
[127313,"Tusik ES","Bonifacio West","Division of Misamis Occidental"]
[127536,"Upper Bautista PS","Sapang Dalaga","Division of Misamis Occidental"]
[127372,"Upper Dioyo ES","Concepcion","Division of Misamis Occidental"]
[127314,"Upper Montol ES","Bonifacio East","Division of Misamis Occidental"]
[127373,"Upper Salimpono PS","Concepcion","Division of Misamis Occidental"]
[127315,"Upper Usogan ES","Bonifacio West","Division of Misamis Occidental"]
[127507,"Usocan Elementary School","Plaridel North","Division of Misamis Occidental"]
[127508,"Valdemor ES","Plaridel South","Division of Misamis Occidental"]
[127537,"Ventura Elementary School","Sapang Dalaga","Division of Misamis Occidental"]
[201020,"Virayan PS","Concepcion","Division of Misamis Occidental"]
[127583,"Yahong ES","Tudela","Division of Misamis Occidental"]
[127271,"Zamora Elementary School","Aloran","Division of Misamis Occidental"]
[127770,"Abunda ES\u007f","Magsaysay II (Magsaysay District)","Division of Misamis Oriental"]
[127714,"Alicomohan ES","Sugbongcogon","Division of Misamis Oriental"]
[500250,"Alipuaton IS","Salay","Division of Misamis Oriental"]
[127584,"Alubijid CS","Alubijid","Division of Misamis Oriental"]
[127682,"Aluna ES","Initao","Division of Misamis Oriental"]
[127851,"Ampenican ES","Salay","Division of Misamis Oriental"]
[127715,"Ampianga ES","Sugbongcogon","Division of Misamis Oriental"]
[500519,"Andales ES","Initao","Division of Misamis Oriental"]
[127633,"Ane-i ES","Claveria I (Claveria District)","Division of Misamis Oriental"]
[127699,"Aplaya ES","Jasaan","Division of Misamis Oriental"]
[127634,"Aposkahoy I ES","Claveria II (Claveria District)","Division of Misamis Oriental"]
[127635,"Aposkahoy II ES","Claveria II (Claveria District)","Division of Misamis Oriental"]
[127796,"Argayoso ES","Manticao","Division of Misamis Oriental"]
[127910,"Aromahon ES","Laguindingan","Division of Misamis Oriental"]
[127771,"Artadi ES","Magsaysay II (Magsaysay District)","Division of Misamis Oriental"]
[127833,"Awang ES","Opol","Division of Misamis Oriental"]
[127921,"Aya-Aya ES","Lugait","Division of Misamis Oriental"]
[127874,"Babanlagan ES","Talisayan","Division of Misamis Oriental"]
[127600,"Bagaay ES","Balingasag South (Balingasag District)","Division of Misamis Oriental"]
[127834,"Bagocboc ES","Opol","Division of Misamis Oriental"]
[127899,"Balacanas ES","Villanueva","Division of Misamis Oriental"]
[127601,"Balagnan ES","Balingasag South (Balingasag District)","Division of Misamis Oriental"]
[127602,"Balingasag CS","Balingasag North (Balingasag District)","Division of Misamis Oriental"]
[127875,"Balingoan CS","Kinoguitan","Division of Misamis Oriental"]
[127797,"Balintad ES","Manticao","Division of Misamis Oriental"]
[127603,"Baliwagan CS","Balingasag South (Balingasag District)","Division of Misamis Oriental"]
[127865,"Baluarte ES","Tagoloan","Division of Misamis Oriental"]
[127813,"Bangbang ES","Medina","Division of Misamis Oriental"]
[127636,"Bangonbangon ES","Claveria I (Claveria District)","Division of Misamis Oriental"]
[127835,"Barra ES","Opol","Division of Misamis Oriental"]
[201505,"Bauk-Bauk ES","Kinoguitan","Division of Misamis Oriental"]
[127585,"Baybay ES","Alubijid","Division of Misamis Oriental"]
[127836,"Bayugbayogan ES","Opol","Division of Misamis Oriental"]
[127586,"Benigwayan ES","Alubijid","Division of Misamis Oriental"]
[127923,"Betahon ES","Lugait","Division of Misamis Oriental"]
[127922,"Biga ES","Lugait","Division of Misamis Oriental"]
[127604,"Binitinan ES","Balingasag South (Balingasag District)","Division of Misamis Oriental"]
[127716,"Binuangan CS","Sugbongcogon","Division of Misamis Oriental"]
[127837,"Binubongan ES","Opol","Division of Misamis Oriental"]
[127717,"Biray ES","Kinoguitan","Division of Misamis Oriental"]
[127605,"Blanco ES","Balingasag South (Balingasag District)","Division of Misamis Oriental"]
[127700,"Bobontugan ES","Jasaan","Division of Misamis Oriental"]
[127718,"Bolisong ES","Kinoguitan","Division of Misamis Oriental"]
[127772,"Bonifacio Aquino ES","Magsaysay II (Magsaysay District)","Division of Misamis Oriental"]
[127876,"Bugdang ES","Talisayan","Division of Misamis Oriental"]
[127719,"Buko ES","Kinoguitan","Division of Misamis Oriental"]
[500520,"Bulahan IS","Claveria II (Claveria District)","Division of Misamis Oriental"]
[127814,"Bulwa ES","Medina","Division of Misamis Oriental"]
[127852,"Bunal ES","Salay","Division of Misamis Oriental"]
[127752,"Burnay ES","Libertad","Division of Misamis Oriental"]
[127741,"C.Gadrinab ES","Lagonglong","Division of Misamis Oriental"]
[127753,"C.P. Garcia ES","Libertad","Division of Misamis Oriental"]
[127638,"Cabacungan ES","Claveria I (Claveria District)","Division of Misamis Oriental"]
[127798,"Cabalantian ES","Manticao","Division of Misamis Oriental"]
[127773,"Cabalawan ES","Magsaysay I (Magsaysay District)","Division of Misamis Oriental"]
[500845,"Cabalawan IS","Magsaysay I (Magsaysay District)","Division of Misamis Oriental"]
[127774,"Cabantian ES","Magsaysay I (Magsaysay District)","Division of Misamis Oriental"]
[127775,"Cabubuhan ES","Magsaysay I (Magsaysay District)","Division of Misamis Oriental"]
[127776,"Cadena De Amor ES","Magsaysay I (Magsaysay District)","Division of Misamis Oriental"]
[127606,"Cala-Cala ES","Balingasag North (Balingasag District)","Division of Misamis Oriental"]
[127587,"Calatcat ES","Alubijid","Division of Misamis Oriental"]
[127607,"Calawag ES","Balingasag North (Balingasag District)","Division of Misamis Oriental"]
[500253,"Calubo IS","Kinoguitan","Division of Misamis Oriental"]
[127799,"Camanga ES","Manticao","Division of Misamis Oriental"]
[127721,"Campo ES","Kinoguitan","Division of Misamis Oriental"]
[127608,"Camuayan ES","Balingasag South (Balingasag District)","Division of Misamis Oriental"]
[127877,"Carmen ES","Talisayan","Division of Misamis Oriental"]
[127684,"Casilihon ES","Initao","Division of Misamis Oriental"]
[127866,"Casinglot ES","Tagoloan","Division of Misamis Oriental"]
[500521,"Cauyonan IS","Opol","Division of Misamis Oriental"]
[127639,"Claveria CS","Claveria I (Claveria District)","Division of Misamis Oriental"]
[127609,"Cogon ES","Balingasag North (Balingasag District)","Division of Misamis Oriental"]
[127754,"Cogon ES","Libertad","Division of Misamis Oriental"]
[127777,"Consuelo ES","Magsaysay II (Magsaysay District)","Division of Misamis Oriental"]
[127701,"Corrales ES","Jasaan","Division of Misamis Oriental"]
[201509,"Dahilig ES","Kinoguitan","Division of Misamis Oriental"]
[127778,"Damayohan ES","Magsaysay I (Magsaysay District)","Division of Misamis Oriental"]
[127722,"Dampias ES","Sugbongcogon","Division of Misamis Oriental"]
[127742,"Dampil ES","Lagonglong","Division of Misamis Oriental"]
[127702,"Danao ES","Jasaan","Division of Misamis Oriental"]
[127610,"Dansuli ES","Balingasag South (Balingasag District)","Division of Misamis Oriental"]
[127900,"Dayawan ES","Villanueva","Division of Misamis Oriental"]
[127815,"Dig-Aguyan ES","Medina","Division of Misamis Oriental"]
[127800,"Digkilaan ES","Manticao","Division of Misamis Oriental"]
[127901,"Don F. Jacinto ES","Villanueva","Division of Misamis Oriental"]
[127640,"Don Gregorio Pelaez ES","Claveria II (Claveria District)","Division of Misamis Oriental"]
[127928,"Don Pedro ES","Naawan","Division of Misamis Oriental"]
[127816,"Duka ES","Medina","Division of Misamis Oriental"]
[127755,"Dulong ES","Libertad","Division of Misamis Oriental"]
[127611,"Dumarait ES","Balingasag South (Balingasag District)","Division of Misamis Oriental"]
[127801,"Dunque ES","Manticao","Division of Misamis Oriental"]
[127723,"Esperanza ES","Kinoguitan","Division of Misamis Oriental"]
[127756,"G. Pelaez ES","Libertad","Division of Misamis Oriental"]
[127818,"Gasa ES","Medina","Division of Misamis Oriental"]
[127911,"Gasi ES","Laguindingan","Division of Misamis Oriental"]
[127743,"Gaston ES","Lagonglong","Division of Misamis Oriental"]
[127685,"Gimangpang ES","Initao","Division of Misamis Oriental"]
[127757,"Gimaylan ES","Libertad","Division of Misamis Oriental"]
[127758,"Gitagum CS","Libertad","Division of Misamis Oriental"]
[127817,"Gov. Pelaez ES","Medina","Division of Misamis Oriental"]
[127867,"Gracia ES","Tagoloan","Division of Misamis Oriental"]
[127853,"Guinalaban ES","Salay","Division of Misamis Oriental"]
[127779,"Gumabon ES","Magsaysay II (Magsaysay District)","Division of Misamis Oriental"]
[127641,"Gumaod ES","Claveria I (Claveria District)","Division of Misamis Oriental"]
[127612,"Gumpot ES","Balingasag South (Balingasag District)","Division of Misamis Oriental"]
[127613,"Hermano ES","Balingasag South (Balingasag District)","Division of Misamis Oriental"]
[127642,"Hinaplanan ES","Claveria I (Claveria District)","Division of Misamis Oriental"]
[127703,"Ignacio S. Cruz ES","Jasaan","Division of Misamis Oriental"]
[127839,"Igpit ES","Opol","Division of Misamis Oriental"]
[127854,"Ili-Ilihon ES","Salay","Division of Misamis Oriental"]
[127643,"Impadiding ES","Claveria II (Claveria District)","Division of Misamis Oriental"]
[127686,"Initao CS","Initao","Division of Misamis Oriental"]
[127855,"Inobulan ES","Salay","Division of Misamis Oriental"]
[127687,"Jampason ES","Initao","Division of Misamis Oriental"]
[127704,"Jampason ES","Jasaan","Division of Misamis Oriental"]
[127705,"Jasaan CS","Jasaan","Division of Misamis Oriental"]
[127878,"Kabangasan ES","Kinoguitan","Division of Misamis Oriental"]
[500522,"Kabulakan ES","Kinoguitan","Division of Misamis Oriental"]
[127744,"Kabulawan ES","Lagonglong","Division of Misamis Oriental"]
[127688,"Kalacapan ES","Initao","Division of Misamis Oriental"]
[127880,"Kalamkam ES","Talisayan","Division of Misamis Oriental"]
[127924,"Kalangahan ES","Lugait","Division of Misamis Oriental"]
[127644,"Kalawitan ES","Claveria I (Claveria District)","Division of Misamis Oriental"]
[127902,"Kalingagan ES","Villanueva","Division of Misamis Oriental"]
[201506,"Kalitian ES","Kinoguitan","Division of Misamis Oriental"]
[127925,"Kaluknayan ES","Lugait","Division of Misamis Oriental"]
[127745,"Kamansi ES","Lagonglong","Division of Misamis Oriental"]
[127689,"Kamelon ES","Initao","Division of Misamis Oriental"]
[127645,"Kanangkaan ES","Claveria I (Claveria District)","Division of Misamis Oriental"]
[127780,"Kandiis ES","Magsaysay II (Magsaysay District)","Division of Misamis Oriental"]
[127690,"Kanitoan ES","Initao","Division of Misamis Oriental"]
[127781,"Katipunan ES","Magsaysay II (Magsaysay District)","Division of Misamis Oriental"]
[127724,"Kaulayanan ES","Sugbongcogon","Division of Misamis Oriental"]
[127746,"Kauswagan ES","Lagonglong","Division of Misamis Oriental"]
[127782,"Kauswagan ES","Magsaysay I (Magsaysay District)","Division of Misamis Oriental"]
[127881,"Kauswagan ES","Kinoguitan","Division of Misamis Oriental"]
[127912,"Kibaghot ES","Laguindingan","Division of Misamis Oriental"]
[127614,"Kibalus ES","Balingasag North (Balingasag District)","Division of Misamis Oriental"]
[127615,"Kibanban ES","Balingasag North (Balingasag District)","Division of Misamis Oriental"]
[127819,"Kibugahan ES","Medina","Division of Misamis Oriental"]
[127783,"Kibungsod CS","Magsaysay II (Magsaysay District)","Division of Misamis Oriental"]
[500692,"Kidampas IS","Sugbongcogon","Division of Misamis Oriental"]
[201504,"Kimalok ES","Libertad","Division of Misamis Oriental"]
[127706,"Kimamaon ES","Jasaan","Division of Misamis Oriental"]
[127707,"Kimaya ES","Jasaan","Division of Misamis Oriental"]
[127784,"Kimaya ES","Magsaysay II (Magsaysay District)","Division of Misamis Oriental"]
[127903,"Kimaya ES","Villanueva","Division of Misamis Oriental"]
[127726,"Kinoguitan CS","Kinoguitan","Division of Misamis Oriental"]
[127727,"Kiraging ES","Sugbongcogon","Division of Misamis Oriental"]
[127904,"Kirahon ES","Villanueva","Division of Misamis Oriental"]
[127728,"Kitamban ES","Sugbongcogon","Division of Misamis Oriental"]
[127729,"Kitambis ES","Sugbongcogon","Division of Misamis Oriental"]
[127820,"Labas-Pagsama ES","Medina","Division of Misamis Oriental"]
[127747,"Lagonglong CS","Lagonglong","Division of Misamis Oriental"]
[127588,"Lagtang ES","Alubijid","Division of Misamis Oriental"]
[127913,"Laguindingan CS","Laguindingan","Division of Misamis Oriental"]
[201512,"Lakbangan ES","Claveria II (Claveria District)","Division of Misamis Oriental"]
[127646,"Lambagohon ES","Claveria I (Claveria District)","Division of Misamis Oriental"]
[127589,"Lanao ES","Alubijid","Division of Misamis Oriental"]
[127647,"Lanise ES","Claveria II (Claveria District)","Division of Misamis Oriental"]
[500251,"Lantad IS","Balingasag North (Balingasag District)","Division of Misamis Oriental"]
[127914,"Lapad ES","Laguindingan","Division of Misamis Oriental"]
[127618,"Lapu-Lapu ES","Balingasag South (Balingasag District)","Division of Misamis Oriental"]
[127760,"Libertad CS","Libertad","Division of Misamis Oriental"]
[127915,"Liberty ES","Laguindingan","Division of Misamis Oriental"]
[500525,"Limunda IS","Opol","Division of Misamis Oriental"]
[127619,"Linabu ES","Balingasag South (Balingasag District)","Division of Misamis Oriental"]
[127648,"Linandang ES","Claveria II (Claveria District)","Division of Misamis Oriental"]
[127929,"Linangkayan ES","Naawan","Division of Misamis Oriental"]
[127590,"Loguilo ES","Alubijid","Division of Misamis Oriental"]
[201503,"Lonsi ES","Alubijid","Division of Misamis Oriental"]
[127856,"Looc ES","Salay","Division of Misamis Oriental"]
[127905,"Looc ES","Villanueva","Division of Misamis Oriental"]
[127591,"Lourdes ES","Alubijid","Division of Misamis Oriental"]
[127930,"Lubilan ES","Naawan","Division of Misamis Oriental"]
[127761,"Lubluban ES","Libertad","Division of Misamis Oriental"]
[127926,"Lugait CS","Lugait","Division of Misamis Oriental"]
[127906,"Lukong ES","Villanueva","Division of Misamis Oriental"]
[127592,"Lumbo ES","Alubijid","Division of Misamis Oriental"]
[127748,"Lumbo ES","Lagonglong","Division of Misamis Oriental"]
[127649,"Luna ES","Claveria II (Claveria District)","Division of Misamis Oriental"]
[127882,"Luyong Baybayon ES","Talisayan","Division of Misamis Oriental"]
[127842,"Luyong Bonbon ES","Opol","Division of Misamis Oriental"]
[127708,"Luz Banzon ES","Jasaan","Division of Misamis Oriental"]
[127821,"Maanas ES","Medina","Division of Misamis Oriental"]
[127730,"Mabini ES","Sugbongcogon","Division of Misamis Oriental"]
[127931,"Macabagla ES","Naawan","Division of Misamis Oriental"]
[127883,"Macopa ES","Talisayan","Division of Misamis Oriental"]
[127650,"Madaguing ES","Claveria II (Claveria District)","Division of Misamis Oriental"]
[127884,"Magkarila ES","Talisayan","Division of Misamis Oriental"]
[127802,"Magpait ES","Manticao","Division of Misamis Oriental"]
[127785,"Magsaysay CS","Magsaysay I (Magsaysay District)","Division of Misamis Oriental"]
[127786,"Mahayahay ES","Magsaysay II (Magsaysay District)","Division of Misamis Oriental"]
[500523,"Mahayahay IS","Manticao","Division of Misamis Oriental"]
[201510,"Mainantang ES","Claveria I (Claveria District)","Division of Misamis Oriental"]
[127651,"Malagana ES","Claveria II (Claveria District)","Division of Misamis Oriental"]
[127843,"Malanang ES","Opol","Division of Misamis Oriental"]
[127804,"Malibato ES","Manticao","Division of Misamis Oriental"]
[127652,"Malunsagay ES","Claveria II (Claveria District)","Division of Misamis Oriental"]
[127620,"Mambayaan ES","Balingasag North (Balingasag District)","Division of Misamis Oriental"]
[127654,"Man-ibay ES","Claveria II (Claveria District)","Division of Misamis Oriental"]
[127822,"Mananum Bag-o ES","Medina","Division of Misamis Oriental"]
[201502,"Mananum Daan ES","Medina","Division of Misamis Oriental"]
[127749,"Manaol ES","Lagonglong","Division of Misamis Oriental"]
[127885,"Mandahilag ES","Talisayan","Division of Misamis Oriental"]
[127653,"Mandalawat ES","Claveria II (Claveria District)","Division of Misamis Oriental"]
[127621,"Mandangoa ES","Balingasag North (Balingasag District)","Division of Misamis Oriental"]
[127731,"Mangga ES","Sugbongcogon","Division of Misamis Oriental"]
[127886,"Mantangale ES","Kinoguitan","Division of Misamis Oriental"]
[127805,"Manticao CS","Manticao","Division of Misamis Oriental"]
[127887,"Mapua ES","Kinoguitan","Division of Misamis Oriental"]
[127932,"Mapulog ES","Naawan","Division of Misamis Oriental"]
[127933,"Maputi ES","Naawan","Division of Misamis Oriental"]
[127868,"Maribojoc ES","Tagoloan","Division of Misamis Oriental"]
[127655,"Mat-i CS","Claveria II (Claveria District)","Division of Misamis Oriental"]
[127934,"Mat-I ES","Naawan","Division of Misamis Oriental"]
[127857,"Matampa ES","Salay","Division of Misamis Oriental"]
[127762,"Matangad ES","Libertad","Division of Misamis Oriental"]
[127916,"Mauswagon ES","Laguindingan","Division of Misamis Oriental"]
[127823,"Medina CS","Medina","Division of Misamis Oriental"]
[127844,"Megdaha ES","Opol","Division of Misamis Oriental"]
[127732,"Mimbuahan ES","Sugbongcogon","Division of Misamis Oriental"]
[127858,"Mimbuli ES","Salay","Division of Misamis Oriental"]
[500524,"Minalwang ES","Claveria II (Claveria District)","Division of Misamis Oriental"]
[127787,"Mindulao ES","Magsaysay I (Magsaysay District)","Division of Misamis Oriental"]
[127657,"Minsacuba ES","Claveria I (Claveria District)","Division of Misamis Oriental"]
[127888,"Mintabon ES","Talisayan","Division of Misamis Oriental"]
[201508,"Mohon ES","Tagoloan","Division of Misamis Oriental"]
[201511,"Molocboloc ES","Alubijid","Division of Misamis Oriental"]
[127917,"Moog ES","Laguindingan","Division of Misamis Oriental"]
[127733,"Mosangot ES","Sugbongcogon","Division of Misamis Oriental"]
[127935,"Naawan CS","Naawan","Division of Misamis Oriental"]
[127734,"Nabataan ES","Sugbongcogon","Division of Misamis Oriental"]
[127845,"Nangcaon ES","Opol","Division of Misamis Oriental"]
[127907,"Nangka ES","Villanueva","Division of Misamis Oriental"]
[127622,"Napaliran ES","Balingasag North (Balingasag District)","Division of Misamis Oriental"]
[127759,"Natalio L. Bongcas Sr. Memorial ES","Libertad","Division of Misamis Oriental"]
[127709,"Natubo ES","Jasaan","Division of Misamis Oriental"]
[127869,"Natumolan ES","Tagoloan","Division of Misamis Oriental"]
[127691,"Oguis ES","Initao","Division of Misamis Oriental"]
[127846,"Opol CS","Opol","Division of Misamis Oriental"]
[127788,"Pag-Asa ES","Magsaysay II (Magsaysay District)","Division of Misamis Oriental"]
[127692,"Pagahan ES","Initao","Division of Misamis Oriental"]
[127806,"Pagawan ES","Manticao","Division of Misamis Oriental"]
[127824,"Pahindong ES","Medina","Division of Misamis Oriental"]
[127825,"Palaopao es","Medina","Division of Misamis Oriental"]
[127735,"Panabol ES","Kinoguitan","Division of Misamis Oriental"]
[127658,"Panampawan ES","Claveria II (Claveria District)","Division of Misamis Oriental"]
[127763,"Pangayawan ES","Libertad","Division of Misamis Oriental"]
[127889,"Pangpangon ES","Talisayan","Division of Misamis Oriental"]
[127807,"Paniangan ES","Manticao","Division of Misamis Oriental"]
[127659,"Parmbugas ES","Claveria II (Claveria District)","Division of Misamis Oriental"]
[127936,"Pasagdihon ES","Naawan","Division of Misamis Oriental"]
[127808,"Patag ES","Manticao","Division of Misamis Oriental"]
[127847,"Patag ES","Opol","Division of Misamis Oriental"]
[127937,"Patag ES","Naawan","Division of Misamis Oriental"]
[127660,"Patrocinio ES","Claveria I (Claveria District)","Division of Misamis Oriental"]
[127661,"Plaridel ES","Claveria I (Claveria District)","Division of Misamis Oriental"]
[127693,"Pontacon ES","Initao","Division of Misamis Oriental"]
[127890,"Pook ES","Talisayan","Division of Misamis Oriental"]
[127826,"Portulin ES","Medina","Division of Misamis Oriental"]
[127662,"Punong ES","Claveria I (Claveria District)","Division of Misamis Oriental"]
[127891,"Punta Santiago ES","Talisayan","Division of Misamis Oriental"]
[127809,"Punta Silum ES","Manticao","Division of Misamis Oriental"]
[127892,"Puting Balas ES","Talisayan","Division of Misamis Oriental"]
[127623,"Quezon ES","Balingasag North (Balingasag District)","Division of Misamis Oriental"]
[127764,"Quezon ES","Libertad","Division of Misamis Oriental"]
[127765,"Retablo ES","Libertad","Division of Misamis Oriental"]
[127663,"Rizal ES","Claveria II (Claveria District)","Division of Misamis Oriental"]
[127624,"Rosario ES","Balingasag South (Balingasag District)","Division of Misamis Oriental"]
[127870,"Rosario ES","Tagoloan","Division of Misamis Oriental"]
[127859,"Salagsag ES","Salay","Division of Misamis Oriental"]
[127848,"Salawaga ES","Opol","Division of Misamis Oriental"]
[127860,"Salay CS","Salay","Division of Misamis Oriental"]
[127861,"Salay River ES","Salay","Division of Misamis Oriental"]
[127625,"Samay ES","Balingasag South (Balingasag District)","Division of Misamis Oriental"]
[127918,"Sambulawan ES","Laguindingan","Division of Misamis Oriental"]
[500252,"Sampatulog IS","Alubijid","Division of Misamis Oriental"]
[127893,"San Alonzo ES","Kinoguitan","Division of Misamis Oriental"]
[127710,"San Antonio ES","Jasaan","Division of Misamis Oriental"]
[127626,"San Francisco ES","Balingasag North (Balingasag District)","Division of Misamis Oriental"]
[127627,"San Isidro ES","Balingasag North (Balingasag District)","Division of Misamis Oriental"]
[127711,"San Isidro ES","Jasaan","Division of Misamis Oriental"]
[127789,"San Isidro ES","Magsaysay I (Magsaysay District)","Division of Misamis Oriental"]
[127810,"San Isidro ES","Manticao","Division of Misamis Oriental"]
[127827,"San Jose ES","Medina","Division of Misamis Oriental"]
[127628,"San Juan ES","Balingasag South (Balingasag District)","Division of Misamis Oriental"]
[127908,"San Martin ES","Villanueva","Division of Misamis Oriental"]
[127712,"San Nicolas ES","Jasaan","Division of Misamis Oriental"]
[127694,"San Pedro ES","Initao","Division of Misamis Oriental"]
[127828,"San Roque ES","Medina","Division of Misamis Oriental"]
[127790,"San Vicente ES","Magsaysay I (Magsaysay District)","Division of Misamis Oriental"]
[127829,"San Vicente ES","Medina","Division of Misamis Oriental"]
[127862,"Saray ES","Salay","Division of Misamis Oriental"]
[127894,"Sibantang ES","Talisayan","Division of Misamis Oriental"]
[127830,"Sidlakan ES","Medina","Division of Misamis Oriental"]
[127594,"Sikiton ES","Alubijid","Division of Misamis Oriental"]
[127736,"Silad ES","Sugbongcogon","Division of Misamis Oriental"]
[127919,"Sinai ES","Laguindingan","Division of Misamis Oriental"]
[127695,"Sinalac ES","Initao","Division of Misamis Oriental"]
[127895,"Sindangan ES","Talisayan","Division of Misamis Oriental"]
[127713,"Solana ES","Jasaan","Division of Misamis Oriental"]
[127871,"Sta. Ana ES","Tagoloan","Division of Misamis Oriental"]
[127664,"Sta. Cruz ES","Claveria I (Claveria District)","Division of Misamis Oriental"]
[127791,"Sta. Cruz ES","Magsaysay II (Magsaysay District)","Division of Misamis Oriental"]
[127872,"Sta. Cruz ES","Tagoloan","Division of Misamis Oriental"]
[127896,"Sta. Ines ES","Talisayan","Division of Misamis Oriental"]
[127737,"Suarez ES","Kinoguitan","Division of Misamis Oriental"]
[127738,"Sugbongcogon CS","Sugbongcogon","Division of Misamis Oriental"]
[127629,"Sulo ES","Balingasag South (Balingasag District)","Division of Misamis Oriental"]
[127739,"Sumalag ES","Kinoguitan","Division of Misamis Oriental"]
[127811,"Suminanap ES","Manticao","Division of Misamis Oriental"]
[127595,"Sungay ES","Alubijid","Division of Misamis Oriental"]
[127750,"Tabok ES","Lagonglong","Division of Misamis Oriental"]
[127938,"Tagbalogo ES","Naawan","Division of Misamis Oriental"]
[127897,"Tagbocboc ES","Talisayan","Division of Misamis Oriental"]
[127873,"Tagoloan CS","Tagoloan","Division of Misamis Oriental"]
[127696,"Tagpaco ES","Initao","Division of Misamis Oriental"]
[127596,"Talaba ES","Alubijid","Division of Misamis Oriental"]
[127927,"Talacogon ES","Lugait","Division of Misamis Oriental"]
[127766,"Talao ES","Libertad","Division of Misamis Oriental"]
[127898,"Talisayan CS","Talisayan","Division of Misamis Oriental"]
[127630,"Talusan ES","Balingasag South (Balingasag District)","Division of Misamis Oriental"]
[127792,"Tama ES","Magsaysay II (Magsaysay District)","Division of Misamis Oriental"]
[500923,"Tama IS","Magsaysay II (Magsaysay District)","Division of Misamis Oriental"]
[127831,"Tambagan ES","Medina","Division of Misamis Oriental"]
[127665,"Tamboboan ES","Claveria II (Claveria District)","Division of Misamis Oriental"]
[127767,"Tangkub ES","Libertad","Division of Misamis Oriental"]
[127597,"Taparak ES","Alubijid","Division of Misamis Oriental"]
[500526,"Tawantawan ES","Initao","Division of Misamis Oriental"]
[127768,"Taytayan ES","Libertad","Division of Misamis Oriental"]
[127793,"Tibon-Tibon ES","Magsaysay I (Magsaysay District)","Division of Misamis Oriental"]
[127794,"Tinaan ES","Magsaysay II (Magsaysay District)","Division of Misamis Oriental"]
[500527,"Tinagaan IS","Salay","Division of Misamis Oriental"]
[500528,"Tingalan IS","Opol","Division of Misamis Oriental"]
[127666,"Tipolohon ES","Claveria II (Claveria District)","Division of Misamis Oriental"]
[127920,"Tubajon ES","Laguindingan","Division of Misamis Oriental"]
[127698,"Tubigan ES","Initao","Division of Misamis Oriental"]
[127939,"Tuboran ES","Naawan","Division of Misamis Oriental"]
[127598,"Tugasnon ES","Alubijid","Division of Misamis Oriental"]
[127599,"Tula ES","Alubijid","Division of Misamis Oriental"]
[127812,"Tuod ES","Manticao","Division of Misamis Oriental"]
[127832,"Tup-on ES","Medina","Division of Misamis Oriental"]
[127769,"Ulab ES","Libertad","Division of Misamis Oriental"]
[127751,"Umagos ES","Lagonglong","Division of Misamis Oriental"]
[127631,"Upper Hermano ES","Balingasag South (Balingasag District)","Division of Misamis Oriental"]
[127740,"Valdeconcha ES","Sugbongcogon","Division of Misamis Oriental"]
[127795,"Villa Felipa ES","Magsaysay I (Magsaysay District)","Division of Misamis Oriental"]
[127909,"VN Chavez MCS","Villanueva","Division of Misamis Oriental"]
[127632,"Waterfall ES","Balingasag South (Balingasag District)","Division of Misamis Oriental"]
[127864,"Yungod ES","Salay","Division of Misamis Oriental"]
[127442,"Apil ES","Southeast District II","Division of Oroquieta City"]
[238502,"Bagong Tipan Elementary School","Southwest District","Division of Oroquieta City"]
[127434,"Binuangan ES","Northwest District","Division of Oroquieta City"]
[127443,"Buenavista ES","Southeast District II","Division of Oroquieta City"]
[127464,"Bunga ES","Southwest District","Division of Oroquieta City"]
[127465,"Buntawan ES","Southwest District","Division of Oroquieta City"]
[127453,"Burgos ES","Northwest District","Division of Oroquieta City"]
[127435,"Canubay ES","Central District I","Division of Oroquieta City"]
[127454,"Ciriaco Pastrano Memorial ES","Northwest District","Division of Oroquieta City"]
[127466,"Clarin Settlement ES","Southwest District","Division of Oroquieta City"]
[127444,"Cosme Cagas Memorial School","Southeast District II","Division of Oroquieta City"]
[127445,"Dolipos Alto ES","Southeast District I","Division of Oroquieta City"]
[127446,"Dolipos Bajo ES","Southeast District I","Division of Oroquieta City"]
[127439,"Dulapo Elementary School","Northwest District","Division of Oroquieta City"]
[500402,"Dullan Integrated School","Southeast District I","Division of Oroquieta City"]
[238501,"Kanowanan Tribal ES","Southwest District","Division of Oroquieta City"]
[127455,"Langcangan CES","Central District II","Division of Oroquieta City"]
[127456,"Layawan ES","Southwest District","Division of Oroquieta City"]
[127457,"Lower Langcangan ES","Central District II","Division of Oroquieta City"]
[127448,"Malindang ES","Southeast District II","Division of Oroquieta City"]
[500401,"Mobod IS","Northwest District","Division of Oroquieta City"]
[127437,"Oroquieta City CES","Central District I","Division of Oroquieta City"]
[127438,"Paypayan ES","Northwest District","Division of Oroquieta City"]
[127449,"Pines CES","Southeast District II","Division of Oroquieta City"]
[127458,"Poblacion 2 ES","Southwest District","Division of Oroquieta City"]
[127467,"Rizal ES","Southwest District","Division of Oroquieta City"]
[127450,"San Vicente Alto ES","Southeast District II","Division of Oroquieta City"]
[127451,"San Vicente Bajo ES","Southeast District II","Division of Oroquieta City"]
[127468,"Sarancial Mialen ES","Southeast District II","Division of Oroquieta City"]
[500403,"Sebucal IS","Southeast District II","Division of Oroquieta City"]
[127440,"Senote ES","Northwest District","Division of Oroquieta City"]
[127470,"Taboc ES","Southeast District I","Division of Oroquieta City"]
[127471,"Talairon CES","Southeast District I","Division of Oroquieta City"]
[127472,"Talic ES","Southeast District I","Division of Oroquieta City"]
[127441,"Tipan ES","Northwest District","Division of Oroquieta City"]
[127473,"Toliyok ES","Southwest District","Division of Oroquieta City"]
[127459,"Tuyabang Alto ES","Northwest District","Division of Oroquieta City"]
[127460,"Tuyabang Bajo ES","Northwest District","Division of Oroquieta City"]
[127461,"Tuyabang Proper ES","Northwest District","Division of Oroquieta City"]
[127462,"Upper Lamac ES","Northwest District","Division of Oroquieta City"]
[127474,"Vicente Flores MES","Southeast District I","Division of Oroquieta City"]
[127452,"Victor Enerio MES","Southeast District II","Division of Oroquieta City"]
[127463,"Victoria ES","Southwest District","Division of Oroquieta City"]
[127475,"Villaflor ES","Southwest District","Division of Oroquieta City"]
[128177,"Andrea D. Costonera Elementary School","Ozamis City Central District","Division of Ozamis City"]
[128173,"Antero D. Hinagdanan Elementary School","Ozamis City District II","Division of Ozamis City"]
[128187,"Antero U. Roa Central School","Ozamis City District II","Division of Ozamis City"]
[128165,"Bacolod Elementary School","Ozamis City District II","Division of Ozamis City"]
[128190,"Balintawak Elementary School","Ozamis City District IV","Division of Ozamis City"]
[128162,"Baybay Central School","Ozamis City District I","Division of Ozamis City"]
[128191,"Bongbong Elementary School","Ozamis City District IV","Division of Ozamis City"]
[203506,"Capucao C Elementary School","Ozamis City District II","Division of Ozamis City"]
[128179,"Capucao Elementary School","Ozamis City District II","Division of Ozamis City"]
[128166,"Catadman Elementary School","Ozamis City District I","Division of Ozamis City"]
[500699,"Cogon Integrated School","Ozamis City District IV","Division of Ozamis City"]
[128192,"Cruz Lanzado Saligan Elementary School","Ozamis City District IV","Division of Ozamis City"]
[203504,"Dalapang Elementary School","Ozamis City District III","Division of Ozamis City"]
[128194,"Dimaluna Elementary School","Ozamis City District IV","Division of Ozamis City"]
[128167,"Domingo A. Barloa Elementary School","Ozamis City District II","Division of Ozamis City"]
[128168,"Doña Consuelo Elementary School","Ozamis City District I","Division of Ozamis City"]
[128169,"Embargo Elementary School","Ozamis City District II","Division of Ozamis City"]
[128180,"Faustino C. Decena Elementary School","Ozamis City District III","Division of Ozamis City"]
[128181,"Felipe Carreon Central School","Ozamis City District III","Division of Ozamis City"]
[128195,"Gala Elementary School","Ozamis City District IV","Division of Ozamis City"]
[128170,"Gango Elementary School","Ozamis City District II","Division of Ozamis City"]
[128171,"Gotocan Elementary School","Ozamis City District II","Division of Ozamis City"]
[128196,"Gregorio A. Saquin Elementary School","Ozamis City District IV","Division of Ozamis City"]
[128182,"Guimad Elementary School","Ozamis City District III","Division of Ozamis City"]
[128183,"Guingona Elementary School","Ozamis City District III","Division of Ozamis City"]
[203501,"Hilarion A. Ramiro Elementary School","Ozamis City District II","Division of Ozamis City"]
[128200,"Jacinto Nemeno Elementary School","Ozamis City District IV","Division of Ozamis City"]
[128197,"Juan A. Acapulco Elementary School","Ozamis City District IV","Division of Ozamis City"]
[128198,"Labinay Elementary School","Ozamis City District IV","Division of Ozamis City"]
[128172,"Labo Central School","Ozamis City District II","Division of Ozamis City"]
[128199,"Litapan Elementary School","Ozamis City District IV","Division of Ozamis City"]
[500700,"Malaubang Integrated School","Ozamis City District III","Division of Ozamis City"]
[128174,"Maningcol Central School","Ozamis City District I","Division of Ozamis City"]
[128184,"Marcelino C. Regis Memorial School","Ozamis City District III","Division of Ozamis City"]
[128178,"Maximino S. Laurete, Sr. Elementary School","Ozamis City District III","Division of Ozamis City"]
[203502,"Mintalar Elementary School","Ozamis City District II","Division of Ozamis City"]
[500701,"Misamis Annex Integrated School","Ozamis City District I","Division of Ozamis City"]
[128203,"Narciso B. Ledesma Central School","Ozamis City District IV","Division of Ozamis City"]
[128164,"Ozamiz City Central School","Ozamis City Central District","Division of Ozamis City"]
[203508,"Ozamiz City CS - SPED Center","Ozamis City Central District","Division of Ozamis City"]
[128188,"Pershing Tan Queto, Sr. Elementary School","Ozamis City District III","Division of Ozamis City"]
[128201,"Pulot Elementary School","Ozamis City District IV","Division of Ozamis City"]
[128186,"Roman E. Mabanag, Sr. Elementary School","Ozamis City District III","Division of Ozamis City"]
[128175,"San Antonio Elementary School","Ozamis City District II","Division of Ozamis City"]
[128189,"Sancho Capa Elementary School","Ozamis City District IV","Division of Ozamis City"]
[128176,"Sangay Elementary School","Ozamis City District II","Division of Ozamis City"]
[128202,"Sinusa Elementary School","Ozamis City District IV","Division of Ozamis City"]
[203507,"Sta. Cruz Elementary School","Ozamis City District I","Division of Ozamis City"]
[203505,"Tipan Elementary School","Ozamis City District II","Division of Ozamis City"]
[128238,"Aquino ES","Tangub South District","Division of Tangub City"]
[128239,"Balatacan Beach PS","Tangub Southwest District","Division of Tangub City"]
[128240,"Balatacan ES","Tangub Southwest District","Division of Tangub City"]
[128204,"Baluc ES","Tangub Central District","Division of Tangub City"]
[128219,"Banglay ES","Tangub North District","Division of Tangub City"]
[128205,"Barangay Tres ES","Tangub Central District","Division of Tangub City"]
[128241,"Bintana ES","Tangub Southwest District","Division of Tangub City"]
[128220,"Bitoon PS","Tangub North District","Division of Tangub City"]
[128242,"Bocator ES","Tangub Southwest District","Division of Tangub City"]
[128221,"Bongabong ES","Tangub Central District","Division of Tangub City"]
[128222,"Capalaran ES","Tangub North District","Division of Tangub City"]
[128223,"Capalaran PS","Tangub North District","Division of Tangub City"]
[128206,"Garang ES","Tangub South District","Division of Tangub City"]
[128243,"Guinabot ES","Tangub Southwest District","Division of Tangub City"]
[128244,"Guinalaban ES","Tangub Southwest District","Division of Tangub City"]
[128224,"Hoyohoy ES","Tangub North District","Division of Tangub City"]
[128225,"Isidro D. Tan ES","Tangub North District","Division of Tangub City"]
[128245,"Kampit PS","Tangub Southwest District","Division of Tangub City"]
[128207,"Katagan ES","Tangub Central District","Division of Tangub City"]
[128208,"Kauswagan ES","Tangub Central District","Division of Tangub City"]
[128226,"Kimat ES","Tangub Central District","Division of Tangub City"]
[128209,"Labuyo Elementary School","Tangub South District","Division of Tangub City"]
[128246,"Lorenzo Tan Memorial CS","Tangub South District","Division of Tangub City"]
[128210,"Lumban ES","Tangub Central District","Division of Tangub City"]
[128227,"Maloro ES","Tangub North District","Division of Tangub City"]
[500750,"Maloro Integrated School","Tangub North District","Division of Tangub City"]
[128228,"Manga ES","Tangub North District","Division of Tangub City"]
[128211,"Maquilao Integrated School","Tangub South District","Division of Tangub City"]
[500753,"Maquilao Integrated School","Tangub South District","Division of Tangub City"]
[128247,"Matugnao ES","Tangub Southwest District","Division of Tangub City"]
[128229,"Minsubong ES","Tangub North District","Division of Tangub City"]
[128248,"Owayan ES","Tangub Southwest District","Division of Tangub City"]
[128249,"Paiton ES","Tangub Southwest District","Division of Tangub City"]
[128250,"Panalsalan ES","Tangub Southwest District","Division of Tangub City"]
[128251,"Pangabuan Beach ES","Tangub South District","Division of Tangub City"]
[128252,"Pangabuan Elementary School","Tangub South District","Division of Tangub City"]
[500752,"Pangabuan Integrated School","Tangub South District","Division of Tangub City"]
[128230,"Polao ES","Tangub Central District","Division of Tangub City"]
[128212,"Prenza ES","Tangub South District","Division of Tangub City"]
[128231,"Salimpuno ES","Tangub North District","Division of Tangub City"]
[128213,"San Antonio ES","Tangub South District","Division of Tangub City"]
[128214,"San Apolinario ES","Tangub Central District","Division of Tangub City"]
[128253,"San Vicente ES","Tangub Southwest District","Division of Tangub City"]
[128254,"Sicot ES","Tangub Southwest District","Division of Tangub City"]
[128232,"Silanga ES","Tangub North District","Division of Tangub City"]
[128255,"Silangit ES","Tangub Southwest District","Division of Tangub City"]
[128256,"Simasay ES","Tangub Southwest District","Division of Tangub City"]
[128215,"Sta. Cruz ES","Tangub Central District","Division of Tangub City"]
[128233,"Sta. Maria CS","Tangub North District","Division of Tangub City"]
[128234,"Sto. Nino ES","Tangub Central District","Division of Tangub City"]
[128257,"Sumirap CS","Tangub Southwest District","Division of Tangub City"]
[128216,"Taguite ES","Tangub South District","Division of Tangub City"]
[128217,"Tangub City CS","Tangub Central District","Division of Tangub City"]
[128235,"Tituron ES","Tangub North District","Division of Tangub City"]
[128258,"Tugas ES","Tangub Southwest District","Division of Tangub City"]
[239001,"Tumatyag PS","Tangub Southwest District","Division of Tangub City"]
[128218,"Vidasto Carillo ES","Tangub South District","Division of Tangub City"]
[128237,"Villaba ES","Tangub North District","Division of Tangub City"]
[126864,"Araneta ES","District III","Division of Valencia City"]
[126831,"Bagontaas CES","District II","Division of Valencia City"]
[500702,"Banlag ELementary School","District VII","Division of Valencia City"]
[199513,"Bantal Elementary School","District IV","Division of Valencia City"]
[126832,"Barobo ES","District V","Division of Valencia City"]
[126833,"Batangan CES","District III","Division of Valencia City"]
[126866,"Buco-Sinait Elementary School","District IV","Division of Valencia City"]
[126867,"Bulacao ES","District VII","Division of Valencia City"]
[126868,"Buyog ES","District VII","Division of Valencia City"]
[126834,"Cabanbanagan ES","District V","Division of Valencia City"]
[126835,"Cabanuangan ES","District III","Division of Valencia City"]
[126869,"Cabayugan ES","District VII","Division of Valencia City"]
[126836,"Cambangon ES","District II","Division of Valencia City"]
[126837,"Catumbalon ES","District IV","Division of Valencia City"]
[126838,"Colonia ELEMENTARY SCHOOL","District VI","Division of Valencia City"]
[126870,"CONCEPCION ELEMENTARY SCHOOL","District VII","Division of Valencia City"]
[126839,"Dabongdabong ES","District VI","Division of Valencia City"]
[500703,"Dagat-Kidavao ES","District IV","Division of Valencia City"]
[126872,"Dalit Elementary School","District III","Division of Valencia City"]
[126840,"Guinuyoran Central ES","District V","Division of Valencia City"]
[126841,"KAHAPONAN ELEMENTARY SCHOOL","District VI","Division of Valencia City"]
[126842,"Kilangi ES","District II","Division of Valencia City"]
[126873,"Laligan Central School","District VII","Division of Valencia City"]
[126843,"Lilingayon ES","District II","Division of Valencia City"]
[126844,"Liloan ES","District III","Division of Valencia City"]
[250501,"Logdeck ES","District IV","Division of Valencia City"]
[500704,"Lourdes ES","District V","Division of Valencia City"]
[126874,"Lumbayao ES","District III","Division of Valencia City"]
[126846,"Lumbo ES","District III","Division of Valencia City"]
[126847,"Lurugan Elementary School","District II","Division of Valencia City"]
[126848,"Maapag ES","District IV","Division of Valencia City"]
[126875,"Mabuhay ES","District IV","Division of Valencia City"]
[126849,"Magsal ES","District V","Division of Valencia City"]
[126876,"Mahayahay ES","District VII","Division of Valencia City"]
[126850,"Mailag Central School","District VI","Division of Valencia City"]
[199514,"Malingon ES","District II","Division of Valencia City"]
[250502,"Migtulod Elementary School","District II","Division of Valencia City"]
[500705,"Mt. Nebo ES","District II","Division of Valencia City"]
[126852,"Nabag-o ES","District VI","Division of Valencia City"]
[126853,"New Visayas Elementary School","District II","Division of Valencia City"]
[199515,"Pantaron ES","District IV","Division of Valencia City"]
[126854,"Pinatilan Elementary School","District IV","Division of Valencia City"]
[126855,"San Carlos Elementary School","District II","Division of Valencia City"]
[126856,"San Isidro ES","District VI","Division of Valencia City"]
[126877,"San Vicente ES","District VII","Division of Valencia City"]
[126878,"Sinabuagan ES","District III","Division of Valencia City"]
[126857,"Sinalayan ES","District III","Division of Valencia City"]
[126879,"SINAYAWAN CS","District IV","Division of Valencia City"]
[126858,"SUGOD ES","District VI","Division of Valencia City"]
[126859,"Tagalawa ES","District II","Division of Valencia City"]
[126860,"Tandacol ES","District II","Division of Valencia City"]
[126880,"Tongantongan ES","District VII","Division of Valencia City"]
[126861,"Tugaya ES","District V","Division of Valencia City"]
[126862,"Ulaligan ES","District II","Division of Valencia City"]
[126863,"Valencia City Central School","District I","Division of Valencia City"]
[126881,"Vintar ELEMENTARY SCHOOL","District III","Division of Valencia City"]
[501017,"Dalamas Integrated School","South I District","Division of Iligan City"]

{"sheet":"Main Menu","index":3,"n_rows":79,"n_cols":15,"rows_kept":79,"merged":[[0,0,0,7],[1,0,1,7],[2,0,2,7],[4,0,4,7],[5,1,5,5],[6,1,6,5],[7,1,7,2],[8,0,8,3],[9,0,9,5],[10,1,10,2],[10,3,10,5],[11,1,11,2],[12,0,16,0],[12,1,12,2],[14,1,14,2],[15,1,15,2],[16,1,16,2],[18,0,35,0],[18,1,18,2],[18,3,18,5],[20,1,20,2],[20,3,20,5],[21,1,21,2],[21,3,21,5],[22,1,22,2],[22,3,22,5],[24,1,24,2],[24,3,24,5],[26,1,26,2],[26,3,26,5],[27,1,27,2],[27,3,27,5],[28,1,28,2],[28,3,28,5],[36,0,41,0],[36,1,36,2],[38,1,38,2],[39,1,39,2],[40,1,40,2],[48,0,48,3],[55,1,55,7],[69,1,69,2],[71,1,71,3],[73,0,73,5]]}
["Department of Education",{"$nulls":8},"Division of Bukidnon"]
["Region X",{"$nulls":8},"Division of Cagayan de Oro City"]
[{"$f":"IF(B16=\"\",\"\",'Input Menu'!A3:G3)","v":""},{"$nulls":8},"Division of Camiguin City"]
[{"$nulls":9},"Division of El Salvador City"]
["S B M    V a l I d a t I o n",{"$nulls":8},"Division of Gingoog City"]
["District:",{"$f":"IF(B16=\"\",\"\",'Input Menu'!B8:C8)","v":""},{"$nulls":7},"Division of Iligan City"]
["School:",{"$f":"IF(B16=\"\",\"\",'Input Menu'!B7:G7)","v":""},{"$nulls":7},"Division of Lanao del Norte"]
["School Year Validated:",{"$f":"IF(B16=\"\",\"\",'Input Menu'!B9:C9)","v":""}]
["Step 1: Determine Performance Improvement (60%)",{"$nulls":8},"Division of Malaybalay City"]
["Direction: Select the school year under Performance Indicator's Column and enter the baseline data.",{"$nulls":8},"Division of Misamis Occidental"]
["Thematic Area","Performance Indicators",null,"Baseline Data",{"$nulls":5},"Division of Misamis Oriental"]
[{"$nulls":9},"Division of Oroqueta City"]
["Access (45%)","Enrolment Increase",null,"Enrolment (Raw Data)",null,"Community Mapping",{"$nulls":3},"Division of Ozamis City"]
[null,"SY 2009-2010",null,990,null,null,"SY 2008-2009"]
[null,{"$f":"IF(B6=\"\",\"\",'Input Menu'!B16)","v":""},null,{"$f":"IF(B15=\"\",\"\",'Input Menu'!C16)","v":""},"SY 2009-2010",{"$f":"IF(B15=\"\",\"\",100-(('Input Menu'!E16/'Input Menu'!H16)*100))","v":""},2010,null,null,"Division of Tangub City"]
[null,{"$f":"'Input Menu'!B17","v":""},null,{"$f":"IF(B16=\"\",\"\",'Input Menu'!C17)","v":""},"SY 2010-2011",{"$f":"IF(B16=\"\",\"\",100-(('Input Menu'!E17/'Input Menu'!H17)*100))","v":""},2011,null,null,"Division of Valencia City"]
[null,{"$f":"'Input Menu'!B18","v":""},null,{"$f":"IF(B17=\"\",\"\",'Input Menu'!C18)","v":""},"SY 2011-2012",{"$f":"IF(B17=\"\",\"\",100-(('Input Menu'!E18/'Input Menu'!H18)*100))","v":""},2012]
[null,"% of Inc./Average",null,{"$f":"'1Elem. ER, CR1, CSR1, NAT1'!C17","v":{"$error":"#VALUE!"}},null,null,2013]
["Efficiency (25%)","Dropout Rate (DR):",null,"Dropout (%)",null,null,2014]
[null,"SY 2008-2009",null,{"v":0.02,"d":"2.00%"},null,null,2015]
[null,{"$f":"B15","v":""},null,{"$f":"IF(B21=\"\",\"\",('Input Menu'!E22/'Input Menu'!G22)*100)","v":""},null,null,2016]
[null,{"$f":"B16","v":""},null,{"$f":"IF(B22=\"\",\"\",('Input Menu'!E23/'Input Menu'!G23)*100)","v":""},null,null,2017]
[null,{"$f":"B17","v":""},null,{"$f":"IF(B23=\"\",\"\",('Input Menu'!E24/'Input Menu'!G24)*100)","v":""},null,null,2018]
[null,"Ave. % of Decrease",{"$nulls":4},2019]
[null,"Repetition Rate (RR):",null,"Repetition  (%)",null,null,2020]
[null,"SY 2008-2009",null,65,null,null,2021]
[null,{"$f":"B21","v":""},null,{"$f":"IF(B27=\"\",\"\",('Input Menu'!E28/'Input Menu'!G28)*100)","v":""},null,null,2022]
[null,{"$f":"B22","v":""},null,{"$f":"IF(B28=\"\",\"\",('Input Menu'!E29/'Input Menu'!G29)*100)","v":""},null,null,2023]
[null,{"$f":"B23","v":""},null,{"$f":"IF(B29=\"\",\"\",('Input Menu'!E30/'Input Menu'!G30)*100)","v":""},null,null,2024]
[null,"Ave. % of Increase",{"$nulls":4},2025]
[null,"Cohort Survival Rate (CSR):",null,"Cohort Survival (%)",null,null,2026]
[null,"SY 2008-2009",null,58,null,null,2027]
[null,{"$f":"B27","v":""},null,{"v":95,"d":"95.00"},null,null,2028]
[null,{"$f":"B28","v":""},null,{"v":96,"d":"96.00"},null,null,2029]
[null,{"$f":"B29","v":""},null,83.72,null,null,2030]
[null,"Ave. % of Increase",{"$nulls":4},2031]
["Quality (30%)","NAT MPS/Promotion Rate",null,"NAT MPS (%)","NAT MPS","Promotion Rate",2032]
[null,"SY 2008-2009",null,{"v":56,"d":"56.00"},50,null,2033]
[null,{"$f":"B33","v":""},null,{"$f":"IF(B39=\"\",\"\",'Input Menu'!C40)","v":""},20,{"$f":"IF(B39=\"\",\"\",('Input Menu'!E40/'Input Menu'!G40)*100)","v":""},2034]
[null,{"$f":"B34","v":""},null,{"$f":"IF(B40=\"\",\"\",'Input Menu'!C41)","v":""},68,{"$f":"IF(B40=\"\",\"\",('Input Menu'!E41/'Input Menu'!G41)*100)","v":""},2035]
[null,{"$f":"B35","v":""},null,{"$f":"IF(B41=\"\",\"\",'Input Menu'!C42)","v":""},28,{"$f":"IF(B41=\"\",\"\",('Input Menu'!E42/'Input Menu'!G42)*100)","v":""},2036]
[null,"Ave. % of Increase",null,null,{"$f":"AVERAGE(E39:E41)","v":{"v":38.666666666666664,"d":"39"}}]
[]
[]
[]
[]
[" "]
["Step 1: Click the option to view the Performance Improvement score"]
["              Choose the best option to generate the highest score, then proceed to DOD Principles:"]
["Option1: ER, DR, RR, NAT1",{"$f":"'3Elem. ER, CR1, CSR2, NAT1'!H42","v":{"$error":"#VALUE!"}},{"$f":"B50*0.6","v":{"$error":"#VALUE!"}},{"$nulls":3},{"$f":"F50*0.6","v":{"v":0,"d":"0.00"}}]
["Option2: ER, DR, RR, NAT2",{"$f":"'2Elem. ER, CR1, CSR1, NAT2'!H42","v":{"$error":"#VALUE!"}},{"$f":"B51*0.6","v":{"$error":"#VALUE!"}},{"$nulls":3},{"$f":"F51*0.6","v":{"v":0,"d":"0.00"}}]
["Option3: ER, DR, RR, PrR",{"$f":"'1Elem. ER, CR1, CSR1, NAT1'!H42","v":{"$error":"#VALUE!"}},{"$error":"#VALUE!"},{"$nulls":3},{"$f":"F52*0.6","v":{"v":0,"d":"0.00"}}]
["Option4: CM, DR, RR, NAT1",{"$f":"'9Elem. PR, CR1, CSR1, NAT1'!H42","v":{"$error":"#VALUE!"}},{"$error":"#VALUE!"},{"$nulls":3},{"$f":"F53*0.6","v":{"v":0,"d":"0.00"}}]
["Option5: CM, DR, RR, NAT2",{"$f":"'10Elem. PR, CR1, CSR1, NAT2'!H42","v":{"$error":"#VALUE!"}},{"$error":"#VALUE!"}]
["Option6: CM, DR, RR, PrR",{"$f":"'14Elem. PR, CR2, CSR1, NAT2'!H42","v":{"$error":"#VALUE!"}},{"$error":"#VALUE!"}]
["2. Comments/ Suggestions/ Recommendations/ Technical Assistance:"]
{"$rows_empty":12}
["Step 3: Enter the best option on the space given."]
[]
[]
["Step 4: Select the level of validation:",{"$nulls":10},{"$f":"B72","v":0},{"$f":"D72","v":0},null,{"$f":"B72","v":0}]
[]
["Step 5: Go back to step 1, click the best option, then generate SBM Validation Form, Save and Close.  "]
[]
["Developed by:    ARIEL B. MONTECALBO, Ph.D."]
["                               EPS-II Monitoring and Evaluation"]
["                                      Division of Bukidnon"]
["                          0917-589-5234"]

{"sheet":"Sec. Acc1, NAT2, CR1, CSR1","index":4,"n_rows":111,"n_cols":15,"rows_kept":111,"hidden":true,"merged":[[0,0,0,7],[1,0,1,7],[2,0,2,7],[4,0,4,7],[5,1,5,2],[5,5,5,7],[7,0,7,7],[8,1,8,2],[10,0,15,0],[10,4,15,4],[10,5,15,5],[10,6,15,6],[10,7,15,7],[16,0,33,0],[16,4,21,4],[16,5,21,5],[16,6,21,6],[16,7,33,7],[22,4,27,4],[22,5,27,5],[22,6,27,6],[28,4,33,4],[28,5,33,5],[28,6,33,6],[34,0,39,0],[34,4,39,4],[34,5,39,5],[34,6,39,6],[34,7,39,7],[40,0,40,4],[42,0,42,7],[43,0,43,7],[44,0,44,1],[44,2,44,3],[44,4,44,5],[44,6,44,7],[45,0,45,1],[45,2,45,3],[45,4,45,5],[45,6,45,7],[46,0,46,1],[46,2,46,3],[46,4,46,5],[46,6,46,7],[47,0,47,1],[47,2,47,3],[47,4,47,5],[47,6,47,7],[48,0,48,1],[48,2,48,3],[48,4,48,5],[48,6,48,7],[49,0,49,5],[49,6,49,7],[53,1,53,3],[53,4,53,5],[54,1,54,3],[54,4,54,5],[55,1,55,3],[55,4,55,5],[56,1,56,3],[56,4,56,5],[64,0,64,7],[65,0,65,1],[65,2,65,3],[65,4,65,5],[65,6,65,7],[66,0,66,1],[66,2,66,3],[66,4,66,5],[66,6,66,7],[67,0,67,1],[67,2,67,3],[67,4,67,5],[67,6,67,7],[68,0,68,5],[68,6,68,7],[75,0,75,7],[76,1,76,3],[76,4,76,5],[77,1,77,3],[77,4,77,5],[78,1,78,3],[78,4,78,5],[79,1,79,3],[79,4,79,5],[81,1,84,7],[100,1,100,2],[100,4,100,5],[101,1,101,2],[101,4,101,5],[104,1,104,2],[104,4,104,5],[105,1,105,2],[105,4,105,5],[109,1,109,5],[110,1,110,5]]}
[{"$f":"'Main Menu'!A1:F1","v":"Department of Education"}]
[{"$f":"'Main Menu'!A2:F2","v":"Region X"}]
[{"$f":"'Main Menu'!A3:F3","v":""}]
[]
["SBM Validation"]
["Name of School:",{"$f":"'Main Menu'!G6","v":0},null,null,"Division:",{"$f":"'Main Menu'!G7","v":0},{"$nulls":4},{"$f":"B6","v":0}]
[]
["Step 1: Determine Performance Improvement (60%)"]
["Thematic Area","Performance Indicators",null,null,"Rating & Equivalent Points","Computation","Computation","Results"]
[]
["Access (45%)","Enrolment Increase","% of Increase","Enrolment",null,{"$f":"grd(C16)","v":{"$error":"#VALUE!"}},{"$f":"F11*0.45","v":{"$error":"#VALUE!"}},{"$f":"G11","v":{"$error":"#VALUE!"}}]
[null,{"$f":"'Main Menu'!B14","v":"SY 2009-2010"},null,{"$f":"'Main Menu'!D14","v":990}]
[null,{"$f":"'Main Menu'!B15","v":""},null,{"$f":"'Main Menu'!D15","v":""},{"$nulls":6},"SY 2009-2010"]
[null,{"$f":"'Main Menu'!B16","v":""},{"$f":"((D14-D13)/D13)*100","v":{"$error":"#VALUE!"}},{"$f":"'Main Menu'!D16","v":""},{"$nulls":6},"SY 2010-2011"]
[null,{"$f":"'Main Menu'!B17","v":""},{"$f":"((D15-D14)/D14)*100","v":{"$error":"#VALUE!"}},{"$f":"'Main Menu'!D17","v":""},{"$nulls":6},"SY 2011-2012"]
[null,"Ave. % of Increase",{"$f":"AVERAGE(C14:C15)","v":{"$error":"#VALUE!"}},{"$nulls":7},"SY 2012-2013"]
["Efficiency (25%)","Dropout Rate (DR):","% of decrease","Dropout",null,{"$f":"IF(C22>=5,\"1\",IF(C22>=2,\"2\",IF(C22<2,\"3\",\"0\")))","v":{"$error":"#VALUE!"}},{"$f":"F17*0.0833","v":{"$error":"#VALUE!"}},{"$f":"SUM(G17:G34)","v":{"$error":"#VALUE!"}},null,null,"SY 2013-2014"]
[null,{"$f":"'Main Menu'!B20","v":"SY 2008-2009"},null,{"$f":"'Main Menu'!D20","v":0.02}]
[null,{"$f":"'Main Menu'!B21","v":""},null,{"$f":"'Main Menu'!D21","v":""},{"$nulls":6},"SY 2014- 2015"]
[null,{"$f":"'Main Menu'!B22","v":""},{"$f":"(D20-D19)","v":{"$error":"#VALUE!"}},{"$f":"'Main Menu'!D22","v":""},{"$nulls":6},"SY 2015- 2016"]
[null,{"$f":"'Main Menu'!B23","v":""},{"$f":"D21-D20","v":{"$error":"#VALUE!"}},{"$f":"'Main Menu'!D23","v":""},{"$nulls":6},"SY 2016-2017"]
[null,"Ave. % of Decrease",{"$f":"(C20+C21)/2","v":{"$error":"#VALUE!"}}]
[null,"Completion Rate (CR):","% of Increase","Completion",null,{"$f":"grd(C28)","v":{"$error":"#VALUE!"}},{"$f":"F23*0.0833","v":{"$error":"#VALUE!"}},{"$nulls":3},"SY 2017-2018"]
[null,{"$f":"'Main Menu'!B26","v":"SY 2008-2009"},null,{"$f":"'Main Menu'!D26","v":65}]
[null,{"$f":"'Main Menu'!B27","v":""},null,{"$f":"'Main Menu'!D27","v":""},{"$nulls":6},"SY 2018- 2019"]
[null,{"$f":"'Main Menu'!B28","v":""},{"$f":"(D26-D25)/D25*100","v":{"$error":"#VALUE!"}},{"$f":"'Main Menu'!D28","v":""},{"$nulls":6},"SY 2019- 2020"]
[null,{"$f":"'Main Menu'!B29","v":""},{"$f":"(D27-D26)/D26*100","v":{"$error":"#VALUE!"}},{"$f":"'Main Menu'!D29","v":""}]
[null,"Ave. % of Increase",{"$f":"(C26+C27)/2","v":{"$error":"#VALUE!"}}]
[null,"Cohort Survival Rate (CSR):","% of Increase","Cohort Survival",null,{"$f":"grd(C34)","v":0},{"$f":"F29*0.0834","v":{"v":0,"d":"0.00"}}]
[null,{"$f":"'Main Menu'!B32","v":"SY 2008-2009"},null,{"$f":"'Main Menu'!D32","v":58}]
[null,{"$f":"'Main Menu'!B33","v":""},null,{"$f":"'Main Menu'!D33","v":{"v":95,"d":"95.00"}}]
[null,{"$f":"'Main Menu'!B34","v":""},{"$f":"(D32-D31)/D31*100","v":{"v":1.0526315789473684,"d":"1.05"}},{"$f":"'Main Menu'!D34","v":{"v":96,"d":"96.00"}}]
[null,{"$f":"'Main Menu'!B35","v":""},{"$f":"(D33-D32)/D32*100","v":{"v":-12.791666666666668,"d":"-12.79"}},{"$f":"'Main Menu'!D35","v":83.72}]
[null,"Ave. % of Increase",{"$f":"(C32+C33)/2","v":{"v":-5.86951754385965,"d":"-5.87"}}]
["Quality (30%)","NAT MPS","% of Increase","NAT MPS",null,{"$f":"grdee(D40)","v":{"$error":"#VALUE!"}},{"$f":"F35*0.3","v":{"$error":"#VALUE!"}},{"$f":"G35","v":{"$error":"#VALUE!"}}]
[null,{"$f":"'Main Menu'!B38","v":"SY 2008-2009"},null,{"$f":"'Main Menu'!D38","v":{"v":56,"d":"56.00"}}]
[null,{"$f":"'Main Menu'!B39","v":""},null,{"$f":"'Main Menu'!D39","v":""}]
[null,{"$f":"'Main Menu'!B40","v":""},null,{"$f":"'Main Menu'!D40","v":""}]
[null,{"$f":"'Main Menu'!B41","v":""},null,{"$f":"'Main Menu'!D41","v":""}]
[null,"Ave. % of Increase",null,{"$f":"AVERAGE(D37:D39)","v":{"$error":"#DIV/0!"}}]
["Sub-Total",{"$nulls":6},{"$f":"SUM(H11:H40)","v":{"$error":"#VALUE!"}}]
[]
["Note: Only Schools having a Performance Improvement of \" Better\" can apply to the Division for SBM Validation."]
["Step 2: Compute for validated SBM Assessment Scores (40%)"]
["SBM Principles",null,"Weight",null,"Cummulative Scores of Validators per Principles",null,"Results"]
["Leadership",null,{"v":0.3,"d":"30%"},null,{"$f":"'Document Analysis, Obs. Discuss'!AP71","v":{"v":0.6,"d":"0.60"}},null,{"$f":"E46*0.3","v":0.18}]
["Curriculum & Learning",null,{"v":0.3,"d":"30%"},null,{"$f":"'Document Analysis, Obs. Discuss'!AP72","v":{"v":0,"d":"0.00"}},null,{"$f":"E47*0.3","v":0}]
["Accountability",null,{"v":0.25,"d":"25%"},null,{"$f":"'Document Analysis, Obs. Discuss'!AP73","v":{"v":0,"d":"0.00"}},null,{"$f":"E48*0.25","v":0}]
["Resource Management",null,{"v":0.15,"d":"15%"},null,{"$f":"'Document Analysis, Obs. Discuss'!AP74","v":{"v":0,"d":"0.00"}},null,{"$f":"E49*0.15","v":0}]
["Sub-total",{"$nulls":5},{"$f":"SUM(G46:G49)","v":0.18}]
["Interpretation:",null,"Good"]
[null,null,"Better"]
[null,null,"Best"]
["Legend:","Numerical Rating Scale",null,null,"Description"]
[null,"0.50-1.49",null,null,"Good"]
[null,"1.50-2.49",null,null,"Better"]
[null,"2.50-3.00",null,null,"Best"]
{"$rows_empty":7}
["Step 3: Compute for Final Rating"]
["Areas",null,"Weight",null,"Computation",null,"Results"]
["A. Performance Improvement",null,{"v":0.6,"d":"60%"},null,{"$f":"H41","v":{"$error":"#VALUE!"}},null,{"$f":"C67*E67","v":{"$error":"#VALUE!"}},{"$nulls":6},"Performance Improvement",{"$f":"E67","v":{"$error":"#VALUE!"}}]
["B. SBM Assessment Score (DOD)",null,{"v":0.4,"d":"40%"},null,{"$f":"G50","v":0.18},null,{"$f":"C68*E68","v":{"v":0.072,"d":"0.07"}},{"$nulls":6},"SBM Assessment Score",{"$f":"E68","v":0.18}]
["Total",{"$nulls":5},{"$f":"SUM(G67:G68)","v":{"$error":"#VALUE!"}},{"$nulls":6},"SBM Final Rating",{"$f":"G69","v":{"$error":"#VALUE!"}}]
[]
["Interpretation:"]
[null,"Developing ( Level I)"]
[null,"Maturing (Level II)"]
[null,"Advanced (Level III)"]
[]
["Description of SBM Level of Practice:"]
[null,"Numerical Rating Scale",null,null,"Description"]
[null,"0.50-1.49",null,null,"Developing"]
[null,"1.50-2.49",null,null,"Maturing"]
[null,"2.50-3.00",null,null,"Advanced"]
[]
["Results:",{"$f":"IF(G69<1.5,\"Developing level- Structures and mechanisms with acceptable level and extent of community participation and impact on learning outcomes.\",IF(G69<2.5,\"Maturing level - Introducing and sustaining continuous improvement process that integrates wider community participation and improve sinificantly performance and learning outcomes.\",IF(G69<3,\"Advanced level - Ensuring the production of intended outputs/outcomes and meeting all standards of a system fully integrated in the local community and is self-renewing and self-sustaining.\",\"\")))","v":{"$error":"#VALUE!"}}]
{"$rows_empty":17}
["Validators:"]
[null,{"$f":"'Input Menu'!B51","v":0},null,null,{"$f":"'Input Menu'!B52","v":0}]
[null,"Member",null,null,"Member"]
[]
[]
[null,{"$f":"'Input Menu'!B53","v":0},null,null,{"$f":"'Input Menu'!B54","v":0}]
[null,"Member",null,null,"Member"]
[]
[]
[]
[null,{"$f":"'Input Menu'!B50","v":0}]
[null,"Chairman"]

{"sheet":"Sec. acc2, NAT1, CR1, CSR1","index":5,"n_rows":111,"n_cols":15,"rows_kept":111,"hidden":true,"merged":[[0,0,0,7],[1,0,1,7],[2,0,2,7],[4,0,4,7],[5,1,5,2],[5,5,5,7],[7,0,7,7],[8,1,8,2],[10,0,15,0],[10,4,15,4],[10,5,15,5],[10,6,15,6],[10,7,15,7],[16,0,33,0],[16,4,21,4],[16,5,21,5],[16,6,21,6],[16,7,33,7],[22,4,27,4],[22,5,27,5],[22,6,27,6],[28,4,33,4],[28,5,33,5],[28,6,33,6],[34,0,39,0],[34,4,39,4],[34,5,39,5],[34,6,39,6],[34,7,39,7],[40,0,40,4],[42,0,42,7],[43,0,43,7],[44,0,44,1],[44,2,44,3],[44,4,44,5],[44,6,44,7],[45,0,45,1],[45,2,45,3],[45,4,45,5],[45,6,45,7],[46,0,46,1],[46,2,46,3],[46,4,46,5],[46,6,46,7],[47,0,47,1],[47,2,47,3],[47,4,47,5],[47,6,47,7],[48,0,48,1],[48,2,48,3],[48,4,48,5],[48,6,48,7],[49,0,49,5],[49,6,49,7],[53,1,53,3],[53,4,53,5],[54,1,54,3],[54,4,54,5],[55,1,55,3],[55,4,55,5],[56,1,56,3],[56,4,56,5],[64,0,64,7],[65,0,65,1],[65,2,65,3],[65,4,65,5],[65,6,65,7],[66,0,66,1],[66,2,66,3],[66,4,66,5],[66,6,66,7],[67,0,67,1],[67,2,67,3],[67,4,67,5],[67,6,67,7],[68,0,68,5],[68,6,68,7],[75,0,75,7],[76,1,76,3],[76,4,76,5],[77,1,77,3],[77,4,77,5],[78,1,78,3],[78,4,78,5],[79,1,79,3],[79,4,79,5],[81,1,84,7],[100,1,100,2],[100,4,100,5],[101,1,101,2],[101,4,101,5],[104,1,104,2],[104,4,104,5],[105,1,105,2],[105,4,105,5],[109,1,109,5],[110,1,110,5]]}
[{"$f":"'Main Menu'!A1:F1","v":"Department of Education"}]
[{"$f":"'Main Menu'!A2:F2","v":"Region X"}]
[{"$f":"'Main Menu'!A3:F3","v":""}]
[]
["SBM Validation"]
["Name of School:",{"$f":"'Main Menu'!G6","v":0},null,null,"Division:",{"$f":"'Main Menu'!G7","v":0},{"$nulls":4},{"$f":"B6","v":0}]
[]
["Step 1: Determine Performance Improvement (60%)"]
["Thematic Area","Performance Indicators",null,null,"Rating & Equivalent Points","Computation","Computation","Results"]
[]
["Access (45%)","Enrolment Increase","% of Increase","Participation",null,{"$f":"IF(D16>=95,\"3\",IF(D16>=90,\"2\",IF(D16>=85,\"1\",\"0\")))","v":"0"},{"$f":"F11*0.45","v":0},{"$f":"G11","v":0}]
[null,{"$f":"'Main Menu'!B14","v":"SY 2009-2010"},null,{"$f":"'Main Menu'!D14","v":990}]
[null,{"$f":"'Main Menu'!B15","v":""},null,{"$f":"'Main Menu'!F15","v":""},{"$nulls":6},"SY 2009-2010"]
[null,{"$f":"'Main Menu'!B16","v":""},null,{"$f":"'Main Menu'!F16","v":""},{"$nulls":6},"SY 2010-2011"]
[null,{"$f":"'Main Menu'!B17","v":""},null,{"$f":"'Main Menu'!F17","v":""},{"$nulls":6},"SY 2011-2012"]
[null,"Ave. % of Increase",null,{"$f":"'Main Menu'!F18","v":0},{"$nulls":6},"SY 2012-2013"]
["Efficiency (25%)","Dropout Rate (DR):","% of decrease","Dropout",null,{"$f":"IF(C22>=5,\"1\",IF(C22>=2,\"2\",IF(C22<2,\"3\",\"0\")))","v":{"$error":"#VALUE!"}},{"$f":"F17*0.0833","v":{"$error":"#VALUE!"}},{"$f":"SUM(G17:G34)","v":{"$error":"#VALUE!"}},null,null,"SY 2013-2014"]
[null,{"$f":"'Main Menu'!B20","v":"SY 2008-2009"},null,{"$f":"'Main Menu'!D20","v":0.02}]
[null,{"$f":"'Main Menu'!B21","v":""},null,{"$f":"'Main Menu'!D21","v":""},{"$nulls":6},"SY 2014- 2015"]
[null,{"$f":"'Main Menu'!B22","v":""},{"$f":"D20-D19","v":{"$error":"#VALUE!"}},{"$f":"'Main Menu'!D22","v":""},{"$nulls":6},"SY 2015- 2016"]
[null,{"$f":"'Main Menu'!B23","v":""},{"$f":"D21-D20","v":{"$error":"#VALUE!"}},{"$f":"'Main Menu'!D23","v":""},{"$nulls":6},"SY 2016-2017"]
[null,"Ave. % of Decrease",{"$f":"(C20+C21)/2","v":{"$error":"#VALUE!"}}]
[null,"Completion Rate (CR):","% of Increase","Completion",null,{"$f":"grd(C28)","v":{"$error":"#VALUE!"}},{"$f":"F23*0.0833","v":{"$error":"#VALUE!"}},{"$nulls":3},"SY 2017-2018"]
[null,{"$f":"'Main Menu'!B26","v":"SY 2008-2009"},null,{"$f":"'Main Menu'!D26","v":65}]
[null,{"$f":"'Main Menu'!B27","v":""},null,{"$f":"'Main Menu'!D27","v":""},{"$nulls":6},"SY 2018- 2019"]
[null,{"$f":"'Main Menu'!B28","v":""},{"$f":"(D26-D25)/D25*100","v":{"$error":"#VALUE!"}},{"$f":"'Main Menu'!D28","v":""},{"$nulls":6},"SY 2019- 2020"]
[null,{"$f":"'Main Menu'!B29","v":""},{"$f":"(D27-D26)/D26*100","v":{"$error":"#VALUE!"}},{"$f":"'Main Menu'!D29","v":""}]
[null,"Ave. % of Increase",{"$f":"(C26+C27)/2","v":{"$error":"#VALUE!"}}]
[null,"Cohort Survival Rate (CSR):","% of Increase","Cohort Survival",null,{"$f":"grd(C34)","v":0},{"$f":"F29*0.0834","v":{"v":0,"d":"0.00"}}]
[null,{"$f":"'Main Menu'!B32","v":"SY 2008-2009"},null,{"$f":"'Main Menu'!D32","v":58}]
[null,{"$f":"'Main Menu'!B33","v":""},null,{"$f":"'Main Menu'!D33","v":{"v":95,"d":"95.00"}}]
[null,{"$f":"'Main Menu'!B34","v":""},{"$f":"(D32-D31)/D31*100","v":{"v":1.0526315789473684,"d":"1.05"}},{"$f":"'Main Menu'!D34","v":{"v":96,"d":"96.00"}}]
[null,{"$f":"'Main Menu'!B35","v":""},{"$f":"(D33-D32)/D32*100","v":{"v":-12.791666666666668,"d":"-12.79"}},{"$f":"'Main Menu'!D35","v":83.72}]
[null,"Ave. % of Increase",{"$f":"(C32+C33)/2","v":{"v":-5.86951754385965,"d":"-5.87"}}]
["Quality (30%)","NAT MPS","% of Increase","NAT MPS",null,{"$f":"IF(C40>=10,\"3\",IF(C40>=8,\"2\",IF(C40>=7,\"1\",\"0\")))","v":{"$error":"#VALUE!"}},{"$f":"F35*0.3","v":{"$error":"#VALUE!"}},{"$f":"G35","v":{"$error":"#VALUE!"}}]
[null,{"$f":"'Main Menu'!B38","v":"SY 2008-2009"},null,{"$f":"'Main Menu'!D38","v":{"v":56,"d":"56.00"}}]
[null,{"$f":"'Main Menu'!B39","v":""},null,{"$f":"'Main Menu'!D39","v":""}]
[null,{"$f":"'Main Menu'!B40","v":""},{"$f":"(D38-D37)/D37*100","v":{"$error":"#VALUE!"}},{"$f":"'Main Menu'!D40","v":""}]
[null,{"$f":"'Main Menu'!B41","v":""},{"$f":"(D39-D38)/D38*100","v":{"$error":"#VALUE!"}},{"$f":"'Main Menu'!D41","v":""}]
[null,"Ave. % of Increase",{"$f":"AVERAGE(C38:C39)","v":{"$error":"#VALUE!"}}]
["Sub-Total",{"$nulls":6},{"$f":"SUM(H11:H40)","v":{"$error":"#VALUE!"}}]
[]
["Note: Only Schools having a Performance Improvement of \" Better\" can apply to the Division for SBM Validation."]
["Step 2: Compute for validated SBM Assessment Scores (40%)"]
["SBM Principles",null,"Weight",null,"Cummulative Scores of Validators per Principles",null,"Results"]
["Leadership",null,{"v":0.3,"d":"30%"},null,{"$f":"'Document Analysis, Obs. Discuss'!AP71","v":{"v":0.6,"d":"0.60"}},null,{"$f":"E46*0.3","v":0.18}]
["Curriculum & Learning",null,{"v":0.3,"d":"30%"},null,{"$f":"'Document Analysis, Obs. Discuss'!AP72","v":{"v":0,"d":"0.00"}},null,{"$f":"E47*0.3","v":0}]
["Accountability",null,{"v":0.25,"d":"25%"},null,{"$f":"'Document Analysis, Obs. Discuss'!AP73","v":{"v":0,"d":"0.00"}},null,{"$f":"E48*0.25","v":0}]
["Resource Management",null,{"v":0.15,"d":"15%"},null,{"$f":"'Document Analysis, Obs. Discuss'!AP74","v":{"v":0,"d":"0.00"}},null,{"$f":"E49*0.15","v":0}]
["Sub-total",{"$nulls":5},{"$f":"SUM(G46:G49)","v":0.18}]
["Interpretation:",null,"Good"]
[null,null,"Better"]
[null,null,"Best"]
["Legend:","Numerical Rating Scale",null,null,"Description"]
[null,"0.50-1.49",null,null,"Good"]
[null,"1.50-2.49",null,null,"Better"]
[null,"2.50-3.00",null,null,"Best"]
{"$rows_empty":7}
["Step 3: Compute for Final Rating"]
["Areas",null,"Weight",null,"Computation",null,"Results"]
["A. Performance Improvement",null,{"v":0.6,"d":"60%"},null,{"$f":"H41","v":{"$error":"#VALUE!"}},null,{"$f":"C67*E67","v":{"$error":"#VALUE!"}},{"$nulls":6},"Performance Improvement",{"$f":"E67","v":{"$error":"#VALUE!"}}]
["B. SBM Assessment Score (DOD)",null,{"v":0.4,"d":"40%"},null,{"$f":"G50","v":0.18},null,{"$f":"C68*E68","v":{"v":0.072,"d":"0.07"}},{"$nulls":6},"SBM Assessment Score",{"$f":"E68","v":0.18}]
["Total",{"$nulls":5},{"$f":"SUM(G67:G68)","v":{"$error":"#VALUE!"}},{"$nulls":6},"SBM Final Rating",{"$f":"G69","v":{"$error":"#VALUE!"}}]
[]
["Interpretation:"]
[null,"Developing ( Level I)"]
[null,"Maturing (Level II)"]
[null,"Advanced (Level III)"]
[]
["Description of SBM Level of Practice:"]
[null,"Numerical Rating Scale",null,null,"Description"]
[null,"0.50-1.49",null,null,"Developing"]
[null,"1.50-2.49",null,null,"Maturing"]
[null,"2.50-3.00",null,null,"Advanced"]
[]
["Results:",{"$f":"IF(G69<1.5,\"Developing level- Structures and mechanisms with acceptable level and extent of community participation and impact on learning outcomes.\",IF(G69<2.5,\"Maturing level - Introducing and sustaining continuous improvement process that integrates wider community participation and improve sinificantly performance and learning outcomes.\",IF(G69<3,\"Advanced level - Ensuring the production of intended outputs/outcomes and meeting all standards of a system fully integrated in the local community and is self-renewing and self-sustaining.\",\"\")))","v":{"$error":"#VALUE!"}}]
{"$rows_empty":17}
["Validators:"]
[null,{"$f":"'Input Menu'!B51","v":0},null,null,{"$f":"'Input Menu'!B52","v":0}]
[null,"Member",null,null,"Member"]
[]
[]
[null,{"$f":"'Input Menu'!B53","v":0},null,null,{"$f":"'Input Menu'!B54","v":0}]
[null,"Member",null,null,"Member"]
[]
[]
[]
[null,{"$f":"'Input Menu'!B50","v":0}]
[null,"Chairman"]

{"sheet":"Sec. acc opt2 and NAT opt2","index":6,"n_rows":111,"n_cols":15,"rows_kept":111,"hidden":true,"merged":[[0,0,0,7],[1,0,1,7],[2,0,2,7],[3,0,3,7],[4,0,4,7],[5,1,5,2],[5,5,5,7],[7,0,7,7],[8,1,8,2],[10,0,15,0],[10,4,15,4],[10,5,15,5],[10,6,15,6],[10,7,15,7],[16,0,33,0],[16,4,21,4],[16,5,21,5],[16,6,21,6],[16,7,33,7],[22,4,27,4],[22,5,27,5],[22,6,27,6],[28,4,33,4],[28,5,33,5],[28,6,33,6],[34,0,39,0],[34,4,39,4],[34,5,39,5],[34,6,39,6],[34,7,39,7],[40,0,40,4],[42,0,42,7],[43,0,43,7],[44,0,44,1],[44,2,44,3],[44,4,44,5],[44,6,44,7],[45,0,45,1],[45,2,45,3],[45,4,45,5],[45,6,45,7],[46,0,46,1],[46,2,46,3],[46,4,46,5],[46,6,46,7],[47,0,47,1],[47,2,47,3],[47,4,47,5],[47,6,47,7],[48,0,48,1],[48,2,48,3],[48,4,48,5],[48,6,48,7],[49,0,49,5],[49,6,49,7],[53,1,53,3],[53,4,53,5],[54,1,54,3],[54,4,54,5],[55,1,55,3],[55,4,55,5],[56,1,56,3],[56,4,56,5],[64,0,64,7],[65,0,65,1],[65,2,65,3],[65,4,65,5],[65,6,65,7],[66,0,66,1],[66,2,66,3],[66,4,66,5],[66,6,66,7],[67,0,67,1],[67,2,67,3],[67,4,67,5],[67,6,67,7],[68,0,68,5],[68,6,68,7],[75,0,75,7],[76,1,76,3],[76,4,76,5],[77,1,77,3],[77,4,77,5],[78,1,78,3],[78,4,78,5],[79,1,79,3],[79,4,79,5],[81,1,84,7],[100,1,100,2],[100,4,100,5],[101,1,101,2],[101,4,101,5],[104,1,104,2],[104,4,104,5],[105,1,105,2],[105,4,105,5],[109,1,109,5],[110,1,110,5]]}
[{"$f":"'Main Menu'!A1:F1","v":"Department of Education"}]
[{"$f":"'Main Menu'!A2:F2","v":"Region X"}]
[{"$f":"'Main Menu'!A3:F3","v":""}]
[]
["SBM Validation"]
["Name of School:",{"$f":"'Main Menu'!G6","v":0},null,null,"Division:",{"$f":"'Main Menu'!G7","v":0},{"$nulls":4},{"$f":"B6","v":0}]
[]
["Step 1: Determine Performance Improvement (60%)"]
["Thematic Area","Performance Indicators",null,null,"Rating & Equivalent Points","Computation","Computation","Results"]
[]
["Access (45%)","Enrolment Increase","% of Increase","Participation",null,{"$f":"IF(D16>=95,\"3\",IF(D16>=90,\"2\",IF(D16>=85,\"1\",\"0\")))","v":"0"},{"$f":"F11*0.45","v":0},{"$f":"G11","v":0}]
[null,{"$f":"'Main Menu'!B14","v":"SY 2009-2010"},null,{"$f":"'Main Menu'!D14","v":990}]
[null,{"$f":"'Main Menu'!B15","v":""},null,{"$f":"'Main Menu'!F15","v":""},{"$nulls":6},"SY 2009-2010"]
[null,{"$f":"'Main Menu'!B16","v":""},null,{"$f":"'Main Menu'!F16","v":""},{"$nulls":6},"SY 2010-2011"]
[null,{"$f":"'Main Menu'!B17","v":""},null,{"$f":"'Main Menu'!F17","v":""},{"$nulls":6},"SY 2011-2012"]
[null,"Ave. % of Increase",null,{"$f":"'Main Menu'!F18","v":0},{"$nulls":6},"SY 2012-2013"]
["Efficiency (25%)","Dropout Rate (DR):","% of decrease","Dropout",null,{"$f":"IF(C22>=5,\"1\",IF(C22>=2,\"2\",IF(C22<2,\"3\",\"0\")))","v":{"$error":"#VALUE!"}},{"$f":"F17*0.0833","v":{"$error":"#VALUE!"}},{"$f":"SUM(G17:G34)","v":{"$error":"#VALUE!"}},null,null,"SY 2013-2014"]
[null,{"$f":"'Main Menu'!B20","v":"SY 2008-2009"},null,{"$f":"'Main Menu'!D20","v":0.02}]
[null,{"$f":"'Main Menu'!B21","v":""},null,{"$f":"'Main Menu'!D21","v":""},{"$nulls":6},"SY 2014- 2015"]
[null,{"$f":"'Main Menu'!B22","v":""},{"$f":"D20-D19","v":{"$error":"#VALUE!"}},{"$f":"'Main Menu'!D22","v":""},{"$nulls":6},"SY 2015- 2016"]
[null,{"$f":"'Main Menu'!B23","v":""},{"$f":"D21-D20","v":{"$error":"#VALUE!"}},{"$f":"'Main Menu'!D23","v":""},{"$nulls":6},"SY 2016-2017"]
[null,"Ave. % of Decrease",{"$f":"(C20+C21)/2","v":{"$error":"#VALUE!"}}]
[null,"Completion Rate (CR):","% of Increase","Completion",null,{"$f":"grd(C28)","v":{"$error":"#VALUE!"}},{"$f":"F23*0.0833","v":{"$error":"#VALUE!"}},{"$nulls":3},"SY 2017-2018"]
[null,{"$f":"'Main Menu'!B26","v":"SY 2008-2009"},null,{"$f":"'Main Menu'!D26","v":65}]
[null,{"$f":"'Main Menu'!B27","v":""},null,{"$f":"'Main Menu'!D27","v":""},{"$nulls":6},"SY 2018- 2019"]
[null,{"$f":"'Main Menu'!B28","v":""},{"$f":"(D26-D25)/D25*100","v":{"$error":"#VALUE!"}},{"$f":"'Main Menu'!D28","v":""},{"$nulls":6},"SY 2019- 2020"]
[null,{"$f":"'Main Menu'!B29","v":""},{"$f":"(D27-D26)/D26*100","v":{"$error":"#VALUE!"}},{"$f":"'Main Menu'!D29","v":""}]
[null,"Ave. % of Increase",{"$f":"(C26+C27)/2","v":{"$error":"#VALUE!"}}]
[null,"Cohort Survival Rate (CSR):","% of Increase","Cohort Survival",null,{"$f":"grd(C34)","v":0},{"$f":"F29*0.0834","v":{"v":0,"d":"0.00"}}]
[null,{"$f":"'Main Menu'!B32","v":"SY 2008-2009"},null,{"$f":"'Main Menu'!D32","v":58}]
[null,{"$f":"'Main Menu'!B33","v":""},null,{"$f":"'Main Menu'!D33","v":{"v":95,"d":"95.00"}}]
[null,{"$f":"'Main Menu'!B34","v":""},{"$f":"(D32-D31)/D31*100","v":{"v":1.0526315789473684,"d":"1.05"}},{"$f":"'Main Menu'!D34","v":{"v":96,"d":"96.00"}}]
[null,{"$f":"'Main Menu'!B35","v":""},{"$f":"(D33-D32)/D32*100","v":{"v":-12.791666666666668,"d":"-12.79"}},{"$f":"'Main Menu'!D35","v":83.72}]
[null,"Ave. % of Increase",{"$f":"(C32+C33)/2","v":{"v":-5.86951754385965,"d":"-5.87"}}]
["Quality (30%)","NAT MPS","% of Increase","NAT MPS",null,{"$f":"grdee(D40)","v":{"$error":"#VALUE!"}},{"$f":"F35*0.3","v":{"$error":"#VALUE!"}},{"$f":"G35","v":{"$error":"#VALUE!"}}]
[null,{"$f":"'Main Menu'!B38","v":"SY 2008-2009"},null,{"$f":"'Main Menu'!D38","v":{"v":56,"d":"56.00"}}]
[null,{"$f":"'Main Menu'!B39","v":""},null,{"$f":"'Main Menu'!D39","v":""}]
[null,{"$f":"'Main Menu'!B40","v":""},null,{"$f":"'Main Menu'!D40","v":""}]
[null,{"$f":"'Main Menu'!B41","v":""},null,{"$f":"'Main Menu'!D41","v":""}]
[null,"Ave. % of Increase",null,{"$f":"AVERAGE(D37:D39)","v":{"$error":"#DIV/0!"}}]
["Sub-Total",{"$nulls":6},{"$f":"SUM(H11:H40)","v":{"$error":"#VALUE!"}}]
[]
["Note: Only Schools having a Performance Improvement of \" Better\" can apply to the Division for SBM Validation."]
["Step 2: Compute for validated SBM Assessment Scores (40%)"]
["SBM Principles",null,"Weight",null,"Cummulative Scores of Validators per Principles",null,"Results"]
["Leadership",null,{"v":0.3,"d":"30%"},null,{"$f":"'Document Analysis, Obs. Discuss'!AP71","v":{"v":0.6,"d":"0.60"}},null,{"$f":"E46*0.3","v":0.18}]
["Curriculum & Learning",null,{"v":0.3,"d":"30%"},null,{"$f":"'Document Analysis, Obs. Discuss'!AP72","v":{"v":0,"d":"0.00"}},null,{"$f":"E47*0.3","v":0}]
["Accountability",null,{"v":0.25,"d":"25%"},null,{"$f":"'Document Analysis, Obs. Discuss'!AP73","v":{"v":0,"d":"0.00"}},null,{"$f":"E48*0.25","v":0}]
["Resource Management",null,{"v":0.15,"d":"15%"},null,{"$f":"'Document Analysis, Obs. Discuss'!AP74","v":{"v":0,"d":"0.00"}},null,{"$f":"E49*0.15","v":0}]
["Sub-total",{"$nulls":5},{"$f":"SUM(G46:G49)","v":0.18}]
["Interpretation:",null,"Good"]
[null,null,"Better"]
[null,null,"Best"]
["Legend:","Numerical Rating Scale",null,null,"Description"]
[null,"0.50-1.49",null,null,"Good"]
[null,"1.50-2.49",null,null,"Better"]
[null,"2.50-3.00",null,null,"Best"]
{"$rows_empty":7}
["Step 3: Compute for Final Rating"]
["Areas",null,"Weight",null,"Computation",null,"Results"]
["A. Performance Improvement",null,{"v":0.6,"d":"60%"},null,{"$f":"H41","v":{"$error":"#VALUE!"}},null,{"$f":"C67*E67","v":{"$error":"#VALUE!"}},{"$nulls":6},"Performance Improvement",{"$f":"E67","v":{"$error":"#VALUE!"}}]
["B. SBM Assessment Score (DOD)",null,{"v":0.4,"d":"40%"},null,{"$f":"G50","v":0.18},null,{"$f":"C68*E68","v":{"v":0.072,"d":"0.07"}},{"$nulls":6},"SBM Assessment Score",{"$f":"E68","v":0.18}]
["Total",{"$nulls":5},{"$f":"SUM(G67:G68)","v":{"$error":"#VALUE!"}},{"$nulls":6},"SBM Final Rating",{"$f":"G69","v":{"$error":"#VALUE!"}}]
[]
["Interpretation:"]
[null,"Developing ( Level I)"]
[null,"Maturing (Level II)"]
[null,"Advanced (Level III)"]
[]
["Description of SBM Level of Practice:"]
[null,"Numerical Rating Scale",null,null,"Description"]
[null,"0.50-1.49",null,null,"Developing"]
[null,"1.50-2.49",null,null,"Maturing"]
[null,"2.50-3.00",null,null,"Advanced"]
[]
["Results:",{"$f":"IF(G69<1.5,\"Developing level- Structures and mechanisms with acceptable level and extent of community participation and impact on learning outcomes.\",IF(G69<2.5,\"Maturing level - Introducing and sustaining continuous improvement process that integrates wider community participation and improve sinificantly performance and learning outcomes.\",IF(G69<3,\"Advanced level - Ensuring the production of intended outputs/outcomes and meeting all standards of a system fully integrated in the local community and is self-renewing and self-sustaining.\",\"\")))","v":{"$error":"#VALUE!"}}]
{"$rows_empty":17}
["Validators:"]
[null,{"$f":"'Input Menu'!B51","v":0},null,null,{"$f":"'Input Menu'!B52","v":0}]
[null,"Member",null,null,"Member"]
[]
[]
[null,{"$f":"'Input Menu'!B53","v":0},null,null,{"$f":"'Input Menu'!B54","v":0}]
[null,"Member",null,null,"Member"]
[]
[]
[]
[null,{"$f":"'Input Menu'!B50","v":0}]
[null,"Chairman"]

{"sheet":"blank","index":7,"n_rows":114,"n_cols":13,"rows_kept":114,"merged":[[0,0,0,7],[1,0,1,7],[2,0,2,7],[4,0,4,7],[5,0,5,7],[6,1,6,3],[6,5,6,6],[7,1,7,3],[7,5,7,6],[8,0,8,3],[8,5,8,7],[9,1,9,2],[11,0,16,0],[11,4,16,4],[11,5,16,5],[11,6,16,6],[11,7,16,7],[17,0,34,0],[17,4,22,4],[17,5,22,5],[17,6,22,6],[17,7,34,7],[23,4,28,4],[23,5,28,5],[23,6,28,6],[29,4,34,4],[29,5,34,5],[29,6,34,6],[35,0,40,0],[35,4,40,4],[35,5,40,5],[35,6,40,6],[35,7,40,7],[41,0,41,4],[43,0,43,7],[44,0,44,7],[45,0,45,1],[45,2,45,3],[45,4,45,5],[45,6,45,7],[46,0,46,1],[46,2,46,3],[46,4,46,5],[46,6,46,7],[47,0,47,1],[47,2,47,3],[47,4,47,5],[47,6,47,7],[48,0,48,1],[48,2,48,3],[48,4,48,5],[48,6,48,7],[49,0,49,1],[49,2,49,3],[49,4,49,5],[49,6,49,7],[50,2,50,3],[50,6,50,7],[54,1,54,3],[54,4,54,5],[55,1,55,3],[55,4,55,5],[56,1,56,3],[56,4,56,5],[57,1,57,3],[57,4,57,5],[66,0,66,7],[67,0,67,1],[67,2,67,3],[67,4,67,5],[67,6,67,7],[68,0,68,1],[68,2,68,3],[68,4,68,5],[68,6,68,7],[69,0,69,1],[69,2,69,3],[69,4,69,5],[69,6,69,7],[70,2,70,3],[70,6,70,7],[77,0,77,7],[78,1,78,3],[78,4,78,5],[78,6,78,7],[79,1,79,3],[79,4,79,5],[79,6,79,7],[80,1,80,3],[80,4,80,5],[80,6,80,7],[81,1,81,3],[81,4,81,5],[81,6,81,7],[83,1,86,7],[100,1,100,7],[101,1,101,7],[103,1,103,2],[103,4,103,5],[104,1,104,2],[104,4,104,5],[107,1,107,2],[107,4,107,5],[108,1,108,2],[108,4,108,5],[112,1,112,5],[113,1,113,5]]}
[{"$f":"'Main Menu'!A1:F1","v":"Department of Education"}]
["Region X"]
["Division of ___________________"]
[]
["SBM Validation Form"]
[]
["District:",{"$nulls":3},"School Year:",{"$nulls":5},{"$f":"B7","v":0}]
["School:",{"$nulls":3},"School I.D."]
["Step 1: Determine Performance Improvement (60%)",{"$nulls":3},"Level:"]
["Thematic Area","Performance Indicators",null,null,"Rating & Equivalent Points","Score","Computation","Results"]
[]
["Access (45%)","Enrolment / Participation Rate","% of Increase","Enrolment"]
[null,{"$f":"'Main Menu'!B14","v":"SY 2009-2010"},null,{"$f":"'Main Menu'!D14","v":990}]
[{"$nulls":10},"SY 2009-2010"]
[{"$nulls":10},"SY 2010-2011"]
[{"$nulls":10},"SY 2011-2012"]
[null,"Ave. % of Increase",{"$nulls":8},"SY 2012-2013"]
["Efficiency (25%)","Dropout Rate (DR):","% of decrease","Dropout %",{"$nulls":6},"SY 2013-2014"]
[null,{"$f":"'Main Menu'!B20","v":"SY 2008-2009"},null,{"$f":"'Main Menu'!D20","v":0.02}]
[{"$nulls":10},"SY 2014- 2015"]
[{"$nulls":10},"SY 2015- 2016"]
[{"$nulls":10},"SY 2016-2017"]
[null,"Ave. % of decrease"]
[null,"Repetition Rate","% of decrease","Repetition %",{"$nulls":6},"SY 2017-2018"]
[null,{"$f":"'Main Menu'!B26","v":"SY 2008-2009"},null,{"$f":"'Main Menu'!D26","v":65}]
[{"$nulls":10},"SY 2018- 2019"]
[{"$nulls":10},"SY 2019- 2020"]
[]
[null,"Ave. % of decrease"]
[]
[]
[{"$nulls":12},{"$f":"IF(D32>=95,\"3\",\"0\")","v":"0"}]
[{"$nulls":12},{"$f":"IF(D33>=95,\"3\",\"0\")","v":"0"}]
[{"$nulls":12},{"$f":"IF(D34>=95,\"3\",\"0\")","v":"0"}]
[{"$nulls":12},{"$f":"(M32+M33+M34)/3","v":0}]
["Quality (30%)","NAT MPS/ Promotion Rate","% of Increase","NAT MPS"]
[null,{"$f":"'Main Menu'!B38","v":"SY 2008-2009"},null,{"$f":"'Main Menu'!D38","v":{"v":56,"d":"56.00"}}]
[]
[]
[]
[null,"Ave. % of Increase"]
["Sub-Total"]
[]
["Note: Only Schools having a Performance Improvement of \" Better\" can apply to the Division for SBM Validation."]
["Step 2: Compute for validated SBM Assessment Scores (40%)"]
["SBM Principles",null,"Weight",null,"Cummulative Scores of Validators per Principles",null,"Results"]
["Leadership",null,{"v":0.3,"d":"30%"}]
["Curriculum & Learning",null,{"v":0.3,"d":"30%"}]
["Accountability",null,{"v":0.25,"d":"25%"}]
["Resource Management",null,{"v":0.15,"d":"15%"}]
["Sub-total",null,{"v":1,"d":"100%"}]
["Interpretation:",null,"Good"]
[null,null,"Better"]
[null,null,"Best"]
["Legend:","Numerical Rating Scale",null,null,"Description"]
[null,"0.50-1.49",null,null,"Good"]
[null,"1.50-2.49",null,null,"Better"]
[null,"2.50-3.00",null,null,"Best"]
{"$rows_empty":8}
["Step 3: Compute for Final Rating"]
["Areas",null,"Weight",null,"Computation",null,"Results"]
["A. Performance Improvement",null,{"v":0.6,"d":"60%"}]
["B. SBM Assessment Score (DOD)",null,{"v":0.4,"d":"40%"}]
["Total",null,{"v":1,"d":"100%"}]
[]
[]
[]
[]
[]
[]
["Description of SBM Level of Practice:"]
[null,"Numerical Rating Scale",null,null,"Description",null,"Interpretation"]
[null,"0.50-1.49",null,null,"Developing",null,"Level I"]
[null,"1.50-2.49",null,null,"Maturing",null,"Level II"]
[null,"2.50-3.00",null,null,"Advanced",null,"Level III"]
{"$rows_empty":18}
["Results:"]
["Remarks:"]
["Validators:"]
[]
[null,"Member",null,null,"Member"]
[]
[]
[]
[null,"Member",null,null,"Member"]
[]
[]
[]
[]
[null,"Chairman"]

{"sheet":"3Elem. ER, CR1, CSR2, NAT1","index":8,"n_rows":114,"n_cols":15,"rows_kept":114,"merged":[[0,0,0,7],[1,0,1,7],[2,0,2,7],[4,0,4,7],[5,0,5,7],[6,1,6,3],[6,5,6,7],[7,1,7,3],[7,5,7,6],[8,0,8,3],[8,5,8,7],[9,1,9,2],[11,0,16,0],[11,4,16,4],[11,5,16,5],[11,6,16,6],[11,7,16,7],[17,0,34,0],[17,4,22,4],[17,5,22,5],[17,6,22,6],[17,7,34,7],[23,4,28,4],[23,5,28,5],[23,6,28,6],[29,4,34,4],[29,5,34,5],[29,6,34,6],[35,0,40,0],[35,4,40,4],[35,5,40,5],[35,6,40,6],[35,7,40,7],[41,0,41,4],[43,0,43,7],[44,0,44,7],[45,0,45,1],[45,2,45,3],[45,4,45,5],[45,6,45,7],[46,0,46,1],[46,2,46,3],[46,4,46,5],[46,6,46,7],[47,0,47,1],[47,2,47,3],[47,4,47,5],[47,6,47,7],[48,0,48,1],[48,2,48,3],[48,4,48,5],[48,6,48,7],[49,0,49,1],[49,2,49,3],[49,4,49,5],[49,6,49,7],[50,2,50,3],[50,6,50,7],[54,1,54,3],[54,4,54,5],[55,1,55,3],[55,4,55,5],[56,1,56,3],[56,4,56,5],[57,1,57,3],[57,4,57,5],[65,0,65,7],[66,0,66,1],[66,2,66,3],[66,4,66,5],[66,6,66,7],[67,0,67,1],[67,2,67,3],[67,4,67,5],[67,6,67,7],[68,0,68,1],[68,2,68,3],[68,4,68,5],[68,6,68,7],[69,2,69,3],[69,6,69,7],[76,0,76,7],[77,1,77,3],[77,4,77,5],[77,6,77,7],[78,1,78,3],[78,4,78,5],[78,6,78,7],[79,1,79,3],[79,4,79,5],[79,6,79,7],[80,1,80,3],[80,4,80,5],[80,6,80,7],[82,1,85,7],[99,1,99,7],[100,1,100,7],[102,1,102,2],[102,4,102,5],[103,1,103,2],[103,4,103,5],[106,1,106,2],[106,4,106,5],[107,1,107,2],[107,4,107,5],[111,1,111,5],[112,1,112,5]]}
[{"$f":"'Main Menu'!A1:F1","v":"Department of Education"}]
[{"$f":"'Main Menu'!A2:F2","v":"Region X"}]
[{"$f":"'Main Menu'!A3:F3","v":""}]
[]
["SBM Validation Form"]
[{"$f":"NOW()","v":"2018-07-01T09:10:11.220"}]
["District:",{"$f":"'Input Menu'!B8:C8","v":""},null,null,"School Year:",{"$f":"'Main Menu'!B8","v":""},{"$nulls":4},{"$f":"B7","v":""}]
["School:",{"$f":"'Input Menu'!B7:C7","v":""},null,null,"School I.D.",{"$f":"'Input Menu'!K6","v":0}]
["Step 1: Determine Performance Improvement (60%)",{"$nulls":3},"Level:",{"$f":"'Main Menu'!O72","v":0}]
["Thematic Area","Performance Indicators",null,null,"Rating & Equivalent Points","Score","Computation","Results"]
[]
["Access (45%)","Enrolment Increase","% of Increase","Enrolment",null,{"$f":"IF(C17>=10,\"3\",IF(C17>=7,\"2\",IF(C17>5,\"1\",\"0\")))","v":{"$error":"#VALUE!"}},{"$f":"F12*0.45","v":{"$error":"#VALUE!"}},{"$f":"G12","v":{"$error":"#VALUE!"}}]
[null,{"$f":"'Main Menu'!B14","v":"SY 2009-2010"},null,{"$f":"'Main Menu'!D14","v":990}]
[null,{"$f":"'Main Menu'!B15","v":""},null,{"$f":"'Main Menu'!D15","v":""},{"$nulls":6},"SY 2009-2010"]
[null,{"$f":"'Main Menu'!B16","v":""},{"$f":"((D15-D14)/D14)*100","v":{"$error":"#VALUE!"}},{"$f":"'Main Menu'!D16","v":""},{"$nulls":6},"SY 2010-2011"]
[null,{"$f":"'Main Menu'!B17","v":""},{"$f":"((D16-D15)/D15)*100","v":{"$error":"#VALUE!"}},{"$f":"'Main Menu'!D17","v":""},{"$nulls":6},"SY 2011-2012"]
[null,"Ave. % of Increase",{"$f":"AVERAGE(C15:C16)","v":{"$error":"#VALUE!"}},{"$nulls":7},"SY 2012-2013"]
["Efficiency (25%)","Dropout Rate (DR):","% of decrease","Dropout %",null,{"$f":"IF(C23<2,\"3\",IF(C23<5,\"2\",IF(C23<=5,\"1\",\"0\")))","v":{"$error":"#VALUE!"}},{"$f":"F18*0.125","v":{"$error":"#VALUE!"}},{"$f":"SUM(G18:G35)","v":{"$error":"#VALUE!"}},null,null,"SY 2013-2014"]
[null,{"$f":"'Main Menu'!B20","v":"SY 2008-2009"},null,{"$f":"'Main Menu'!D20","v":0.02}]
[null,{"$f":"'Main Menu'!B21","v":""},null,{"$f":"'Main Menu'!D21","v":""},{"$nulls":6},"SY 2014- 2015"]
[null,{"$f":"'Main Menu'!B22","v":""},{"$f":"(D21-D20)","v":{"$error":"#VALUE!"}},{"$f":"'Main Menu'!D22","v":""},{"$nulls":6},"SY 2015- 2016"]
[null,{"$f":"'Main Menu'!B23","v":""},{"$f":"(D22-D21)","v":{"$error":"#VALUE!"}},{"$f":"'Main Menu'!D23","v":""},{"$nulls":6},"SY 2016-2017"]
[null,"Ave. % of decrease",{"$f":"AVERAGE(C21:C22)","v":{"$error":"#VALUE!"}}]
[null,"Repetition Rate","% of decrease","Repetition %",null,{"$f":"IF(C29<2,\"3\",IF(C29<5,\"2\",IF(C29<=5,\"1\",\"0\")))","v":{"$error":"#VALUE!"}},{"$f":"F24*0.125","v":{"$error":"#VALUE!"}},{"$nulls":3},"SY 2017-2018"]
[null,{"$f":"'Main Menu'!B26","v":"SY 2008-2009"},null,{"$f":"'Main Menu'!D26","v":65}]
[null,{"$f":"'Main Menu'!B27","v":""},null,{"$f":"'Main Menu'!D27","v":""},{"$nulls":6},"SY 2018- 2019"]
[null,{"$f":"'Main Menu'!B28","v":""},{"$f":"(D27-D26)","v":{"$error":"#VALUE!"}},{"$f":"'Main Menu'!D28","v":""},{"$nulls":6},"SY 2019- 2020"]
[null,{"$f":"'Main Menu'!B29","v":""},{"$f":"(D28-D27)","v":{"$error":"#VALUE!"}},{"$f":"'Main Menu'!D29","v":""}]
[null,"Ave. % of decrease",{"$f":"AVERAGE(C27:C28)","v":{"$error":"#VALUE!"}}]
[]
[]
[{"$nulls":12},{"$f":"IF(D32>=95,\"3\",\"0\")","v":"0"}]
[{"$nulls":12},{"$f":"IF(D33>=95,\"3\",\"0\")","v":"0"}]
[{"$nulls":12},{"$f":"IF(D34>=95,\"3\",\"0\")","v":"0"}]
[{"$nulls":12},{"$f":"(M32+M33+M34)/3","v":0}]
["Quality (30%)","NAT MPS","% of Increase","NAT MPS",null,{"$f":"IF(C41>=7,\"3\",IF(C41>=5,\"2\",IF(C41>=2,\"1\",\"0\")))","v":{"$error":"#VALUE!"}},{"$f":"F36*0.3","v":{"$error":"#VALUE!"}},{"$f":"G36","v":{"$error":"#VALUE!"}}]
[null,{"$f":"'Main Menu'!B38","v":"SY 2008-2009"},null,{"$f":"'Main Menu'!D38","v":{"v":56,"d":"56.00"}}]
[null,{"$f":"'Main Menu'!B39","v":""},null,{"$f":"'Main Menu'!D39","v":""}]
[null,{"$f":"'Main Menu'!B40","v":""},{"$f":"((D39-D38))","v":{"$error":"#VALUE!"}},{"$f":"'Main Menu'!D40","v":""}]
[null,{"$f":"'Main Menu'!B41","v":""},{"$f":"((D40-D39))","v":{"$error":"#VALUE!"}},{"$f":"'Main Menu'!D41","v":""}]
[null,"Ave. % of Increase",{"$f":"AVERAGE(C39:C40)","v":{"$error":"#VALUE!"}}]
["Sub-Total",{"$nulls":6},{"$f":"SUM(H12:H41)","v":{"$error":"#VALUE!"}}]
[]
["Note: Only Schools having a Performance Improvement of \" Better\" can apply to the Division for SBM Validation."]
["Step 2: Compute for validated SBM Assessment Scores (40%)"]
["SBM Principles",null,"Weight",null,"Cummulative Scores of Validators per Principles",null,"Results"]
["Leadership",null,{"v":0.3,"d":"30%"},null,{"$f":"'Document Analysis, Obs. Discuss'!AP71","v":{"v":0.6,"d":"0.60"}},null,{"$f":"E47*0.3","v":0.18}]
["Curriculum & Learning",null,{"v":0.3,"d":"30%"},null,{"$f":"'Document Analysis, Obs. Discuss'!AP72","v":{"v":0,"d":"0.00"}},null,{"$f":"E48*0.3","v":0}]
["Accountability",null,{"v":0.25,"d":"25%"},null,{"$f":"'Document Analysis, Obs. Discuss'!AP73","v":{"v":0,"d":"0.00"}},null,{"$f":"E49*0.25","v":0}]
["Resource Management",null,{"v":0.15,"d":"15%"},null,{"$f":"'Document Analysis, Obs. Discuss'!AP74","v":{"v":0,"d":"0.00"}},null,{"$f":"E50*0.15","v":0}]
["Sub-total",null,{"v":1,"d":"100%"},{"$nulls":3},{"$f":"SUM(G47:G50)","v":0.18}]
["Interpretation:",null,"Good"]
[null,null,"Better"]
[null,null,"Best"]
["Legend:","Numerical Rating Scale",null,null,"Description"]
[null,"0.50-1.49",null,null,"Good"]
[null,"1.50-2.49",null,null,"Better"]
[null,"2.50-3.00",null,null,"Best"]
{"$rows_empty":7}
["Step 3: Compute for Final Rating"]
["Areas",null,"Weight",null,"Computation",null,"Results"]
["A. Performance Improvement",null,{"v":0.6,"d":"60%"},null,{"$f":"H42","v":{"$error":"#VALUE!"}},null,{"$f":"C68*E68","v":{"$error":"#VALUE!"}},{"$nulls":6},"Performance Improvement",{"$f":"E68","v":{"$error":"#VALUE!"}}]
["B. SBM Assessment Score (DOD)",null,{"v":0.4,"d":"40%"},null,{"$f":"G51","v":0.18},null,{"$f":"C69*E69","v":{"v":0.072,"d":"0.07"}},{"$nulls":6},"SBM Assessment Score",{"$f":"E69","v":0.18}]
["Total",null,{"v":1,"d":"100%"},{"$nulls":3},{"$f":"SUM(G68:G69)","v":{"$error":"#VALUE!"}},{"$nulls":6},"SBM Final Rating",{"$f":"G70","v":{"$error":"#VALUE!"}}]
[]
[]
[]
[]
[]
[]
["Description of SBM Level of Practice:"]
[null,"Numerical Rating Scale",null,null,"Description",null,"Interpretation"]
[null,"0.50-1.49",null,null,"Developing",null,"Level I"]
[null,"1.50-2.49",null,null,"Maturing",null,"Level II"]
[null,"2.50-3.00",null,null,"Advanced",null,"Level III"]
{"$rows_empty":18}
["Results:",{"$f":"IF(G70<1.5,\"Developing level- Structures and mechanisms with acceptable level and extent of community participation and impact on learning outcomes.\",IF(G70<2.5,\"Maturing level - Introducing and sustaining continuous improvement process that integrates wider community participation and improve sinificantly performance and learning outcomes.\",IF(G70<3,\"Advanced level - Ensuring the production of intended outputs/outcomes and meeting all standards of a system fully integrated in the local community and is self-renewing and self-sustaining.\",\"\")))","v":{"$error":"#VALUE!"}}]
["Remarks:",{"$f":"'Main Menu'!B56:H56","v":0}]
["Validators:"]
[null,{"$f":"'Input Menu'!B51","v":0},null,null,{"$f":"'Input Menu'!B52","v":0}]
[null,"Member",null,null,"Member"]
[]
[]
[null,{"$f":"'Input Menu'!B53","v":0},null,null,{"$f":"'Input Menu'!B54","v":0}]
[null,"Member",null,null,"Member"]
[]
[]
[]
[null,{"$f":"'Input Menu'!B50","v":0}]
[null,"Chairman"]
[{"$f":"'Main Menu'!A50","v":"Option1: ER, DR, RR, NAT1"}]

{"sheet":"2Elem. ER, CR1, CSR1, NAT2","index":9,"n_rows":114,"n_cols":15,"rows_kept":114,"merged":[[0,0,0,7],[1,0,1,7],[2,0,2,7],[4,0,4,7],[5,0,5,7],[6,1,6,3],[6,5,6,7],[7,1,7,3],[7,5,7,6],[8,0,8,3],[8,5,8,7],[9,1,9,2],[11,0,16,0],[11,4,16,4],[11,5,16,5],[11,6,16,6],[11,7,16,7],[17,0,34,0],[17,4,22,4],[17,5,22,5],[17,6,22,6],[17,7,34,7],[23,4,28,4],[23,5,28,5],[23,6,28,6],[29,4,34,4],[29,5,34,5],[29,6,34,6],[35,0,40,0],[35,4,40,4],[35,5,40,5],[35,6,40,6],[35,7,40,7],[41,0,41,4],[43,0,43,7],[44,0,44,7],[45,0,45,1],[45,2,45,3],[45,4,45,5],[45,6,45,7],[46,0,46,1],[46,2,46,3],[46,4,46,5],[46,6,46,7],[47,0,47,1],[47,2,47,3],[47,4,47,5],[47,6,47,7],[48,0,48,1],[48,2,48,3],[48,4,48,5],[48,6,48,7],[49,0,49,1],[49,2,49,3],[49,4,49,5],[49,6,49,7],[50,2,50,3],[50,6,50,7],[54,1,54,3],[54,4,54,5],[55,1,55,3],[55,4,55,5],[56,1,56,3],[56,4,56,5],[57,1,57,3],[57,4,57,5],[65,0,65,7],[66,0,66,1],[66,2,66,3],[66,4,66,5],[66,6,66,7],[67,0,67,1],[67,2,67,3],[67,4,67,5],[67,6,67,7],[68,0,68,1],[68,2,68,3],[68,4,68,5],[68,6,68,7],[69,2,69,3],[69,6,69,7],[76,0,76,7],[77,1,77,3],[77,4,77,5],[77,6,77,7],[78,1,78,3],[78,4,78,5],[78,6,78,7],[79,1,79,3],[79,4,79,5],[79,6,79,7],[80,1,80,3],[80,4,80,5],[80,6,80,7],[82,1,85,7],[99,1,99,7],[100,1,100,7],[102,1,102,2],[102,4,102,5],[103,1,103,2],[103,4,103,5],[106,1,106,2],[106,4,106,5],[107,1,107,2],[107,4,107,5],[111,1,111,5],[112,1,112,5]]}
[{"$f":"'Main Menu'!A1:F1","v":"Department of Education"}]
[{"$f":"'Main Menu'!A2:F2","v":"Region X"}]
[{"$f":"'Main Menu'!A3:F3","v":""}]
[]
["SBM Validation Form"]
[{"$f":"NOW()","v":"2018-07-01T09:10:11.220"}]
["District:",{"$f":"'Input Menu'!B8:C8","v":""},null,null,"School Year:",{"$f":"'Main Menu'!B8","v":""},{"$nulls":4},{"$f":"B7","v":""}]
["School:",{"$f":"'Input Menu'!B7:C7","v":""},null,null,"School I.D.",{"$f":"'Input Menu'!K6","v":0}]
["Step 1: Determine Performance Improvement (60%)",{"$nulls":3},"Level:",{"$f":"'Main Menu'!O72","v":0}]
["Thematic Area","Performance Indicators",null,null,"Rating & Equivalent Points","Score","Computation","Results"]
[]
["Access (45%)","Enrolment Increase","% of Increase","Enrolment",null,{"$f":"IF(C17>=10,\"3\",IF(C17>=7,\"2\",IF(C17>5,\"1\",\"0\")))","v":{"$error":"#VALUE!"}},{"$f":"F12*0.45","v":{"$error":"#VALUE!"}},{"$f":"G12","v":{"$error":"#VALUE!"}}]
[null,{"$f":"'Main Menu'!B14","v":"SY 2009-2010"},null,{"$f":"'Main Menu'!D14","v":990}]
[null,{"$f":"'Main Menu'!B15","v":""},null,{"$f":"'Main Menu'!D15","v":""},{"$nulls":6},"SY 2009-2010"]
[null,{"$f":"'Main Menu'!B16","v":""},{"$f":"((D15-D14)/D14)*100","v":{"$error":"#VALUE!"}},{"$f":"'Main Menu'!D16","v":""},{"$nulls":6},"SY 2010-2011"]
[null,{"$f":"'Main Menu'!B17","v":""},{"$f":"((D16-D15)/D15)*100","v":{"$error":"#VALUE!"}},{"$f":"'Main Menu'!D17","v":""},{"$nulls":6},"SY 2011-2012"]
[null,"Ave. % of Increase",{"$f":"AVERAGE(C15:C16)","v":{"$error":"#VALUE!"}},{"$nulls":7},"SY 2012-2013"]
["Efficiency (25%)","Dropout Rate (DR):","% of decrease","Dropout %",null,{"$f":"IF(C23<2,\"3\",IF(C23<5,\"2\",IF(C23<=5,\"1\",\"0\")))","v":{"$error":"#VALUE!"}},{"$f":"F18*0.125","v":{"$error":"#VALUE!"}},{"$f":"SUM(G18:G35)","v":{"$error":"#VALUE!"}},null,null,"SY 2013-2014"]
[null,{"$f":"'Main Menu'!B20","v":"SY 2008-2009"},null,{"$f":"'Main Menu'!D20","v":0.02}]
[null,{"$f":"'Main Menu'!B21","v":""},null,{"$f":"'Main Menu'!D21","v":""},{"$nulls":6},"SY 2014- 2015"]
[null,{"$f":"'Main Menu'!B22","v":""},{"$f":"(D21-D20)","v":{"$error":"#VALUE!"}},{"$f":"'Main Menu'!D22","v":""},{"$nulls":6},"SY 2015- 2016"]
[null,{"$f":"'Main Menu'!B23","v":""},{"$f":"(D22-D21)","v":{"$error":"#VALUE!"}},{"$f":"'Main Menu'!D23","v":""},{"$nulls":6},"SY 2016-2017"]
[null,"Ave. % of decrease",{"$f":"AVERAGE(C21:C22)","v":{"$error":"#VALUE!"}}]
[null,"Repetition Rate","% of decrease","Repetition %",null,{"$f":"IF(C29<2,\"3\",IF(C29<5,\"2\",IF(C29<=5,\"1\",\"0\")))","v":{"$error":"#VALUE!"}},{"$f":"F24*0.125","v":{"$error":"#VALUE!"}},{"$nulls":3},"SY 2017-2018"]
[null,{"$f":"'Main Menu'!B26","v":"SY 2008-2009"},null,{"$f":"'Main Menu'!D26","v":65}]
[null,{"$f":"'Main Menu'!B27","v":""},null,{"$f":"'Main Menu'!D27","v":""},{"$nulls":6},"SY 2018- 2019"]
[null,{"$f":"'Main Menu'!B28","v":""},{"$f":"(D27-D26)","v":{"$error":"#VALUE!"}},{"$f":"'Main Menu'!D28","v":""},{"$nulls":6},"SY 2019- 2020"]
[null,{"$f":"'Main Menu'!B29","v":""},{"$f":"(D28-D27)","v":{"$error":"#VALUE!"}},{"$f":"'Main Menu'!D29","v":""}]
[null,"Ave. % of decrease",{"$f":"AVERAGE(C27:C28)","v":{"$error":"#VALUE!"}}]
[]
[]
[]
[]
[]
[]
["Quality (30%)","NAT MPS","% of Increase","NAT MPS",null,{"$f":"N41","v":{"v":3,"d":"3.00"}},{"$f":"F36*0.3","v":0.8999999999999999},{"$f":"G36","v":0.8999999999999999}]
[null,{"$f":"'Main Menu'!B38","v":"SY 2008-2009"},null,{"$f":"'Main Menu'!D38","v":{"v":56,"d":"56.00"}}]
[null,{"$f":"'Main Menu'!B39","v":""},null,{"$f":"'Main Menu'!D39","v":""},{"$nulls":9},{"$f":"IF(D38>=75,\"3\",\"0\")","v":"3"}]
[null,{"$f":"'Main Menu'!B40","v":""},null,{"$f":"'Main Menu'!D40","v":""},{"$nulls":9},{"$f":"IF(D39>=75,\"3\",\"0\")","v":"3"}]
[null,{"$f":"'Main Menu'!B41","v":""},null,{"$f":"'Main Menu'!D41","v":""},{"$nulls":9},{"$f":"IF(D40>=75,\"3\",\"0\")","v":"3"}]
[null,"Ave. % of Increase",{"$nulls":11},{"$f":"(N38+N39+N40)/3","v":{"v":3,"d":"3.00"}}]
["Sub-Total",{"$nulls":6},{"$f":"SUM(H12:H41)","v":{"$error":"#VALUE!"}}]
[]
["Note: Only Schools having a Performance Improvement of \" Better\" can apply to the Division for SBM Validation."]
["Step 2: Compute for validated SBM Assessment Scores (40%)"]
["SBM Principles",null,"Weight",null,"Cummulative Scores of Validators per Principles",null,"Results"]
["Leadership",null,{"v":0.3,"d":"30%"},null,{"$f":"'Document Analysis, Obs. Discuss'!AP71","v":{"v":0.6,"d":"0.60"}},null,{"$f":"E47*0.3","v":0.18}]
["Curriculum & Learning",null,{"v":0.3,"d":"30%"},null,{"$f":"'Document Analysis, Obs. Discuss'!AP72","v":{"v":0,"d":"0.00"}},null,{"$f":"E48*0.3","v":0}]
["Accountability",null,{"v":0.25,"d":"25%"},null,{"$f":"'Document Analysis, Obs. Discuss'!AP73","v":{"v":0,"d":"0.00"}},null,{"$f":"E49*0.25","v":0}]
["Resource Management",null,{"v":0.15,"d":"15%"},null,{"$f":"'Document Analysis, Obs. Discuss'!AP74","v":{"v":0,"d":"0.00"}},null,{"$f":"E50*0.15","v":0}]
["Sub-total",null,{"v":1,"d":"100%"},{"$nulls":3},{"$f":"SUM(G47:G50)","v":0.18}]
["Interpretation:",null,"Good"]
[null,null,"Better"]
[null,null,"Best"]
["Legend:","Numerical Rating Scale",null,null,"Description"]
[null,"0.50-1.49",null,null,"Good"]
[null,"1.50-2.49",null,null,"Better"]
[null,"2.50-3.00",null,null,"Best"]
{"$rows_empty":7}
["Step 3: Compute for Final Rating"]
["Areas",null,"Weight",null,"Computation",null,"Results"]
["A. Performance Improvement",null,{"v":0.6,"d":"60%"},null,{"$f":"H42","v":{"$error":"#VALUE!"}},null,{"$f":"C68*E68","v":{"$error":"#VALUE!"}},{"$nulls":6},"Performance Improvement",{"$f":"E68","v":{"$error":"#VALUE!"}}]
["B. SBM Assessment Score (DOD)",null,{"v":0.4,"d":"40%"},null,{"$f":"G51","v":0.18},null,{"$f":"C69*E69","v":{"v":0.072,"d":"0.07"}},{"$nulls":6},"SBM Assessment Score",{"$f":"E69","v":0.18}]
["Total",null,{"v":1,"d":"100%"},{"$nulls":3},{"$f":"SUM(G68:G69)","v":{"$error":"#VALUE!"}},{"$nulls":6},"SBM Final Rating",{"$f":"G70","v":{"$error":"#VALUE!"}}]
[]
[]
[]
[]
[]
[]
["Description of SBM Level of Practice:"]
[null,"Numerical Rating Scale",null,null,"Description",null,"Interpretation"]
[null,"0.50-1.49",null,null,"Developing",null,"Level I"]
[null,"1.50-2.49",null,null,"Maturing",null,"Level II"]
[null,"2.50-3.00",null,null,"Advanced",null,"Level III"]
{"$rows_empty":18}
["Results:",{"$f":"IF(G70<1.5,\"Developing level- Structures and mechanisms with acceptable level and extent of community participation and impact on learning outcomes.\",IF(G70<2.5,\"Maturing level - Introducing and sustaining continuous improvement process that integrates wider community participation and improve sinificantly performance and learning outcomes.\",IF(G70<3,\"Advanced level - Ensuring the production of intended outputs/outcomes and meeting all standards of a system fully integrated in the local community and is self-renewing and self-sustaining.\",\"\")))","v":{"$error":"#VALUE!"}}]
["Remarks:",{"$f":"'Main Menu'!B56:H56","v":{"v":0,"d":"0.00"}}]
["Validators:"]
[null,{"$f":"'Input Menu'!B51","v":0},null,null,{"$f":"'Input Menu'!B52","v":0}]
[null,"Member",null,null,"Member"]
[]
[]
[null,{"$f":"'Input Menu'!B53","v":0},null,null,{"$f":"'Input Menu'!B54","v":0}]
[null,"Member",null,null,"Member"]
[]
[]
[]
[null,{"$f":"'Input Menu'!B50","v":0}]
[null,"Chairman"]
[{"$f":"'Main Menu'!A51","v":"Option2: ER, DR, RR, NAT2"}]

{"sheet":"1Elem. ER, CR1, CSR1, NAT1","index":10,"n_rows":115,"n_cols":15,"rows_kept":115,"merged":[[0,0,0,7],[1,0,1,7],[2,0,2,7],[4,0,4,7],[5,0,5,7],[6,1,6,3],[6,5,6,7],[7,1,7,3],[7,5,7,6],[8,0,8,3],[8,5,8,7],[9,1,9,2],[11,0,16,0],[11,4,16,4],[11,5,16,5],[11,6,16,6],[11,7,16,7],[17,0,34,0],[17,4,22,4],[17,5,22,5],[17,6,22,6],[17,7,34,7],[23,4,28,4],[23,5,28,5],[23,6,28,6],[29,4,34,4],[29,5,34,5],[29,6,34,6],[35,0,40,0],[35,4,40,4],[35,5,40,5],[35,6,40,6],[35,7,40,7],[41,0,41,4],[43,0,43,7],[44,0,44,7],[45,0,45,1],[45,2,45,3],[45,4,45,5],[45,6,45,7],[46,0,46,1],[46,2,46,3],[46,4,46,5],[46,6,46,7],[47,0,47,1],[47,2,47,3],[47,4,47,5],[47,6,47,7],[48,0,48,1],[48,2,48,3],[48,4,48,5],[48,6,48,7],[49,0,49,1],[49,2,49,3],[49,4,49,5],[49,6,49,7],[50,2,50,3],[50,6,50,7],[54,1,54,3],[54,4,54,5],[55,1,55,3],[55,4,55,5],[56,1,56,3],[56,4,56,5],[57,1,57,3],[57,4,57,5],[66,0,66,7],[67,0,67,1],[67,2,67,3],[67,4,67,5],[67,6,67,7],[68,0,68,1],[68,2,68,3],[68,4,68,5],[68,6,68,7],[69,0,69,1],[69,2,69,3],[69,4,69,5],[69,6,69,7],[70,2,70,3],[70,6,70,7],[77,0,77,7],[78,1,78,3],[78,4,78,5],[78,6,78,7],[79,1,79,3],[79,4,79,5],[79,6,79,7],[80,1,80,3],[80,4,80,5],[80,6,80,7],[81,1,81,3],[81,4,81,5],[81,6,81,7],[83,1,86,7],[98,1,98,7],[99,1,99,7],[102,1,102,2],[102,4,102,5],[103,1,103,2],[103,4,103,5],[106,1,106,2],[106,4,106,5],[107,1,107,2],[107,4,107,5],[111,1,111,5],[112,1,112,5]]}
[{"$f":"'Main Menu'!A1:F1","v":"Department of Education"}]
[{"$f":"'Main Menu'!A2:F2","v":"Region X"}]
[{"$f":"'Main Menu'!A3:F3","v":""}]
[]
["SBM Validation Form"]
[{"$f":"NOW()","v":"2018-07-01T09:10:11.220"}]
["District:",{"$f":"'Input Menu'!B8:C8","v":""},null,null,"School Year:",{"$f":"'Main Menu'!B8","v":""},{"$nulls":4},{"$f":"B7","v":""}]
["School:",{"$f":"'Input Menu'!B7:C7","v":""},null,null,"School I.D.",{"$f":"'Input Menu'!K6","v":0}]
["Step 1: Determine Performance Improvement (60%)",{"$nulls":3},"Level:",{"$f":"'Main Menu'!O72","v":0}]
["Thematic Area","Performance Indicators",null,null,"Rating & Equivalent Points","Score","Computation","Results"]
[]
["Access (45%)","Enrolment Increase","% of Increase","Enrolment (Raw Data)",null,{"$f":"IF(C17>=10,\"3\",IF(C17>=7,\"2\",IF(C17>5,\"1\",\"0\")))","v":{"$error":"#VALUE!"}},{"$f":"F12*0.45","v":{"$error":"#VALUE!"}},{"$f":"G12","v":{"$error":"#VALUE!"}}]
[null,{"$f":"'Main Menu'!B14","v":"SY 2009-2010"},null,{"$f":"'Main Menu'!D14","v":990}]
[null,{"$f":"'Main Menu'!B15","v":""},null,{"$f":"'Main Menu'!D15","v":""},{"$nulls":6},"SY 2009-2010"]
[null,{"$f":"'Main Menu'!B16","v":""},{"$f":"((D15-D14)/D14)*100","v":{"$error":"#VALUE!"}},{"$f":"'Main Menu'!D16","v":""},{"$nulls":6},"SY 2010-2011"]
[null,{"$f":"'Main Menu'!B17","v":""},{"$f":"((D16-D15)/D15)*100","v":{"$error":"#VALUE!"}},{"$f":"'Main Menu'!D17","v":""},{"$nulls":6},"SY 2011-2012"]
[null,"Ave. % of Increase",{"$f":"AVERAGE(C15:C16)","v":{"$error":"#VALUE!"}},{"$nulls":7},"SY 2012-2013"]
["Efficiency (25%)","Dropout Rate (DR):","% of decrease","Dropout %",null,{"$f":"IF(C23<2,\"3\",IF(C23<5,\"2\",IF(C23<=5,\"1\",\"0\")))","v":{"$error":"#VALUE!"}},{"$f":"F18*0.125","v":{"$error":"#VALUE!"}},{"$f":"SUM(G18:G29)","v":{"$error":"#VALUE!"}},null,null,"SY 2013-2014"]
[null,{"$f":"'Main Menu'!B20","v":"SY 2008-2009"},null,{"$f":"'Main Menu'!D20","v":0.02}]
[null,{"$f":"'Main Menu'!B21","v":""},null,{"$f":"'Main Menu'!D21","v":""},{"$nulls":6},"SY 2014- 2015"]
[null,{"$f":"'Main Menu'!B22","v":""},{"$f":"D21-D20","v":{"$error":"#VALUE!"}},{"$f":"'Main Menu'!D22","v":""},{"$nulls":6},"SY 2015- 2016"]
[null,{"$f":"'Main Menu'!B23","v":""},{"$f":"D22-D21","v":{"$error":"#VALUE!"}},{"$f":"'Main Menu'!D23","v":""},{"$nulls":6},"SY 2016-2017"]
[null,"Ave. % of Decrease",{"$f":"AVERAGE(C21:C22)","v":{"$error":"#VALUE!"}}]
[null,"Repetition Rate","% of decrease","Repetition %",null,{"$f":"IF(C29<2,\"3\",IF(C29<5,\"2\",IF(C29<=5,\"1\",\"0\")))","v":{"$error":"#VALUE!"}},{"$f":"F24*0.125","v":{"$error":"#VALUE!"}},{"$nulls":3},"SY 2017-2018"]
[null,{"$f":"'Main Menu'!B26","v":"SY 2008-2009"},null,{"$f":"'Main Menu'!D26","v":65}]
[null,{"$f":"'Main Menu'!B27","v":""},null,{"$f":"'Main Menu'!D27","v":""},{"$nulls":6},"SY 2018- 2019"]
[null,{"$f":"'Main Menu'!B28","v":""},{"$f":"(D27-D26)","v":{"$error":"#VALUE!"}},{"$f":"'Main Menu'!D28","v":""},{"$nulls":6},"SY 2019- 2020"]
[null,{"$f":"'Main Menu'!B29","v":""},{"$f":"(D28-D27)","v":{"$error":"#VALUE!"}},{"$f":"'Main Menu'!D29","v":""}]
[null,"Ave. % of decrease",{"$f":"AVERAGE(C27:C28)","v":{"$error":"#VALUE!"}}]
[null,"Cohort Survival Rate (CSR):","% of Increase","Cohort Survival"]
[null,{"$f":"'Main Menu'!B32","v":"SY 2008-2009"},null,{"$f":"'Main Menu'!D32","v":58}]
[]
[]
[]
[]
["Quality (30%)","Promotion Rate","% of Increase","Promotion %",null,{"$f":"N41","v":{"v":3,"d":"3.00"}},{"$f":"F36*0.3","v":0.8999999999999999},{"$f":"G36","v":0.8999999999999999}]
[null,{"$f":"'Main Menu'!B38","v":"SY 2008-2009"},null,{"$f":"'Main Menu'!D38","v":{"v":56,"d":"56.00"}}]
[null,{"$f":"'Main Menu'!B39","v":""},null,{"$f":"'Main Menu'!F39","v":""},{"$nulls":9},{"$f":"IF(D38>=95,\"3\",IF(D38>=90,\"2\",IF(D38>=85,\"1\",\"0\")))","v":"3"}]
[null,{"$f":"'Main Menu'!B40","v":""},null,{"$f":"'Main Menu'!F40","v":""},{"$nulls":9},{"$f":"IF(D39>=95,\"3\",IF(D39>=90,\"2\",IF(D39>=85,\"1\",\"0\")))","v":"3"}]
[null,{"$f":"'Main Menu'!B41","v":""},null,{"$f":"'Main Menu'!F41","v":""},{"$nulls":9},{"$f":"IF(D40>=95,\"3\",IF(D40>=90,\"2\",IF(D40>=85,\"1\",\"0\")))","v":"3"}]
[null,"Ave. % of Increase",{"$nulls":11},{"$f":"(N38+N39+N40)/3","v":{"v":3,"d":"3.00"}}]
["Sub-Total",{"$nulls":6},{"$f":"SUM(H12:H41)","v":{"$error":"#VALUE!"}}]
[]
["Note: Only Schools having a Performance Improvement of \" Better\" can apply to the Division for SBM Validation."]
["Step 2: Compute for validated SBM Assessment Scores (40%)"]
["SBM Principles",null,"Weight",null,"Cummulative Scores of Validators per Principles",null,"Results"]
["Leadership",null,{"v":0.3,"d":"30%"},null,{"$f":"'Document Analysis, Obs. Discuss'!AP71","v":{"v":0.6,"d":"0.60"}},null,{"$f":"E47*0.3","v":0.18}]
["Curriculum & Learning",null,{"v":0.3,"d":"30%"},null,{"$f":"'Document Analysis, Obs. Discuss'!AP72","v":{"v":0,"d":"0.00"}},null,{"$f":"E48*0.3","v":0}]
["Accountability",null,{"v":0.25,"d":"25%"},null,{"$f":"'Document Analysis, Obs. Discuss'!AP73","v":{"v":0,"d":"0.00"}},null,{"$f":"E49*0.25","v":0}]
["Resource Management",null,{"v":0.15,"d":"15%"},null,{"$f":"'Document Analysis, Obs. Discuss'!AP74","v":{"v":0,"d":"0.00"}},null,{"$f":"E50*0.15","v":0}]
["Sub-total",null,{"v":1,"d":"100%"},{"$nulls":3},{"$f":"SUM(G47:G50)","v":0.18}]
["Interpretation:",null,"Good"]
[null,null,"Better"]
[null,null,"Best"]
["Legend:","Numerical Rating Scale",null,null,"Description"]
[null,"0.50-1.49",null,null,"Good"]
[null,"1.50-2.49",null,null,"Better"]
[null,"2.50-3.00",null,null,"Best"]
{"$rows_empty":8}
["Step 3: Compute for Final Rating"]
["Areas",null,"Weight",null,"Computation",null,"Results"]
["A. Performance Improvement",null,{"v":0.6,"d":"60%"},null,{"$f":"H42","v":{"$error":"#VALUE!"}},null,{"$f":"C69*E69","v":{"$error":"#VALUE!"}},{"$nulls":6},"Performance Improvement",{"$f":"E69","v":{"$error":"#VALUE!"}}]
["B. SBM Assessment Score (DOD)",null,{"v":0.4,"d":"40%"},null,{"$f":"G51","v":0.18},null,{"$f":"C70*E70","v":{"v":0.072,"d":"0.07"}},{"$nulls":6},"SBM Assessment Score",{"$f":"E70","v":0.18}]
["Total",null,{"v":1,"d":"100%"},{"$nulls":3},{"$f":"SUM(G69:G70)","v":{"$error":"#VALUE!"}},{"$nulls":6},"SBM Final Rating",{"$f":"G71","v":{"$error":"#VALUE!"}}]
[]
[]
[]
[]
[]
[]
["Description of SBM Level of Practice:"]
[null,"Numerical Rating Scale",null,null,"Description",null,"Interpretation"]
[null,"0.50-1.49",null,null,"Developing",null,"Level I"]
[null,"1.50-2.49",null,null,"Maturing",null,"Level II"]
[null,"2.50-3.00",null,null,"Advanced",null,"Level III"]
{"$rows_empty":16}
["Results:",{"$f":"IF(G71<1.5,\"Developing level- Structures and mechanisms with acceptable level and extent of community participation and impact on learning outcomes.\",IF(G71<2.5,\"Maturing level - Introducing and sustaining continuous improvement process that integrates wider community participation and improve sinificantly performance and learning outcomes.\",IF(G71<3,\"Advanced level - Ensuring the production of intended outputs/outcomes and meeting all standards of a system fully integrated in the local community and is self-renewing and self-sustaining.\",\"\")))","v":{"$error":"#VALUE!"}}]
["Remarks:",{"$f":"'Main Menu'!B56:H56","v":{"v":0,"d":"0.00"}}]
[]
["Validators:"]
[null,{"$f":"'Input Menu'!B51","v":0},null,null,{"$f":"'Input Menu'!B52","v":0}]
[null,"Member",null,null,"Member"]
[]
[]
[null,{"$f":"'Input Menu'!B53","v":0},null,null,{"$f":"'Input Menu'!B54","v":0}]
[null,"Member",null,null,"Member"]
[]
[]
[]
[null,{"$f":"'Input Menu'!B50","v":0}]
[null,"Chairman"]
[]
[{"$f":"'Main Menu'!A52","v":"Option3: ER, DR, RR, PrR"}]

{"sheet":"9Elem. PR, CR1, CSR1, NAT1","index":11,"n_rows":113,"n_cols":15,"rows_kept":113,"merged":[[0,0,0,7],[1,0,1,7],[2,0,2,7],[4,0,4,7],[5,0,5,7],[6,1,6,3],[6,5,6,7],[7,1,7,3],[7,5,7,6],[8,0,8,3],[8,5,8,7],[9,1,9,2],[11,0,16,0],[11,4,16,4],[11,5,16,5],[11,6,16,6],[11,7,16,7],[16,1,16,3],[17,0,34,0],[17,4,22,4],[17,5,22,5],[17,6,22,6],[17,7,34,7],[23,4,28,4],[23,5,28,5],[23,6,28,6],[29,4,34,4],[29,5,34,5],[29,6,34,6],[35,0,40,0],[35,4,40,4],[35,5,40,5],[35,6,40,6],[35,7,40,7],[41,0,41,4],[43,0,43,7],[44,0,44,7],[45,0,45,1],[45,2,45,3],[45,4,45,5],[45,6,45,7],[46,0,46,1],[46,2,46,3],[46,4,46,5],[46,6,46,7],[47,0,47,1],[47,2,47,3],[47,4,47,5],[47,6,47,7],[48,0,48,1],[48,2,48,3],[48,4,48,5],[48,6,48,7],[49,0,49,1],[49,2,49,3],[49,4,49,5],[49,6,49,7],[50,2,50,3],[50,6,50,7],[54,1,54,3],[54,4,54,5],[55,1,55,3],[55,4,55,5],[56,1,56,3],[56,4,56,5],[57,1,57,3],[57,4,57,5],[65,0,65,7],[66,0,66,1],[66,2,66,3],[66,4,66,5],[66,6,66,7],[67,0,67,1],[67,2,67,3],[67,4,67,5],[67,6,67,7],[68,0,68,1],[68,2,68,3],[68,4,68,5],[68,6,68,7],[69,2,69,3],[69,6,69,7],[76,0,76,7],[77,1,77,3],[77,4,77,5],[77,6,77,7],[78,1,78,3],[78,4,78,5],[78,6,78,7],[79,1,79,3],[79,4,79,5],[79,6,79,7],[80,1,80,3],[80,4,80,5],[80,6,80,7],[82,1,85,7],[97,1,97,7],[98,1,98,7],[101,1,101,2],[101,4,101,5],[102,1,102,2],[102,4,102,5],[105,1,105,2],[105,4,105,5],[106,1,106,2],[106,4,106,5],[110,1,110,5],[111,1,111,5]]}
[{"$f":"'Main Menu'!A1:F1","v":"Department of Education"}]
[{"$f":"'Main Menu'!A2:F2","v":"Region X"}]
[{"$f":"'Main Menu'!A3:F3","v":""}]
[]
["SBM Validation Form"]
[{"$f":"NOW()","v":"2018-07-01T09:10:11.220"}]
["District:",{"$f":"'Input Menu'!B8:C8","v":""},null,null,"School Year:",{"$f":"'Main Menu'!B8","v":""},{"$nulls":4},{"$f":"B7","v":""}]
["School:",{"$f":"'Input Menu'!B7:C7","v":""},null,null,"School I.D.",{"$f":"'Input Menu'!K6","v":0}]
["Step 1: Determine Performance Improvement (60%)",{"$nulls":3},"Level:",{"$f":"'Main Menu'!O72","v":0}]
["Thematic Area","Performance Indicators",null,null,"Rating & Equivalent Points","Score","Computation","Results"]
[]
["Access (45%)","Enrolment Increase","% of Increase","Community Mapping",null,{"$f":"N17","v":{"v":3,"d":"3.00"}},{"$f":"F12*0.45","v":1.35},{"$f":"G12","v":1.35}]
[null,{"$f":"'Main Menu'!B14","v":"SY 2009-2010"},null,{"$f":"'Main Menu'!D14","v":990}]
[null,{"$f":"'Main Menu'!B15","v":""},null,{"$f":"'Main Menu'!F15","v":""},{"$nulls":6},"SY 2009-2010",null,null,{"$f":"IF(D14>=95,\"3\",IF(D14>=90,\"2\",IF(D14>=85,\"1\",\"0\")))","v":"3"}]
[null,{"$f":"'Main Menu'!B16","v":""},null,{"$f":"'Main Menu'!F16","v":""},{"$nulls":6},"SY 2010-2011",null,null,{"$f":"IF(D15>=95,\"3\",IF(D15>=90,\"2\",IF(D15>=85,\"1\",\"0\")))","v":"3"}]
[null,{"$f":"'Main Menu'!B17","v":""},null,{"$f":"'Main Menu'!F17","v":""},{"$nulls":6},"SY 2011-2012",null,null,{"$f":"IF(D16>=95,\"3\",IF(D16>=90,\"2\",IF(D16>=85,\"1\",\"0\")))","v":"3"}]
[{"$nulls":10},"SY 2012-2013",null,null,{"$f":"(N14+N16+N15)/3","v":{"v":3,"d":"3.00"}}]
["Efficiency (25%)","Dropout Rate (DR):","% of decrease","Dropout %",null,{"$f":"IF(C23<2,\"3\",IF(C23<5,\"2\",IF(C23<=5,\"1\",\"0\")))","v":{"$error":"#VALUE!"}},{"$f":"F18*0.125","v":{"$error":"#VALUE!"}},{"$f":"SUM(G18:G35)","v":{"$error":"#VALUE!"}},null,null,"SY 2013-2014"]
[null,{"$f":"'Main Menu'!B20","v":"SY 2008-2009"},null,{"$f":"'Main Menu'!D20","v":0.02}]
[null,{"$f":"'Main Menu'!B21","v":""},null,{"$f":"'Main Menu'!D21","v":""},{"$nulls":6},"SY 2014- 2015"]
[null,{"$f":"'Main Menu'!B22","v":""},{"$f":"D21-D20","v":{"$error":"#VALUE!"}},{"$f":"'Main Menu'!D22","v":""},{"$nulls":6},"SY 2015- 2016"]
[null,{"$f":"'Main Menu'!B23","v":""},{"$f":"D22-D21","v":{"$error":"#VALUE!"}},{"$f":"'Main Menu'!D23","v":""},{"$nulls":6},"SY 2016-2017"]
[null,"Ave. % of Decrease",{"$f":"AVERAGE(C21:C22)","v":{"$error":"#VALUE!"}}]
[null,"Repetition Rate","% of decrease","Repetition %",null,{"$f":"IF(C29<2,\"3\",IF(C29<5,\"2\",IF(C29<=5,\"1\",\"0\")))","v":{"$error":"#VALUE!"}},{"$f":"F24*0.125","v":{"$error":"#VALUE!"}},{"$nulls":3},"SY 2017-2018"]
[null,{"$f":"'Main Menu'!B26","v":"SY 2008-2009"},null,{"$f":"'Main Menu'!D26","v":65}]
[null,{"$f":"'Main Menu'!B27","v":""},null,{"$f":"'Main Menu'!D27","v":""},{"$nulls":6},"SY 2018- 2019"]
[null,{"$f":"'Main Menu'!B28","v":""},{"$f":"(D27-D26)","v":{"$error":"#VALUE!"}},{"$f":"'Main Menu'!D28","v":""},{"$nulls":6},"SY 2019- 2020"]
[null,{"$f":"'Main Menu'!B29","v":""},{"$f":"(D28-D27)","v":{"$error":"#VALUE!"}},{"$f":"'Main Menu'!D29","v":""}]
[null,"Ave. % of decrease",{"$f":"AVERAGE(C27:C28)","v":{"$error":"#VALUE!"}}]
[]
[]
[]
[]
[]
[]
["Quality (30%)","NAT MPS","% of Increase","NAT MPS",null,{"$f":"IF(C41>=7,\"3\",IF(C41>=5,\"2\",IF(C41>=2,\"1\",\"0\")))","v":{"$error":"#VALUE!"}},{"$f":"F36*0.3","v":{"$error":"#VALUE!"}},{"$f":"G36","v":{"$error":"#VALUE!"}}]
[null,{"$f":"'Main Menu'!B38","v":"SY 2008-2009"},null,{"$f":"'Main Menu'!D38","v":{"v":56,"d":"56.00"}}]
[null,{"$f":"'Main Menu'!B39","v":""},null,{"$f":"'Main Menu'!D39","v":""}]
[null,{"$f":"'Main Menu'!B40","v":""},{"$f":"(D39-D38)","v":{"$error":"#VALUE!"}},{"$f":"'Main Menu'!D40","v":""}]
[null,{"$f":"'Main Menu'!B41","v":""},{"$f":"(D40-D39)","v":{"$error":"#VALUE!"}},{"$f":"'Main Menu'!D41","v":""}]
[null,"Ave. % of Increase",{"$f":"AVERAGE(C39:C40)","v":{"$error":"#VALUE!"}}]
["Sub-Total",{"$nulls":6},{"$f":"SUM(H12:H41)","v":{"$error":"#VALUE!"}}]
[]
["Note: Only Schools having a Performance Improvement of \" Better\" can apply to the Division for SBM Validation."]
["Step 2: Compute for validated SBM Assessment Scores (40%)"]
["SBM Principles",null,"Weight",null,"Cummulative Scores of Validators per Principles",null,"Results"]
["Leadership",null,{"v":0.3,"d":"30%"},null,{"$f":"'Document Analysis, Obs. Discuss'!AP71","v":{"v":0.6,"d":"0.60"}},null,{"$f":"E47*0.3","v":0.18}]
["Curriculum & Learning",null,{"v":0.3,"d":"30%"},null,{"$f":"'Document Analysis, Obs. Discuss'!AP72","v":{"v":0,"d":"0.00"}},null,{"$f":"E48*0.3","v":0}]
["Accountability",null,{"v":0.25,"d":"25%"},null,{"$f":"'Document Analysis, Obs. Discuss'!AP73","v":{"v":0,"d":"0.00"}},null,{"$f":"E49*0.25","v":0}]
["Resource Management",null,{"v":0.15,"d":"15%"},null,{"$f":"'Document Analysis, Obs. Discuss'!AP74","v":{"v":0,"d":"0.00"}},null,{"$f":"E50*0.15","v":0}]
["Sub-total",null,{"v":1,"d":"100%"},{"$nulls":3},{"$f":"SUM(G47:G50)","v":0.18}]
["Interpretation:",null,"Good"]
[null,null,"Better"]
[null,null,"Best"]
["Legend:","Numerical Rating Scale",null,null,"Description"]
[null,"0.50-1.49",null,null,"Good"]
[null,"1.50-2.49",null,null,"Better"]
[null,"2.50-3.00",null,null,"Best"]
{"$rows_empty":7}
["Step 3: Compute for Final Rating"]
["Areas",null,"Weight",null,"Computation",null,"Results"]
["A. Performance Improvement",null,{"v":0.6,"d":"60%"},null,{"$f":"H42","v":{"$error":"#VALUE!"}},null,{"$f":"C68*E68","v":{"$error":"#VALUE!"}},{"$nulls":6},"Performance Improvement",{"$f":"E68","v":{"$error":"#VALUE!"}}]
["B. SBM Assessment Score (DOD)",null,{"v":0.4,"d":"40%"},null,{"$f":"G51","v":0.18},null,{"$f":"C69*E69","v":{"v":0.072,"d":"0.07"}},{"$nulls":6},"SBM Assessment Score",{"$f":"E69","v":0.18}]
["Total",null,{"v":1,"d":"100%"},{"$nulls":3},{"$f":"SUM(G68:G69)","v":{"$error":"#VALUE!"}},{"$nulls":6},"SBM Final Rating",{"$f":"G70","v":{"$error":"#VALUE!"}}]
[]
[]
[]
[]
[]
[]
["Description of SBM Level of Practice:"]
[null,"Numerical Rating Scale",null,null,"Description",null,"Interpretation"]
[null,"0.50-1.49",null,null,"Developing",null,"Level I"]
[null,"1.50-2.49",null,null,"Maturing",null,"Level II"]
[null,"2.50-3.00",null,null,"Advanced",null,"Level III"]
{"$rows_empty":16}
["Results:",{"$f":"IF(G70<1.5,\"Developing level- Structures and mechanisms with acceptable level and extent of community participation and impact on learning outcomes.\",IF(G70<2.5,\"Maturing level - Introducing and sustaining continuous improvement process that integrates wider community participation and improve sinificantly performance and learning outcomes.\",IF(G70<3,\"Advanced level - Ensuring the production of intended outputs/outcomes and meeting all standards of a system fully integrated in the local community and is self-renewing and self-sustaining.\",\"\")))","v":{"$error":"#VALUE!"}}]
["Remarks:",{"$f":"'Main Menu'!B56:H56","v":{"v":0,"d":"0.00"}}]
[]
["Validators:"]
[null,{"$f":"'Input Menu'!B51","v":0},null,null,{"$f":"'Input Menu'!B52","v":0}]
[null,"Member",null,null,"Member"]
[]
[]
[null,{"$f":"'Input Menu'!B53","v":0},null,null,{"$f":"'Input Menu'!B54","v":0}]
[null,"Member",null,null,"Member"]
[]
[]
[]
[null,{"$f":"'Input Menu'!B50","v":0}]
[null,"Chairman"]
[{"$f":"'Main Menu'!A53","v":"Option4: CM, DR, RR, NAT1"}]

{"sheet":"10Elem. PR, CR1, CSR1, NAT2","index":12,"n_rows":113,"n_cols":16,"rows_kept":113,"merged":[[0,0,0,7],[1,0,1,7],[2,0,2,7],[4,0,4,7],[5,0,5,7],[6,1,6,3],[6,5,6,7],[7,1,7,3],[7,5,7,6],[8,0,8,3],[8,5,8,7],[9,1,9,2],[11,0,16,0],[11,4,16,4],[11,5,16,5],[11,6,16,6],[11,7,16,7],[16,1,16,3],[17,0,34,0],[17,4,22,4],[17,5,22,5],[17,6,22,6],[17,7,34,7],[23,4,28,4],[23,5,28,5],[23,6,28,6],[29,4,34,4],[29,5,34,5],[29,6,34,6],[35,0,40,0],[35,4,40,4],[35,5,40,5],[35,6,40,6],[35,7,40,7],[41,0,41,4],[43,0,43,7],[44,0,44,7],[45,0,45,1],[45,2,45,3],[45,4,45,5],[45,6,45,7],[46,0,46,1],[46,2,46,3],[46,4,46,5],[46,6,46,7],[47,0,47,1],[47,2,47,3],[47,4,47,5],[47,6,47,7],[48,0,48,1],[48,2,48,3],[48,4,48,5],[48,6,48,7],[49,0,49,1],[49,2,49,3],[49,4,49,5],[49,6,49,7],[50,2,50,3],[50,6,50,7],[54,1,54,3],[54,4,54,5],[55,1,55,3],[55,4,55,5],[56,1,56,3],[56,4,56,5],[57,1,57,3],[57,4,57,5],[65,0,65,7],[66,0,66,1],[66,2,66,3],[66,4,66,5],[66,6,66,7],[67,0,67,1],[67,2,67,3],[67,4,67,5],[67,6,67,7],[68,0,68,1],[68,2,68,3],[68,4,68,5],[68,6,68,7],[69,2,69,3],[69,6,69,7],[76,0,76,7],[77,1,77,3],[77,4,77,5],[77,6,77,7],[78,1,78,3],[78,4,78,5],[78,6,78,7],[79,1,79,3],[79,4,79,5],[79,6,79,7],[80,1,80,3],[80,4,80,5],[80,6,80,7],[82,1,85,7],[98,1,98,7],[99,1,99,7],[101,1,101,2],[101,4,101,5],[102,1,102,2],[102,4,102,5],[105,1,105,2],[105,4,105,5],[106,1,106,2],[106,4,106,5],[110,1,110,5],[111,1,111,5]]}
[{"$f":"'Main Menu'!A1:F1","v":"Department of Education"}]
[{"$f":"'Main Menu'!A2:F2","v":"Region X"}]
[{"$f":"'Main Menu'!A3:F3","v":""}]
[]
["SBM Validation Form"]
[{"$f":"NOW()","v":"2018-07-01T09:10:11.220"}]
["District:",{"$f":"'Input Menu'!B8:C8","v":""},null,null,"School Year:",{"$f":"'Main Menu'!B8","v":""},{"$nulls":4},{"$f":"B7","v":""}]
["School:",{"$f":"'Input Menu'!B7:C7","v":""},null,null,"School I.D.",{"$f":"'Input Menu'!K6","v":0}]
["Step 1: Determine Performance Improvement (60%)",{"$nulls":3},"Level:",{"$f":"'Main Menu'!O72","v":0}]
["Thematic Area","Performance Indicators",null,null,"Rating & Equivalent Points","Score","Computation","Results"]
[]
["Access (45%)","Enrolment Increase","% of Increase","Community Mapping",null,{"$f":"N17","v":{"v":3,"d":"3.00"}},{"$f":"F12*0.45","v":1.35},{"$f":"G12","v":1.35}]
[null,{"$f":"'Main Menu'!B14","v":"SY 2009-2010"},null,{"$f":"'Main Menu'!D14","v":990}]
[null,{"$f":"'Main Menu'!B15","v":""},null,{"$f":"'Main Menu'!F15","v":""},{"$nulls":6},"SY 2009-2010",null,null,{"$f":"IF(D14>=95,\"3\",IF(D14>=90,\"2\",IF(D14>85,\"1\",\"0\")))","v":"3"}]
[null,{"$f":"'Main Menu'!B16","v":""},null,{"$f":"'Main Menu'!F16","v":""},{"$nulls":6},"SY 2010-2011",null,null,{"$f":"IF(D15>=95,\"3\",IF(D15>=90,\"2\",IF(D15>85,\"1\",\"0\")))","v":"3"}]
[null,{"$f":"'Main Menu'!B17","v":""},null,{"$f":"'Main Menu'!F17","v":""},{"$nulls":6},"SY 2011-2012",null,null,{"$f":"IF(D16>=95,\"3\",IF(D16>=90,\"2\",IF(D16>85,\"1\",\"0\")))","v":"3"}]
[{"$nulls":10},"SY 2012-2013",null,null,{"$f":"(N14+N15+N16)/3","v":3}]
["Efficiency (25%)","Dropout Rate (DR):","% of decrease","Dropout",null,{"$f":"IF(C23<2,\"3\",IF(C23<5,\"2\",IF(C23<=5,\"1\",\"0\")))","v":{"$error":"#VALUE!"}},{"$f":"F18*0.125","v":{"$error":"#VALUE!"}},{"$f":"SUM(G18:G35)","v":{"$error":"#VALUE!"}},null,null,"SY 2013-2014"]
[null,{"$f":"'Main Menu'!B20","v":"SY 2008-2009"},null,{"$f":"'Main Menu'!D20","v":0.02}]
[null,{"$f":"'Main Menu'!B21","v":""},null,{"$f":"'Main Menu'!D21","v":""},{"$nulls":6},"SY 2014- 2015"]
[null,{"$f":"'Main Menu'!B22","v":""},{"$f":"D21-D20","v":{"$error":"#VALUE!"}},{"$f":"'Main Menu'!D22","v":""},{"$nulls":6},"SY 2015- 2016"]
[null,{"$f":"'Main Menu'!B23","v":""},{"$f":"D22-D21","v":{"$error":"#VALUE!"}},{"$f":"'Main Menu'!D23","v":""},{"$nulls":6},"SY 2016-2017"]
[null,"Ave. % of Decrease",{"$f":"AVERAGE(C21:C22)","v":{"$error":"#VALUE!"}}]
[null,"Repetition Rate","% of decrease","Repetition %",null,{"$f":"IF(C29<2,\"3\",IF(C29<5,\"2\",IF(C29<=5,\"1\",\"0\")))","v":{"$error":"#VALUE!"}},{"$f":"F24*0.125","v":{"$error":"#VALUE!"}},{"$nulls":3},"SY 2017-2018"]
[null,{"$f":"'Main Menu'!B26","v":"SY 2008-2009"},null,{"$f":"'Main Menu'!D26","v":65}]
[null,{"$f":"'Main Menu'!B27","v":""},null,{"$f":"'Main Menu'!D27","v":""},{"$nulls":6},"SY 2018- 2019"]
[null,{"$f":"'Main Menu'!B28","v":""},{"$f":"(D27-D26)","v":{"$error":"#VALUE!"}},{"$f":"'Main Menu'!D28","v":""},{"$nulls":6},"SY 2019- 2020"]
[null,{"$f":"'Main Menu'!B29","v":""},{"$f":"(D28-D27)","v":{"$error":"#VALUE!"}},{"$f":"'Main Menu'!D29","v":""}]
[null,"Ave. % of decrease",{"$f":"AVERAGE(C27:C28)","v":{"$error":"#VALUE!"}}]
[]
[]
[]
[]
[]
[]
["Quality (30%)","NAT MPS","% of Increase","NAT MPS",null,{"$f":"P41","v":{"v":3,"d":"3.00"}},{"$f":"F36*0.3","v":0.8999999999999999},{"$f":"G36","v":0.8999999999999999}]
[null,{"$f":"'Main Menu'!B38","v":"SY 2008-2009"},null,{"$f":"'Main Menu'!D38","v":{"v":56,"d":"56.00"}}]
[null,{"$f":"'Main Menu'!B39","v":""},null,{"$f":"'Main Menu'!D39","v":""},{"$nulls":11},{"$f":"IF(D38>75,\"3\",\"0\")","v":"3"}]
[null,{"$f":"'Main Menu'!B40","v":""},null,{"$f":"'Main Menu'!D40","v":""},{"$nulls":11},{"$f":"IF(D39>75,\"3\",\"0\")","v":"3"}]
[null,{"$f":"'Main Menu'!B41","v":""},null,{"$f":"'Main Menu'!D41","v":""},{"$nulls":11},{"$f":"IF(D40>75,\"3\",\"0\")","v":"3"}]
[null,"Ave. % of Increase",{"$nulls":13},{"$f":"(P38+P39+P40)/3","v":{"v":3,"d":"3.00"}}]
["Sub-Total",{"$nulls":6},{"$f":"SUM(H12:H41)","v":{"$error":"#VALUE!"}}]
[]
["Note: Only Schools having a Performance Improvement of \" Better\" can apply to the Division for SBM Validation."]
["Step 2: Compute for validated SBM Assessment Scores (40%)"]
["SBM Principles",null,"Weight",null,"Cummulative Scores of Validators per Principles",null,"Results"]
["Leadership",null,{"v":0.3,"d":"30%"},null,{"$f":"'Document Analysis, Obs. Discuss'!AP71","v":{"v":0.6,"d":"0.60"}},null,{"$f":"E47*0.3","v":0.18}]
["Curriculum & Learning",null,{"v":0.3,"d":"30%"},null,{"$f":"'Document Analysis, Obs. Discuss'!AP72","v":{"v":0,"d":"0.00"}},null,{"$f":"E48*0.3","v":0}]
["Accountability",null,{"v":0.25,"d":"25%"},null,{"$f":"'Document Analysis, Obs. Discuss'!AP73","v":{"v":0,"d":"0.00"}},null,{"$f":"E49*0.25","v":0}]
["Resource Management",null,{"v":0.15,"d":"15%"},null,{"$f":"'Document Analysis, Obs. Discuss'!AP74","v":{"v":0,"d":"0.00"}},null,{"$f":"E50*0.15","v":0}]
["Sub-total",null,{"v":1,"d":"100%"},{"$nulls":3},{"$f":"SUM(G47:G50)","v":0.18}]
["Interpretation:",null,"Good"]
[null,null,"Better"]
[null,null,"Best"]
["Legend:","Numerical Rating Scale",null,null,"Description"]
[null,"0.50-1.49",null,null,"Good"]
[null,"1.50-2.49",null,null,"Better"]
[null,"2.50-3.00",null,null,"Best"]
{"$rows_empty":7}
["Step 3: Compute for Final Rating"]
["Areas",null,"Weight",null,"Computation",null,"Results"]
["A. Performance Improvement",null,{"v":0.6,"d":"60%"},null,{"$f":"H42","v":{"$error":"#VALUE!"}},null,{"$f":"C68*E68","v":{"$error":"#VALUE!"}},{"$nulls":6},"Performance Improvement",{"$f":"E68","v":{"$error":"#VALUE!"}}]
["B. SBM Assessment Score (DOD)",null,{"v":0.4,"d":"40%"},null,{"$f":"G51","v":0.18},null,{"$f":"C69*E69","v":{"v":0.072,"d":"0.07"}},{"$nulls":6},"SBM Assessment Score",{"$f":"E69","v":0.18}]
["Total",null,{"v":1,"d":"100%"},{"$nulls":3},{"$f":"SUM(G68:G69)","v":{"$error":"#VALUE!"}},{"$nulls":6},"SBM Final Rating",{"$f":"G70","v":{"$error":"#VALUE!"}}]
[]
[]
[]
[]
[]
[]
["Description of SBM Level of Practice:"]
[null,"Numerical Rating Scale",null,null,"Description",null,"Interpretation"]
[null,"0.50-1.49",null,null,"Developing",null,"Level I"]
[null,"1.50-2.49",null,null,"Maturing",null,"Level II"]
[null,"2.50-3.00",null,null,"Advanced",null,"Level III"]
{"$rows_empty":17}
["Results:",{"$f":"IF(G70<1.5,\"Developing level- Structures and mechanisms with acceptable level and extent of community participation and impact on learning outcomes.\",IF(G70<2.5,\"Maturing level - Introducing and sustaining continuous improvement process that integrates wider community participation and improve sinificantly performance and learning outcomes.\",IF(G70<3,\"Advanced level - Ensuring the production of intended outputs/outcomes and meeting all standards of a system fully integrated in the local community and is self-renewing and self-sustaining.\",\"\")))","v":{"$error":"#VALUE!"}}]
["Remarks:",{"$f":"'Main Menu'!B56:H56","v":{"v":0,"d":"0.00"}}]
["Validators:"]
[null,{"$f":"'Input Menu'!B51","v":0},null,null,{"$f":"'Input Menu'!B52","v":0}]
[null,"Member",null,null,"Member"]
[]
[]
[null,{"$f":"'Input Menu'!B53","v":0},null,null,{"$f":"'Input Menu'!B54","v":0}]
[null,"Member",null,null,"Member"]
[]
[]
[]
[null,{"$f":"'Input Menu'!B50","v":0}]
[null,"Chairman"]
[{"$f":"'Main Menu'!A54","v":"Option5: CM, DR, RR, NAT2"}]

{"sheet":"4Elem. ER, CR1, CSR2, NAT2","index":13,"n_rows":112,"n_cols":17,"rows_kept":112,"hidden":true,"merged":[[0,0,0,7],[1,0,1,7],[2,0,2,7],[4,0,4,7],[5,1,5,3],[5,5,5,7],[7,0,7,7],[8,1,8,2],[10,0,15,0],[10,4,15,4],[10,5,15,5],[10,6,15,6],[10,7,15,7],[16,0,33,0],[16,4,21,4],[16,5,21,5],[16,6,21,6],[16,7,33,7],[22,4,27,4],[22,5,27,5],[22,6,27,6],[28,4,33,4],[28,5,33,5],[28,6,33,6],[34,0,39,0],[34,4,39,4],[34,5,39,5],[34,6,39,6],[34,7,39,7],[40,0,40,4],[42,0,42,7],[43,0,43,7],[44,0,44,1],[44,2,44,3],[44,4,44,5],[44,6,44,7],[45,0,45,1],[45,2,45,3],[45,4,45,5],[45,6,45,7],[46,0,46,1],[46,2,46,3],[46,4,46,5],[46,6,46,7],[47,0,47,1],[47,2,47,3],[47,4,47,5],[47,6,47,7],[48,0,48,1],[48,2,48,3],[48,4,48,5],[48,6,48,7],[49,0,49,5],[49,6,49,7],[53,1,53,3],[53,4,53,5],[54,1,54,3],[54,4,54,5],[55,1,55,3],[55,4,55,5],[56,1,56,3],[56,4,56,5],[64,0,64,7],[65,0,65,1],[65,2,65,3],[65,4,65,5],[65,6,65,7],[66,0,66,1],[66,2,66,3],[66,4,66,5],[66,6,66,7],[67,0,67,1],[67,2,67,3],[67,4,67,5],[67,6,67,7],[68,0,68,5],[68,6,68,7],[75,0,75,7],[76,1,76,3],[76,4,76,5],[77,1,77,3],[77,4,77,5],[78,1,78,3],[78,4,78,5],[79,1,79,3],[79,4,79,5],[81,1,84,7],[100,1,100,2],[100,4,100,5],[101,1,101,2],[101,4,101,5],[104,1,104,2],[104,4,104,5],[105,1,105,2],[105,4,105,5],[109,1,109,5],[110,1,110,5]]}
[{"$f":"'Main Menu'!A1:F1","v":"Department of Education"}]
[{"$f":"'Main Menu'!A2:F2","v":"Region X"}]
[{"$f":"'Main Menu'!A3:F3","v":""}]
[]
["SBM Validation"]
["Name of School:",{"$f":"'Main Menu'!G6","v":0},null,null,"School Year:",{"$f":"'Main Menu'!B8","v":""},{"$nulls":4},{"$f":"B6","v":0}]
[]
["Step 1: Determine Performance Improvement (60%)"]
["Thematic Area","Performance Indicators",null,null,"Rating & Equivalent Points","Computation","Computation","Results"]
[]
["Access (45%)","Enrolment Increase","% of Increase","Enrolment",null,{"$f":"grd(C16)","v":{"$error":"#VALUE!"}},{"$f":"F11*0.45","v":{"$error":"#VALUE!"}},{"$f":"G11","v":{"$error":"#VALUE!"}}]
[null,{"$f":"'Main Menu'!B14","v":"SY 2009-2010"},null,{"$f":"'Main Menu'!D14","v":990}]
[null,{"$f":"'Main Menu'!B15","v":""},null,{"$f":"'Main Menu'!D15","v":""},{"$nulls":6},"SY 2009-2010"]
[null,{"$f":"'Main Menu'!B16","v":""},{"$f":"((D14-D13)/D13)*100","v":{"$error":"#VALUE!"}},{"$f":"'Main Menu'!D16","v":""},{"$nulls":6},"SY 2010-2011"]
[null,{"$f":"'Main Menu'!B17","v":""},{"$f":"((D15-D14)/D14)*100","v":{"$error":"#VALUE!"}},{"$f":"'Main Menu'!D17","v":""},{"$nulls":6},"SY 2011-2012"]
[null,"Ave. % of Increase",{"$f":"AVERAGE(C14:C15)","v":{"$error":"#VALUE!"}},{"$nulls":7},"SY 2012-2013"]
["Efficiency (25%)","Dropout Rate (DR):","% of decrease","Dropout",null,{"$f":"IF(C22>=5,\"1\",IF(C22>=2,\"2\",IF(C22<2,\"3\",\"0\")))","v":{"$error":"#VALUE!"}},{"$f":"F17*0.0833","v":{"$error":"#VALUE!"}},{"$f":"SUM(G17:G34)","v":{"$error":"#VALUE!"}},null,null,"SY 2013-2014"]
[null,{"$f":"'Main Menu'!B20","v":"SY 2008-2009"},null,{"$f":"'Main Menu'!D20","v":0.02}]
[null,{"$f":"'Main Menu'!B21","v":""},null,{"$f":"'Main Menu'!D21","v":""},{"$nulls":6},"SY 2014- 2015"]
[null,{"$f":"'Main Menu'!B22","v":""},{"$f":"((D20-D19))","v":{"$error":"#VALUE!"}},{"$f":"'Main Menu'!D22","v":""},{"$nulls":6},"SY 2015- 2016"]
[null,{"$f":"'Main Menu'!B23","v":""},{"$f":"D21-D20","v":{"$error":"#VALUE!"}},{"$f":"'Main Menu'!D23","v":""},{"$nulls":6},"SY 2016-2017"]
[null,"Ave. % of Decrease",{"$f":"(C20+C21)/2","v":{"$error":"#VALUE!"}}]
[null,"Completion Rate (CR):","% of Increase","Completion",null,{"$f":"grd(C28)","v":{"$error":"#VALUE!"}},{"$f":"F23*0.0833","v":{"$error":"#VALUE!"}},{"$nulls":3},"SY 2017-2018"]
[null,{"$f":"'Main Menu'!B26","v":"SY 2008-2009"},null,{"$f":"'Main Menu'!D26","v":65}]
[null,{"$f":"'Main Menu'!B27","v":""},null,{"$f":"'Main Menu'!D27","v":""},{"$nulls":6},"SY 2018- 2019"]
[null,{"$f":"'Main Menu'!B28","v":""},{"$f":"((D26-D25)/D25)*100","v":{"$error":"#VALUE!"}},{"$f":"'Main Menu'!D28","v":""},{"$nulls":6},"SY 2019- 2020"]
[null,{"$f":"'Main Menu'!B29","v":""},{"$f":"((D27-D26)/D26)*100","v":{"$error":"#VALUE!"}},{"$f":"'Main Menu'!D29","v":""}]
[null,"Ave. % of Increase",{"$f":"(C26+C27)/2","v":{"$error":"#VALUE!"}}]
[null,"Cohort Survival Rate (CSR):","% of Increase","Cohort Survival",null,{"$f":"M34","v":2},{"$f":"F29*0.0834","v":{"v":0.1668,"d":"0.17"}}]
[null,{"$f":"'Main Menu'!B32","v":"SY 2008-2009"},null,{"$f":"'Main Menu'!D32","v":58}]
[null,{"$f":"'Main Menu'!B33","v":""},null,{"$f":"'Main Menu'!D33","v":{"v":95,"d":"95.00"}},{"$nulls":8},{"$f":"IF(D31>=95,\"3\",\"0\")","v":"3"}]
[null,{"$f":"'Main Menu'!B34","v":""},null,{"$f":"'Main Menu'!D34","v":{"v":96,"d":"96.00"}},{"$nulls":8},{"$f":"IF(D32>=95,\"3\",\"0\")","v":"3"}]
[null,{"$f":"'Main Menu'!B35","v":""},null,{"$f":"'Main Menu'!D35","v":83.72},{"$nulls":8},{"$f":"IF(D33>=95,\"3\",\"0\")","v":"0"}]
[null,"Ave. % of Increase",{"$nulls":10},{"$f":"(M31+M32+M33)/3","v":2}]
["Quality (30%)","NAT MPS","% of Increase","NAT MPS",null,{"$f":"Q40","v":3},{"$f":"F35*0.3","v":0.8999999999999999},{"$f":"G35","v":0.8999999999999999}]
[null,{"$f":"'Main Menu'!B38","v":"SY 2008-2009"},null,{"$f":"'Main Menu'!D38","v":{"v":56,"d":"56.00"}}]
[null,{"$f":"'Main Menu'!B39","v":""},null,{"$f":"'Main Menu'!D39","v":""},{"$nulls":12},{"$f":"IF(D37>=75,\"3\",\"0\")","v":"3"}]
[null,{"$f":"'Main Menu'!B40","v":""},null,{"$f":"'Main Menu'!D40","v":""},{"$nulls":12},{"$f":"IF(D38>=75,\"3\",\"0\")","v":"3"}]
[null,{"$f":"'Main Menu'!B41","v":""},null,{"$f":"'Main Menu'!D41","v":""},{"$nulls":12},{"$f":"IF(D39>=75,\"3\",\"0\")","v":"3"}]
[null,"Ave. % of Increase",{"$nulls":14},{"$f":"(Q37+Q38+Q39)/3","v":3}]
["Sub-Total",{"$nulls":6},{"$f":"SUM(H11:H40)","v":{"$error":"#VALUE!"}}]
[]
["Note: Only Schools having a Performance Improvement of \" Better\" can apply to the Division for SBM Validation."]
["Step 2: Compute for validated SBM Assessment Scores (40%)"]
["SBM Principles",null,"Weight",null,"Cummulative Scores of Validators per Principles",null,"Results"]
["Leadership",null,{"v":0.3,"d":"30%"},null,{"$f":"'Document Analysis, Obs. Discuss'!AP71","v":{"v":0.6,"d":"0.60"}},null,{"$f":"E46*0.3","v":0.18}]
["Curriculum & Learning",null,{"v":0.3,"d":"30%"},null,{"$f":"'Document Analysis, Obs. Discuss'!AP72","v":{"v":0,"d":"0.00"}},null,{"$f":"E47*0.3","v":0}]
["Accountability",null,{"v":0.25,"d":"25%"},null,{"$f":"'Document Analysis, Obs. Discuss'!AP73","v":{"v":0,"d":"0.00"}},null,{"$f":"E48*0.25","v":0}]
["Resource Management",null,{"v":0.15,"d":"15%"},null,{"$f":"'Document Analysis, Obs. Discuss'!AP74","v":{"v":0,"d":"0.00"}},null,{"$f":"E49*0.15","v":0}]
["Sub-total",{"$nulls":5},{"$f":"SUM(G46:G49)","v":0.18}]
["Interpretation:",null,"Good"]
[null,null,"Better"]
[null,null,"Best"]
["Legend:","Numerical Rating Scale",null,null,"Description"]
[null,"0.50-1.49",null,null,"Good"]
[null,"1.50-2.49",null,null,"Better"]
[null,"2.50-3.00",null,null,"Best"]
{"$rows_empty":7}
["Step 3: Compute for Final Rating"]
["Areas",null,"Weight",null,"Computation",null,"Results"]
["A. Performance Improvement",null,{"v":0.6,"d":"60%"},null,{"$f":"H41","v":{"$error":"#VALUE!"}},null,{"$f":"C67*E67","v":{"$error":"#VALUE!"}},{"$nulls":6},"Performance Improvement",{"$f":"E67","v":{"$error":"#VALUE!"}}]
["B. SBM Assessment Score (DOD)",null,{"v":0.4,"d":"40%"},null,{"$f":"G50","v":0.18},null,{"$f":"C68*E68","v":{"v":0.072,"d":"0.07"}},{"$nulls":6},"SBM Assessment Score",{"$f":"E68","v":0.18}]
["Total",{"$nulls":5},{"$f":"SUM(G67:G68)","v":{"$error":"#VALUE!"}},{"$nulls":6},"SBM Final Rating",{"$f":"G69","v":{"$error":"#VALUE!"}}]
[]
["Interpretation:"]
[null,"Developing ( Level I)"]
[null,"Maturing (Level II)"]
[null,"Advanced (Level III)"]
[]
["Description of SBM Level of Practice:"]
[null,"Numerical Rating Scale",null,null,"Description"]
[null,"0.50-1.49",null,null,"Developing"]
[null,"1.50-2.49",null,null,"Maturing"]
[null,"2.50-3.00",null,null,"Advanced"]
[]
["Results:",{"$f":"IF(G69<1.5,\"Developing level- Structures and mechanisms with acceptable level and extent of community participation and impact on learning outcomes.\",IF(G69<2.5,\"Maturing level - Introducing and sustaining continuous improvement process that integrates wider community participation and improve sinificantly performance and learning outcomes.\",IF(G69<3,\"Advanced level - Ensuring the production of intended outputs/outcomes and meeting all standards of a system fully integrated in the local community and is self-renewing and self-sustaining.\",\"\")))","v":{"$error":"#VALUE!"}}]
{"$rows_empty":17}
["Validators:"]
[null,{"$f":"'Input Menu'!B51","v":0},null,null,{"$f":"'Input Menu'!B52","v":0}]
[null,"Member",null,null,"Member"]
[]
[]
[null,{"$f":"'Input Menu'!B53","v":0},null,null,{"$f":"'Input Menu'!B54","v":0}]
[null,"Member",null,null,"Member"]
[]
[]
[]
[null,{"$f":"'Input Menu'!B50","v":0}]
[null,"Chairman"]
[{"$f":"'Main Menu'!#REF!","v":{"$error":"#REF!"}}]

{"sheet":"5Elem. ER, CR2, CSR1, NAT1","index":14,"n_rows":112,"n_cols":15,"rows_kept":112,"hidden":true,"merged":[[0,0,0,7],[1,0,1,7],[2,0,2,7],[4,0,4,7],[5,1,5,3],[5,5,5,7],[7,0,7,7],[8,1,8,2],[10,0,15,0],[10,4,15,4],[10,5,15,5],[10,6,15,6],[10,7,15,7],[16,0,33,0],[16,4,21,4],[16,5,21,5],[16,6,21,6],[16,7,33,7],[22,4,27,4],[22,5,27,5],[22,6,27,6],[28,4,33,4],[28,5,33,5],[28,6,33,6],[34,0,39,0],[34,4,39,4],[34,5,39,5],[34,6,39,6],[34,7,39,7],[40,0,40,4],[42,0,42,7],[43,0,43,7],[44,0,44,1],[44,2,44,3],[44,4,44,5],[44,6,44,7],[45,0,45,1],[45,2,45,3],[45,4,45,5],[45,6,45,7],[46,0,46,1],[46,2,46,3],[46,4,46,5],[46,6,46,7],[47,0,47,1],[47,2,47,3],[47,4,47,5],[47,6,47,7],[48,0,48,1],[48,2,48,3],[48,4,48,5],[48,6,48,7],[49,0,49,5],[49,6,49,7],[53,1,53,3],[53,4,53,5],[54,1,54,3],[54,4,54,5],[55,1,55,3],[55,4,55,5],[56,1,56,3],[56,4,56,5],[64,0,64,7],[65,0,65,1],[65,2,65,3],[65,4,65,5],[65,6,65,7],[66,0,66,1],[66,2,66,3],[66,4,66,5],[66,6,66,7],[67,0,67,1],[67,2,67,3],[67,4,67,5],[67,6,67,7],[68,0,68,5],[68,6,68,7],[75,0,75,7],[76,1,76,3],[76,4,76,5],[77,1,77,3],[77,4,77,5],[78,1,78,3],[78,4,78,5],[79,1,79,3],[79,4,79,5],[81,1,84,7],[100,1,100,2],[100,4,100,5],[101,1,101,2],[101,4,101,5],[104,1,104,2],[104,4,104,5],[105,1,105,2],[105,4,105,5],[109,1,109,5],[110,1,110,5]]}
[{"$f":"'Main Menu'!A1:F1","v":"Department of Education"}]
[{"$f":"'Main Menu'!A2:F2","v":"Region X"}]
[{"$f":"'Main Menu'!A3:F3","v":""}]
[]
["SBM Validation"]
["Name of School:",{"$f":"'Main Menu'!G6","v":0},null,null,"School Year:",{"$f":"'Main Menu'!B8","v":""},{"$nulls":4},{"$f":"B6","v":0}]
[]
["Step 1: Determine Performance Improvement (60%)"]
["Thematic Area","Performance Indicators",null,null,"Rating & Equivalent Points","Computation","Computation","Results"]
[]
["Access (45%)","Enrolment Increase","% of Increase","Enrolment",null,{"$f":"grd(C16)","v":{"$error":"#VALUE!"}},{"$f":"F11*0.45","v":{"$error":"#VALUE!"}},{"$f":"G11","v":{"$error":"#VALUE!"}}]
[null,{"$f":"'Main Menu'!B14","v":"SY 2009-2010"},null,{"$f":"'Main Menu'!D14","v":990}]
[null,{"$f":"'Main Menu'!B15","v":""},null,{"$f":"'Main Menu'!D15","v":""},{"$nulls":6},"SY 2009-2010"]
[null,{"$f":"'Main Menu'!B16","v":""},{"$f":"((D14-D13)/D13)*100","v":{"$error":"#VALUE!"}},{"$f":"'Main Menu'!D16","v":""},{"$nulls":6},"SY 2010-2011"]
[null,{"$f":"'Main Menu'!B17","v":""},{"$f":"((D15-D14)/D14)*100","v":{"$error":"#VALUE!"}},{"$f":"'Main Menu'!D17","v":""},{"$nulls":6},"SY 2011-2012"]
[null,"Ave. % of Increase",{"$f":"AVERAGE(C14:C15)","v":{"$error":"#VALUE!"}},{"$nulls":7},"SY 2012-2013"]
["Efficiency (25%)","Dropout Rate (DR):","% of decrease","Dropout",null,{"$f":"IF(C22>=5,\"1\",IF(C22>=2,\"2\",IF(C22<2,\"3\",\"0\")))","v":{"$error":"#VALUE!"}},{"$f":"F17*0.0833","v":{"$error":"#VALUE!"}},{"$f":"SUM(G17:G34)","v":{"$error":"#VALUE!"}},null,null,"SY 2013-2014"]
[null,{"$f":"'Main Menu'!B20","v":"SY 2008-2009"},null,{"$f":"'Main Menu'!D20","v":0.02}]
[null,{"$f":"'Main Menu'!B21","v":""},null,{"$f":"'Main Menu'!D21","v":""},{"$nulls":6},"SY 2014- 2015"]
[null,{"$f":"'Main Menu'!B22","v":""},{"$f":"((D20-D19))","v":{"$error":"#VALUE!"}},{"$f":"'Main Menu'!D22","v":""},{"$nulls":6},"SY 2015- 2016"]
[null,{"$f":"'Main Menu'!B23","v":""},{"$f":"D21-D20","v":{"$error":"#VALUE!"}},{"$f":"'Main Menu'!D23","v":""},{"$nulls":6},"SY 2016-2017"]
[null,"Ave. % of Decrease",{"$f":"(C20+C21)/2","v":{"$error":"#VALUE!"}}]
[null,"Completion Rate (CR):","% of Increase","Completion",null,{"$f":"N28","v":3},{"$f":"F23*0.0833","v":{"v":0.2499,"d":"0.25"}},{"$nulls":3},"SY 2017-2018"]
[null,{"$f":"'Main Menu'!B26","v":"SY 2008-2009"},null,{"$f":"'Main Menu'!D26","v":65}]
[null,{"$f":"'Main Menu'!B27","v":""},null,{"$f":"'Main Menu'!D27","v":""},{"$nulls":6},"SY 2018- 2019",null,null,{"$f":"IF(D25>=95,\"3\",\"0\")","v":"3"}]
[null,{"$f":"'Main Menu'!B28","v":""},null,{"$f":"'Main Menu'!D28","v":""},{"$nulls":6},"SY 2019- 2020",null,null,{"$f":"IF(D26>=95,\"3\",\"0\")","v":"3"}]
[null,{"$f":"'Main Menu'!B29","v":""},null,{"$f":"'Main Menu'!D29","v":""},{"$nulls":9},{"$f":"IF(D27>=95,\"3\",\"0\")","v":"3"}]
[null,"Ave. % of Increase",{"$nulls":11},{"$f":"(N25+N26+N27)/3","v":3}]
[null,"Cohort Survival Rate (CSR):","% of Increase","Cohort Survival",null,{"$f":"IF(C34>=5,\"1\",IF(C34>=7,\"2\",IF(C34>=10,\"3\",\"0\")))","v":"0"},{"$f":"F29*0.0834","v":{"v":0,"d":"0.00"}}]
[null,{"$f":"'Main Menu'!B32","v":"SY 2008-2009"},null,{"$f":"'Main Menu'!D32","v":58}]
[null,{"$f":"'Main Menu'!B33","v":""},null,{"$f":"'Main Menu'!D33","v":{"v":95,"d":"95.00"}}]
[null,{"$f":"'Main Menu'!B34","v":""},{"$f":"(D32-D31)/D31*100","v":{"v":1.0526315789473684,"d":"1.05"}},{"$f":"'Main Menu'!D34","v":{"v":96,"d":"96.00"}}]
[null,{"$f":"'Main Menu'!B35","v":""},{"$f":"(D33-D32)/D32*100","v":{"v":-12.791666666666668,"d":"-12.79"}},{"$f":"'Main Menu'!D35","v":83.72}]
[null,"Ave. % of Increase",{"$f":"(C32+C33)/2","v":{"v":-5.86951754385965,"d":"-5.87"}}]
["Quality (30%)","NAT MPS","% of Increase","NAT MPS",null,{"$f":"IF(C40>=7,\"3\",IF(C40>=5,\"2\",IF(C40>=2,\"1\",\"0\")))","v":{"$error":"#VALUE!"}},{"$f":"F35*0.3","v":{"$error":"#VALUE!"}},{"$f":"G35","v":{"$error":"#VALUE!"}}]
[null,{"$f":"'Main Menu'!B38","v":"SY 2008-2009"},null,{"$f":"'Main Menu'!D38","v":{"v":56,"d":"56.00"}}]
[null,{"$f":"'Main Menu'!B39","v":""},null,{"$f":"'Main Menu'!D39","v":""}]
[null,{"$f":"'Main Menu'!B40","v":""},{"$f":"((D38-D37)/D37)*100","v":{"$error":"#VALUE!"}},{"$f":"'Main Menu'!D40","v":""}]
[null,{"$f":"'Main Menu'!B41","v":""},{"$f":"((D39-D38)/D38)*100","v":{"$error":"#VALUE!"}},{"$f":"'Main Menu'!D41","v":""}]
[null,"Ave. % of Increase",{"$f":"AVERAGE(C38:C39)","v":{"$error":"#VALUE!"}}]
["Sub-Total",{"$nulls":6},{"$f":"SUM(H11:H40)","v":{"$error":"#VALUE!"}}]
[]
["Note: Only Schools having a Performance Improvement of \" Better\" can apply to the Division for SBM Validation."]
["Step 2: Compute for validated SBM Assessment Scores (40%)"]
["SBM Principles",null,"Weight",null,"Cummulative Scores of Validators per Principles",null,"Results"]
["Leadership",null,{"v":0.3,"d":"30%"},null,{"$f":"'Document Analysis, Obs. Discuss'!AP71","v":{"v":0.6,"d":"0.60"}},null,{"$f":"E46*0.3","v":0.18}]
["Curriculum & Learning",null,{"v":0.3,"d":"30%"},null,{"$f":"'Document Analysis, Obs. Discuss'!AP72","v":{"v":0,"d":"0.00"}},null,{"$f":"E47*0.3","v":0}]
["Accountability",null,{"v":0.25,"d":"25%"},null,{"$f":"'Document Analysis, Obs. Discuss'!AP73","v":{"v":0,"d":"0.00"}},null,{"$f":"E48*0.25","v":0}]
["Resource Management",null,{"v":0.15,"d":"15%"},null,{"$f":"'Document Analysis, Obs. Discuss'!AP74","v":{"v":0,"d":"0.00"}},null,{"$f":"E49*0.15","v":0}]
["Sub-total",{"$nulls":5},{"$f":"SUM(G46:G49)","v":0.18}]
["Interpretation:",null,"Good"]
[null,null,"Better"]
[null,null,"Best"]
["Legend:","Numerical Rating Scale",null,null,"Description"]
[null,"0.50-1.49",null,null,"Good"]
[null,"1.50-2.49",null,null,"Better"]
[null,"2.50-3.00",null,null,"Best"]
{"$rows_empty":7}
["Step 3: Compute for Final Rating"]
["Areas",null,"Weight",null,"Computation",null,"Results"]
["A. Performance Improvement",null,{"v":0.6,"d":"60%"},null,{"$f":"H41","v":{"$error":"#VALUE!"}},null,{"$f":"C67*E67","v":{"$error":"#VALUE!"}},{"$nulls":6},"Performance Improvement",{"$f":"E67","v":{"$error":"#VALUE!"}}]
["B. SBM Assessment Score (DOD)",null,{"v":0.4,"d":"40%"},null,{"$f":"G50","v":0.18},null,{"$f":"C68*E68","v":{"v":0.072,"d":"0.07"}},{"$nulls":6},"SBM Assessment Score",{"$f":"E68","v":0.18}]
["Total",{"$nulls":5},{"$f":"SUM(G67:G68)","v":{"$error":"#VALUE!"}},{"$nulls":6},"SBM Final Rating",{"$f":"G69","v":{"$error":"#VALUE!"}}]
[]
["Interpretation:"]
[null,"Developing ( Level I)"]
[null,"Maturing (Level II)"]
[null,"Advanced (Level III)"]
[]
["Description of SBM Level of Practice:"]
[null,"Numerical Rating Scale",null,null,"Description"]
[null,"0.50-1.49",null,null,"Developing"]
[null,"1.50-2.49",null,null,"Maturing"]
[null,"2.50-3.00",null,null,"Advanced"]
[]
["Results:",{"$f":"IF(G69<1.5,\"Developing level- Structures and mechanisms with acceptable level and extent of community participation and impact on learning outcomes.\",IF(G69<2.5,\"Maturing level - Introducing and sustaining continuous improvement process that integrates wider community participation and improve sinificantly performance and learning outcomes.\",IF(G69<3,\"Advanced level - Ensuring the production of intended outputs/outcomes and meeting all standards of a system fully integrated in the local community and is self-renewing and self-sustaining.\",\"\")))","v":{"$error":"#VALUE!"}}]
{"$rows_empty":17}
["Validators:"]
[null,{"$f":"'Input Menu'!B51","v":0},null,null,{"$f":"'Input Menu'!B52","v":0}]
[null,"Member",null,null,"Member"]
[]
[]
[null,{"$f":"'Input Menu'!B53","v":0},null,null,{"$f":"'Input Menu'!B54","v":0}]
[null,"Member",null,null,"Member"]
[]
[]
[]
[null,{"$f":"'Input Menu'!B50","v":0}]
[null,"Chairman"]
[{"$f":"'Main Menu'!#REF!","v":{"$error":"#REF!"}}]

{"sheet":"6Elem. ER, CR2, CSR1, NAT2","index":15,"n_rows":112,"n_cols":16,"rows_kept":112,"hidden":true,"merged":[[0,0,0,7],[1,0,1,7],[2,0,2,7],[4,0,4,7],[5,1,5,3],[5,5,5,7],[7,0,7,7],[8,1,8,2],[10,0,15,0],[10,4,15,4],[10,5,15,5],[10,6,15,6],[10,7,15,7],[16,0,33,0],[16,4,21,4],[16,5,21,5],[16,6,21,6],[16,7,33,7],[22,4,27,4],[22,5,27,5],[22,6,27,6],[28,4,33,4],[28,5,33,5],[28,6,33,6],[34,0,39,0],[34,4,39,4],[34,5,39,5],[34,6,39,6],[34,7,39,7],[40,0,40,4],[42,0,42,7],[43,0,43,7],[44,0,44,1],[44,2,44,3],[44,4,44,5],[44,6,44,7],[45,0,45,1],[45,2,45,3],[45,4,45,5],[45,6,45,7],[46,0,46,1],[46,2,46,3],[46,4,46,5],[46,6,46,7],[47,0,47,1],[47,2,47,3],[47,4,47,5],[47,6,47,7],[48,0,48,1],[48,2,48,3],[48,4,48,5],[48,6,48,7],[49,0,49,5],[49,6,49,7],[53,1,53,3],[53,4,53,5],[54,1,54,3],[54,4,54,5],[55,1,55,3],[55,4,55,5],[56,1,56,3],[56,4,56,5],[64,0,64,7],[65,0,65,1],[65,2,65,3],[65,4,65,5],[65,6,65,7],[66,0,66,1],[66,2,66,3],[66,4,66,5],[66,6,66,7],[67,0,67,1],[67,2,67,3],[67,4,67,5],[67,6,67,7],[68,0,68,5],[68,6,68,7],[75,0,75,7],[76,1,76,3],[76,4,76,5],[77,1,77,3],[77,4,77,5],[78,1,78,3],[78,4,78,5],[79,1,79,3],[79,4,79,5],[81,1,84,7],[100,1,100,2],[100,4,100,5],[101,1,101,2],[101,4,101,5],[104,1,104,2],[104,4,104,5],[105,1,105,2],[105,4,105,5],[109,1,109,5],[110,1,110,5]]}
[{"$f":"'Main Menu'!A1:F1","v":"Department of Education"}]
[{"$f":"'Main Menu'!A2:F2","v":"Region X"}]
[{"$f":"'Main Menu'!A3:F3","v":""}]
[]
["SBM Validation"]
["Name of School:",{"$f":"'Main Menu'!G6","v":0},null,null,"School Year:",{"$f":"'Main Menu'!B8","v":""},{"$nulls":4},{"$f":"B6","v":0}]
[]
["Step 1: Determine Performance Improvement (60%)"]
["Thematic Area","Performance Indicators",null,null,"Rating & Equivalent Points","Computation","Computation","Results"]
[]
["Access (45%)","Enrolment Increase","% of Increase","Enrolment",null,{"$f":"grd(C16)","v":{"$error":"#VALUE!"}},{"$f":"F11*0.45","v":{"$error":"#VALUE!"}},{"$f":"G11","v":{"$error":"#VALUE!"}}]
[null,{"$f":"'Main Menu'!B14","v":"SY 2009-2010"},null,{"$f":"'Main Menu'!D14","v":990}]
[null,{"$f":"'Main Menu'!B15","v":""},null,{"$f":"'Main Menu'!D15","v":""},{"$nulls":6},"SY 2009-2010"]
[null,{"$f":"'Main Menu'!B16","v":""},{"$f":"((D14-D13)/D13)*100","v":{"$error":"#VALUE!"}},{"$f":"'Main Menu'!D16","v":""},{"$nulls":6},"SY 2010-2011"]
[null,{"$f":"'Main Menu'!B17","v":""},{"$f":"((D15-D14)/D14)*100","v":{"$error":"#VALUE!"}},{"$f":"'Main Menu'!D17","v":""},{"$nulls":6},"SY 2011-2012"]
[null,"Ave. % of Increase",{"$f":"AVERAGE(C14:C15)","v":{"$error":"#VALUE!"}},{"$nulls":7},"SY 2012-2013"]
["Efficiency (25%)","Dropout Rate (DR):","% of decrease","Dropout",null,{"$f":"IF(C22>=5,\"1\",IF(C22>=2,\"2\",IF(C22<2,\"3\",\"0\")))","v":{"$error":"#VALUE!"}},{"$f":"F17*0.0833","v":{"$error":"#VALUE!"}},{"$f":"SUM(G17:G34)","v":{"$error":"#VALUE!"}},null,null,"SY 2013-2014"]
[null,{"$f":"'Main Menu'!B20","v":"SY 2008-2009"},null,{"$f":"'Main Menu'!D20","v":0.02}]
[null,{"$f":"'Main Menu'!B21","v":""},null,{"$f":"'Main Menu'!D21","v":""},{"$nulls":6},"SY 2014- 2015"]
[null,{"$f":"'Main Menu'!B22","v":""},{"$f":"((D20-D19))","v":{"$error":"#VALUE!"}},{"$f":"'Main Menu'!D22","v":""},{"$nulls":6},"SY 2015- 2016"]
[null,{"$f":"'Main Menu'!B23","v":""},{"$f":"D21-D20","v":{"$error":"#VALUE!"}},{"$f":"'Main Menu'!D23","v":""},{"$nulls":6},"SY 2016-2017"]
[null,"Ave. % of Decrease",{"$f":"(C20+C21)/2","v":{"$error":"#VALUE!"}}]
[null,"Completion Rate (CR):","% of Increase","Completion",null,{"$f":"N28","v":3},{"$f":"F23*0.0833","v":{"v":0.2499,"d":"0.25"}},{"$nulls":3},"SY 2017-2018"]
[null,{"$f":"'Main Menu'!B26","v":"SY 2008-2009"},null,{"$f":"'Main Menu'!D26","v":65}]
[null,{"$f":"'Main Menu'!B27","v":""},null,{"$f":"'Main Menu'!D27","v":""},{"$nulls":6},"SY 2018- 2019",null,null,{"$f":"IF(D25>=95,\"3\",\"0\")","v":"3"}]
[null,{"$f":"'Main Menu'!B28","v":""},null,{"$f":"'Main Menu'!D28","v":""},{"$nulls":6},"SY 2019- 2020",null,null,{"$f":"IF(D26>=95,\"3\",\"0\")","v":"3"}]
[null,{"$f":"'Main Menu'!B29","v":""},null,{"$f":"'Main Menu'!D29","v":""},{"$nulls":9},{"$f":"IF(D27>=95,\"3\",\"0\")","v":"3"}]
[null,"Ave. % of Increase",{"$nulls":11},{"$f":"(N25+N26+N27)/3","v":3}]
[null,"Cohort Survival Rate (CSR):","% of Increase","Cohort Survival",null,{"$f":"IF(C34>=5,\"1\",IF(C34>=7,\"2\",IF(C34>=10,\"3\",\"0\")))","v":"0"},{"$f":"F29*0.0834","v":{"v":0,"d":"0.00"}}]
[null,{"$f":"'Main Menu'!B32","v":"SY 2008-2009"},null,{"$f":"'Main Menu'!D32","v":58}]
[null,{"$f":"'Main Menu'!B33","v":""},null,{"$f":"'Main Menu'!D33","v":{"v":95,"d":"95.00"}}]
[null,{"$f":"'Main Menu'!B34","v":""},{"$f":"(D32-D31)/D31*100","v":{"v":1.0526315789473684,"d":"1.05"}},{"$f":"'Main Menu'!D34","v":{"v":96,"d":"96.00"}}]
[null,{"$f":"'Main Menu'!B35","v":""},{"$f":"(D33-D32)/D32*100","v":{"v":-12.791666666666668,"d":"-12.79"}},{"$f":"'Main Menu'!D35","v":83.72}]
[null,"Ave. % of Increase",{"$f":"(C32+C33)/2","v":{"v":-5.86951754385965,"d":"-5.87"}}]
["Quality (30%)","NAT MPS","% of Increase","NAT MPS",null,{"$f":"P40","v":3},{"$f":"F35*0.3","v":0.8999999999999999},{"$f":"G35","v":0.8999999999999999}]
[null,{"$f":"'Main Menu'!B38","v":"SY 2008-2009"},null,{"$f":"'Main Menu'!D38","v":{"v":56,"d":"56.00"}}]
[null,{"$f":"'Main Menu'!B39","v":""},null,{"$f":"'Main Menu'!D39","v":""},{"$nulls":11},{"$f":"IF(D37>=75,\"3\",\"0\")","v":"3"}]
[null,{"$f":"'Main Menu'!B40","v":""},null,{"$f":"'Main Menu'!D40","v":""},{"$nulls":11},{"$f":"IF(D38>=75,\"3\",\"0\")","v":"3"}]
[null,{"$f":"'Main Menu'!B41","v":""},null,{"$f":"'Main Menu'!D41","v":""},{"$nulls":11},{"$f":"IF(D39>=75,\"3\",\"0\")","v":"3"}]
[null,"Ave. % of Increase",{"$nulls":13},{"$f":"(P37+P38+P39)/3","v":3}]
["Sub-Total",{"$nulls":6},{"$f":"SUM(H11:H40)","v":{"$error":"#VALUE!"}}]
[]
["Note: Only Schools having a Performance Improvement of \" Better\" can apply to the Division for SBM Validation."]
["Step 2: Compute for validated SBM Assessment Scores (40%)"]
["SBM Principles",null,"Weight",null,"Cummulative Scores of Validators per Principles",null,"Results"]
["Leadership",null,{"v":0.3,"d":"30%"},null,{"$f":"'Document Analysis, Obs. Discuss'!AP71","v":{"v":0.6,"d":"0.60"}},null,{"$f":"E46*0.3","v":0.18}]
["Curriculum & Learning",null,{"v":0.3,"d":"30%"},null,{"$f":"'Document Analysis, Obs. Discuss'!AP72","v":{"v":0,"d":"0.00"}},null,{"$f":"E47*0.3","v":0}]
["Accountability",null,{"v":0.25,"d":"25%"},null,{"$f":"'Document Analysis, Obs. Discuss'!AP73","v":{"v":0,"d":"0.00"}},null,{"$f":"E48*0.25","v":0}]
["Resource Management",null,{"v":0.15,"d":"15%"},null,{"$f":"'Document Analysis, Obs. Discuss'!AP74","v":{"v":0,"d":"0.00"}},null,{"$f":"E49*0.15","v":0}]
["Sub-total",{"$nulls":5},{"$f":"SUM(G46:G49)","v":0.18}]
["Interpretation:",null,"Good"]
[null,null,"Better"]
[null,null,"Best"]
["Legend:","Numerical Rating Scale",null,null,"Description"]
[null,"0.50-1.49",null,null,"Good"]
[null,"1.50-2.49",null,null,"Better"]
[null,"2.50-3.00",null,null,"Best"]
{"$rows_empty":7}
["Step 3: Compute for Final Rating"]
["Areas",null,"Weight",null,"Computation",null,"Results"]
["A. Performance Improvement",null,{"v":0.6,"d":"60%"},null,{"$f":"H41","v":{"$error":"#VALUE!"}},null,{"$f":"C67*E67","v":{"$error":"#VALUE!"}},{"$nulls":6},"Performance Improvement",{"$f":"E67","v":{"$error":"#VALUE!"}}]
["B. SBM Assessment Score (DOD)",null,{"v":0.4,"d":"40%"},null,{"$f":"G50","v":0.18},null,{"$f":"C68*E68","v":{"v":0.072,"d":"0.07"}},{"$nulls":6},"SBM Assessment Score",{"$f":"E68","v":0.18}]
["Total",{"$nulls":5},{"$f":"SUM(G67:G68)","v":{"$error":"#VALUE!"}},{"$nulls":6},"SBM Final Rating",{"$f":"G69","v":{"$error":"#VALUE!"}}]
[]
["Interpretation:"]
[null,"Developing ( Level I)"]
[null,"Maturing (Level II)"]
[null,"Advanced (Level III)"]
[]
["Description of SBM Level of Practice:"]
[null,"Numerical Rating Scale",null,null,"Description"]
[null,"0.50-1.49",null,null,"Developing"]
[null,"1.50-2.49",null,null,"Maturing"]
[null,"2.50-3.00",null,null,"Advanced"]
[]
["Results:",{"$f":"IF(G69<1.5,\"Developing level- Structures and mechanisms with acceptable level and extent of community participation and impact on learning outcomes.\",IF(G69<2.5,\"Maturing level - Introducing and sustaining continuous improvement process that integrates wider community participation and improve sinificantly performance and learning outcomes.\",IF(G69<3,\"Advanced level - Ensuring the production of intended outputs/outcomes and meeting all standards of a system fully integrated in the local community and is self-renewing and self-sustaining.\",\"\")))","v":{"$error":"#VALUE!"}}]
{"$rows_empty":17}
["Validators:"]
[null,{"$f":"'Input Menu'!B51","v":0},null,null,{"$f":"'Input Menu'!B52","v":0}]
[null,"Member",null,null,"Member"]
[]
[]
[null,{"$f":"'Input Menu'!B53","v":0},null,null,{"$f":"'Input Menu'!B54","v":0}]
[null,"Member",null,null,"Member"]
[]
[]
[]
[null,{"$f":"'Input Menu'!B50","v":0}]
[null,"Chairman"]
[{"$f":"'Main Menu'!#REF!","v":{"$error":"#REF!"}}]

{"sheet":"7Elem. ER, CR2, CSR2, NAT1","index":16,"n_rows":112,"n_cols":18,"rows_kept":112,"hidden":true,"merged":[[0,0,0,7],[1,0,1,7],[2,0,2,7],[4,0,4,7],[5,1,5,3],[5,5,5,7],[7,0,7,7],[8,1,8,2],[10,0,15,0],[10,4,15,4],[10,5,15,5],[10,6,15,6],[10,7,15,7],[16,0,33,0],[16,4,21,4],[16,5,21,5],[16,6,21,6],[16,7,33,7],[22,4,27,4],[22,5,27,5],[22,6,27,6],[28,4,33,4],[28,5,33,5],[28,6,33,6],[34,0,39,0],[34,4,39,4],[34,5,39,5],[34,6,39,6],[34,7,39,7],[40,0,40,4],[42,0,42,7],[43,0,43,7],[44,0,44,1],[44,2,44,3],[44,4,44,5],[44,6,44,7],[45,0,45,1],[45,2,45,3],[45,4,45,5],[45,6,45,7],[46,0,46,1],[46,2,46,3],[46,4,46,5],[46,6,46,7],[47,0,47,1],[47,2,47,3],[47,4,47,5],[47,6,47,7],[48,0,48,1],[48,2,48,3],[48,4,48,5],[48,6,48,7],[49,0,49,5],[49,6,49,7],[53,1,53,3],[53,4,53,5],[54,1,54,3],[54,4,54,5],[55,1,55,3],[55,4,55,5],[56,1,56,3],[56,4,56,5],[64,0,64,7],[65,0,65,1],[65,2,65,3],[65,4,65,5],[65,6,65,7],[66,0,66,1],[66,2,66,3],[66,4,66,5],[66,6,66,7],[67,0,67,1],[67,2,67,3],[67,4,67,5],[67,6,67,7],[68,0,68,5],[68,6,68,7],[75,0,75,7],[76,1,76,3],[76,4,76,5],[77,1,77,3],[77,4,77,5],[78,1,78,3],[78,4,78,5],[79,1,79,3],[79,4,79,5],[81,1,84,7],[100,1,100,2],[100,4,100,5],[101,1,101,2],[101,4,101,5],[104,1,104,2],[104,4,104,5],[105,1,105,2],[105,4,105,5],[109,1,109,5],[110,1,110,5]]}
[{"$f":"'Main Menu'!A1:F1","v":"Department of Education"}]
[{"$f":"'Main Menu'!A2:F2","v":"Region X"}]
[{"$f":"'Main Menu'!A3:F3","v":""}]
[]
["SBM Validation"]
["Name of School:",{"$f":"'Main Menu'!G6","v":0},null,null,"School Year:",{"$f":"'Main Menu'!B8","v":""},{"$nulls":4},{"$f":"B6","v":0}]
[]
["Step 1: Determine Performance Improvement (60%)"]
["Thematic Area","Performance Indicators",null,null,"Rating & Equivalent Points","Computation","Computation","Results"]
[]
["Access (45%)","Enrolment Increase","% of Increase","Enrolment",null,{"$f":"grd(C16)","v":{"$error":"#VALUE!"}},{"$f":"F11*0.45","v":{"$error":"#VALUE!"}},{"$f":"G11","v":{"$error":"#VALUE!"}}]
[null,{"$f":"'Main Menu'!B14","v":"SY 2009-2010"},null,{"$f":"'Main Menu'!D14","v":990}]
[null,{"$f":"'Main Menu'!B15","v":""},null,{"$f":"'Main Menu'!D15","v":""},{"$nulls":6},"SY 2009-2010"]
[null,{"$f":"'Main Menu'!B16","v":""},{"$f":"((D14-D13)/D13)*100","v":{"$error":"#VALUE!"}},{"$f":"'Main Menu'!D16","v":""},{"$nulls":6},"SY 2010-2011"]
[null,{"$f":"'Main Menu'!B17","v":""},{"$f":"((D15-D14)/D14)*100","v":{"$error":"#VALUE!"}},{"$f":"'Main Menu'!D17","v":""},{"$nulls":6},"SY 2011-2012"]
[null,"Ave. % of Increase",{"$f":"AVERAGE(C14:C15)","v":{"$error":"#VALUE!"}},{"$nulls":7},"SY 2012-2013"]
["Efficiency (25%)","Dropout Rate (DR):","% of decrease","Dropout",null,{"$f":"IF(C22>=5,\"1\",IF(C22>=2,\"2\",IF(C22<2,\"3\",\"0\")))","v":{"$error":"#VALUE!"}},{"$f":"F17*0.0833","v":{"$error":"#VALUE!"}},{"$f":"SUM(G17:G34)","v":{"$error":"#VALUE!"}},null,null,"SY 2013-2014"]
[null,{"$f":"'Main Menu'!B20","v":"SY 2008-2009"},null,{"$f":"'Main Menu'!D20","v":0.02}]
[null,{"$f":"'Main Menu'!B21","v":""},null,{"$f":"'Main Menu'!D21","v":""},{"$nulls":6},"SY 2014- 2015"]
[null,{"$f":"'Main Menu'!B22","v":""},{"$f":"((D20-D19))","v":{"$error":"#VALUE!"}},{"$f":"'Main Menu'!D22","v":""},{"$nulls":6},"SY 2015- 2016"]
[null,{"$f":"'Main Menu'!B23","v":""},{"$f":"D21-D20","v":{"$error":"#VALUE!"}},{"$f":"'Main Menu'!D23","v":""},{"$nulls":6},"SY 2016-2017"]
[null,"Ave. % of Decrease",{"$f":"(C20+C21)/2","v":{"$error":"#VALUE!"}}]
[null,"Completion Rate (CR):","% of Increase","Completion",null,{"$f":"N28","v":3},{"$f":"F23*0.0833","v":{"v":0.2499,"d":"0.25"}},{"$nulls":3},"SY 2017-2018"]
[null,{"$f":"'Main Menu'!B26","v":"SY 2008-2009"},null,{"$f":"'Main Menu'!D26","v":65}]
[null,{"$f":"'Main Menu'!B27","v":""},null,{"$f":"'Main Menu'!D27","v":""},{"$nulls":6},"SY 2018- 2019",null,null,{"$f":"IF(D25>=95,\"3\",\"0\")","v":"3"}]
[null,{"$f":"'Main Menu'!B28","v":""},null,{"$f":"'Main Menu'!D28","v":""},{"$nulls":6},"SY 2019- 2020",null,null,{"$f":"IF(D26>=95,\"3\",\"0\")","v":"3"}]
[null,{"$f":"'Main Menu'!B29","v":""},null,{"$f":"'Main Menu'!D29","v":""},{"$nulls":9},{"$f":"IF(D27>=95,\"3\",\"0\")","v":"3"}]
[null,"Ave. % of Increase",{"$nulls":11},{"$f":"(N25+N26+N27)/3","v":3}]
[null,"Cohort Survival Rate (CSR):","% of Increase","Cohort Survival",null,{"$f":"R34","v":2},{"$f":"F29*0.0834","v":{"v":0.1668,"d":"0.17"}}]
[null,{"$f":"'Main Menu'!B32","v":"SY 2008-2009"},null,{"$f":"'Main Menu'!D32","v":58}]
[null,{"$f":"'Main Menu'!B33","v":""},null,{"$f":"'Main Menu'!D33","v":{"v":95,"d":"95.00"}},{"$nulls":13},{"$f":"IF(D31>=95,\"3\",\"0\")","v":"3"}]
[null,{"$f":"'Main Menu'!B34","v":""},null,{"$f":"'Main Menu'!D34","v":{"v":96,"d":"96.00"}},{"$nulls":13},{"$f":"IF(D32>=95,\"3\",\"0\")","v":"3"}]
[null,{"$f":"'Main Menu'!B35","v":""},null,{"$f":"'Main Menu'!D35","v":83.72},{"$nulls":13},{"$f":"IF(D33>=95,\"3\",\"0\")","v":"0"}]
[null,"Ave. % of Increase",{"$nulls":15},{"$f":"(R31+R32+R33)/3","v":2}]
["Quality (30%)","NAT MPS","% of Increase","NAT MPS",null,{"$f":"IF(C40>=7,\"3\",IF(C40>=5,\"2\",IF(C40>2,\"1\",\"0\")))","v":{"$error":"#VALUE!"}},{"$f":"F35*0.3","v":{"$error":"#VALUE!"}},{"$f":"G35","v":{"$error":"#VALUE!"}}]
[null,{"$f":"'Main Menu'!B38","v":"SY 2008-2009"},null,{"$f":"'Main Menu'!D38","v":{"v":56,"d":"56.00"}}]
[null,{"$f":"'Main Menu'!B39","v":""},null,{"$f":"'Main Menu'!D39","v":""},{"$nulls":11},{"$f":"IF(D37>=75,\"3\",\"0\")","v":"3"}]
[null,{"$f":"'Main Menu'!B40","v":""},{"$f":"(D38-D37)/D37*100","v":{"$error":"#VALUE!"}},{"$f":"'Main Menu'!D40","v":""},{"$nulls":11},{"$f":"IF(D38>=75,\"3\",\"0\")","v":"3"}]
[null,{"$f":"'Main Menu'!B41","v":""},{"$f":"(D39-D38)/D38*100","v":{"$error":"#VALUE!"}},{"$f":"'Main Menu'!D41","v":""},{"$nulls":11},{"$f":"IF(D39>=75,\"3\",\"0\")","v":"3"}]
[null,"Ave. % of Increase",{"$f":"(C38+C39)/2","v":{"$error":"#VALUE!"}},{"$nulls":12},{"$f":"(P37+P38+P39)/3","v":3}]
["Sub-Total",{"$nulls":6},{"$f":"SUM(H11:H40)","v":{"$error":"#VALUE!"}}]
[]
["Note: Only Schools having a Performance Improvement of \" Better\" can apply to the Division for SBM Validation."]
["Step 2: Compute for validated SBM Assessment Scores (40%)"]
["SBM Principles",null,"Weight",null,"Cummulative Scores of Validators per Principles",null,"Results"]
["Leadership",null,{"v":0.3,"d":"30%"},null,{"$f":"'Document Analysis, Obs. Discuss'!AP71","v":{"v":0.6,"d":"0.60"}},null,{"$f":"E46*0.3","v":0.18}]
["Curriculum & Learning",null,{"v":0.3,"d":"30%"},null,{"$f":"'Document Analysis, Obs. Discuss'!AP72","v":{"v":0,"d":"0.00"}},null,{"$f":"E47*0.3","v":0}]
["Accountability",null,{"v":0.25,"d":"25%"},null,{"$f":"'Document Analysis, Obs. Discuss'!AP73","v":{"v":0,"d":"0.00"}},null,{"$f":"E48*0.25","v":0}]
["Resource Management",null,{"v":0.15,"d":"15%"},null,{"$f":"'Document Analysis, Obs. Discuss'!AP74","v":{"v":0,"d":"0.00"}},null,{"$f":"E49*0.15","v":0}]
["Sub-total",{"$nulls":5},{"$f":"SUM(G46:G49)","v":0.18}]
["Interpretation:",null,"Good"]
[null,null,"Better"]
[null,null,"Best"]
["Legend:","Numerical Rating Scale",null,null,"Description"]
[null,"0.50-1.49",null,null,"Good"]
[null,"1.50-2.49",null,null,"Better"]
[null,"2.50-3.00",null,null,"Best"]
{"$rows_empty":7}
["Step 3: Compute for Final Rating"]
["Areas",null,"Weight",null,"Computation",null,"Results"]
["A. Performance Improvement",null,{"v":0.6,"d":"60%"},null,{"$f":"H41","v":{"$error":"#VALUE!"}},null,{"$f":"C67*E67","v":{"$error":"#VALUE!"}},{"$nulls":6},"Performance Improvement",{"$f":"E67","v":{"$error":"#VALUE!"}}]
["B. SBM Assessment Score (DOD)",null,{"v":0.4,"d":"40%"},null,{"$f":"G50","v":0.18},null,{"$f":"C68*E68","v":{"v":0.072,"d":"0.07"}},{"$nulls":6},"SBM Assessment Score",{"$f":"E68","v":0.18}]
["Total",{"$nulls":5},{"$f":"SUM(G67:G68)","v":{"$error":"#VALUE!"}},{"$nulls":6},"SBM Final Rating",{"$f":"G69","v":{"$error":"#VALUE!"}}]
[]
["Interpretation:"]
[null,"Developing ( Level I)"]
[null,"Maturing (Level II)"]
[null,"Advanced (Level III)"]
[]
["Description of SBM Level of Practice:"]
[null,"Numerical Rating Scale",null,null,"Description"]
[null,"0.50-1.49",null,null,"Developing"]
[null,"1.50-2.49",null,null,"Maturing"]
[null,"2.50-3.00",null,null,"Advanced"]
[]
["Results:",{"$f":"IF(G69<1.5,\"Developing level- Structures and mechanisms with acceptable level and extent of community participation and impact on learning outcomes.\",IF(G69<2.5,\"Maturing level - Introducing and sustaining continuous improvement process that integrates wider community participation and improve sinificantly performance and learning outcomes.\",IF(G69<3,\"Advanced level - Ensuring the production of intended outputs/outcomes and meeting all standards of a system fully integrated in the local community and is self-renewing and self-sustaining.\",\"\")))","v":{"$error":"#VALUE!"}}]
{"$rows_empty":17}
["Validators:"]
[null,{"$f":"'Input Menu'!B51","v":0},null,null,{"$f":"'Input Menu'!B52","v":0}]
[null,"Member",null,null,"Member"]
[]
[]
[null,{"$f":"'Input Menu'!B53","v":0},null,null,{"$f":"'Input Menu'!B54","v":0}]
[null,"Member",null,null,"Member"]
[]
[]
[]
[null,{"$f":"'Input Menu'!B50","v":0}]
[null,"Chairman"]
[{"$f":"'Main Menu'!#REF!","v":{"$error":"#REF!"}}]

{"sheet":"8Elem. ER, CR2, CSR2, NAT2","index":17,"n_rows":112,"n_cols":21,"rows_kept":112,"hidden":true,"merged":[[0,0,0,7],[1,0,1,7],[2,0,2,7],[4,0,4,7],[5,1,5,3],[5,5,5,7],[7,0,7,7],[8,1,8,2],[10,0,15,0],[10,4,15,4],[10,5,15,5],[10,6,15,6],[10,7,15,7],[16,0,33,0],[16,4,21,4],[16,5,21,5],[16,6,21,6],[16,7,33,7],[22,4,27,4],[22,5,27,5],[22,6,27,6],[28,4,33,4],[28,5,33,5],[28,6,33,6],[34,0,39,0],[34,4,39,4],[34,5,39,5],[34,6,39,6],[34,7,39,7],[40,0,40,4],[42,0,42,7],[43,0,43,7],[44,0,44,1],[44,2,44,3],[44,4,44,5],[44,6,44,7],[45,0,45,1],[45,2,45,3],[45,4,45,5],[45,6,45,7],[46,0,46,1],[46,2,46,3],[46,4,46,5],[46,6,46,7],[47,0,47,1],[47,2,47,3],[47,4,47,5],[47,6,47,7],[48,0,48,1],[48,2,48,3],[48,4,48,5],[48,6,48,7],[49,0,49,5],[49,6,49,7],[53,1,53,3],[53,4,53,5],[54,1,54,3],[54,4,54,5],[55,1,55,3],[55,4,55,5],[56,1,56,3],[56,4,56,5],[64,0,64,7],[65,0,65,1],[65,2,65,3],[65,4,65,5],[65,6,65,7],[66,0,66,1],[66,2,66,3],[66,4,66,5],[66,6,66,7],[67,0,67,1],[67,2,67,3],[67,4,67,5],[67,6,67,7],[68,0,68,5],[68,6,68,7],[75,0,75,7],[76,1,76,3],[76,4,76,5],[77,1,77,3],[77,4,77,5],[78,1,78,3],[78,4,78,5],[79,1,79,3],[79,4,79,5],[81,1,84,7],[100,1,100,2],[100,4,100,5],[101,1,101,2],[101,4,101,5],[104,1,104,2],[104,4,104,5],[105,1,105,2],[105,4,105,5],[109,1,109,5],[110,1,110,5]]}
[{"$f":"'Main Menu'!A1:F1","v":"Department of Education"}]
[{"$f":"'Main Menu'!A2:F2","v":"Region X"}]
[{"$f":"'Main Menu'!A3:F3","v":""}]
[]
["SBM Validation"]
["Name of School:",{"$f":"'Main Menu'!G6","v":0},null,null,"School Year:",{"$f":"'Main Menu'!B8","v":""},{"$nulls":4},{"$f":"B6","v":0}]
[]
["Step 1: Determine Performance Improvement (60%)"]
["Thematic Area","Performance Indicators",null,null,"Rating & Equivalent Points","Computation","Computation","Results"]
[]
["Access (45%)","Enrolment Increase","% of Increase","Enrolment",null,{"$f":"grd(C16)","v":{"$error":"#VALUE!"}},{"$f":"F11*0.45","v":{"$error":"#VALUE!"}},{"$f":"G11","v":{"$error":"#VALUE!"}}]
[null,{"$f":"'Main Menu'!B14","v":"SY 2009-2010"},null,{"$f":"'Main Menu'!D14","v":990}]
[null,{"$f":"'Main Menu'!B15","v":""},null,{"$f":"'Main Menu'!D15","v":""},{"$nulls":6},"SY 2009-2010"]
[null,{"$f":"'Main Menu'!B16","v":""},{"$f":"((D14-D13)/D13)*100","v":{"$error":"#VALUE!"}},{"$f":"'Main Menu'!D16","v":""},{"$nulls":6},"SY 2010-2011"]
[null,{"$f":"'Main Menu'!B17","v":""},{"$f":"((D15-D14)/D14)*100","v":{"$error":"#VALUE!"}},{"$f":"'Main Menu'!D17","v":""},{"$nulls":6},"SY 2011-2012"]
[null,"Ave. % of Increase",{"$f":"AVERAGE(C14:C15)","v":{"$error":"#VALUE!"}},{"$nulls":7},"SY 2012-2013"]
["Efficiency (25%)","Dropout Rate (DR):","% of decrease","Dropout",null,{"$f":"IF(C22>=5,\"1\",IF(C22>=2,\"2\",IF(C22<2,\"3\",\"0\")))","v":{"$error":"#VALUE!"}},{"$f":"F17*0.0833","v":{"$error":"#VALUE!"}},{"$f":"SUM(G17:G34)","v":{"$error":"#VALUE!"}},null,null,"SY 2013-2014"]
[null,{"$f":"'Main Menu'!B20","v":"SY 2008-2009"},null,{"$f":"'Main Menu'!D20","v":0.02}]
[null,{"$f":"'Main Menu'!B21","v":""},null,{"$f":"'Main Menu'!D21","v":""},{"$nulls":6},"SY 2014- 2015"]
[null,{"$f":"'Main Menu'!B22","v":""},{"$f":"((D20-D19))","v":{"$error":"#VALUE!"}},{"$f":"'Main Menu'!D22","v":""},{"$nulls":6},"SY 2015- 2016"]
[null,{"$f":"'Main Menu'!B23","v":""},{"$f":"D21-D20","v":{"$error":"#VALUE!"}},{"$f":"'Main Menu'!D23","v":""},{"$nulls":6},"SY 2016-2017"]
[null,"Ave. % of Decrease",{"$f":"(C20+C21)/2","v":{"$error":"#VALUE!"}}]
[null,"Completion Rate (CR):","% of Increase","Completion",null,{"$f":"N28","v":3},{"$f":"F23*0.0833","v":{"v":0.2499,"d":"0.25"}},{"$nulls":3},"SY 2017-2018"]
[null,{"$f":"'Main Menu'!B26","v":"SY 2008-2009"},null,{"$f":"'Main Menu'!D26","v":65}]
[null,{"$f":"'Main Menu'!B27","v":""},null,{"$f":"'Main Menu'!D27","v":""},{"$nulls":6},"SY 2018- 2019",null,null,{"$f":"IF(D25>=95,\"3\",\"0\")","v":"3"}]
[null,{"$f":"'Main Menu'!B28","v":""},null,{"$f":"'Main Menu'!D28","v":""},{"$nulls":6},"SY 2019- 2020",null,null,{"$f":"IF(D26>=95,\"3\",\"0\")","v":"3"}]
[null,{"$f":"'Main Menu'!B29","v":""},null,{"$f":"'Main Menu'!D29","v":""},{"$nulls":9},{"$f":"IF(D27>=95,\"3\",\"0\")","v":"3"}]
[null,"Ave. % of Increase",{"$nulls":11},{"$f":"(N25+N26+N27)/3","v":3}]
[null,"Cohort Survival Rate (CSR):","% of Increase","Cohort Survival",null,{"$f":"R34","v":2},{"$f":"F29*0.0834","v":{"v":0.1668,"d":"0.17"}}]
[null,{"$f":"'Main Menu'!B32","v":"SY 2008-2009"},null,{"$f":"'Main Menu'!D32","v":58}]
[null,{"$f":"'Main Menu'!B33","v":""},null,{"$f":"'Main Menu'!D33","v":{"v":95,"d":"95.00"}},{"$nulls":13},{"$f":"IF(D31>=95,\"3\",\"0\")","v":"3"}]
[null,{"$f":"'Main Menu'!B34","v":""},null,{"$f":"'Main Menu'!D34","v":{"v":96,"d":"96.00"}},{"$nulls":13},{"$f":"IF(D32>=95,\"3\",\"0\")","v":"3"}]
[null,{"$f":"'Main Menu'!B35","v":""},null,{"$f":"'Main Menu'!D35","v":83.72},{"$nulls":13},{"$f":"IF(D33>=95,\"3\",\"0\")","v":"0"}]
[null,"Ave. % of Increase",{"$nulls":15},{"$f":"(R31+R32+R33)/3","v":2}]
["Quality (30%)","NAT MPS","% of Increase","NAT MPS",null,{"$f":"U40","v":3},{"$f":"F35*0.3","v":0.8999999999999999},{"$f":"G35","v":0.8999999999999999}]
[null,{"$f":"'Main Menu'!B38","v":"SY 2008-2009"},null,{"$f":"'Main Menu'!D38","v":{"v":56,"d":"56.00"}}]
[null,{"$f":"'Main Menu'!B39","v":""},null,{"$f":"'Main Menu'!D39","v":""},{"$nulls":11},{"$f":"IF(D37>=75,\"3\",\"0\")","v":"3"},{"$nulls":4},{"$f":"IF(D37>=75,\"3\",\"0\")","v":"3"}]
[null,{"$f":"'Main Menu'!B40","v":""},null,{"$f":"'Main Menu'!D40","v":""},{"$nulls":11},{"$f":"IF(D38>=75,\"3\",\"0\")","v":"3"},{"$nulls":4},{"$f":"IF(D38>=75,\"3\",\"0\")","v":"3"}]
[null,{"$f":"'Main Menu'!B41","v":""},null,{"$f":"'Main Menu'!D41","v":""},{"$nulls":11},{"$f":"IF(D39>=75,\"3\",\"0\")","v":"3"},{"$nulls":4},{"$f":"IF(D39>=75,\"3\",\"0\")","v":"3"}]
[null,"Ave. % of Increase",{"$nulls":13},{"$f":"(P37+P38+P39)/3","v":3},{"$nulls":4},{"$f":"(U37+U38+U39)/3","v":3}]
["Sub-Total",{"$nulls":6},{"$f":"SUM(H11:H40)","v":{"$error":"#VALUE!"}}]
[]
["Note: Only Schools having a Performance Improvement of \" Better\" can apply to the Division for SBM Validation."]
["Step 2: Compute for validated SBM Assessment Scores (40%)"]
["SBM Principles",null,"Weight",null,"Cummulative Scores of Validators per Principles",null,"Results"]
["Leadership",null,{"v":0.3,"d":"30%"},null,{"$f":"'Document Analysis, Obs. Discuss'!AP71","v":{"v":0.6,"d":"0.60"}},null,{"$f":"E46*0.3","v":0.18}]
["Curriculum & Learning",null,{"v":0.3,"d":"30%"},null,{"$f":"'Document Analysis, Obs. Discuss'!AP72","v":{"v":0,"d":"0.00"}},null,{"$f":"E47*0.3","v":0}]
["Accountability",null,{"v":0.25,"d":"25%"},null,{"$f":"'Document Analysis, Obs. Discuss'!AP73","v":{"v":0,"d":"0.00"}},null,{"$f":"E48*0.25","v":0}]
["Resource Management",null,{"v":0.15,"d":"15%"},null,{"$f":"'Document Analysis, Obs. Discuss'!AP74","v":{"v":0,"d":"0.00"}},null,{"$f":"E49*0.15","v":0}]
["Sub-total",{"$nulls":5},{"$f":"SUM(G46:G49)","v":0.18}]
["Interpretation:",null,"Good"]
[null,null,"Better"]
[null,null,"Best"]
["Legend:","Numerical Rating Scale",null,null,"Description"]
[null,"0.50-1.49",null,null,"Good"]
[null,"1.50-2.49",null,null,"Better"]
[null,"2.50-3.00",null,null,"Best"]
{"$rows_empty":7}
["Step 3: Compute for Final Rating"]
["Areas",null,"Weight",null,"Computation",null,"Results"]
["A. Performance Improvement",null,{"v":0.6,"d":"60%"},null,{"$f":"H41","v":{"$error":"#VALUE!"}},null,{"$f":"C67*E67","v":{"$error":"#VALUE!"}},{"$nulls":6},"Performance Improvement",{"$f":"E67","v":{"$error":"#VALUE!"}}]
["B. SBM Assessment Score (DOD)",null,{"v":0.4,"d":"40%"},null,{"$f":"G50","v":0.18},null,{"$f":"C68*E68","v":{"v":0.072,"d":"0.07"}},{"$nulls":6},"SBM Assessment Score",{"$f":"E68","v":0.18}]
["Total",{"$nulls":5},{"$f":"SUM(G67:G68)","v":{"$error":"#VALUE!"}},{"$nulls":6},"SBM Final Rating",{"$f":"G69","v":{"$error":"#VALUE!"}}]
[]
["Interpretation:"]
[null,"Developing ( Level I)"]
[null,"Maturing (Level II)"]
[null,"Advanced (Level III)"]
[]
["Description of SBM Level of Practice:"]
[null,"Numerical Rating Scale",null,null,"Description"]
[null,"0.50-1.49",null,null,"Developing"]
[null,"1.50-2.49",null,null,"Maturing"]
[null,"2.50-3.00",null,null,"Advanced"]
[]
["Results:",{"$f":"IF(G69<1.5,\"Developing level- Structures and mechanisms with acceptable level and extent of community participation and impact on learning outcomes.\",IF(G69<2.5,\"Maturing level - Introducing and sustaining continuous improvement process that integrates wider community participation and improve sinificantly performance and learning outcomes.\",IF(G69<3,\"Advanced level - Ensuring the production of intended outputs/outcomes and meeting all standards of a system fully integrated in the local community and is self-renewing and self-sustaining.\",\"\")))","v":{"$error":"#VALUE!"}}]
{"$rows_empty":17}
["Validators:"]
[null,{"$f":"'Input Menu'!B51","v":0},null,null,{"$f":"'Input Menu'!B52","v":0}]
[null,"Member",null,null,"Member"]
[]
[]
[null,{"$f":"'Input Menu'!B53","v":0},null,null,{"$f":"'Input Menu'!B54","v":0}]
[null,"Member",null,null,"Member"]
[]
[]
[]
[null,{"$f":"'Input Menu'!B50","v":0}]
[null,"Chairman"]
[{"$f":"'Main Menu'!#REF!","v":{"$error":"#REF!"}}]

{"sheet":"11Elem. PR, CR1, CSR2, NAT1","index":18,"n_rows":112,"n_cols":15,"rows_kept":112,"hidden":true,"merged":[[0,0,0,7],[1,0,1,7],[2,0,2,7],[4,0,4,7],[5,1,5,3],[5,5,5,7],[7,0,7,7],[8,1,8,2],[10,0,15,0],[10,4,15,4],[10,5,15,5],[10,6,15,6],[10,7,15,7],[15,1,15,3],[16,0,33,0],[16,4,21,4],[16,5,21,5],[16,6,21,6],[16,7,33,7],[22,4,27,4],[22,5,27,5],[22,6,27,6],[28,4,33,4],[28,5,33,5],[28,6,33,6],[34,0,39,0],[34,4,39,4],[34,5,39,5],[34,6,39,6],[34,7,39,7],[40,0,40,4],[42,0,42,7],[43,0,43,7],[44,0,44,1],[44,2,44,3],[44,4,44,5],[44,6,44,7],[45,0,45,1],[45,2,45,3],[45,4,45,5],[45,6,45,7],[46,0,46,1],[46,2,46,3],[46,4,46,5],[46,6,46,7],[47,0,47,1],[47,2,47,3],[47,4,47,5],[47,6,47,7],[48,0,48,1],[48,2,48,3],[48,4,48,5],[48,6,48,7],[49,0,49,5],[49,6,49,7],[53,1,53,3],[53,4,53,5],[54,1,54,3],[54,4,54,5],[55,1,55,3],[55,4,55,5],[56,1,56,3],[56,4,56,5],[64,0,64,7],[65,0,65,1],[65,2,65,3],[65,4,65,5],[65,6,65,7],[66,0,66,1],[66,2,66,3],[66,4,66,5],[66,6,66,7],[67,0,67,1],[67,2,67,3],[67,4,67,5],[67,6,67,7],[68,0,68,5],[68,6,68,7],[75,0,75,7],[76,1,76,3],[76,4,76,5],[77,1,77,3],[77,4,77,5],[78,1,78,3],[78,4,78,5],[79,1,79,3],[79,4,79,5],[81,1,84,7],[100,1,100,2],[100,4,100,5],[101,1,101,2],[101,4,101,5],[104,1,104,2],[104,4,104,5],[105,1,105,2],[105,4,105,5],[109,1,109,5],[110,1,110,5]]}
[{"$f":"'Main Menu'!A1:F1","v":"Department of Education"}]
[{"$f":"'Main Menu'!A2:F2","v":"Region X"}]
[{"$f":"'Main Menu'!A3:F3","v":""}]
[]
["SBM Validation"]
["Name of School:",{"$f":"'Main Menu'!G6","v":0},null,null,"School Year:",{"$f":"'Main Menu'!B8","v":""},{"$nulls":4},{"$f":"B6","v":0}]
[]
["Step 1: Determine Performance Improvement (60%)"]
["Thematic Area","Performance Indicators",null,null,"Rating & Equivalent Points","Computation","Computation","Results"]
[]
["Access (45%)","Enrolment Increase","% of Increase","Participation Rate",null,{"$f":"N16","v":3},{"$f":"F11*0.45","v":1.35},{"$f":"G11","v":1.35}]
[null,{"$f":"'Main Menu'!B14","v":"SY 2009-2010"},null,{"$f":"'Main Menu'!D14","v":990}]
[null,{"$f":"'Main Menu'!B15","v":""},null,{"$f":"'Main Menu'!F15","v":""},{"$nulls":6},"SY 2009-2010",null,null,{"$f":"IF(D13>=95,\"3\",IF(D13>=90,\"2\",IF(D13>=85,\"1\",\"0\")))","v":"3"}]
[null,{"$f":"'Main Menu'!B16","v":""},null,{"$f":"'Main Menu'!F16","v":""},{"$nulls":6},"SY 2010-2011",null,null,{"$f":"IF(D14>=95,\"3\",IF(D14>=90,\"2\",IF(D14>=85,\"1\",\"0\")))","v":"3"}]
[null,{"$f":"'Main Menu'!B17","v":""},null,{"$f":"'Main Menu'!F17","v":""},{"$nulls":6},"SY 2011-2012",null,null,{"$f":"IF(D15>=95,\"3\",IF(D15>=90,\"2\",IF(D15>=85,\"1\",\"0\")))","v":"3"}]
[null,{"$f":"'Main Menu'!M72","v":0},{"$nulls":8},"SY 2012-2013",null,null,{"$f":"(N13+N14+N15)/3","v":3}]
["Efficiency (25%)","Dropout Rate (DR):","% of decrease","Dropout",null,{"$f":"IF(C22>=5,\"1\",IF(C22>=2,\"2\",IF(C22<2,\"3\",\"0\")))","v":{"$error":"#VALUE!"}},{"$f":"F17*0.0833","v":{"$error":"#VALUE!"}},{"$f":"SUM(G17:G34)","v":{"$error":"#VALUE!"}},null,null,"SY 2013-2014"]
[null,{"$f":"'Main Menu'!B20","v":"SY 2008-2009"},null,{"$f":"'Main Menu'!D20","v":0.02}]
[null,{"$f":"'Main Menu'!B21","v":""},null,{"$f":"'Main Menu'!D21","v":""},{"$nulls":6},"SY 2014- 2015"]
[null,{"$f":"'Main Menu'!B22","v":""},{"$f":"D20-D19","v":{"$error":"#VALUE!"}},{"$f":"'Main Menu'!D22","v":""},{"$nulls":6},"SY 2015- 2016"]
[null,{"$f":"'Main Menu'!B23","v":""},{"$f":"D21-D20","v":{"$error":"#VALUE!"}},{"$f":"'Main Menu'!D23","v":""},{"$nulls":6},"SY 2016-2017"]
[null,"Ave. % of Decrease",{"$f":"(C20+C21)/2","v":{"$error":"#VALUE!"}}]
[null,"Completion Rate (CR):","% of Increase","Completion",null,{"$f":"IF(C28>=5,\"1\",IF(C28>=7,\"2\",IF(C28>=10,\"3\",\"0\")))","v":{"$error":"#VALUE!"}},{"$f":"F23*0.0833","v":{"$error":"#VALUE!"}},{"$nulls":3},"SY 2017-2018"]
[null,{"$f":"'Main Menu'!B26","v":"SY 2008-2009"},null,{"$f":"'Main Menu'!D26","v":65}]
[null,{"$f":"'Main Menu'!B27","v":""},null,{"$f":"'Main Menu'!D27","v":""},{"$nulls":6},"SY 2018- 2019",null,null,{"$f":"IF(D25>=95,\"3\",\"0\")","v":"3"}]
[null,{"$f":"'Main Menu'!B28","v":""},{"$f":"(D26-D25)/D25*100","v":{"$error":"#VALUE!"}},{"$f":"'Main Menu'!D28","v":""},{"$nulls":6},"SY 2019- 2020",null,null,{"$f":"IF(D26>=95,\"3\",\"0\")","v":"3"}]
[null,{"$f":"'Main Menu'!B29","v":""},{"$f":"(D27-D26)/D26*100","v":{"$error":"#VALUE!"}},{"$f":"'Main Menu'!D29","v":""},{"$nulls":9},{"$f":"IF(D27>=95,\"3\",\"0\")","v":"3"}]
[null,"Ave. % of Increase",{"$f":"AVERAGE(C26:C27)","v":{"$error":"#VALUE!"}},{"$nulls":10},{"$f":"(N25+N26+N27)/3","v":3}]
[null,"Cohort Survival Rate (CSR):","% of Increase","Cohort Survival",null,{"$f":"N34","v":2},{"$f":"F29*0.0834","v":{"v":0.1668,"d":"0.17"}}]
[null,{"$f":"'Main Menu'!B32","v":"SY 2008-2009"},null,{"$f":"'Main Menu'!D32","v":58}]
[null,{"$f":"'Main Menu'!B33","v":""},null,{"$f":"'Main Menu'!D33","v":{"v":95,"d":"95.00"}},{"$nulls":9},{"$f":"IF(D31>=95,\"3\",\"0\")","v":"3"}]
[null,{"$f":"'Main Menu'!B34","v":""},null,{"$f":"'Main Menu'!D34","v":{"v":96,"d":"96.00"}},{"$nulls":9},{"$f":"IF(D32>=95,\"3\",\"0\")","v":"3"}]
[null,{"$f":"'Main Menu'!B35","v":""},null,{"$f":"'Main Menu'!D35","v":83.72},{"$nulls":9},{"$f":"IF(D33>=95,\"3\",\"0\")","v":"0"}]
[null,"Ave. % of Increase",{"$nulls":11},{"$f":"(N31+N32+N33)/3","v":2}]
["Quality (30%)","NAT MPS","% of Increase","NAT MPS",null,{"$f":"IF(C40>=7,\"3\",IF(C40>=5,\"2\",IF(C40>=2,\"1\",\"0\")))","v":{"$error":"#VALUE!"}},{"$f":"F35*0.3","v":{"$error":"#VALUE!"}},{"$f":"G35","v":{"$error":"#VALUE!"}}]
[null,{"$f":"'Main Menu'!B38","v":"SY 2008-2009"},null,{"$f":"'Main Menu'!D38","v":{"v":56,"d":"56.00"}}]
[null,{"$f":"'Main Menu'!B39","v":""},null,{"$f":"'Main Menu'!D39","v":""}]
[null,{"$f":"'Main Menu'!B40","v":""},{"$f":"(D38-D37)/D37*100","v":{"$error":"#VALUE!"}},{"$f":"'Main Menu'!D40","v":""}]
[null,{"$f":"'Main Menu'!B41","v":""},{"$f":"(D39-D38)/D38*100","v":{"$error":"#VALUE!"}},{"$f":"'Main Menu'!D41","v":""}]
[null,"Ave. % of Increase",{"$f":"AVERAGE(C38:C39)","v":{"$error":"#VALUE!"}}]
["Sub-Total",{"$nulls":6},{"$f":"SUM(H11:H40)","v":{"$error":"#VALUE!"}}]
[]
["Note: Only Schools having a Performance Improvement of \" Better\" can apply to the Division for SBM Validation."]
["Step 2: Compute for validated SBM Assessment Scores (40%)"]
["SBM Principles",null,"Weight",null,"Cummulative Scores of Validators per Principles",null,"Results"]
["Leadership",null,{"v":0.3,"d":"30%"},null,{"$f":"'Document Analysis, Obs. Discuss'!AP71","v":{"v":0.6,"d":"0.60"}},null,{"$f":"E46*0.3","v":0.18}]
["Curriculum & Learning",null,{"v":0.3,"d":"30%"},null,{"$f":"'Document Analysis, Obs. Discuss'!AP72","v":{"v":0,"d":"0.00"}},null,{"$f":"E47*0.3","v":0}]
["Accountability",null,{"v":0.25,"d":"25%"},null,{"$f":"'Document Analysis, Obs. Discuss'!AP73","v":{"v":0,"d":"0.00"}},null,{"$f":"E48*0.25","v":0}]
["Resource Management",null,{"v":0.15,"d":"15%"},null,{"$f":"'Document Analysis, Obs. Discuss'!AP74","v":{"v":0,"d":"0.00"}},null,{"$f":"E49*0.15","v":0}]
["Sub-total",{"$nulls":5},{"$f":"SUM(G46:G49)","v":0.18}]
["Interpretation:",null,"Good"]
[null,null,"Better"]
[null,null,"Best"]
["Legend:","Numerical Rating Scale",null,null,"Description"]
[null,"0.50-1.49",null,null,"Good"]
[null,"1.50-2.49",null,null,"Better"]
[null,"2.50-3.00",null,null,"Best"]
{"$rows_empty":7}
["Step 3: Compute for Final Rating"]
["Areas",null,"Weight",null,"Computation",null,"Results"]
["A. Performance Improvement",null,{"v":0.6,"d":"60%"},null,{"$f":"H41","v":{"$error":"#VALUE!"}},null,{"$f":"C67*E67","v":{"$error":"#VALUE!"}},{"$nulls":6},"Performance Improvement",{"$f":"E67","v":{"$error":"#VALUE!"}}]
["B. SBM Assessment Score (DOD)",null,{"v":0.4,"d":"40%"},null,{"$f":"G50","v":0.18},null,{"$f":"C68*E68","v":{"v":0.072,"d":"0.07"}},{"$nulls":6},"SBM Assessment Score",{"$f":"E68","v":0.18}]
["Total",{"$nulls":5},{"$f":"SUM(G67:G68)","v":{"$error":"#VALUE!"}},{"$nulls":6},"SBM Final Rating",{"$f":"G69","v":{"$error":"#VALUE!"}}]
[]
["Interpretation:"]
[null,"Developing ( Level I)"]
[null,"Maturing (Level II)"]
[null,"Advanced (Level III)"]
[]
["Description of SBM Level of Practice:"]
[null,"Numerical Rating Scale",null,null,"Description"]
[null,"0.50-1.49",null,null,"Developing"]
[null,"1.50-2.49",null,null,"Maturing"]
[null,"2.50-3.00",null,null,"Advanced"]
[]
["Results:",{"$f":"IF(G69<1.5,\"Developing level- Structures and mechanisms with acceptable level and extent of community participation and impact on learning outcomes.\",IF(G69<2.5,\"Maturing level - Introducing and sustaining continuous improvement process that integrates wider community participation and improve sinificantly performance and learning outcomes.\",IF(G69<3,\"Advanced level - Ensuring the production of intended outputs/outcomes and meeting all standards of a system fully integrated in the local community and is self-renewing and self-sustaining.\",\"\")))","v":{"$error":"#VALUE!"}}]
{"$rows_empty":17}
["Validators:"]
[null,{"$f":"'Input Menu'!B51","v":0},null,null,{"$f":"'Input Menu'!B52","v":0}]
[null,"Member",null,null,"Member"]
[]
[]
[null,{"$f":"'Input Menu'!B53","v":0},null,null,{"$f":"'Input Menu'!B54","v":0}]
[null,"Member",null,null,"Member"]
[]
[]
[]
[null,{"$f":"'Input Menu'!B50","v":0}]
[null,"Chairman"]
[{"$f":"'Main Menu'!#REF!","v":{"$error":"#REF!"}}]

{"sheet":"12Elem. PR, CR1, CSR2, NAT2","index":19,"n_rows":112,"n_cols":16,"rows_kept":112,"hidden":true,"merged":[[0,0,0,7],[1,0,1,7],[2,0,2,7],[4,0,4,7],[5,1,5,3],[5,5,5,7],[7,0,7,7],[8,1,8,2],[10,0,15,0],[10,4,15,4],[10,5,15,5],[10,6,15,6],[10,7,15,7],[15,1,15,3],[16,0,33,0],[16,4,21,4],[16,5,21,5],[16,6,21,6],[16,7,33,7],[22,4,27,4],[22,5,27,5],[22,6,27,6],[28,4,33,4],[28,5,33,5],[28,6,33,6],[34,0,39,0],[34,4,39,4],[34,5,39,5],[34,6,39,6],[34,7,39,7],[40,0,40,4],[42,0,42,7],[43,0,43,7],[44,0,44,1],[44,2,44,3],[44,4,44,5],[44,6,44,7],[45,0,45,1],[45,2,45,3],[45,4,45,5],[45,6,45,7],[46,0,46,1],[46,2,46,3],[46,4,46,5],[46,6,46,7],[47,0,47,1],[47,2,47,3],[47,4,47,5],[47,6,47,7],[48,0,48,1],[48,2,48,3],[48,4,48,5],[48,6,48,7],[49,0,49,5],[49,6,49,7],[53,1,53,3],[53,4,53,5],[54,1,54,3],[54,4,54,5],[55,1,55,3],[55,4,55,5],[56,1,56,3],[56,4,56,5],[64,0,64,7],[65,0,65,1],[65,2,65,3],[65,4,65,5],[65,6,65,7],[66,0,66,1],[66,2,66,3],[66,4,66,5],[66,6,66,7],[67,0,67,1],[67,2,67,3],[67,4,67,5],[67,6,67,7],[68,0,68,5],[68,6,68,7],[75,0,75,7],[76,1,76,3],[76,4,76,5],[77,1,77,3],[77,4,77,5],[78,1,78,3],[78,4,78,5],[79,1,79,3],[79,4,79,5],[81,1,84,7],[100,1,100,2],[100,4,100,5],[101,1,101,2],[101,4,101,5],[104,1,104,2],[104,4,104,5],[105,1,105,2],[105,4,105,5],[109,1,109,5],[110,1,110,5]]}
[{"$f":"'Main Menu'!A1:F1","v":"Department of Education"}]
[{"$f":"'Main Menu'!A2:F2","v":"Region X"}]
[{"$f":"'Main Menu'!A3:F3","v":""}]
[]
["SBM Validation"]
["Name of School:",{"$f":"'Main Menu'!G6","v":0},null,null,"School Year:",{"$f":"'Main Menu'!B8","v":""},{"$nulls":4},{"$f":"B6","v":0}]
[]
["Step 1: Determine Performance Improvement (60%)"]
["Thematic Area","Performance Indicators",null,null,"Rating & Equivalent Points","Computation","Computation","Results"]
[]
["Access (45%)","Enrolment Increase","% of Increase","Participation Rate",null,{"$f":"P16","v":3},{"$f":"F11*0.45","v":1.35},{"$f":"G11","v":1.35}]
[null,{"$f":"'Main Menu'!B14","v":"SY 2009-2010"},null,{"$f":"'Main Menu'!D14","v":990}]
[null,{"$f":"'Main Menu'!B15","v":""},null,{"$f":"'Main Menu'!F15","v":""},{"$nulls":6},"SY 2009-2010",{"$nulls":4},{"$f":"IF(D13>=95,\"3\",IF(D13>=90,\"2\",IF(D13>=85,\"1\",\"0\")))","v":"3"}]
[null,{"$f":"'Main Menu'!B16","v":""},null,{"$f":"'Main Menu'!F16","v":""},{"$nulls":6},"SY 2010-2011",{"$nulls":4},{"$f":"IF(D14>=95,\"3\",IF(D14>=90,\"2\",IF(D14>=85,\"1\",\"0\")))","v":"3"}]
[null,{"$f":"'Main Menu'!B17","v":""},null,{"$f":"'Main Menu'!F17","v":""},{"$nulls":6},"SY 2011-2012",{"$nulls":4},{"$f":"IF(D15>=95,\"3\",IF(D15>=90,\"2\",IF(D15>=85,\"1\",\"0\")))","v":"3"}]
[null,{"$f":"'Main Menu'!M72","v":0},{"$nulls":8},"SY 2012-2013",{"$nulls":4},{"$f":"(P13+P14+P15)/3","v":3}]
["Efficiency (25%)","Dropout Rate (DR):","% of decrease","Dropout",null,{"$f":"IF(C22>=5,\"1\",IF(C22>=2,\"2\",IF(C22<2,\"3\",\"0\")))","v":{"$error":"#VALUE!"}},{"$f":"F17*0.0833","v":{"$error":"#VALUE!"}},{"$f":"SUM(G17:G34)","v":{"$error":"#VALUE!"}},null,null,"SY 2013-2014"]
[null,{"$f":"'Main Menu'!B20","v":"SY 2008-2009"},null,{"$f":"'Main Menu'!D20","v":0.02}]
[null,{"$f":"'Main Menu'!B21","v":""},null,{"$f":"'Main Menu'!D21","v":""},{"$nulls":6},"SY 2014- 2015"]
[null,{"$f":"'Main Menu'!B22","v":""},{"$f":"D20-D19","v":{"$error":"#VALUE!"}},{"$f":"'Main Menu'!D22","v":""},{"$nulls":6},"SY 2015- 2016"]
[null,{"$f":"'Main Menu'!B23","v":""},{"$f":"D21-D20","v":{"$error":"#VALUE!"}},{"$f":"'Main Menu'!D23","v":""},{"$nulls":6},"SY 2016-2017"]
[null,"Ave. % of Decrease",{"$f":"(C20+C21)/2","v":{"$error":"#VALUE!"}}]
[null,"Completion Rate (CR):","% of Increase","Completion",null,{"$f":"grd(C28)","v":{"$error":"#VALUE!"}},{"$f":"F23*0.0833","v":{"$error":"#VALUE!"}},{"$nulls":3},"SY 2017-2018"]
[null,{"$f":"'Main Menu'!B26","v":"SY 2008-2009"},null,{"$f":"'Main Menu'!D26","v":65}]
[null,{"$f":"'Main Menu'!B27","v":""},null,{"$f":"'Main Menu'!D27","v":""},{"$nulls":6},"SY 2018- 2019"]
[null,{"$f":"'Main Menu'!B28","v":""},{"$f":"(D26-D25)/D25*100","v":{"$error":"#VALUE!"}},{"$f":"'Main Menu'!D28","v":""},{"$nulls":6},"SY 2019- 2020"]
[null,{"$f":"'Main Menu'!B29","v":""},{"$f":"(D27-D26)/D26*100","v":{"$error":"#VALUE!"}},{"$f":"'Main Menu'!D29","v":""}]
[null,"Ave. % of Increase",{"$f":"(C26+C27)/2","v":{"$error":"#VALUE!"}}]
[null,"Cohort Survival Rate (CSR):","% of Increase","Cohort Survival",null,{"$f":"P34","v":2},{"$f":"F29*0.0834","v":{"v":0.1668,"d":"0.17"}}]
[null,{"$f":"'Main Menu'!B32","v":"SY 2008-2009"},null,{"$f":"'Main Menu'!D32","v":58}]
[null,{"$f":"'Main Menu'!B33","v":""},null,{"$f":"'Main Menu'!D33","v":{"v":95,"d":"95.00"}},{"$nulls":11},{"$f":"IF(D31>=95,\"3\",\"0\")","v":"3"}]
[null,{"$f":"'Main Menu'!B34","v":""},null,{"$f":"'Main Menu'!D34","v":{"v":96,"d":"96.00"}},{"$nulls":11},{"$f":"IF(D32>=95,\"3\",\"0\")","v":"3"}]
[null,{"$f":"'Main Menu'!B35","v":""},null,{"$f":"'Main Menu'!D35","v":83.72},{"$nulls":11},{"$f":"IF(D33>=95,\"3\",\"0\")","v":"0"}]
[null,"Ave. % of Increase",{"$nulls":13},{"$f":"(P31+P32+P33)/3","v":2}]
["Quality (30%)","NAT MPS","% of Increase","NAT MPS",null,{"$f":"O40","v":3},{"$f":"F35*0.3","v":0.8999999999999999},{"$f":"G35","v":0.8999999999999999}]
[null,{"$f":"'Main Menu'!B38","v":"SY 2008-2009"},null,{"$f":"'Main Menu'!D38","v":{"v":56,"d":"56.00"}}]
[null,{"$f":"'Main Menu'!B39","v":""},null,{"$f":"'Main Menu'!D39","v":""},{"$nulls":10},{"$f":"IF(D37>=75,\"3\",\"0\")","v":"3"}]
[null,{"$f":"'Main Menu'!B40","v":""},null,{"$f":"'Main Menu'!D40","v":""},{"$nulls":10},{"$f":"IF(D38>=75,\"3\",\"0\")","v":"3"}]
[null,{"$f":"'Main Menu'!B41","v":""},null,{"$f":"'Main Menu'!D41","v":""},{"$nulls":10},{"$f":"IF(D39>=75,\"3\",\"0\")","v":"3"}]
[null,"Ave. % of Increase",{"$nulls":12},{"$f":"(O37+O38+O39)/3","v":3}]
["Sub-Total",{"$nulls":6},{"$f":"SUM(H11:H40)","v":{"$error":"#VALUE!"}}]
[]
["Note: Only Schools having a Performance Improvement of \" Better\" can apply to the Division for SBM Validation."]
["Step 2: Compute for validated SBM Assessment Scores (40%)"]
["SBM Principles",null,"Weight",null,"Cummulative Scores of Validators per Principles",null,"Results"]
["Leadership",null,{"v":0.3,"d":"30%"},null,{"$f":"'Document Analysis, Obs. Discuss'!AP71","v":{"v":0.6,"d":"0.60"}},null,{"$f":"E46*0.3","v":0.18}]
["Curriculum & Learning",null,{"v":0.3,"d":"30%"},null,{"$f":"'Document Analysis, Obs. Discuss'!AP72","v":{"v":0,"d":"0.00"}},null,{"$f":"E47*0.3","v":0}]
["Accountability",null,{"v":0.25,"d":"25%"},null,{"$f":"'Document Analysis, Obs. Discuss'!AP73","v":{"v":0,"d":"0.00"}},null,{"$f":"E48*0.25","v":0}]
["Resource Management",null,{"v":0.15,"d":"15%"},null,{"$f":"'Document Analysis, Obs. Discuss'!AP74","v":{"v":0,"d":"0.00"}},null,{"$f":"E49*0.15","v":0}]
["Sub-total",{"$nulls":5},{"$f":"SUM(G46:G49)","v":0.18}]
["Interpretation:",null,"Good"]
[null,null,"Better"]
[null,null,"Best"]
["Legend:","Numerical Rating Scale",null,null,"Description"]
[null,"0.50-1.49",null,null,"Good"]
[null,"1.50-2.49",null,null,"Better"]
[null,"2.50-3.00",null,null,"Best"]
{"$rows_empty":7}
["Step 3: Compute for Final Rating"]
["Areas",null,"Weight",null,"Computation",null,"Results"]
["A. Performance Improvement",null,{"v":0.6,"d":"60%"},null,{"$f":"H41","v":{"$error":"#VALUE!"}},null,{"$f":"C67*E67","v":{"$error":"#VALUE!"}},{"$nulls":6},"Performance Improvement",{"$f":"E67","v":{"$error":"#VALUE!"}}]
["B. SBM Assessment Score (DOD)",null,{"v":0.4,"d":"40%"},null,{"$f":"G50","v":0.18},null,{"$f":"C68*E68","v":{"v":0.072,"d":"0.07"}},{"$nulls":6},"SBM Assessment Score",{"$f":"E68","v":0.18}]
["Total",{"$nulls":5},{"$f":"SUM(G67:G68)","v":{"$error":"#VALUE!"}},{"$nulls":6},"SBM Final Rating",{"$f":"G69","v":{"$error":"#VALUE!"}}]
[]
["Interpretation:"]
[null,"Developing ( Level I)"]
[null,"Maturing (Level II)"]
[null,"Advanced (Level III)"]
[]
["Description of SBM Level of Practice:"]
[null,"Numerical Rating Scale",null,null,"Description"]
[null,"0.50-1.49",null,null,"Developing"]
[null,"1.50-2.49",null,null,"Maturing"]
[null,"2.50-3.00",null,null,"Advanced"]
[]
["Results:",{"$f":"IF(G69<1.5,\"Developing level- Structures and mechanisms with acceptable level and extent of community participation and impact on learning outcomes.\",IF(G69<2.5,\"Maturing level - Introducing and sustaining continuous improvement process that integrates wider community participation and improve sinificantly performance and learning outcomes.\",IF(G69<3,\"Advanced level - Ensuring the production of intended outputs/outcomes and meeting all standards of a system fully integrated in the local community and is self-renewing and self-sustaining.\",\"\")))","v":{"$error":"#VALUE!"}}]
{"$rows_empty":17}
["Validators:"]
[null,{"$f":"'Input Menu'!B51","v":0},null,null,{"$f":"'Input Menu'!B52","v":0}]
[null,"Member",null,null,"Member"]
[]
[]
[null,{"$f":"'Input Menu'!B53","v":0},null,null,{"$f":"'Input Menu'!B54","v":0}]
[null,"Member",null,null,"Member"]
[]
[]
[]
[null,{"$f":"'Input Menu'!B50","v":0}]
[null,"Chairman"]
[{"$f":"'Main Menu'!#REF!","v":{"$error":"#REF!"}}]

{"sheet":"13Elem. PR, CR2, CSR1, NAT1","index":20,"n_rows":112,"n_cols":17,"rows_kept":112,"hidden":true,"merged":[[0,0,0,7],[1,0,1,7],[2,0,2,7],[4,0,4,7],[5,1,5,3],[5,5,5,7],[7,0,7,7],[8,1,8,2],[10,0,15,0],[10,4,15,4],[10,5,15,5],[10,6,15,6],[10,7,15,7],[15,1,15,3],[16,0,33,0],[16,4,21,4],[16,5,21,5],[16,6,21,6],[16,7,33,7],[22,4,27,4],[22,5,27,5],[22,6,27,6],[28,4,33,4],[28,5,33,5],[28,6,33,6],[34,0,39,0],[34,4,39,4],[34,5,39,5],[34,6,39,6],[34,7,39,7],[40,0,40,4],[42,0,42,7],[43,0,43,7],[44,0,44,1],[44,2,44,3],[44,4,44,5],[44,6,44,7],[45,0,45,1],[45,2,45,3],[45,4,45,5],[45,6,45,7],[46,0,46,1],[46,2,46,3],[46,4,46,5],[46,6,46,7],[47,0,47,1],[47,2,47,3],[47,4,47,5],[47,6,47,7],[48,0,48,1],[48,2,48,3],[48,4,48,5],[48,6,48,7],[49,0,49,5],[49,6,49,7],[53,1,53,3],[53,4,53,5],[54,1,54,3],[54,4,54,5],[55,1,55,3],[55,4,55,5],[56,1,56,3],[56,4,56,5],[64,0,64,7],[65,0,65,1],[65,2,65,3],[65,4,65,5],[65,6,65,7],[66,0,66,1],[66,2,66,3],[66,4,66,5],[66,6,66,7],[67,0,67,1],[67,2,67,3],[67,4,67,5],[67,6,67,7],[68,0,68,5],[68,6,68,7],[75,0,75,7],[76,1,76,3],[76,4,76,5],[77,1,77,3],[77,4,77,5],[78,1,78,3],[78,4,78,5],[79,1,79,3],[79,4,79,5],[81,1,84,7],[100,1,100,2],[100,4,100,5],[101,1,101,2],[101,4,101,5],[104,1,104,2],[104,4,104,5],[105,1,105,2],[105,4,105,5],[109,1,109,5],[110,1,110,5]]}
[{"$f":"'Main Menu'!A1:F1","v":"Department of Education"}]
[{"$f":"'Main Menu'!A2:F2","v":"Region X"}]
[{"$f":"'Main Menu'!A3:F3","v":""}]
[]
["SBM Validation"]
["Name of School:",{"$f":"'Main Menu'!G6","v":0},null,null,"School Year:",{"$f":"'Main Menu'!B8","v":""},{"$nulls":4},{"$f":"B6","v":0}]
[]
["Step 1: Determine Performance Improvement (60%)"]
["Thematic Area","Performance Indicators",null,null,"Rating & Equivalent Points","Computation","Computation","Results"]
[]
["Access (45%)","Enrolment Increase","% of Increase","Participation Rate",null,{"$f":"Q16","v":3},{"$f":"F11*0.45","v":1.35},{"$f":"G11","v":1.35}]
[null,{"$f":"'Main Menu'!B14","v":"SY 2009-2010"},null,{"$f":"'Main Menu'!D14","v":990}]
[null,{"$f":"'Main Menu'!B15","v":""},null,{"$f":"'Main Menu'!F15","v":""},{"$nulls":6},"SY 2009-2010",{"$nulls":5},{"$f":"IF(D13>=95,\"3\",IF(D13>=90,\"2\",IF(D13>=85,\"1\",\"0\")))","v":"3"}]
[null,{"$f":"'Main Menu'!B16","v":""},null,{"$f":"'Main Menu'!F16","v":""},{"$nulls":6},"SY 2010-2011",{"$nulls":5},{"$f":"IF(D14>=95,\"3\",IF(D14>=90,\"2\",IF(D14>=85,\"1\",\"0\")))","v":"3"}]
[null,{"$f":"'Main Menu'!B17","v":""},null,{"$f":"'Main Menu'!F17","v":""},{"$nulls":6},"SY 2011-2012",{"$nulls":5},{"$f":"IF(D15>=95,\"3\",IF(D15>=90,\"2\",IF(D15>=85,\"1\",\"0\")))","v":"3"}]
[null,{"$f":"'Main Menu'!M72","v":0},{"$nulls":8},"SY 2012-2013",{"$nulls":5},{"$f":"(Q13+Q14+Q15)/3","v":3}]
["Efficiency (25%)","Dropout Rate (DR):","% of decrease","Dropout",null,{"$f":"IF(C22>=5,\"1\",IF(C22>=2,\"2\",IF(C22<2,\"3\",\"0\")))","v":{"$error":"#VALUE!"}},{"$f":"F17*0.0833","v":{"$error":"#VALUE!"}},{"$f":"SUM(G17:G34)","v":{"$error":"#VALUE!"}},null,null,"SY 2013-2014"]
[null,{"$f":"'Main Menu'!B20","v":"SY 2008-2009"},null,{"$f":"'Main Menu'!D20","v":0.02}]
[null,{"$f":"'Main Menu'!B21","v":""},null,{"$f":"'Main Menu'!D21","v":""},{"$nulls":6},"SY 2014- 2015"]
[null,{"$f":"'Main Menu'!B22","v":""},{"$f":"D20-D19","v":{"$error":"#VALUE!"}},{"$f":"'Main Menu'!D22","v":""},{"$nulls":6},"SY 2015- 2016"]
[null,{"$f":"'Main Menu'!B23","v":""},{"$f":"D21-D20","v":{"$error":"#VALUE!"}},{"$f":"'Main Menu'!D23","v":""},{"$nulls":6},"SY 2016-2017"]
[null,"Ave. % of Decrease",{"$f":"(C20+C21)/2","v":{"$error":"#VALUE!"}}]
[null,"Completion Rate (CR):","% of Increase","Completion",null,{"$f":"P28","v":3},{"$f":"F23*0.0833","v":{"v":0.2499,"d":"0.25"}},{"$nulls":3},"SY 2017-2018"]
[null,{"$f":"'Main Menu'!B26","v":"SY 2008-2009"},null,{"$f":"'Main Menu'!D26","v":65}]
[null,{"$f":"'Main Menu'!B27","v":""},null,{"$f":"'Main Menu'!D27","v":""},{"$nulls":6},"SY 2018- 2019",{"$nulls":4},{"$f":"IF(D25>=95,\"3\",\"0\")","v":"3"}]
[null,{"$f":"'Main Menu'!B28","v":""},null,{"$f":"'Main Menu'!D28","v":""},{"$nulls":6},"SY 2019- 2020",{"$nulls":4},{"$f":"IF(D26>=95,\"3\",\"0\")","v":"3"}]
[null,{"$f":"'Main Menu'!B29","v":""},null,{"$f":"'Main Menu'!D29","v":""},{"$nulls":11},{"$f":"IF(D27>=95,\"3\",\"0\")","v":"3"}]
[null,"Ave. % of Increase",{"$nulls":13},{"$f":"(P25+P26+P27)/3","v":3}]
[null,"Cohort Survival Rate (CSR):","% of Increase","Cohort Survival",null,{"$f":"IF(C34>=5,\"1\",IF(C34>=7,\"2\",IF(C34>=10,\"3\",\"0\")))","v":"0"},{"$f":"F29*0.0834","v":{"v":0,"d":"0.00"}}]
[null,{"$f":"'Main Menu'!B32","v":"SY 2008-2009"},null,{"$f":"'Main Menu'!D32","v":58}]
[null,{"$f":"'Main Menu'!B33","v":""},null,{"$f":"'Main Menu'!D33","v":{"v":95,"d":"95.00"}}]
[null,{"$f":"'Main Menu'!B34","v":""},{"$f":"(D32-D31)/D31*100","v":{"v":1.0526315789473684,"d":"1.05"}},{"$f":"'Main Menu'!D34","v":{"v":96,"d":"96.00"}}]
[null,{"$f":"'Main Menu'!B35","v":""},{"$f":"(D33-D32)/D32*100","v":{"v":-12.791666666666668,"d":"-12.79"}},{"$f":"'Main Menu'!D35","v":83.72}]
[null,"Ave. % of Increase",{"$f":"AVERAGE(C32:C33)","v":{"v":-5.86951754385965,"d":"-5.87"}}]
["Quality (30%)","NAT MPS","% of Increase","NAT MPS",null,{"$f":"IF(C40>=7,\"3\",IF(C40>=5,\"2\",IF(C40>=2,\"1\",\"0\")))","v":{"$error":"#VALUE!"}},{"$f":"F35*0.3","v":{"$error":"#VALUE!"}},{"$f":"G35","v":{"$error":"#VALUE!"}}]
[null,{"$f":"'Main Menu'!B38","v":"SY 2008-2009"},null,{"$f":"'Main Menu'!D38","v":{"v":56,"d":"56.00"}}]
[null,{"$f":"'Main Menu'!B39","v":""},null,{"$f":"'Main Menu'!D39","v":""}]
[null,{"$f":"'Main Menu'!B40","v":""},{"$f":"(D38-D37)/D37*100","v":{"$error":"#VALUE!"}},{"$f":"'Main Menu'!D40","v":""}]
[null,{"$f":"'Main Menu'!B41","v":""},{"$f":"(D39-D38)/D38*100","v":{"$error":"#VALUE!"}},{"$f":"'Main Menu'!D41","v":""}]
[null,"Ave. % of Increase",{"$f":"AVERAGE(C38:C39)","v":{"$error":"#VALUE!"}}]
["Sub-Total",{"$nulls":6},{"$f":"SUM(H11:H40)","v":{"$error":"#VALUE!"}}]
[]
["Note: Only Schools having a Performance Improvement of \" Better\" can apply to the Division for SBM Validation."]
["Step 2: Compute for validated SBM Assessment Scores (40%)"]
["SBM Principles",null,"Weight",null,"Cummulative Scores of Validators per Principles",null,"Results"]
["Leadership",null,{"v":0.3,"d":"30%"},null,{"$f":"'Document Analysis, Obs. Discuss'!AP71","v":{"v":0.6,"d":"0.60"}},null,{"$f":"E46*0.3","v":0.18}]
["Curriculum & Learning",null,{"v":0.3,"d":"30%"},null,{"$f":"'Document Analysis, Obs. Discuss'!AP72","v":{"v":0,"d":"0.00"}},null,{"$f":"E47*0.3","v":0}]
["Accountability",null,{"v":0.25,"d":"25%"},null,{"$f":"'Document Analysis, Obs. Discuss'!AP73","v":{"v":0,"d":"0.00"}},null,{"$f":"E48*0.25","v":0}]
["Resource Management",null,{"v":0.15,"d":"15%"},null,{"$f":"'Document Analysis, Obs. Discuss'!AP74","v":{"v":0,"d":"0.00"}},null,{"$f":"E49*0.15","v":0}]
["Sub-total",{"$nulls":5},{"$f":"SUM(G46:G49)","v":0.18}]
["Interpretation:",null,"Good"]
[null,null,"Better"]
[null,null,"Best"]
["Legend:","Numerical Rating Scale",null,null,"Description"]
[null,"0.50-1.49",null,null,"Good"]
[null,"1.50-2.49",null,null,"Better"]
[null,"2.50-3.00",null,null,"Best"]
{"$rows_empty":7}
["Step 3: Compute for Final Rating"]
["Areas",null,"Weight",null,"Computation",null,"Results"]
["A. Performance Improvement",null,{"v":0.6,"d":"60%"},null,{"$f":"H41","v":{"$error":"#VALUE!"}},null,{"$f":"C67*E67","v":{"$error":"#VALUE!"}},{"$nulls":6},"Performance Improvement",{"$f":"E67","v":{"$error":"#VALUE!"}}]
["B. SBM Assessment Score (DOD)",null,{"v":0.4,"d":"40%"},null,{"$f":"G50","v":0.18},null,{"$f":"C68*E68","v":{"v":0.072,"d":"0.07"}},{"$nulls":6},"SBM Assessment Score",{"$f":"E68","v":0.18}]
["Total",{"$nulls":5},{"$f":"SUM(G67:G68)","v":{"$error":"#VALUE!"}},{"$nulls":6},"SBM Final Rating",{"$f":"G69","v":{"$error":"#VALUE!"}}]
[]
["Interpretation:"]
[null,"Developing ( Level I)"]
[null,"Maturing (Level II)"]
[null,"Advanced (Level III)"]
[]
["Description of SBM Level of Practice:"]
[null,"Numerical Rating Scale",null,null,"Description"]
[null,"0.50-1.49",null,null,"Developing"]
[null,"1.50-2.49",null,null,"Maturing"]
[null,"2.50-3.00",null,null,"Advanced"]
[]
["Results:",{"$f":"IF(G69<1.5,\"Developing level- Structures and mechanisms with acceptable level and extent of community participation and impact on learning outcomes.\",IF(G69<2.5,\"Maturing level - Introducing and sustaining continuous improvement process that integrates wider community participation and improve sinificantly performance and learning outcomes.\",IF(G69<3,\"Advanced level - Ensuring the production of intended outputs/outcomes and meeting all standards of a system fully integrated in the local community and is self-renewing and self-sustaining.\",\"\")))","v":{"$error":"#VALUE!"}}]
{"$rows_empty":17}
["Validators:"]
[null,{"$f":"'Input Menu'!B51","v":0},null,null,{"$f":"'Input Menu'!B52","v":0}]
[null,"Member",null,null,"Member"]
[]
[]
[null,{"$f":"'Input Menu'!B53","v":0},null,null,{"$f":"'Input Menu'!B54","v":0}]
[null,"Member",null,null,"Member"]
[]
[]
[]
[null,{"$f":"'Input Menu'!B50","v":0}]
[null,"Chairman"]
[{"$f":"'Main Menu'!#REF!","v":{"$error":"#REF!"}}]

{"sheet":"14Elem. PR, CR2, CSR1, NAT2","index":21,"n_rows":113,"n_cols":16,"rows_kept":113,"merged":[[0,0,0,7],[1,0,1,7],[2,0,2,7],[4,0,4,7],[5,0,5,7],[6,1,6,3],[6,5,6,7],[7,1,7,3],[7,5,7,6],[8,0,8,3],[8,5,8,7],[9,1,9,2],[11,0,16,0],[11,4,16,4],[11,5,16,5],[11,6,16,6],[11,7,16,7],[16,1,16,3],[17,0,34,0],[17,4,22,4],[17,5,22,5],[17,6,22,6],[17,7,34,7],[23,4,28,4],[23,5,28,5],[23,6,28,6],[29,4,34,4],[29,5,34,5],[29,6,34,6],[35,0,40,0],[35,4,40,4],[35,5,40,5],[35,6,40,6],[35,7,40,7],[41,0,41,4],[43,0,43,7],[44,0,44,7],[45,0,45,1],[45,2,45,3],[45,4,45,5],[45,6,45,7],[46,0,46,1],[46,2,46,3],[46,4,46,5],[46,6,46,7],[47,0,47,1],[47,2,47,3],[47,4,47,5],[47,6,47,7],[48,0,48,1],[48,2,48,3],[48,4,48,5],[48,6,48,7],[49,0,49,1],[49,2,49,3],[49,4,49,5],[49,6,49,7],[50,2,50,3],[50,6,50,7],[54,1,54,3],[54,4,54,5],[55,1,55,3],[55,4,55,5],[56,1,56,3],[56,4,56,5],[57,1,57,3],[57,4,57,5],[65,0,65,7],[66,0,66,1],[66,2,66,3],[66,4,66,5],[66,6,66,7],[67,0,67,1],[67,2,67,3],[67,4,67,5],[67,6,67,7],[68,0,68,1],[68,2,68,3],[68,4,68,5],[68,6,68,7],[69,2,69,3],[69,6,69,7],[76,0,76,7],[77,1,77,3],[77,4,77,5],[77,6,77,7],[78,1,78,3],[78,4,78,5],[78,6,78,7],[79,1,79,3],[79,4,79,5],[79,6,79,7],[80,1,80,3],[80,4,80,5],[80,6,80,7],[82,1,85,7],[98,1,98,7],[99,1,99,7],[101,1,101,2],[101,4,101,5],[102,1,102,2],[102,4,102,5],[105,1,105,2],[105,4,105,5],[106,1,106,2],[106,4,106,5],[110,1,110,5],[111,1,111,5]]}
[{"$f":"'Main Menu'!A1:F1","v":"Department of Education"}]
[{"$f":"'Main Menu'!A2:F2","v":"Region X"}]
[{"$f":"'Main Menu'!A3:F3","v":""}]
[]
["SBM Validation Form"]
[{"$f":"NOW()","v":"2018-07-01T09:10:11.220"}]
["District:",{"$f":"'Input Menu'!B8:C8","v":""},null,null,"School Year:",{"$f":"'Main Menu'!B8","v":""},{"$nulls":4},{"$f":"B7","v":""}]
["School:",{"$f":"'Input Menu'!B7:C7","v":""},null,null,"School I.D.",{"$f":"'Input Menu'!K6","v":0}]
["Step 1: Determine Performance Improvement (60%)",{"$nulls":3},"Level:",{"$f":"'Main Menu'!O72","v":0}]
["Thematic Area","Performance Indicators",null,null,"Rating & Equivalent Points","Score","Computation","Results"]
[]
["Access (45%)","Enrolment Increase","% of Increase","Community Mapping",null,{"$f":"P17","v":{"v":3,"d":"3.00"}},{"$f":"F12*0.45","v":1.35},{"$f":"G12","v":1.35}]
[null,{"$f":"'Main Menu'!B14","v":"SY 2009-2010"},null,{"$f":"'Main Menu'!D14","v":990}]
[null,{"$f":"'Main Menu'!B15","v":""},null,{"$f":"'Main Menu'!F15","v":""},{"$nulls":6},"SY 2009-2010",{"$nulls":4},{"$f":"IF(D14>=95,\"3\",IF(D14>=90,\"2\",IF(D14>=85,\"1\",\"0\")))","v":"3"}]
[null,{"$f":"'Main Menu'!B16","v":""},null,{"$f":"'Main Menu'!F16","v":""},{"$nulls":6},"SY 2010-2011",{"$nulls":4},{"$f":"IF(D15>=95,\"3\",IF(D15>=90,\"2\",IF(D15>=85,\"1\",\"0\")))","v":"3"}]
[null,{"$f":"'Main Menu'!B17","v":""},null,{"$f":"'Main Menu'!F17","v":""},{"$nulls":6},"SY 2011-2012",{"$nulls":4},{"$f":"IF(D16>=95,\"3\",IF(D16>=90,\"2\",IF(D16>=85,\"1\",\"0\")))","v":"3"}]
[{"$nulls":10},"SY 2012-2013",{"$nulls":4},{"$f":"(P14+P15+P16)/3","v":3}]
["Efficiency (25%)","Dropout Rate (DR):","% of decrease","Dropout %",null,{"$f":"IF(C23<2,\"3\",IF(C23<5,\"2\",IF(C23<=5,\"1\",\"0\")))","v":{"$error":"#VALUE!"}},{"$f":"F18*0.125","v":{"$error":"#VALUE!"}},{"$f":"SUM(G18:G35)","v":{"$error":"#VALUE!"}},null,null,"SY 2013-2014"]
[null,{"$f":"'Main Menu'!B20","v":"SY 2008-2009"},null,{"$f":"'Main Menu'!D20","v":0.02}]
[null,{"$f":"'Main Menu'!B21","v":""},null,{"$f":"'Main Menu'!D21","v":""},{"$nulls":6},"SY 2014- 2015"]
[null,{"$f":"'Main Menu'!B22","v":""},{"$f":"D21-D20","v":{"$error":"#VALUE!"}},{"$f":"'Main Menu'!D22","v":""},{"$nulls":6},"SY 2015- 2016"]
[null,{"$f":"'Main Menu'!B23","v":""},{"$f":"D22-D21","v":{"$error":"#VALUE!"}},{"$f":"'Main Menu'!D23","v":""},{"$nulls":6},"SY 2016-2017"]
[null,"Ave. % of Decrease",{"$f":"AVERAGE(C21:C22)","v":{"$error":"#VALUE!"}}]
[null,"Repetition Rate","% of decrease","Repetition %",null,{"$f":"IF(C29<2,\"3\",IF(C29<5,\"2\",IF(C29<=5,\"1\",\"0\")))","v":{"$error":"#VALUE!"}},{"$f":"F24*0.125","v":{"$error":"#VALUE!"}},{"$nulls":3},"SY 2017-2018"]
[null,{"$f":"'Main Menu'!B26","v":"SY 2008-2009"},null,{"$f":"'Main Menu'!D26","v":65}]
[null,{"$f":"'Main Menu'!B27","v":""},null,{"$f":"'Main Menu'!D27","v":""},{"$nulls":6},"SY 2018- 2019"]
[null,{"$f":"'Main Menu'!B28","v":""},{"$f":"D27-D26","v":{"$error":"#VALUE!"}},{"$f":"'Main Menu'!D28","v":""},{"$nulls":6},"SY 2019- 2020"]
[null,{"$f":"'Main Menu'!B29","v":""},{"$f":"D28-D27","v":{"$error":"#VALUE!"}},{"$f":"'Main Menu'!D29","v":""}]
[null,"Ave. % of decrease",{"$f":"AVERAGE(C27:C28)","v":{"$error":"#VALUE!"}}]
[]
[]
[]
[]
[]
[]
["Quality (30%)","Promotion Rate","% of Increase","Promotion %",null,{"$f":"O41","v":{"v":3,"d":"3.00"}},{"$f":"F36*0.3","v":0.8999999999999999},{"$f":"G36","v":0.8999999999999999}]
[null,{"$f":"'Main Menu'!B38","v":"SY 2008-2009"},null,{"$f":"'Main Menu'!D38","v":{"v":56,"d":"56.00"}}]
[null,{"$f":"'Main Menu'!B39","v":""},null,{"$f":"'Main Menu'!F39","v":""},{"$nulls":10},{"$f":"IF(D38>=95,\"3\",IF(D38>=90,\"2\",IF(D38>=85,\"1\",\"0\")))","v":"3"}]
[null,{"$f":"'Main Menu'!B40","v":""},null,{"$f":"'Main Menu'!F40","v":""},{"$nulls":10},{"$f":"IF(D39>=95,\"3\",IF(D39>=90,\"2\",IF(D39>=85,\"1\",\"0\")))","v":"3"}]
[null,{"$f":"'Main Menu'!B41","v":""},null,{"$f":"'Main Menu'!F41","v":""},{"$nulls":10},{"$f":"IF(D40>=95,\"3\",IF(D40>=90,\"2\",IF(D40>=85,\"1\",\"0\")))","v":"3"}]
[null,"Ave. % of Increase",{"$nulls":12},{"$f":"(O38+O39+O40)/3","v":{"v":3,"d":"3.00"}}]
["Sub-Total",{"$nulls":6},{"$f":"SUM(H12:H41)","v":{"$error":"#VALUE!"}}]
[]
["Note: Only Schools having a Performance Improvement of \" Better\" can apply to the Division for SBM Validation."]
["Step 2: Compute for validated SBM Assessment Scores (40%)"]
["SBM Principles",null,"Weight",null,"Cummulative Scores of Validators per Principles",null,"Results"]
["Leadership",null,{"v":0.3,"d":"30%"},null,{"$f":"'Document Analysis, Obs. Discuss'!AP71","v":{"v":0.6,"d":"0.60"}},null,{"$f":"E47*0.3","v":0.18}]
["Curriculum & Learning",null,{"v":0.3,"d":"30%"},null,{"$f":"'Document Analysis, Obs. Discuss'!AP72","v":{"v":0,"d":"0.00"}},null,{"$f":"E48*0.3","v":0}]
["Accountability",null,{"v":0.25,"d":"25%"},null,{"$f":"'Document Analysis, Obs. Discuss'!AP73","v":{"v":0,"d":"0.00"}},null,{"$f":"E49*0.25","v":0}]
["Resource Management",null,{"v":0.15,"d":"15%"},null,{"$f":"'Document Analysis, Obs. Discuss'!AP74","v":{"v":0,"d":"0.00"}},null,{"$f":"E50*0.15","v":0}]
["Sub-total",null,{"v":1,"d":"100%"},{"$nulls":3},{"$f":"SUM(G47:G50)","v":0.18}]
["Interpretation:",null,"Good"]
[null,null,"Better"]
[null,null,"Best"]
["Legend:","Numerical Rating Scale",null,null,"Description"]
[null,"0.50-1.49",null,null,"Good"]
[null,"1.50-2.49",null,null,"Better"]
[null,"2.50-3.00",null,null,"Best"]
{"$rows_empty":7}
["Step 3: Compute for Final Rating"]
["Areas",null,"Weight",null,"Computation",null,"Results"]
["A. Performance Improvement",null,{"v":0.6,"d":"60%"},null,{"$f":"H42","v":{"$error":"#VALUE!"}},null,{"$f":"C68*E68","v":{"$error":"#VALUE!"}},{"$nulls":6},"Performance Improvement",{"$f":"E68","v":{"$error":"#VALUE!"}}]
["B. SBM Assessment Score (DOD)",null,{"v":0.4,"d":"40%"},null,{"$f":"G51","v":0.18},null,{"$f":"C69*E69","v":{"v":0.072,"d":"0.07"}},{"$nulls":6},"SBM Assessment Score",{"$f":"E69","v":0.18}]
["Total",null,{"v":1,"d":"100%"},{"$nulls":3},{"$f":"SUM(G68:G69)","v":{"$error":"#VALUE!"}},{"$nulls":6},"SBM Final Rating",{"$f":"G70","v":{"$error":"#VALUE!"}}]
[]
[]
[]
[]
[]
[]
["Description of SBM Level of Practice:"]
[null,"Numerical Rating Scale",null,null,"Description",null,"Interpretation"]
[null,"0.50-1.49",null,null,"Developing",null,"Level I"]
[null,"1.50-2.49",null,null,"Maturing",null,"Level II"]
[null,"2.50-3.00",null,null,"Advanced",null,"Level III"]
{"$rows_empty":17}
["Results:",{"$f":"IF(G70<1.5,\"Developing level- Structures and mechanisms with acceptable level and extent of community participation and impact on learning outcomes.\",IF(G70<2.5,\"Maturing level - Introducing and sustaining continuous improvement process that integrates wider community participation and improve sinificantly performance and learning outcomes.\",IF(G70<3,\"Advanced level - Ensuring the production of intended outputs/outcomes and meeting all standards of a system fully integrated in the local community and is self-renewing and self-sustaining.\",\"\")))","v":{"$error":"#VALUE!"}}]
["Remarks:",{"$f":"'Main Menu'!B56:H56","v":{"v":0,"d":"0.00"}}]
["Validators:"]
[null,{"$f":"'Input Menu'!B51","v":0},null,null,{"$f":"'Input Menu'!B52","v":0}]
[null,"Member",null,null,"Member"]
[]
[]
[null,{"$f":"'Input Menu'!B53","v":0},null,null,{"$f":"'Input Menu'!B54","v":0}]
[null,"Member",null,null,"Member"]
[]
[]
[]
[null,{"$f":"'Input Menu'!B50","v":0}]
[null,"Chairman"]
[{"$f":"'Main Menu'!A55","v":"Option6: CM, DR, RR, PrR"}]

{"sheet":"15Elem. PR, CR2, CSR2, NAT1","index":22,"n_rows":112,"n_cols":16,"rows_kept":112,"hidden":true,"merged":[[0,0,0,7],[1,0,1,7],[2,0,2,7],[4,0,4,7],[5,1,5,3],[5,5,5,7],[7,0,7,7],[8,1,8,2],[10,0,15,0],[10,4,15,4],[10,5,15,5],[10,6,15,6],[10,7,15,7],[15,1,15,3],[16,0,33,0],[16,4,21,4],[16,5,21,5],[16,6,21,6],[16,7,33,7],[22,4,27,4],[22,5,27,5],[22,6,27,6],[28,4,33,4],[28,5,33,5],[28,6,33,6],[34,0,39,0],[34,4,39,4],[34,5,39,5],[34,6,39,6],[34,7,39,7],[40,0,40,4],[42,0,42,7],[43,0,43,7],[44,0,44,1],[44,2,44,3],[44,4,44,5],[44,6,44,7],[45,0,45,1],[45,2,45,3],[45,4,45,5],[45,6,45,7],[46,0,46,1],[46,2,46,3],[46,4,46,5],[46,6,46,7],[47,0,47,1],[47,2,47,3],[47,4,47,5],[47,6,47,7],[48,0,48,1],[48,2,48,3],[48,4,48,5],[48,6,48,7],[49,0,49,5],[49,6,49,7],[53,1,53,3],[53,4,53,5],[54,1,54,3],[54,4,54,5],[55,1,55,3],[55,4,55,5],[56,1,56,3],[56,4,56,5],[64,0,64,7],[65,0,65,1],[65,2,65,3],[65,4,65,5],[65,6,65,7],[66,0,66,1],[66,2,66,3],[66,4,66,5],[66,6,66,7],[67,0,67,1],[67,2,67,3],[67,4,67,5],[67,6,67,7],[68,0,68,5],[68,6,68,7],[75,0,75,7],[76,1,76,3],[76,4,76,5],[77,1,77,3],[77,4,77,5],[78,1,78,3],[78,4,78,5],[79,1,79,3],[79,4,79,5],[81,1,84,7],[100,1,100,2],[100,4,100,5],[101,1,101,2],[101,4,101,5],[104,1,104,2],[104,4,104,5],[105,1,105,2],[105,4,105,5],[109,1,109,5],[110,1,110,5]]}
[{"$f":"'Main Menu'!A1:F1","v":"Department of Education"}]
[{"$f":"'Main Menu'!A2:F2","v":"Region X"}]
[{"$f":"'Main Menu'!A3:F3","v":""}]
[]
["SBM Validation"]
["Name of School:",{"$f":"'Main Menu'!G6","v":0},null,null,"School Year:",{"$f":"'Main Menu'!B8","v":""},{"$nulls":4},{"$f":"B6","v":0}]
[]
["Step 1: Determine Performance Improvement (60%)"]
["Thematic Area","Performance Indicators",null,null,"Rating & Equivalent Points","Computation","Computation","Results"]
[]
["Access (45%)","Enrolment Increase","% of Increase","Participation Rate",null,{"$f":"N16","v":3},{"$f":"F11*0.45","v":1.35},{"$f":"G11","v":1.35}]
[null,{"$f":"'Main Menu'!B14","v":"SY 2009-2010"},null,{"$f":"'Main Menu'!D14","v":990}]
[null,{"$f":"'Main Menu'!B15","v":""},null,{"$f":"'Main Menu'!F15","v":""},{"$nulls":6},"SY 2009-2010",null,null,{"$f":"IF(D13>=95,\"3\",IF(D13>90,\"2\",IF(D13>85,\"1\",\"0\")))","v":"3"}]
[null,{"$f":"'Main Menu'!B16","v":""},null,{"$f":"'Main Menu'!F16","v":""},{"$nulls":6},"SY 2010-2011",null,null,{"$f":"IF(D14>=95,\"3\",IF(D14>90,\"2\",IF(D14>85,\"1\",\"0\")))","v":"3"}]
[null,{"$f":"'Main Menu'!B17","v":""},null,{"$f":"'Main Menu'!F17","v":""},{"$nulls":6},"SY 2011-2012",null,null,{"$f":"IF(D15>=95,\"3\",IF(D15>90,\"2\",IF(D15>85,\"1\",\"0\")))","v":"3"}]
[null,{"$f":"'Main Menu'!M72","v":0},{"$nulls":8},"SY 2012-2013",null,null,{"$f":"(N13+N14+N15)/3","v":3}]
["Efficiency (25%)","Dropout Rate (DR):","% of decrease","Dropout",null,{"$f":"IF(C22>=5,\"1\",IF(C22>=2,\"2\",IF(C22<2,\"3\",\"0\")))","v":{"$error":"#VALUE!"}},{"$f":"F17*0.0833","v":{"$error":"#VALUE!"}},{"$f":"SUM(G17:G34)","v":{"$error":"#VALUE!"}},null,null,"SY 2013-2014"]
[null,{"$f":"'Main Menu'!B20","v":"SY 2008-2009"},null,{"$f":"'Main Menu'!D20","v":0.02}]
[null,{"$f":"'Main Menu'!B21","v":""},null,{"$f":"'Main Menu'!D21","v":""},{"$nulls":6},"SY 2014- 2015"]
[null,{"$f":"'Main Menu'!B22","v":""},{"$f":"D20-D19","v":{"$error":"#VALUE!"}},{"$f":"'Main Menu'!D22","v":""},{"$nulls":6},"SY 2015- 2016"]
[null,{"$f":"'Main Menu'!B23","v":""},{"$f":"D21-D20","v":{"$error":"#VALUE!"}},{"$f":"'Main Menu'!D23","v":""},{"$nulls":6},"SY 2016-2017"]
[null,"Ave. % of Decrease",{"$f":"(C20+C21)/2","v":{"$error":"#VALUE!"}}]
[null,"Completion Rate (CR):","% of Increase","Completion",null,{"$f":"P28","v":3},{"$f":"F23*0.0833","v":{"v":0.2499,"d":"0.25"}},{"$nulls":3},"SY 2017-2018"]
[null,{"$f":"'Main Menu'!B26","v":"SY 2008-2009"},null,{"$f":"'Main Menu'!D26","v":65}]
[null,{"$f":"'Main Menu'!B27","v":""},null,{"$f":"'Main Menu'!D27","v":""},{"$nulls":6},"SY 2018- 2019",{"$nulls":4},{"$f":"IF(D25>=95,\"3\",\"0\")","v":"3"}]
[null,{"$f":"'Main Menu'!B28","v":""},null,{"$f":"'Main Menu'!D28","v":""},{"$nulls":6},"SY 2019- 2020",{"$nulls":4},{"$f":"IF(D26>=95,\"3\",\"0\")","v":"3"}]
[null,{"$f":"'Main Menu'!B29","v":""},null,{"$f":"'Main Menu'!D29","v":""},{"$nulls":11},{"$f":"IF(D27>=95,\"3\",\"0\")","v":"3"}]
[null,"Ave. % of Increase",{"$nulls":13},{"$f":"(P25+P26+P27)/3","v":3}]
[null,"Cohort Survival Rate (CSR):","% of Increase","Cohort Survival",null,{"$f":"P34","v":2},{"$f":"F29*0.0834","v":{"v":0.1668,"d":"0.17"}}]
[null,{"$f":"'Main Menu'!B32","v":"SY 2008-2009"},null,{"$f":"'Main Menu'!D32","v":58}]
[null,{"$f":"'Main Menu'!B33","v":""},null,{"$f":"'Main Menu'!D33","v":{"v":95,"d":"95.00"}},{"$nulls":11},{"$f":"IF(D31>=95,\"3\",\"0\")","v":"3"}]
[null,{"$f":"'Main Menu'!B34","v":""},null,{"$f":"'Main Menu'!D34","v":{"v":96,"d":"96.00"}},{"$nulls":11},{"$f":"IF(D32>=95,\"3\",\"0\")","v":"3"}]
[null,{"$f":"'Main Menu'!B35","v":""},null,{"$f":"'Main Menu'!D35","v":83.72},{"$nulls":11},{"$f":"IF(D33>=95,\"3\",\"0\")","v":"0"}]
[null,"Ave. % of Increase",{"$nulls":13},{"$f":"(P31+P32+P33)/3","v":2}]
["Quality (30%)","NAT MPS","% of Increase","NAT MPS",null,{"$f":"IF(C40>=7,\"3\",IF(C40>=5,\"2\",IF(C40>=2,\"3\",\"0\")))","v":{"$error":"#VALUE!"}},{"$f":"F35*0.3","v":{"$error":"#VALUE!"}},{"$f":"G35","v":{"$error":"#VALUE!"}}]
[null,{"$f":"'Main Menu'!B38","v":"SY 2008-2009"},null,{"$f":"'Main Menu'!D38","v":{"v":56,"d":"56.00"}}]
[null,{"$f":"'Main Menu'!B39","v":""},null,{"$f":"'Main Menu'!D39","v":""}]
[null,{"$f":"'Main Menu'!B40","v":""},{"$f":"(D38-D37)/D37*100","v":{"$error":"#VALUE!"}},{"$f":"'Main Menu'!D40","v":""}]
[null,{"$f":"'Main Menu'!B41","v":""},{"$f":"(D39-D38)/D38*100","v":{"$error":"#VALUE!"}},{"$f":"'Main Menu'!D41","v":""}]
[null,"Ave. % of Increase",{"$f":"AVERAGE(C38:C39)","v":{"$error":"#VALUE!"}}]
["Sub-Total",{"$nulls":6},{"$f":"SUM(H11:H40)","v":{"$error":"#VALUE!"}}]
[]
["Note: Only Schools having a Performance Improvement of \" Better\" can apply to the Division for SBM Validation."]
["Step 2: Compute for validated SBM Assessment Scores (40%)"]
["SBM Principles",null,"Weight",null,"Cummulative Scores of Validators per Principles",null,"Results"]
["Leadership",null,{"v":0.3,"d":"30%"},null,{"$f":"'Document Analysis, Obs. Discuss'!AP71","v":{"v":0.6,"d":"0.60"}},null,{"$f":"E46*0.3","v":0.18}]
["Curriculum & Learning",null,{"v":0.3,"d":"30%"},null,{"$f":"'Document Analysis, Obs. Discuss'!AP72","v":{"v":0,"d":"0.00"}},null,{"$f":"E47*0.3","v":0}]
["Accountability",null,{"v":0.25,"d":"25%"},null,{"$f":"'Document Analysis, Obs. Discuss'!AP73","v":{"v":0,"d":"0.00"}},null,{"$f":"E48*0.25","v":0}]
["Resource Management",null,{"v":0.15,"d":"15%"},null,{"$f":"'Document Analysis, Obs. Discuss'!AP74","v":{"v":0,"d":"0.00"}},null,{"$f":"E49*0.15","v":0}]
["Sub-total",{"$nulls":5},{"$f":"SUM(G46:G49)","v":0.18}]
["Interpretation:",null,"Good"]
[null,null,"Better"]
[null,null,"Best"]
["Legend:","Numerical Rating Scale",null,null,"Description"]
[null,"0.50-1.49",null,null,"Good"]
[null,"1.50-2.49",null,null,"Better"]
[null,"2.50-3.00",null,null,"Best"]
{"$rows_empty":7}
["Step 3: Compute for Final Rating"]
["Areas",null,"Weight",null,"Computation",null,"Results"]
["A. Performance Improvement",null,{"v":0.6,"d":"60%"},null,{"$f":"H41","v":{"$error":"#VALUE!"}},null,{"$f":"C67*E67","v":{"$error":"#VALUE!"}},{"$nulls":6},"Performance Improvement",{"$f":"E67","v":{"$error":"#VALUE!"}}]
["B. SBM Assessment Score (DOD)",null,{"v":0.4,"d":"40%"},null,{"$f":"G50","v":0.18},null,{"$f":"C68*E68","v":{"v":0.072,"d":"0.07"}},{"$nulls":6},"SBM Assessment Score",{"$f":"E68","v":0.18}]
["Total",{"$nulls":5},{"$f":"SUM(G67:G68)","v":{"$error":"#VALUE!"}},{"$nulls":6},"SBM Final Rating",{"$f":"G69","v":{"$error":"#VALUE!"}}]
[]
["Interpretation:"]
[null,"Developing ( Level I)"]
[null,"Maturing (Level II)"]
[null,"Advanced (Level III)"]
[]
["Description of SBM Level of Practice:"]
[null,"Numerical Rating Scale",null,null,"Description"]
[null,"0.50-1.49",null,null,"Developing"]
[null,"1.50-2.49",null,null,"Maturing"]
[null,"2.50-3.00",null,null,"Advanced"]
[]
["Results:",{"$f":"IF(G69<1.5,\"Developing level- Structures and mechanisms with acceptable level and extent of community participation and impact on learning outcomes.\",IF(G69<2.5,\"Maturing level - Introducing and sustaining continuous improvement process that integrates wider community participation and improve sinificantly performance and learning outcomes.\",IF(G69<3,\"Advanced level - Ensuring the production of intended outputs/outcomes and meeting all standards of a system fully integrated in the local community and is self-renewing and self-sustaining.\",\"\")))","v":{"$error":"#VALUE!"}}]
{"$rows_empty":17}
["Validators:"]
[null,{"$f":"'Input Menu'!B51","v":0},null,null,{"$f":"'Input Menu'!B52","v":0}]
[null,"Member",null,null,"Member"]
[]
[]
[null,{"$f":"'Input Menu'!B53","v":0},null,null,{"$f":"'Input Menu'!B54","v":0}]
[null,"Member",null,null,"Member"]
[]
[]
[]
[null,{"$f":"'Input Menu'!B50","v":0}]
[null,"Chairman"]
[{"$f":"'Main Menu'!#REF!","v":{"$error":"#REF!"}}]

{"sheet":"16Elem. PR, CR2, CSR2, NAT2","index":23,"n_rows":112,"n_cols":15,"rows_kept":112,"hidden":true,"merged":[[0,0,0,7],[1,0,1,7],[2,0,2,7],[4,0,4,7],[5,1,5,3],[5,5,5,7],[7,0,7,7],[8,1,8,2],[10,0,15,0],[10,4,15,4],[10,5,15,5],[10,6,15,6],[10,7,15,7],[15,1,15,3],[16,0,33,0],[16,4,21,4],[16,5,21,5],[16,6,21,6],[16,7,33,7],[22,4,27,4],[22,5,27,5],[22,6,27,6],[28,4,33,4],[28,5,33,5],[28,6,33,6],[34,0,39,0],[34,4,39,4],[34,5,39,5],[34,6,39,6],[34,7,39,7],[40,0,40,4],[42,0,42,7],[43,0,43,7],[44,0,44,1],[44,2,44,3],[44,4,44,5],[44,6,44,7],[45,0,45,1],[45,2,45,3],[45,4,45,5],[45,6,45,7],[46,0,46,1],[46,2,46,3],[46,4,46,5],[46,6,46,7],[47,0,47,1],[47,2,47,3],[47,4,47,5],[47,6,47,7],[48,0,48,1],[48,2,48,3],[48,4,48,5],[48,6,48,7],[49,0,49,5],[49,6,49,7],[53,1,53,3],[53,4,53,5],[54,1,54,3],[54,4,54,5],[55,1,55,3],[55,4,55,5],[56,1,56,3],[56,4,56,5],[64,0,64,7],[65,0,65,1],[65,2,65,3],[65,4,65,5],[65,6,65,7],[66,0,66,1],[66,2,66,3],[66,4,66,5],[66,6,66,7],[67,0,67,1],[67,2,67,3],[67,4,67,5],[67,6,67,7],[68,0,68,5],[68,6,68,7],[75,0,75,7],[76,1,76,3],[76,4,76,5],[77,1,77,3],[77,4,77,5],[78,1,78,3],[78,4,78,5],[79,1,79,3],[79,4,79,5],[81,1,84,7],[100,1,100,2],[100,4,100,5],[101,1,101,2],[101,4,101,5],[104,1,104,2],[104,4,104,5],[105,1,105,2],[105,4,105,5],[109,1,109,5],[110,1,110,5]]}
[{"$f":"'Main Menu'!A1:F1","v":"Department of Education"}]
[{"$f":"'Main Menu'!A2:F2","v":"Region X"}]
[{"$f":"'Main Menu'!A3:F3","v":""}]
[]
["SBM Validation"]
["Name of School:",{"$f":"'Main Menu'!G6","v":0},null,null,"School Year:",{"$f":"'Main Menu'!B8","v":""},{"$nulls":4},{"$f":"B6","v":0}]
[]
["Step 1: Determine Performance Improvement (60%)"]
["Thematic Area","Performance Indicators",null,null,"Rating & Equivalent Points","Computation","Computation","Results"]
[]
["Access (45%)","Enrolment Increase","% of Increase","Participation Rate",null,{"$f":"N16","v":3},{"$f":"F11*0.45","v":1.35},{"$f":"G11","v":1.35}]
[null,{"$f":"'Main Menu'!B14","v":"SY 2009-2010"},null,{"$f":"'Main Menu'!D14","v":990}]
[null,{"$f":"'Main Menu'!B15","v":""},null,{"$f":"'Main Menu'!F15","v":""},{"$nulls":6},"SY 2009-2010",null,null,{"$f":"IF(D13>=95,\"3\",IF(D13>=90,\"2\",IF(D13>=85,\"1\",\"0\")))","v":"3"}]
[null,{"$f":"'Main Menu'!B16","v":""},null,{"$f":"'Main Menu'!F16","v":""},{"$nulls":6},"SY 2010-2011",null,null,{"$f":"IF(D14>=95,\"3\",IF(D14>=90,\"2\",IF(D14>=85,\"1\",\"0\")))","v":"3"}]
[null,{"$f":"'Main Menu'!B17","v":""},null,{"$f":"'Main Menu'!F17","v":""},{"$nulls":6},"SY 2011-2012",null,null,{"$f":"IF(D15>=95,\"3\",IF(D15>=90,\"2\",IF(D15>=85,\"1\",\"0\")))","v":"3"}]
[null,{"$f":"'Main Menu'!M72","v":0},{"$nulls":8},"SY 2012-2013",null,null,{"$f":"(N13+N14+N15)/3","v":3}]
["Efficiency (25%)","Dropout Rate (DR):","% of decrease","Dropout",null,{"$f":"IF(C22>=5,\"1\",IF(C22>=2,\"2\",IF(C22<2,\"3\",\"0\")))","v":{"$error":"#VALUE!"}},{"$f":"F17*0.0833","v":{"$error":"#VALUE!"}},{"$f":"SUM(G17:G34)","v":{"$error":"#VALUE!"}},null,null,"SY 2013-2014"]
[null,{"$f":"'Main Menu'!B20","v":"SY 2008-2009"},null,{"$f":"'Main Menu'!D20","v":0.02}]
[null,{"$f":"'Main Menu'!B21","v":""},null,{"$f":"'Main Menu'!D21","v":""},{"$nulls":6},"SY 2014- 2015"]
[null,{"$f":"'Main Menu'!B22","v":""},{"$f":"D20-D19","v":{"$error":"#VALUE!"}},{"$f":"'Main Menu'!D22","v":""},{"$nulls":6},"SY 2015- 2016"]
[null,{"$f":"'Main Menu'!B23","v":""},{"$f":"D21-D20","v":{"$error":"#VALUE!"}},{"$f":"'Main Menu'!D23","v":""},{"$nulls":6},"SY 2016-2017"]
[null,"Ave. % of Decrease",{"$f":"(C20+C21)/2","v":{"$error":"#VALUE!"}}]
[null,"Completion Rate (CR):","% of Increase","Completion",null,{"$f":"N28","v":3},{"$f":"F23*0.0833","v":{"v":0.2499,"d":"0.25"}},{"$nulls":3},"SY 2017-2018"]
[null,{"$f":"'Main Menu'!B26","v":"SY 2008-2009"},null,{"$f":"'Main Menu'!D26","v":65}]
[null,{"$f":"'Main Menu'!B27","v":""},null,{"$f":"'Main Menu'!D27","v":""},{"$nulls":6},"SY 2018- 2019",null,null,{"$f":"IF(D25>95,\"3\",\"0\")","v":"3"}]
[null,{"$f":"'Main Menu'!B28","v":""},null,{"$f":"'Main Menu'!D28","v":""},{"$nulls":6},"SY 2019- 2020",null,null,{"$f":"IF(D26>95,\"3\",\"0\")","v":"3"}]
[null,{"$f":"'Main Menu'!B29","v":""},null,{"$f":"'Main Menu'!D29","v":""},{"$nulls":9},{"$f":"IF(D27>95,\"3\",\"0\")","v":"3"}]
[null,"Ave. % of Increase",{"$nulls":11},{"$f":"(N25+N26+N27)/3","v":3}]
[null,"Cohort Survival Rate (CSR):","% of Increase","Cohort Survival",null,{"$f":"N34","v":1},{"$f":"F29*0.0834","v":{"v":0.0834,"d":"0.08"}}]
[null,{"$f":"'Main Menu'!B32","v":"SY 2008-2009"},null,{"$f":"'Main Menu'!D32","v":58}]
[null,{"$f":"'Main Menu'!B33","v":""},null,{"$f":"'Main Menu'!D33","v":{"v":95,"d":"95.00"}},{"$nulls":9},{"$f":"IF(D31>95,\"3\",\"0\")","v":"0"}]
[null,{"$f":"'Main Menu'!B34","v":""},null,{"$f":"'Main Menu'!D34","v":{"v":96,"d":"96.00"}},{"$nulls":9},{"$f":"IF(D32>95,\"3\",\"0\")","v":"3"}]
[null,{"$f":"'Main Menu'!B35","v":""},null,{"$f":"'Main Menu'!D35","v":83.72},{"$nulls":9},{"$f":"IF(D33>95,\"3\",\"0\")","v":"0"}]
[null,"Ave. % of Increase",{"$nulls":11},{"$f":"(N31+N32+N33)/3","v":1}]
["Quality (30%)","NAT MPS","% of Increase","NAT MPS",null,{"$f":"N40","v":3},{"$f":"F35*0.3","v":0.8999999999999999},{"$f":"G35","v":0.8999999999999999}]
[null,{"$f":"'Main Menu'!B38","v":"SY 2008-2009"},null,{"$f":"'Main Menu'!D38","v":{"v":56,"d":"56.00"}}]
[null,{"$f":"'Main Menu'!B39","v":""},null,{"$f":"'Main Menu'!D39","v":""},{"$nulls":9},{"$f":"IF(D37>75,\"3\",\"0\")","v":"3"}]
[null,{"$f":"'Main Menu'!B40","v":""},null,{"$f":"'Main Menu'!D40","v":""},{"$nulls":9},{"$f":"IF(D38>75,\"3\",\"0\")","v":"3"}]
[null,{"$f":"'Main Menu'!B41","v":""},null,{"$f":"'Main Menu'!D41","v":""},{"$nulls":9},{"$f":"IF(D39>75,\"3\",\"0\")","v":"3"}]
[null,"Ave. % of Increase",{"$nulls":11},{"$f":"(N37+N38+N39)/3","v":3}]
["Sub-Total",{"$nulls":6},{"$f":"SUM(H11:H40)","v":{"$error":"#VALUE!"}}]
[]
["Note: Only Schools having a Performance Improvement of \" Better\" can apply to the Division for SBM Validation."]
["Step 2: Compute for validated SBM Assessment Scores (40%)"]
["SBM Principles",null,"Weight",null,"Cummulative Scores of Validators per Principles",null,"Results"]
["Leadership",null,{"v":0.3,"d":"30%"},null,{"$f":"'Document Analysis, Obs. Discuss'!AP71","v":{"v":0.6,"d":"0.60"}},null,{"$f":"E46*0.3","v":0.18}]
["Curriculum & Learning",null,{"v":0.3,"d":"30%"},null,{"$f":"'Document Analysis, Obs. Discuss'!AP72","v":{"v":0,"d":"0.00"}},null,{"$f":"E47*0.3","v":0}]
["Accountability",null,{"v":0.25,"d":"25%"},null,{"$f":"'Document Analysis, Obs. Discuss'!AP73","v":{"v":0,"d":"0.00"}},null,{"$f":"E48*0.25","v":0}]
["Resource Management",null,{"v":0.15,"d":"15%"},null,{"$f":"'Document Analysis, Obs. Discuss'!AP74","v":{"v":0,"d":"0.00"}},null,{"$f":"E49*0.15","v":0}]
["Sub-total",{"$nulls":5},{"$f":"SUM(G46:G49)","v":0.18}]
["Interpretation:",null,"Good"]
[null,null,"Better"]
[null,null,"Best"]
["Legend:","Numerical Rating Scale",null,null,"Description"]
[null,"0.50-1.49",null,null,"Good"]
[null,"1.50-2.49",null,null,"Better"]
[null,"2.50-3.00",null,null,"Best"]
{"$rows_empty":7}
["Step 3: Compute for Final Rating"]
["Areas",null,"Weight",null,"Computation",null,"Results"]
["A. Performance Improvement",null,{"v":0.6,"d":"60%"},null,{"$f":"H41","v":{"$error":"#VALUE!"}},null,{"$f":"C67*E67","v":{"$error":"#VALUE!"}},{"$nulls":6},"Performance Improvement",{"$f":"E67","v":{"$error":"#VALUE!"}}]
["B. SBM Assessment Score (DOD)",null,{"v":0.4,"d":"40%"},null,{"$f":"G50","v":0.18},null,{"$f":"C68*E68","v":{"v":0.072,"d":"0.07"}},{"$nulls":6},"SBM Assessment Score",{"$f":"E68","v":0.18}]
["Total",{"$nulls":5},{"$f":"SUM(G67:G68)","v":{"$error":"#VALUE!"}},{"$nulls":6},"SBM Final Rating",{"$f":"G69","v":{"$error":"#VALUE!"}}]
[]
["Interpretation:"]
[null,"Developing ( Level I)"]
[null,"Maturing (Level II)"]
[null,"Advanced (Level III)"]
[]
["Description of SBM Level of Practice:"]
[null,"Numerical Rating Scale",null,null,"Description"]
[null,"0.50-1.49",null,null,"Developing"]
[null,"1.50-2.49",null,null,"Maturing"]
[null,"2.50-3.00",null,null,"Advanced"]
[]
["Results:",{"$f":"IF(G69<1.5,\"Developing level- Structures and mechanisms with acceptable level and extent of community participation and impact on learning outcomes.\",IF(G69<2.5,\"Maturing level - Introducing and sustaining continuous improvement process that integrates wider community participation and improve sinificantly performance and learning outcomes.\",IF(G69<3,\"Advanced level - Ensuring the production of intended outputs/outcomes and meeting all standards of a system fully integrated in the local community and is self-renewing and self-sustaining.\",\"\")))","v":{"$error":"#VALUE!"}}]
{"$rows_empty":17}
["Validators:"]
[null,{"$f":"'Input Menu'!B51","v":0},null,null,{"$f":"'Input Menu'!B52","v":0}]
[null,"Member",null,null,"Member"]
[]
[]
[null,{"$f":"'Input Menu'!B53","v":0},null,null,{"$f":"'Input Menu'!B54","v":0}]
[null,"Member",null,null,"Member"]
[]
[]
[]
[null,{"$f":"'Input Menu'!B50","v":0}]
[null,"Chairman"]
[{"$f":"'Main Menu'!D65","v":0}]

{"sheet":"Document Analysis, Obs. Discuss","index":24,"n_rows":75,"n_cols":42,"rows_kept":75,"merged":[[0,0,0,18],[1,0,1,18],[2,0,2,18],[4,0,4,18],[5,1,5,3],[5,4,5,10],[5,11,5,13],[5,14,5,18],[6,1,6,3],[8,0,8,18],[10,0,10,2],[10,4,10,8],[10,9,10,13],[10,14,10,18],[11,0,11,2],[11,4,11,8],[11,9,11,13],[11,14,11,18],[12,0,12,2],[13,0,13,2],[13,4,13,8],[13,9,13,13],[13,14,13,18],[15,0,15,2],[15,4,15,8],[15,9,15,13],[15,14,15,18],[17,0,17,2],[17,4,17,8],[17,9,17,13],[17,14,17,18],[19,0,19,2],[19,4,19,8],[19,9,19,13],[19,14,19,18],[21,0,21,18],[22,0,22,2],[22,4,22,8],[22,9,22,13],[22,14,22,18],[24,0,24,2],[24,4,24,8],[24,9,24,13],[24,14,24,18],[26,0,26,2],[26,4,26,8],[26,9,26,13],[26,14,26,18],[28,0,30,2],[28,4,28,8],[28,9,28,13],[28,14,28,18],[30,4,30,8],[30,9,30,13],[30,14,30,18],[32,0,32,2],[32,4,32,8],[32,9,32,13],[32,14,32,18],[34,0,36,2],[34,4,34,8],[34,9,34,13],[34,14,34,18],[36,4,36,8],[36,9,36,13],[36,14,36,18],[38,0,40,2],[38,4,38,8],[38,9,38,13],[38,14,38,18],[40,4,40,8],[40,9,40,13],[40,14,40,18],[43,0,43,18],[44,0,44,2],[44,4,44,8],[44,9,44,13],[44,14,44,18],[46,0,46,2],[46,4,46,8],[46,9,46,13],[46,14,46,18],[48,0,48,2],[48,4,48,8],[48,9,48,13],[48,14,48,18],[50,0,50,2],[50,4,50,8],[50,9,50,13],[50,14,50,18],[52,0,52,2],[52,4,52,8],[52,9,52,13],[52,14,52,18],[55,0,55,18],[56,0,56,2],[56,4,56,8],[56,9,56,13],[56,14,56,18],[58,0,58,2],[58,4,58,8],[58,9,58,13],[58,14,58,18],[60,0,60,2],[60,4,60,8],[60,9,60,13],[60,14,60,18],[62,0,62,2],[62,4,62,8],[62,9,62,13],[62,14,62,18],[64,0,64,2],[64,4,64,8],[64,9,64,13],[64,14,64,18],[69,0,69,1],[69,2,69,4],[69,5,69,6],[69,7,69,8],[69,12,69,16],[70,0,70,1],[70,2,70,4],[70,5,70,6],[70,7,70,8],[70,12,70,16],[71,0,71,1],[71,2,71,4],[71,5,71,6],[71,7,71,8],[71,12,71,16],[72,0,72,1],[72,2,72,4],[72,5,72,6],[72,7,72,8],[72,12,72,16],[73,0,73,1],[73,2,73,4],[73,5,73,6],[73,7,73,8],[73,12,73,16],[74,0,74,6],[74,7,74,8]]}
[{"$f":"'Main Menu'!A1:F1","v":"Department of Education"}]
[{"$f":"'Main Menu'!A2:F2","v":"Region X"}]
[{"$f":"'Main Menu'!A3:F3","v":""}]
[]
["SBM Validation (Document Analysis-Observation-Discussion)"]
["District:",{"$f":"'Input Menu'!B6:C6","v":0},{"$nulls":9},"School Year:",null,null,{"$f":"'Main Menu'!B8","v":""}]
["School:",{"$f":"'Input Menu'!B7:C7","v":""}]
["1. Leadership and Governance"]
["A network of leadership and governance guides the education system to achieve its shared vision, mission and goals making them responsive and relevant to the context of diverse environments."]
[]
["A. Indicators",null,null,"Level  O (NO Evidence)","Level I of Practice (Evidence indicate early or preliminary stage)",{"$nulls":4},"Level II of Practice (Evidence indicate planned practices and procedures are fully implemented)",{"$nulls":4},"Level III of Practice (Evidence indicate practices and procedures satisfy quality standards)"]
["1. In  place is a Development Plan (e.g. SIP) developed collaboratively by the stakeholders of the school and community.",null,null,"(NO Evidence)","The development plan guided by the school’s vision, mission and goal (VMG) is developed through the leadership of the school and the participation of some invited community stakeholders.",{"$nulls":4},"The development plan is evolved through the shared leadership of the school and the community stakeholders.",{"$nulls":4},"The development plan is enhanced with the community performing the leadership roles, and the school providing technical support.",{"$nulls":4},false,false,false,true,null,"steps:1 click conditional formatting under  Home menu, 2. Manage rule, 3. New Rule, 4. Use a formula to determine, 5. click format values and click the true/false value and set the color"]
[{"$nulls":19},{"$f":"IF(T12=TRUE,\"0\",\"\")","v":""},{"$f":"IF(U12=TRUE,\"1\",\"\")","v":""},{"$f":"IF(V12=TRUE,\"2\",\"\")","v":""},{"$f":"IF(W12=TRUE,\"3\",\"\")","v":"3"},{"$f":"IF(W13=\"3\",W13,IF(V13=\"2\",V13,IF(U13=\"1\",U13,\"0\")))","v":"3"}]
["2. The development plan (e.g. SIP) is regularly reviewed by the school community to keep it responsive and relevant to emerging needs, challenges and opportunities.",null,null,"(NO Evidence)","The school leads the regular review and improvement of the development plan.",{"$nulls":4},"The school and community stakeholders working as full partners lead the continual review and improvement of the development plan.",{"$nulls":4},"The community stakeholders lead the regular review and improvement process; the school stakeholders facilitate the process.",{"$nulls":4},false,false,false,false]
[{"$nulls":19},{"$f":"IF(T14=TRUE,\"0\",\"\")","v":""},{"$f":"IF(U14=TRUE,\"1\",\"0\")","v":"0"},{"$f":"IF(V14=TRUE,\"2\",\"0\")","v":"0"},{"$f":"IF(W14=TRUE,\"3\",\"0\")","v":"0"},{"$f":"IF(W15=\"3\",W15,IF(V15=\"2\",V15,IF(U15=\"1\",U15,\"0\")))","v":"0"}]
["3. The school is organized by a clear structure and work arrangements that promote shared leadership and governance and define the roles and responsibilities of the stakeholders.",null,null,"(NO Evidence)","The school defines the organizational structure, and the roles and responsibilities of stakeholders.",{"$nulls":4},"The school and community collaboratively define the structure and the roles and responsibilities of stakeholders",{"$nulls":4},"Guided by an agreed organizational structure, the community stakeholders lead in defining the organizational structure and the roles and responsibilities; school provides technical and administrative support.\n\n",{"$nulls":4},false,false,false,false]
[{"$nulls":19},{"$f":"IF(T16=TRUE,\"0\",\"\")","v":""},{"$f":"IF(U16=TRUE,\"1\",\"0\")","v":"0"},{"$f":"IF(V16=TRUE,\"2\",\"0\")","v":"0"},{"$f":"IF(W16=TRUE,\"3\",\"0\")","v":"0"},{"$f":"IF(W17=\"3\",W17,IF(V17=\"2\",V17,IF(U17=\"1\",U17,\"0\")))","v":"0"}]
["4. A leadership network facilities communication between and among school and community leaders for informed decision-making and solving of school-community wide-learning problems.",null,null,"(NO Evidence)","A network has been collaboratively established and is continuously improved by the school community.",{"$nulls":4}," The network actively provides stakeholders information for making decisions and solving learning and administrative problems.",{"$nulls":4},"The network allows easy exchange and access beyond the school community.",{"$nulls":4},false,false,false,false]
[{"$nulls":19},{"$f":"IF(T18=TRUE,\"0\",\"\")","v":""},{"$f":"IF(U18=TRUE,\"1\",\"0\")","v":"0"},{"$f":"IF(V18=TRUE,\"2\",\"0\")","v":"0"},{"$f":"IF(W18=TRUE,\"3\",\"0\")","v":"0"},{"$f":"IF(W19=\"3\",W19,IF(V19=\"2\",V19,IF(U19=\"1\",U19,\"0\")))","v":"0"}]
["5. A long program is in operation that addresses the training and development needs of school and community leaders.",null,null,"(NO Evidence)","Developing structures are in place and analysis of the competency and development needs of leaders is conducted; result is used to develop a long term training and Development program.",{"$nulls":4},"Leaders undertake training modes that are convenient to them (on-line, off-line, modular, group, or home-based) and which do not disrupt their regular functions. Leaders monitor and evaluate their own learning progress.",{"$nulls":4}," Leaders assume responsibility for their own training and development. School community leaders working individually or in  groups, coach and mentor one another to achieve their VMG.",{"$nulls":4},false,false,false,false]
["II. Curriculum and Instruction ",{"$nulls":18},{"$f":"IF(T20=TRUE,\"0\",\"\")","v":""},{"$f":"IF(U20=TRUE,\"1\",\"0\")","v":"0"},{"$f":"IF(V20=TRUE,\"2\",\"0\")","v":"0"},{"$f":"IF(W20=TRUE,\"3\",\"0\")","v":"0"},{"$f":"IF(W21=\"3\",W21,IF(V21=\"2\",V21,IF(U21=\"1\",U21,\"0\")))","v":"0"}]
["The curriculum learning systems anchored on the community and learners’ context and aspiration are collaboratively developed and continuously improved."]
["1. The curriculum provides for the development needs of all types p learners in the school community.",null,null,"(NO Evidence)","All types of learners of the school community are identified, their learning curves assessed; appropriate programs with its support materials for each type of learner is developed.",{"$nulls":4},"Programs are fully implemented and closely monitored to address performance discrepancies, benchmark best practices, and coach low performers, mentor potential leaders, reward high achievements, and maintain environment that makes learning, meaningful and enjoyable.",{"$nulls":4}," The educational needs of all types of learners are being met as shown by continuous improvement on learning outcomes and products of learning. Teacher’s as well as students’ performance is motivated by intrinsic rather than extrinsic rewards. The Schools’ differentiated program is frequently benchmarked by other schools.",{"$nulls":4},false,false,false,false]
[{"$nulls":19},{"$f":"IF(T23=TRUE,\"0\",\"\")","v":""},{"$f":"IF(U23=TRUE,\"1\",\"0\")","v":"0"},{"$f":"IF(V23=TRUE,\"2\",\"0\")","v":"0"},{"$f":"IF(W23=TRUE,\"3\",\"0\")","v":"0"},{"$f":"IF(W24=\"3\",W24,IF(V24=\"2\",V24,IF(U24=\"1\",U24,\"0\")))","v":"0"}]
["2. The implemented curriculum is localized to make it more meaningful to the learners and applicable to life in the community.",null,null,"(NO Evidence)","Local beliefs, norms, values, traditions, folklores, current events, and existing technologist are documented are used to developed lasting curriculum. Localization guidelines are agreed to by school community and teachers are properly oriented.",{"$nulls":4},"The localized curriculum is implemented and monitored closely to ensure that it makes learning more meaningful and pleasurable, produces desired learning outcomes, and directly improves community life. Ineffective approaches are replaced and innovative ones are developed.",{"$nulls":4},"Best practices in localizing the curriculum are mainstreamed and benchmarked by other schools. There is marked increase in number of projects that uses the community as learning laboratory, and the school as an agent of change for improvement of the community.",{"$nulls":4},false,false,false,false]
[{"$nulls":19},{"$f":"IF(T25=TRUE,\"0\",\"\")","v":""},{"$f":"IF(U25=TRUE,\"1\",\"0\")","v":"0"},{"$f":"IF(V25=TRUE,\"2\",\"0\")","v":"0"},{"$f":"IF(W25=TRUE,\"3\",\"0\")","v":"0"},{"$f":"IF(W26=\"3\",W26,IF(V26=\"2\",V26,IF(U26=\"1\",U26,\"0\")))","v":"0"}]
["3. A representative group of school and community stakeholders develop the methods and materials for developing creative thinking and problem solving. ",null,null,"(NO Evidence)","A representative team of school and community stakeholders assess content and methods used in teaching creative, critical thinking and problem solving. Assessment results are used as guide to develop materials.",{"$nulls":4},"         Learning materials and approaches to reinforce strengths and address deficiencies are developed and tested for applicability on schools, family and community.",{"$nulls":4},"        Materials and approaches are being used in school, in the family and in community to develop critical, creative thinking and problem solving community of learners and are producing desired results. ",{"$nulls":4},false,false,false,false]
[{"$nulls":19},{"$f":"IF(T27=TRUE,\"0\",\"\")","v":""},{"$f":"IF(U27=TRUE,\"1\",\"0\")","v":"0"},{"$f":"IF(V27=TRUE,\"2\",\"0\")","v":"0"},{"$f":"IF(W27=TRUE,\"3\",\"0\")","v":"0"},{"$f":"IF(W28=\"3\",W28,IF(V28=\"2\",V28,IF(U28=\"1\",U28,\"0\")))","v":"0"}]
["4. The learning systems are regularly and collaboratively monitored by the community using appropriate tools to ensure the holistic growth and development of the learners and the community.",{"$nulls":3},"                 A school-based monitoring and learning system is conducted regularly and cooperatively; And feedback is shared with stakeholders.\n        \n              ",{"$nulls":4},"                    The school-based monitoring and learning systems generate. Feedback that is used for making decisions that enhance the total development of learners.\n\n                     \n",{"$nulls":4},"                The monitoring system is accepted and regularly used for collective decision making.\n\n              \n",{"$nulls":4},false,false,false,false]
[{"$nulls":19},{"$f":"IF(T29=TRUE,\"0\",\"\")","v":""},{"$f":"IF(U29=TRUE,\"1\",\"0\")","v":"0"},{"$f":"IF(V29=TRUE,\"2\",\"0\")","v":"0"},{"$f":"IF(W29=TRUE,\"3\",\"0\")","v":"0"},{"$f":"IF(W30=\"3\",W30,IF(V30=\"2\",V30,IF(U30=\"1\",U30,\"0\")))","v":"0"}]
[{"$nulls":3},"(NO Evidence)","The system uses a tool that monitors the holistic development of learners.",{"$nulls":4},"        A committee takes care of the continuous improvement of tool.",{"$nulls":4},"The monitoring tool has been improved to provide both quantitative and qualitative data.",{"$nulls":4},false,false,false,false]
[{"$nulls":19},{"$f":"IF(T31=TRUE,\"0\",\"\")","v":""},{"$f":"IF(U31=TRUE,\"1\",\"0\")","v":"0"},{"$f":"IF(V31=TRUE,\"2\",\"0\")","v":"0"},{"$f":"IF(W31=TRUE,\"3\",\"0\")","v":"0"},{"$f":"IF(W32=\"3\",W32,IF(V32=\"2\",V32,IF(U32=\"1\",U32,\"0\")))","v":"0"}]
["5. Appropriate assessment tools for teaching and learning are continuously reviewed and improved, and assessment results are contextualized to the learner and local situation and the attainment of relevant life skills.",null,null,"(NO Evidence)","        The assessment tools are reviewed by the school and assessment results are shared with school’s stakeholders.",{"$nulls":4},"The assessment tools are reviewed by the school community and results are shared community stakeholders.",{"$nulls":4},"School assessment results are used to develop learning programs that are suited to community, and customized to each learners’ context, result of which are used for collaborative decision-making.",{"$nulls":4},false,false,false,false]
[{"$nulls":19},{"$f":"IF(T33=TRUE,\"0\",\"\")","v":""},{"$f":"IF(U33=TRUE,\"1\",\"0\")","v":"0"},{"$f":"IF(V33=TRUE,\"2\",\"0\")","v":"0"},{"$f":"IF(W33=TRUE,\"3\",\"0\")","v":"0"},{"$f":"IF(W34=\"3\",W34,IF(V34=\"2\",V34,IF(U34=\"1\",U34,\"0\")))","v":"0"}]
["6. Learning mangers and facilitators (teacher, administrator and community members) nature values and environment that are protective of all children and demonstrate behaviors consistent to the organization’s vision, mission and goals.",null,null,"(NO Evidence)","        Stakeholders are aware of child/learner-centered, rights-based, and inclusive principles of education.",{"$nulls":4},"           Stakeholders begin to practice child/ learner-centered principles of education in the design of support to education.",{"$nulls":4},"Learning environments, methods and resources are community driven, inclusive and adherent to child’s right and protection requirements.",{"$nulls":4},false,false,false,false]
[{"$nulls":19},{"$f":"IF(T35=TRUE,\"0\",\"\")","v":""},{"$f":"IF(U35=TRUE,\"1\",\"0\")","v":"0"},{"$f":"IF(V35=TRUE,\"2\",\"0\")","v":"0"},{"$f":"IF(W35=TRUE,\"3\",\"0\")","v":"0"},{"$f":"IF(W36=\"3\",W36,IF(V36=\"2\",V36,IF(U36=\"1\",U36,\"0\")))","v":"0"}]
[{"$nulls":3},"(NO Evidence)","Learning managers and facilitators’ conduct activities aimed to increase stakeholder’s awareness and commitment to fundamental rights of children and the basic principle of educating them.                                                                         ",{"$nulls":4},"      Learning managers and facilitators’ apply the principles in designing learning materials.",{"$nulls":4},"        Learning mangers and facilitators observe learner’s rights from designing the curriculum to structuring the whole learning environment. ",{"$nulls":4},false,false,false,false]
[{"$nulls":19},{"$f":"IF(T37=TRUE,\"0\",\"\")","v":""},{"$f":"IF(U37=TRUE,\"1\",\"0\")","v":"0"},{"$f":"IF(V37=TRUE,\"2\",\"0\")","v":"0"},{"$f":"IF(W37=TRUE,\"3\",\"0\")","v":"0"},{"$f":"IF(W38=\"3\",W38,IF(V38=\"2\",V38,IF(U38=\"1\",U38,\"0\")))","v":"0"}]
["7. Methods and resources are learner and community-friendly, enjoyable, safe, inclusive, and accessible and aimed at developing self directed learners. Learners are equipped with essential knowledge, skills, and values to assume responsibility and accountability for their own learning.",{"$nulls":3},"Practices, tools and materials for developing self-directed learners are highly observable in school, but not only in the home or in the community.",{"$nulls":4},"        Practices, tools and materials for developing self-directed learners are beginning to emerge in the homes and in the community.",{"$nulls":4},"There is continuous exchange of information sharing of expertise and materials among the schools, home and community for the development of self-directed learners.",{"$nulls":4},false,false,false,false]
[{"$nulls":19},{"$f":"IF(T39=TRUE,\"0\",\"\")","v":""},{"$f":"IF(U39=TRUE,\"1\",\"0\")","v":"0"},{"$f":"IF(V39=TRUE,\"2\",\"0\")","v":"0"},{"$f":"IF(W39=TRUE,\"3\",\"0\")","v":"0"},{"$f":"IF(W40=\"3\",W40,IF(V40=\"2\",V40,IF(U40=\"1\",U40,\"0\")))","v":"0"}]
[{"$nulls":3},"(NO Evidence)","         Learning programs are designed and developed to produce learners who are responsible and accountable for their learning.",{"$nulls":4},"      The program is collaboratively implemented and monitored by teachers and parents to ensure that it produces desired learners.",{"$nulls":4},"       The program is mainstreamed continuously improve to make relevant to emergent demands.",{"$nulls":4},false,false,false,false]
[{"$nulls":19},{"$f":"IF(T41=TRUE,\"0\",\"\")","v":""},{"$f":"IF(U41=TRUE,\"1\",\"0\")","v":"0"},{"$f":"IF(V41=TRUE,\"2\",\"0\")","v":"0"},{"$f":"IF(W41=TRUE,\"3\",\"0\")","v":"0"},{"$f":"IF(W42=\"3\",W42,IF(V42=\"2\",V42,IF(U42=\"1\",U42,\"0\")))","v":"0"}]
["III. Accountability and Continuous Improvement"]
["A clear, transparent, inclusive, and responsive accountability system is in place, collaboratively developed by the school community, which monitors performance and acts appropriately on gaps and gains. "]
["1. Roles and responsibility of accountable person/s and collective body/ies are clearly defined and agreed upon by community stakeholders.",null,null,"(NO Evidence)","There is an active party that initiates classification of the roles and responsibilities in education delivery.",{"$nulls":4},"The stakeholders are engaged in clarifying and defining their specific roles and responsibilities.",{"$nulls":4},"Shared and participatory processes are used in determining roles, responsibilities, and accountabilities of stakeholders in managing and supporting education.",{"$nulls":4},false,false,false,false]
[{"$nulls":19},{"$f":"IF(T45=TRUE,\"0\",\"\")","v":""},{"$f":"IF(U45=TRUE,\"1\",\"0\")","v":"0"},{"$f":"IF(V45=TRUE,\"2\",\"0\")","v":"0"},{"$f":"IF(W45=TRUE,\"3\",\"0\")","v":"0"},{"$f":"IF(W46=\"3\",W46,IF(V46=\"2\",V46,IF(U46=\"1\",U46,\"0\")))","v":"0"}]
["2. Achievement of goals is recognized based on a collaboratively develop performance accountability system; gaps are addressed through appropriate action. ",null,null,"(NO Evidence)","        Performance accountability is practiced at the school level.",{"$nulls":4},"A community-level accountability system is evolving from school-led initiatives.",{"$nulls":4},"        A community-accepted performance accountability, recognition and incentive system is being practiced.",{"$nulls":4},false,false,false,false]
[{"$nulls":19},{"$f":"IF(T47=TRUE,\"0\",\"\")","v":""},{"$f":"IF(U47=TRUE,\"1\",\"0\")","v":"0"},{"$f":"IF(V47=TRUE,\"2\",\"0\")","v":"0"},{"$f":"IF(W47=TRUE,\"3\",\"0\")","v":"0"},{"$f":"IF(W48=\"3\",W48,IF(V48=\"2\",V48,IF(U48=\"1\",U48,\"0\")))","v":"0"}]
["3. The accountability system is owned by the community and is continuously enhanced to ensure that management structures and mechanism are responsive to the emerging learning needs of the community. ",null,null,"(NO Evidence)","        The school articulates the accountabity assessment framework with basic components, including implementation guidelines to the stakeholders.",{"$nulls":4},"Stakeholders are engaged in the development and operation of an appropriate accountability assessment system.",{"$nulls":4},"        School community stakeholders continuously and collaboratively review and enhance accountability systems’ processes, mechanisms and tools.",{"$nulls":4},false,false,false,false]
[{"$nulls":19},{"$f":"IF(T49=TRUE,\"0\",\"\")","v":""},{"$f":"IF(U49=TRUE,\"1\",\"0\")","v":"0"},{"$f":"IF(V49=TRUE,\"2\",\"0\")","v":"0"},{"$f":"IF(W49=TRUE,\"3\",\"0\")","v":"0"},{"$f":"IF(W50=\"3\",W50,IF(V50=\"2\",V50,IF(U50=\"1\",U50,\"0\")))","v":"0"}]
["4. Accountability assessment criteria and tools, feedback mechanism, and information collection and validation techniques and processes are inclusive and collaboratively develop and agreed upon.",null,null,"(NO Evidence)","The school, with the participation of stakeholders, articulates an accountability assessment framework with basic components, including implementation guidelines",{"$nulls":4},"         Stakeholders are engaged in the development and operation of an appropriate accountability assessment system.",{"$nulls":4},"        Schools community stakeholders continuously and collaboratively review and enhance accountability system’ processes, mechanisms and tools.",{"$nulls":4},false,false,false,false]
[{"$nulls":19},{"$f":"IF(T51=TRUE,\"0\",\"\")","v":""},{"$f":"IF(U51=TRUE,\"1\",\"0\")","v":"0"},{"$f":"IF(V51=TRUE,\"2\",\"0\")","v":"0"},{"$f":"IF(W51=TRUE,\"3\",\"0\")","v":"0"},{"$f":"IF(W52=\"3\",W52,IF(V52=\"2\",V52,IF(U52=\"1\",U52,\"0\")))","v":"0"}]
["5. Participatory assessment of performance is done regularly with the community. Assessment results and lessons learned serve as basis for feedback, technical assistance, and recognition and plan adjustments.",null,null,"(NO Evidence)","        School initiates periodic performance assessment with the participation of stakeholders.",{"$nulls":4},"         Collaborative conduct of performance assessment informs planning, plan adjustments and requirements for technical assistance. ",{"$nulls":4},"School-community- developed performance assessment is practiced and is the basis for improving monitoring and evaluation systems, providing technical assistance, and recognizing and refining plans.",{"$nulls":4},false,false,false,false]
[{"$nulls":19},{"$f":"IF(T53=TRUE,\"0\",\"\")","v":""},{"$f":"IF(U53=TRUE,\"1\",\"0\")","v":"0"},{"$f":"IF(V53=TRUE,\"2\",\"0\")","v":"0"},{"$f":"IF(W53=TRUE,\"3\",\"0\")","v":"0"},{"$f":"IF(W54=\"3\",W54,IF(V54=\"2\",V54,IF(U54=\"1\",U54,\"0\")))","v":"0"}]
["IV. Management of Resource"]
["Resources are collectively and Judiciously mobilized and managed with transparency, effectiveness, and efficiency. "]
["1. Regular resource inventory is collaboratively undertaken by learning managers, learning facilitators, and community stakeholders as basis for resource allocation an mobilization.",null,null,"(NO Evidence)","Stakeholders are aware that a regular resource inventory is available and is used as the basis for resource allocation and mobilization.",{"$nulls":4},"Resource inventory is characterized by regularity, increased participation of stakeholders, and communicated to the community as the basis for resource allocation and mobilization.",{"$nulls":4},"        Resource inventories are systematically developed and stakeholders are engaged in a collaboration process to make decisions on resource allocation and mobilization.",{"$nulls":4},false,false,false,false]
[{"$nulls":19},{"$f":"IF(T57=TRUE,\"0\",\"\")","v":""},{"$f":"IF(U57=TRUE,\"1\",\"0\")","v":"0"},{"$f":"IF(V57=TRUE,\"2\",\"0\")","v":"0"},{"$f":"IF(W57=TRUE,\"3\",\"0\")","v":"0"},{"$f":"IF(W58=\"3\",W58,IF(V58=\"2\",V58,IF(U58=\"1\",U58,\"0\")))","v":"0"}]
["2. A regular dialogue for planning and resource programming, that is accessible and inclusive, continuously engage stakeholders and support implementation of community education plans.",null,null,"(NO Evidence)","         Stakeholders are invited to participate in the development of an educational plan in resource programming, and in the educational plan.",{"$nulls":4},"Stakeholders are regularly engaged in the planning and resource programming, and in the implementation of the education plan.",{"$nulls":4},"Stakeholders sustain the implementation and improvement of a collaboratively developed, periodically adjusted, and constituent-focused resource management system.",{"$nulls":4},false,false,false,false]
[{"$nulls":19},{"$f":"IF(T59=TRUE,\"0\",\"\")","v":""},{"$f":"IF(U59=TRUE,\"1\",\"0\")","v":"0"},{"$f":"IF(V59=TRUE,\"2\",\"0\")","v":"0"},{"$f":"IF(W59=TRUE,\"3\",\"0\")","v":"0"},{"$f":"IF(W60=\"3\",W60,IF(V60=\"2\",V60,IF(U60=\"1\",U60,\"0\")))","v":"0"}]
["3. In place is a community-developed resource management system that drives appropriate behaviors of the stakeholders to ensure judicious, appropriate and effective use of resources.",null,null,"(NO Evidence)","Stakeholders support judicious, appropriate, and effective use of resources.",{"$nulls":4},"Stakeholders are engaged and share expertise in the collaborative development of resource management system.",{"$nulls":4},"        Stakeholders sustain the implementation and improvement of a  collaboratively developed, periodically adjusted, and  constituent-focused resource management system.",{"$nulls":4},false,false,false,false]
[{"$nulls":19},{"$f":"IF(T61=TRUE,\"0\",\"\")","v":""},{"$f":"IF(U61=TRUE,\"1\",\"0\")","v":"0"},{"$f":"IF(V61=TRUE,\"2\",\"0\")","v":"0"},{"$f":"IF(W61=TRUE,\"3\",\"0\")","v":"0"},{"$f":"IF(W62=\"3\",W62,IF(V62=\"2\",V62,IF(U62=\"1\",U62,\"0\")))","v":"0"}]
["4. Regular monitoring, evaluation, and reporting processes of resource management are collaboratively developed and implemented by the learning managers, facilitators, and community stakeholders.",null,null,"(NO Evidence)","        Stakeholders are invited to participate in the development and implementation of monitoring, evaluation, and reporting processes on resource management.",{"$nulls":4},"        Stakeholder engaged and share expertise in the collaborative development of resource management system.",{"$nulls":4},"Stakeholders sustain the implementation and improvement of a collaboratively developed, periodically adjusted, and constituent-focused resource management system.",{"$nulls":4},false,false,false,false]
[{"$nulls":19},{"$f":"IF(T63=TRUE,\"0\",\"\")","v":""},{"$f":"IF(U63=TRUE,\"1\",\"0\")","v":"0"},{"$f":"IF(V63=TRUE,\"2\",\"0\")","v":"0"},{"$f":"IF(W63=TRUE,\"3\",\"0\")","v":"0"},{"$f":"IF(W64=\"3\",W64,IF(V64=\"2\",V64,IF(U64=\"1\",U64,\"0\")))","v":"0"}]
["5. There is a system that manages the network and linkages which strengthen and sustain partnership for improving resource management.",null,null,"(NO Evidence)","An engagement procedure to identify and utilize partnerships with stakeholders for improving resource management is evident. ",{"$nulls":4},"Stakeholders support a system of partnership for improving resource management.",{"$nulls":4},"An established system of partnership is managed and sustained by the stakeholders for continuous improvement of resource management.",{"$nulls":4},false,false,false,false]
[{"$nulls":19},{"$f":"IF(T65=TRUE,\"0\",\"\")","v":""},{"$f":"IF(U65=TRUE,\"1\",\"0\")","v":"0"},{"$f":"IF(V65=TRUE,\"2\",\"0\")","v":"0"},{"$f":"IF(W65=TRUE,\"3\",\"0\")","v":"0"},{"$f":"IF(W66=\"3\",W66,IF(V66=\"2\",V66,IF(U66=\"1\",U66,\"0\")))","v":"0"}]
[]
[]
["Summary :"]
["SBM Principles",null,"Weight",null,null,"Cummulative Scores of Validators per Principles",null,"Results",null,null,"Chairman:",null,{"$f":"'Input Menu'!B50","v":0}]
["Leadership and Governance",null,{"v":0.3,"d":"30%"},null,null,{"$f":"(X13+X15+X17+X19+X21)/5","v":{"v":0.6,"d":"0.60"}},null,{"$f":"F71*0.3","v":0.18},null,null,"Member1:",null,{"$f":"'Input Menu'!B51","v":0},{"$nulls":28},{"$f":"F71","v":{"v":0.6,"d":"0.60"}}]
["Curriculum & Learning",null,{"v":0.3,"d":"30%"},null,null,{"$f":"(X24+X26+X28+X30+X32+X34+X36+X38+X40+X42)/10","v":{"v":0,"d":"0.00"}},null,{"$f":"F72*0.3","v":0},null,null,"Member2:",null,{"$f":"'Input Menu'!B52","v":0},{"$nulls":28},{"$f":"F72","v":{"v":0,"d":"0.00"}}]
["Accountability and Continuous Improvement",null,{"v":0.25,"d":"25%"},null,null,{"$f":"(X46+X48+X50+X52+X54)/5","v":{"v":0,"d":"0.00"}},null,{"$f":"F73*0.25","v":0},null,null,"Member3:",null,{"$f":"'Input Menu'!B53","v":0},{"$nulls":28},{"$f":"F73","v":{"v":0,"d":"0.00"}}]
["Resource Management",null,{"v":0.15,"d":"15%"},null,null,{"$f":"(X58+X60+X62+X64+X66)/5","v":{"v":0,"d":"0.00"}},null,{"$f":"F74*0.15","v":0},null,null,"Member4:",null,{"$f":"'Input Menu'!B54","v":0},{"$nulls":28},{"$f":"F74","v":{"v":0,"d":"0.00"}}]
["Sub-total",{"$nulls":6},{"$f":"SUM(H71:H74)","v":0.18}]